Workbook

Sheet 2025년 6월말 대비
A1: 구 분 | B1: 계 | D1: 전 | F1: 답 | H1: 과수원 | J1: 목장용지 | L1: 임야 | N1: 광천지 | P1: 염전 | R1: 대 | T1: 공장용지 | V1: 학교용지 | X1: 주차장 | Z1: 주유소용지 | AB1: 창고용지 | AD1: 도로 | AF1: 철도용지 | AH1: 제방 | AJ1: 하천 | AL1: 구거 | AN1: 유지 | AP1: 양어장 | AR1: 수도용지 | AT1: 공원 | AV1: 체육용지 | AX1: 유원지 | AZ1: 종교용지 | BB1: 사적지 | BD1: 묘지 | BF1: 잡종지
B2: 면 적 | C2: 지번수 | D2: 면 적 | E2: 지번수 | F2: 면 적 | G2: 지번수 | H2: 면 적 | I2: 지번수 | J2: 면 적 | K2: 지번수 | L2: 면 적 | M2: 지번수 | N2: 면 적 | O2: 지번수 | P2: 면 적 | Q2: 지번수 | R2: 면 적 | S2: 지번수 | T2: 면 적 | U2: 지번수 | V2: 면 적 | W2: 지번수 | X2: 면 적 | Y2: 지번수 | Z2: 면 적 | AA2: 지번수 | AB2: 면 적 | AC2: 지번수 | AD2: 면 적 | AE2: 지번수 | AF2: 면 적 | AG2: 지번수 | AH2: 면 적 | AI2: 지번수 | AJ2: 면 적 | AK2: 지번수 | AL2: 면 적 | AM2: 지번수 | AN2: 면 적 | AO2: 지번수 | AP2: 면 적 | AQ2: 지번수 | AR2: 면 적 | AS2: 지번수 | AT2: 면 적 | AU2: 지번수 | AV2: 면 적 | AW2: 지번수 | AX2: 면 적 | AY2: 지번수 | AZ2: 면 적 | BA2: 지번수 | BB2: 면 적 | BC2: 지번수 | BD2: 면 적 | BE2: 지번수 | BF2: 면 적 | BG2: 지번수
A3: 합 계 | B3: ='법정동(2025.12월말)'!B6-'법정동(2025.6월말)'!B6 -> -846.1 | C3: ='법정동(2025.12월말)'!C6-'법정동(2025.6월말)'!C6 -> -1,223.0 | D3: ='법정동(2025.12월말)'!D6-'법정동(2025.6월말)'!D6 -> -347,014.5 | E3: ='법정동(2025.12월말)'!E6-'법정동(2025.6월말)'!E6 -> -531.0 | F3: ='법정동(2025.12월말)'!F6-'법정동(2025.6월말)'!F6 -> -342,731.1 | G3: ='법정동(2025.12월말)'!G6-'법정동(2025.6월말)'!G6 -> -563.0 | H3: ='법정동(2025.12월말)'!H6-'법정동(2025.6월말)'!H6 -> 0.0 | I3: ='법정동(2025.12월말)'!I6-'법정동(2025.6월말)'!I6 -> 0.0 | J3: ='법정동(2025.12월말)'!J6-'법정동(2025.6월말)'!J6 -> 0.0 | K3: ='법정동(2025.12월말)'!K6-'법정동(2025.6월말)'!K6 -> -1.0 | L3: ='법정동(2025.12월말)'!L6-'법정동(2025.6월말)'!L6 -> -344,323.5 | M3: ='법정동(2025.12월말)'!M6-'법정동(2025.6월말)'!M6 -> -484.0 | N3: ='법정동(2025.12월말)'!N6-'법정동(2025.6월말)'!N6 -> 0.0 | O3: ='법정동(2025.12월말)'!O6-'법정동(2025.6월말)'!O6 -> 0.0 | P3: ='법정동(2025.12월말)'!P6-'법정동(2025.6월말)'!P6 -> 0.0 | Q3: ='법정동(2025.12월말)'!Q6-'법정동(2025.6월말)'!Q6 -> 0.0 | R3: ='법정동(2025.12월말)'!R6-'법정동(2025.6월말)'!R6 -> 540,012.6 | S3: ='법정동(2025.12월말)'!S6-'법정동(2025.6월말)'!S6 -> 302.0 | T3: ='법정동(2025.12월말)'!T6-'법정동(2025.6월말)'!T6 -> 707.2 | U3: ='법정동(2025.12월말)'!U6-'법정동(2025.6월말)'!U6 -> 8.0 | V3: ='법정동(2025.12월말)'!V6-'법정동(2025.6월말)'!V6 -> 52,535.7 | W3: ='법정동(2025.12월말)'!W6-'법정동(2025.6월말)'!W6 -> 6.0 | X3: ='법정동(2025.12월말)'!X6-'법정동(2025.6월말)'!X6 -> 12,978.4 | Y3: ='법정동(2025.12월말)'!Y6-'법정동(2025.6월말)'!Y6 -> 33.0 | Z3: ='법정동(2025.12월말)'!Z6-'법정동(2025.6월말)'!Z6 -> 5,230.0 | AA3: ='법정동(2025.12월말)'!AA6-'법정동(2025.6월말)'!AA6 -> 0.0 | AB3: ='법정동(2025.12월말)'!AB6-'법정동(2025.6월말)'!AB6 -> 12,512.0 | AC3: ='법정동(2025.12월말)'!AC6-'법정동(2025.6월말)'!AC6 -> 6.0 | AD3: ='법정동(2025.12월말)'!AD6-'법정동(2025.6월말)'!AD6 -> 149,845.5 | AE3: ='법정동(2025.12월말)'!AE6-'법정동(2025.6월말)'!AE6 -> -47.0 | AF3: ='법정동(2025.12월말)'!AF6-'법정동(2025.6월말)'!AF6 -> -283.0 | AG3: ='법정동(2025.12월말)'!AG6-'법정동(2025.6월말)'!AG6 -> -1.0 | AH3: ='법정동(2025.12월말)'!AH6-'법정동(2025.6월말)'!AH6 -> -15.8 | AI3: ='법정동(2025.12월말)'!AI6-'법정동(2025.6월말)'!AI6 -> -1.0 | AJ3: ='법정동(2025.12월말)'!AJ6-'법정동(2025.6월말)'!AJ6 -> 8,360.1 | AK3: ='법정동(2025.12월말)'!AK6-'법정동(2025.6월말)'!AK6 -> 0.0 | AL3: ='법정동(2025.12월말)'!AL6-'법정동(2025.6월말)'!AL6 -> -12,722.5 | AM3: ='법정동(2025.12월말)'!AM6-'법정동(2025.6월말)'!AM6 -> -33.0 | AN3: ='법정동(2025.12월말)'!AN6-'법정동(2025.6월말)'!AN6 -> 9,890.0 | AO3: ='법정동(2025.12월말)'!AO6-'법정동(2025.6월말)'!AO6 -> -4.0 | AP3: ='법정동(2025.12월말)'!AP6-'법정동(2025.6월말)'!AP6 -> 0.0 | AQ3: ='법정동(2025.12월말)'!AQ6-'법정동(2025.6월말)'!AQ6 -> 1.0 | AR3: ='법정동(2025.12월말)'!AR6-'법정동(2025.6월말)'!AR6 -> 455.1 | AS3: ='법정동(2025.12월말)'!AS6-'법정동(2025.6월말)'!AS6 -> 1.0 | AT3: ='법정동(2025.12월말)'!AT6-'법정동(2025.6월말)'!AT6 -> 225,594.8 | AU3: ='법정동(2025.12월말)'!AU6-'법정동(2025.6월말)'!AU6 -> 50.0 | AV3: ='법정동(2025.12월말)'!AV6-'법정동(2025.6월말)'!AV6 -> 0.0 | AW3: ='법정동(2025.12월말)'!AW6-'법정동(2025.6월말)'!AW6 -> 0.0 | AX3: ='법정동(2025.12월말)'!AX6-'법정동(2025.6월말)'!AX6 -> 4,806.0 | AY3: ='법정동(2025.12월말)'!AY6-'법정동(2025.6월말)'!AY6 -> 1.0 | AZ3: ='법정동(2025.12월말)'!AZ6-'법정동(2025.6월말)'!AZ6 -> 6,296.4 | BA3: ='법정동(2025.12월말)'!BA6-'법정동(2025.6월말)'!BA6 -> 2.0 | BB3: ='법정동(2025.12월말)'!BB6-'법정동(2025.6월말)'!BB6 -> 0.0 | BC3: ='법정동(2025.12월말)'!BC6-'법정동(2025.6월말)'!BC6 -> 0.0 | BD3: ='법정동(2025.12월말)'!BD6-'법정동(2025.6월말)'!BD6 -> -1,804.0 | BE3: ='법정동(2025.12월말)'!BE6-'법정동(2025.6월말)'!BE6 -> -3.0 | BF3: ='법정동(2025.12월말)'!BF6-'법정동(2025.6월말)'!BF6 -> 18,824.5 | BG3: ='법정동(2025.12월말)'!BG6-'법정동(2025.6월말)'!BG6 -> 35.0
A4: 종화동 | B4: ='법정동(2025.12월말)'!B7-'법정동(2025.6월말)'!B7 -> 0.0 | C4: ='법정동(2025.12월말)'!C7-'법정동(2025.6월말)'!C7 -> 0.0 | D4: ='법정동(2025.12월말)'!D7-'법정동(2025.6월말)'!D7 -> 0.0 | E4: ='법정동(2025.12월말)'!E7-'법정동(2025.6월말)'!E7 -> 0.0 | F4: ='법정동(2025.12월말)'!F7-'법정동(2025.6월말)'!F7 -> 0.0 | G4: ='법정동(2025.12월말)'!G7-'법정동(2025.6월말)'!G7 -> 0.0 | H4: ='법정동(2025.12월말)'!H7-'법정동(2025.6월말)'!H7 -> 0.0 | I4: ='법정동(2025.12월말)'!I7-'법정동(2025.6월말)'!I7 -> 0.0 | J4: ='법정동(2025.12월말)'!J7-'법정동(2025.6월말)'!J7 -> 0.0 | K4: ='법정동(2025.12월말)'!K7-'법정동(2025.6월말)'!K7 -> 0.0 | L4: ='법정동(2025.12월말)'!L7-'법정동(2025.6월말)'!L7 -> 0.0 | M4: ='법정동(2025.12월말)'!M7-'법정동(2025.6월말)'!M7 -> 0.0 | N4: ='법정동(2025.12월말)'!N7-'법정동(2025.6월말)'!N7 -> 0.0 | O4: ='법정동(2025.12월말)'!O7-'법정동(2025.6월말)'!O7 -> 0.0 | P4: ='법정동(2025.12월말)'!P7-'법정동(2025.6월말)'!P7 -> 0.0 | Q4: ='법정동(2025.12월말)'!Q7-'법정동(2025.6월말)'!Q7 -> 0.0 | R4: ='법정동(2025.12월말)'!R7-'법정동(2025.6월말)'!R7 -> 0.0 | S4: ='법정동(2025.12월말)'!S7-'법정동(2025.6월말)'!S7 -> 0.0 | T4: ='법정동(2025.12월말)'!T7-'법정동(2025.6월말)'!T7 -> 0.0 | U4: ='법정동(2025.12월말)'!U7-'법정동(2025.6월말)'!U7 -> 0.0 | V4: ='법정동(2025.12월말)'!V7-'법정동(2025.6월말)'!V7 -> 0.0 | W4: ='법정동(2025.12월말)'!W7-'법정동(2025.6월말)'!W7 -> 0.0 | X4: ='법정동(2025.12월말)'!X7-'법정동(2025.6월말)'!X7 -> 0.0 | Y4: ='법정동(2025.12월말)'!Y7-'법정동(2025.6월말)'!Y7 -> 0.0 | Z4: ='법정동(2025.12월말)'!Z7-'법정동(2025.6월말)'!Z7 -> 0.0 | AA4: ='법정동(2025.12월말)'!AA7-'법정동(2025.6월말)'!AA7 -> 0.0 | AB4: ='법정동(2025.12월말)'!AB7-'법정동(2025.6월말)'!AB7 -> 0.0 | AC4: ='법정동(2025.12월말)'!AC7-'법정동(2025.6월말)'!AC7 -> 0.0 | AD4: ='법정동(2025.12월말)'!AD7-'법정동(2025.6월말)'!AD7 -> 0.0 | AE4: ='법정동(2025.12월말)'!AE7-'법정동(2025.6월말)'!AE7 -> 0.0 | AF4: ='법정동(2025.12월말)'!AF7-'법정동(2025.6월말)'!AF7 -> 0.0 | AG4: ='법정동(2025.12월말)'!AG7-'법정동(2025.6월말)'!AG7 -> 0.0 | AH4: ='법정동(2025.12월말)'!AH7-'법정동(2025.6월말)'!AH7 -> 0.0 | AI4: ='법정동(2025.12월말)'!AI7-'법정동(2025.6월말)'!AI7 -> 0.0 | AJ4: ='법정동(2025.12월말)'!AJ7-'법정동(2025.6월말)'!AJ7 -> 0.0 | AK4: ='법정동(2025.12월말)'!AK7-'법정동(2025.6월말)'!AK7 -> 0.0 | AL4: ='법정동(2025.12월말)'!AL7-'법정동(2025.6월말)'!AL7 -> 0.0 | AM4: ='법정동(2025.12월말)'!AM7-'법정동(2025.6월말)'!AM7 -> 0.0 | AN4: ='법정동(2025.12월말)'!AN7-'법정동(2025.6월말)'!AN7 -> 0.0 | AO4: ='법정동(2025.12월말)'!AO7-'법정동(2025.6월말)'!AO7 -> 0.0 | AP4: ='법정동(2025.12월말)'!AP7-'법정동(2025.6월말)'!AP7 -> 0.0 | AQ4: ='법정동(2025.12월말)'!AQ7-'법정동(2025.6월말)'!AQ7 -> 0.0 | AR4: ='법정동(2025.12월말)'!AR7-'법정동(2025.6월말)'!AR7 -> 0.0 | AS4: ='법정동(2025.12월말)'!AS7-'법정동(2025.6월말)'!AS7 -> 0.0 | AT4: ='법정동(2025.12월말)'!AT7-'법정동(2025.6월말)'!AT7 -> 0.0 | AU4: ='법정동(2025.12월말)'!AU7-'법정동(2025.6월말)'!AU7 -> 0.0 | AV4: ='법정동(2025.12월말)'!AV7-'법정동(2025.6월말)'!AV7 -> 0.0 | AW4: ='법정동(2025.12월말)'!AW7-'법정동(2025.6월말)'!AW7 -> 0.0 | AX4: ='법정동(2025.12월말)'!AX7-'법정동(2025.6월말)'!AX7 -> 0.0 | AY4: ='법정동(2025.12월말)'!AY7-'법정동(2025.6월말)'!AY7 -> 0.0 | AZ4: ='법정동(2025.12월말)'!AZ7-'법정동(2025.6월말)'!AZ7 -> 0.0 | BA4: ='법정동(2025.12월말)'!BA7-'법정동(2025.6월말)'!BA7 -> 0.0 | BB4: ='법정동(2025.12월말)'!BB7-'법정동(2025.6월말)'!BB7 -> 0.0 | BC4: ='법정동(2025.12월말)'!BC7-'법정동(2025.6월말)'!BC7 -> 0.0 | BD4: ='법정동(2025.12월말)'!BD7-'법정동(2025.6월말)'!BD7 -> 0.0 | BE4: ='법정동(2025.12월말)'!BE7-'법정동(2025.6월말)'!BE7 -> 0.0 | BF4: ='법정동(2025.12월말)'!BF7-'법정동(2025.6월말)'!BF7 -> 0.0 | BG4: ='법정동(2025.12월말)'!BG7-'법정동(2025.6월말)'!BG7 -> 0.0
A5: 수정동 | B5: ='법정동(2025.12월말)'!B8-'법정동(2025.6월말)'!B8 -> 0.0 | C5: ='법정동(2025.12월말)'!C8-'법정동(2025.6월말)'!C8 -> -1.0 | D5: ='법정동(2025.12월말)'!D8-'법정동(2025.6월말)'!D8 -> 0.0 | E5: ='법정동(2025.12월말)'!E8-'법정동(2025.6월말)'!E8 -> 0.0 | F5: ='법정동(2025.12월말)'!F8-'법정동(2025.6월말)'!F8 -> 0.0 | G5: ='법정동(2025.12월말)'!G8-'법정동(2025.6월말)'!G8 -> 0.0 | H5: ='법정동(2025.12월말)'!H8-'법정동(2025.6월말)'!H8 -> 0.0 | I5: ='법정동(2025.12월말)'!I8-'법정동(2025.6월말)'!I8 -> 0.0 | J5: ='법정동(2025.12월말)'!J8-'법정동(2025.6월말)'!J8 -> 0.0 | K5: ='법정동(2025.12월말)'!K8-'법정동(2025.6월말)'!K8 -> 0.0 | L5: ='법정동(2025.12월말)'!L8-'법정동(2025.6월말)'!L8 -> 0.0 | M5: ='법정동(2025.12월말)'!M8-'법정동(2025.6월말)'!M8 -> 0.0 | N5: ='법정동(2025.12월말)'!N8-'법정동(2025.6월말)'!N8 -> 0.0 | O5: ='법정동(2025.12월말)'!O8-'법정동(2025.6월말)'!O8 -> 0.0 | P5: ='법정동(2025.12월말)'!P8-'법정동(2025.6월말)'!P8 -> 0.0 | Q5: ='법정동(2025.12월말)'!Q8-'법정동(2025.6월말)'!Q8 -> 0.0 | R5: ='법정동(2025.12월말)'!R8-'법정동(2025.6월말)'!R8 -> 0.0 | S5: ='법정동(2025.12월말)'!S8-'법정동(2025.6월말)'!S8 -> -1.0 | T5: ='법정동(2025.12월말)'!T8-'법정동(2025.6월말)'!T8 -> 0.0 | U5: ='법정동(2025.12월말)'!U8-'법정동(2025.6월말)'!U8 -> 0.0 | V5: ='법정동(2025.12월말)'!V8-'법정동(2025.6월말)'!V8 -> 0.0 | W5: ='법정동(2025.12월말)'!W8-'법정동(2025.6월말)'!W8 -> 0.0 | X5: ='법정동(2025.12월말)'!X8-'법정동(2025.6월말)'!X8 -> 0.0 | Y5: ='법정동(2025.12월말)'!Y8-'법정동(2025.6월말)'!Y8 -> 0.0 | Z5: ='법정동(2025.12월말)'!Z8-'법정동(2025.6월말)'!Z8 -> 0.0 | AA5: ='법정동(2025.12월말)'!AA8-'법정동(2025.6월말)'!AA8 -> 0.0 | AB5: ='법정동(2025.12월말)'!AB8-'법정동(2025.6월말)'!AB8 -> 0.0 | AC5: ='법정동(2025.12월말)'!AC8-'법정동(2025.6월말)'!AC8 -> 0.0 | AD5: ='법정동(2025.12월말)'!AD8-'법정동(2025.6월말)'!AD8 -> 0.0 | AE5: ='법정동(2025.12월말)'!AE8-'법정동(2025.6월말)'!AE8 -> 0.0 | AF5: ='법정동(2025.12월말)'!AF8-'법정동(2025.6월말)'!AF8 -> 0.0 | AG5: ='법정동(2025.12월말)'!AG8-'법정동(2025.6월말)'!AG8 -> 0.0 | AH5: ='법정동(2025.12월말)'!AH8-'법정동(2025.6월말)'!AH8 -> 0.0 | AI5: ='법정동(2025.12월말)'!AI8-'법정동(2025.6월말)'!AI8 -> 0.0 | AJ5: ='법정동(2025.12월말)'!AJ8-'법정동(2025.6월말)'!AJ8 -> 0.0 | AK5: ='법정동(2025.12월말)'!AK8-'법정동(2025.6월말)'!AK8 -> 0.0 | AL5: ='법정동(2025.12월말)'!AL8-'법정동(2025.6월말)'!AL8 -> 0.0 | AM5: ='법정동(2025.12월말)'!AM8-'법정동(2025.6월말)'!AM8 -> 0.0 | AN5: ='법정동(2025.12월말)'!AN8-'법정동(2025.6월말)'!AN8 -> 0.0 | AO5: ='법정동(2025.12월말)'!AO8-'법정동(2025.6월말)'!AO8 -> 0.0 | AP5: ='법정동(2025.12월말)'!AP8-'법정동(2025.6월말)'!AP8 -> 0.0 | AQ5: ='법정동(2025.12월말)'!AQ8-'법정동(2025.6월말)'!AQ8 -> 0.0 | AR5: ='법정동(2025.12월말)'!AR8-'법정동(2025.6월말)'!AR8 -> 0.0 | AS5: ='법정동(2025.12월말)'!AS8-'법정동(2025.6월말)'!AS8 -> 0.0 | AT5: ='법정동(2025.12월말)'!AT8-'법정동(2025.6월말)'!AT8 -> 0.0 | AU5: ='법정동(2025.12월말)'!AU8-'법정동(2025.6월말)'!AU8 -> 0.0 | AV5: ='법정동(2025.12월말)'!AV8-'법정동(2025.6월말)'!AV8 -> 0.0 | AW5: ='법정동(2025.12월말)'!AW8-'법정동(2025.6월말)'!AW8 -> 0.0 | AX5: ='법정동(2025.12월말)'!AX8-'법정동(2025.6월말)'!AX8 -> 0.0 | AY5: ='법정동(2025.12월말)'!AY8-'법정동(2025.6월말)'!AY8 -> 0.0 | AZ5: ='법정동(2025.12월말)'!AZ8-'법정동(2025.6월말)'!AZ8 -> 0.0 | BA5: ='법정동(2025.12월말)'!BA8-'법정동(2025.6월말)'!BA8 -> 0.0 | BB5: ='법정동(2025.12월말)'!BB8-'법정동(2025.6월말)'!BB8 -> 0.0 | BC5: ='법정동(2025.12월말)'!BC8-'법정동(2025.6월말)'!BC8 -> 0.0 | BD5: ='법정동(2025.12월말)'!BD8-'법정동(2025.6월말)'!BD8 -> 0.0 | BE5: ='법정동(2025.12월말)'!BE8-'법정동(2025.6월말)'!BE8 -> 0.0 | BF5: ='법정동(2025.12월말)'!BF8-'법정동(2025.6월말)'!BF8 -> 0.0 | BG5: ='법정동(2025.12월말)'!BG8-'법정동(2025.6월말)'!BG8 -> 0.0
A6: 공화동 | B6: ='법정동(2025.12월말)'!B9-'법정동(2025.6월말)'!B9 -> 0.0 | C6: ='법정동(2025.12월말)'!C9-'법정동(2025.6월말)'!C9 -> -4.0 | D6: ='법정동(2025.12월말)'!D9-'법정동(2025.6월말)'!D9 -> 0.0 | E6: ='법정동(2025.12월말)'!E9-'법정동(2025.6월말)'!E9 -> 0.0 | F6: ='법정동(2025.12월말)'!F9-'법정동(2025.6월말)'!F9 -> 0.0 | G6: ='법정동(2025.12월말)'!G9-'법정동(2025.6월말)'!G9 -> 0.0 | H6: ='법정동(2025.12월말)'!H9-'법정동(2025.6월말)'!H9 -> 0.0 | I6: ='법정동(2025.12월말)'!I9-'법정동(2025.6월말)'!I9 -> 0.0 | J6: ='법정동(2025.12월말)'!J9-'법정동(2025.6월말)'!J9 -> 0.0 | K6: ='법정동(2025.12월말)'!K9-'법정동(2025.6월말)'!K9 -> 0.0 | L6: ='법정동(2025.12월말)'!L9-'법정동(2025.6월말)'!L9 -> 0.0 | M6: ='법정동(2025.12월말)'!M9-'법정동(2025.6월말)'!M9 -> 0.0 | N6: ='법정동(2025.12월말)'!N9-'법정동(2025.6월말)'!N9 -> 0.0 | O6: ='법정동(2025.12월말)'!O9-'법정동(2025.6월말)'!O9 -> 0.0 | P6: ='법정동(2025.12월말)'!P9-'법정동(2025.6월말)'!P9 -> 0.0 | Q6: ='법정동(2025.12월말)'!Q9-'법정동(2025.6월말)'!Q9 -> 0.0 | R6: ='법정동(2025.12월말)'!R9-'법정동(2025.6월말)'!R9 -> 0.0 | S6: ='법정동(2025.12월말)'!S9-'법정동(2025.6월말)'!S9 -> -4.0 | T6: ='법정동(2025.12월말)'!T9-'법정동(2025.6월말)'!T9 -> 0.0 | U6: ='법정동(2025.12월말)'!U9-'법정동(2025.6월말)'!U9 -> 0.0 | V6: ='법정동(2025.12월말)'!V9-'법정동(2025.6월말)'!V9 -> 0.0 | W6: ='법정동(2025.12월말)'!W9-'법정동(2025.6월말)'!W9 -> 0.0 | X6: ='법정동(2025.12월말)'!X9-'법정동(2025.6월말)'!X9 -> 0.0 | Y6: ='법정동(2025.12월말)'!Y9-'법정동(2025.6월말)'!Y9 -> 0.0 | Z6: ='법정동(2025.12월말)'!Z9-'법정동(2025.6월말)'!Z9 -> 0.0 | AA6: ='법정동(2025.12월말)'!AA9-'법정동(2025.6월말)'!AA9 -> 0.0 | AB6: ='법정동(2025.12월말)'!AB9-'법정동(2025.6월말)'!AB9 -> 0.0 | AC6: ='법정동(2025.12월말)'!AC9-'법정동(2025.6월말)'!AC9 -> 0.0 | AD6: ='법정동(2025.12월말)'!AD9-'법정동(2025.6월말)'!AD9 -> 0.0 | AE6: ='법정동(2025.12월말)'!AE9-'법정동(2025.6월말)'!AE9 -> 0.0 | AF6: ='법정동(2025.12월말)'!AF9-'법정동(2025.6월말)'!AF9 -> 0.0 | AG6: ='법정동(2025.12월말)'!AG9-'법정동(2025.6월말)'!AG9 -> 0.0 | AH6: ='법정동(2025.12월말)'!AH9-'법정동(2025.6월말)'!AH9 -> 0.0 | AI6: ='법정동(2025.12월말)'!AI9-'법정동(2025.6월말)'!AI9 -> 0.0 | AJ6: ='법정동(2025.12월말)'!AJ9-'법정동(2025.6월말)'!AJ9 -> 0.0 | AK6: ='법정동(2025.12월말)'!AK9-'법정동(2025.6월말)'!AK9 -> 0.0 | AL6: ='법정동(2025.12월말)'!AL9-'법정동(2025.6월말)'!AL9 -> 0.0 | AM6: ='법정동(2025.12월말)'!AM9-'법정동(2025.6월말)'!AM9 -> 0.0 | AN6: ='법정동(2025.12월말)'!AN9-'법정동(2025.6월말)'!AN9 -> 0.0 | AO6: ='법정동(2025.12월말)'!AO9-'법정동(2025.6월말)'!AO9 -> 0.0 | AP6: ='법정동(2025.12월말)'!AP9-'법정동(2025.6월말)'!AP9 -> 0.0 | AQ6: ='법정동(2025.12월말)'!AQ9-'법정동(2025.6월말)'!AQ9 -> 0.0 | AR6: ='법정동(2025.12월말)'!AR9-'법정동(2025.6월말)'!AR9 -> 0.0 | AS6: ='법정동(2025.12월말)'!AS9-'법정동(2025.6월말)'!AS9 -> 0.0 | AT6: ='법정동(2025.12월말)'!AT9-'법정동(2025.6월말)'!AT9 -> 0.0 | AU6: ='법정동(2025.12월말)'!AU9-'법정동(2025.6월말)'!AU9 -> 0.0 | AV6: ='법정동(2025.12월말)'!AV9-'법정동(2025.6월말)'!AV9 -> 0.0 | AW6: ='법정동(2025.12월말)'!AW9-'법정동(2025.6월말)'!AW9 -> 0.0 | AX6: ='법정동(2025.12월말)'!AX9-'법정동(2025.6월말)'!AX9 -> 0.0 | AY6: ='법정동(2025.12월말)'!AY9-'법정동(2025.6월말)'!AY9 -> 0.0 | AZ6: ='법정동(2025.12월말)'!AZ9-'법정동(2025.6월말)'!AZ9 -> 0.0 | BA6: ='법정동(2025.12월말)'!BA9-'법정동(2025.6월말)'!BA9 -> 0.0 | BB6: ='법정동(2025.12월말)'!BB9-'법정동(2025.6월말)'!BB9 -> 0.0 | BC6: ='법정동(2025.12월말)'!BC9-'법정동(2025.6월말)'!BC9 -> 0.0 | BD6: ='법정동(2025.12월말)'!BD9-'법정동(2025.6월말)'!BD9 -> 0.0 | BE6: ='법정동(2025.12월말)'!BE9-'법정동(2025.6월말)'!BE9 -> 0.0 | BF6: ='법정동(2025.12월말)'!BF9-'법정동(2025.6월말)'!BF9 -> 0.0 | BG6: ='법정동(2025.12월말)'!BG9-'법정동(2025.6월말)'!BG9 -> 0.0
A7: 관문동 | B7: ='법정동(2025.12월말)'!B10-'법정동(2025.6월말)'!B10 -> 0.0 | C7: ='법정동(2025.12월말)'!C10-'법정동(2025.6월말)'!C10 -> -7.0 | D7: ='법정동(2025.12월말)'!D10-'법정동(2025.6월말)'!D10 -> -58.0 | E7: ='법정동(2025.12월말)'!E10-'법정동(2025.6월말)'!E10 -> -1.0 | F7: ='법정동(2025.12월말)'!F10-'법정동(2025.6월말)'!F10 -> 0.0 | G7: ='법정동(2025.12월말)'!G10-'법정동(2025.6월말)'!G10 -> 0.0 | H7: ='법정동(2025.12월말)'!H10-'법정동(2025.6월말)'!H10 -> 0.0 | I7: ='법정동(2025.12월말)'!I10-'법정동(2025.6월말)'!I10 -> 0.0 | J7: ='법정동(2025.12월말)'!J10-'법정동(2025.6월말)'!J10 -> 0.0 | K7: ='법정동(2025.12월말)'!K10-'법정동(2025.6월말)'!K10 -> 0.0 | L7: ='법정동(2025.12월말)'!L10-'법정동(2025.6월말)'!L10 -> 0.0 | M7: ='법정동(2025.12월말)'!M10-'법정동(2025.6월말)'!M10 -> 0.0 | N7: ='법정동(2025.12월말)'!N10-'법정동(2025.6월말)'!N10 -> 0.0 | O7: ='법정동(2025.12월말)'!O10-'법정동(2025.6월말)'!O10 -> 0.0 | P7: ='법정동(2025.12월말)'!P10-'법정동(2025.6월말)'!P10 -> 0.0 | Q7: ='법정동(2025.12월말)'!Q10-'법정동(2025.6월말)'!Q10 -> 0.0 | R7: ='법정동(2025.12월말)'!R10-'법정동(2025.6월말)'!R10 -> 381.0 | S7: ='법정동(2025.12월말)'!S10-'법정동(2025.6월말)'!S10 -> -3.0 | T7: ='법정동(2025.12월말)'!T10-'법정동(2025.6월말)'!T10 -> 0.0 | U7: ='법정동(2025.12월말)'!U10-'법정동(2025.6월말)'!U10 -> 0.0 | V7: ='법정동(2025.12월말)'!V10-'법정동(2025.6월말)'!V10 -> 0.0 | W7: ='법정동(2025.12월말)'!W10-'법정동(2025.6월말)'!W10 -> 0.0 | X7: ='법정동(2025.12월말)'!X10-'법정동(2025.6월말)'!X10 -> -249.0 | Y7: ='법정동(2025.12월말)'!Y10-'법정동(2025.6월말)'!Y10 -> -1.0 | Z7: ='법정동(2025.12월말)'!Z10-'법정동(2025.6월말)'!Z10 -> 0.0 | AA7: ='법정동(2025.12월말)'!AA10-'법정동(2025.6월말)'!AA10 -> 0.0 | AB7: ='법정동(2025.12월말)'!AB10-'법정동(2025.6월말)'!AB10 -> 0.0 | AC7: ='법정동(2025.12월말)'!AC10-'법정동(2025.6월말)'!AC10 -> 0.0 | AD7: ='법정동(2025.12월말)'!AD10-'법정동(2025.6월말)'!AD10 -> 0.0 | AE7: ='법정동(2025.12월말)'!AE10-'법정동(2025.6월말)'!AE10 -> 0.0 | AF7: ='법정동(2025.12월말)'!AF10-'법정동(2025.6월말)'!AF10 -> 0.0 | AG7: ='법정동(2025.12월말)'!AG10-'법정동(2025.6월말)'!AG10 -> 0.0 | AH7: ='법정동(2025.12월말)'!AH10-'법정동(2025.6월말)'!AH10 -> 0.0 | AI7: ='법정동(2025.12월말)'!AI10-'법정동(2025.6월말)'!AI10 -> 0.0 | AJ7: ='법정동(2025.12월말)'!AJ10-'법정동(2025.6월말)'!AJ10 -> 0.0 | AK7: ='법정동(2025.12월말)'!AK10-'법정동(2025.6월말)'!AK10 -> 0.0 | AL7: ='법정동(2025.12월말)'!AL10-'법정동(2025.6월말)'!AL10 -> -45.0 | AM7: ='법정동(2025.12월말)'!AM10-'법정동(2025.6월말)'!AM10 -> -1.0 | AN7: ='법정동(2025.12월말)'!AN10-'법정동(2025.6월말)'!AN10 -> 0.0 | AO7: ='법정동(2025.12월말)'!AO10-'법정동(2025.6월말)'!AO10 -> 0.0 | AP7: ='법정동(2025.12월말)'!AP10-'법정동(2025.6월말)'!AP10 -> 0.0 | AQ7: ='법정동(2025.12월말)'!AQ10-'법정동(2025.6월말)'!AQ10 -> 0.0 | AR7: ='법정동(2025.12월말)'!AR10-'법정동(2025.6월말)'!AR10 -> 0.0 | AS7: ='법정동(2025.12월말)'!AS10-'법정동(2025.6월말)'!AS10 -> 0.0 | AT7: ='법정동(2025.12월말)'!AT10-'법정동(2025.6월말)'!AT10 -> 0.0 | AU7: ='법정동(2025.12월말)'!AU10-'법정동(2025.6월말)'!AU10 -> 0.0 | AV7: ='법정동(2025.12월말)'!AV10-'법정동(2025.6월말)'!AV10 -> 0.0 | AW7: ='법정동(2025.12월말)'!AW10-'법정동(2025.6월말)'!AW10 -> 0.0 | AX7: ='법정동(2025.12월말)'!AX10-'법정동(2025.6월말)'!AX10 -> 0.0 | AY7: ='법정동(2025.12월말)'!AY10-'법정동(2025.6월말)'!AY10 -> 0.0 | AZ7: ='법정동(2025.12월말)'!AZ10-'법정동(2025.6월말)'!AZ10 -> 0.0 | BA7: ='법정동(2025.12월말)'!BA10-'법정동(2025.6월말)'!BA10 -> 0.0 | BB7: ='법정동(2025.12월말)'!BB10-'법정동(2025.6월말)'!BB10 -> 0.0 | BC7: ='법정동(2025.12월말)'!BC10-'법정동(2025.6월말)'!BC10 -> 0.0 | BD7: ='법정동(2025.12월말)'!BD10-'법정동(2025.6월말)'!BD10 -> 0.0 | BE7: ='법정동(2025.12월말)'!BE10-'법정동(2025.6월말)'!BE10 -> 0.0 | BF7: ='법정동(2025.12월말)'!BF10-'법정동(2025.6월말)'!BF10 -> -29.0 | BG7: ='법정동(2025.12월말)'!BG10-'법정동(2025.6월말)'!BG10 -> -1.0
A8: 고소동 | B8: ='법정동(2025.12월말)'!B11-'법정동(2025.6월말)'!B11 -> 15.0 | C8: ='법정동(2025.12월말)'!C11-'법정동(2025.6월말)'!C11 -> 8.0 | D8: ='법정동(2025.12월말)'!D11-'법정동(2025.6월말)'!D11 -> -32.0 | E8: ='법정동(2025.12월말)'!E11-'법정동(2025.6월말)'!E11 -> 3.0 | F8: ='법정동(2025.12월말)'!F11-'법정동(2025.6월말)'!F11 -> 0.0 | G8: ='법정동(2025.12월말)'!G11-'법정동(2025.6월말)'!G11 -> 0.0 | H8: ='법정동(2025.12월말)'!H11-'법정동(2025.6월말)'!H11 -> 0.0 | I8: ='법정동(2025.12월말)'!I11-'법정동(2025.6월말)'!I11 -> 0.0 | J8: ='법정동(2025.12월말)'!J11-'법정동(2025.6월말)'!J11 -> 0.0 | K8: ='법정동(2025.12월말)'!K11-'법정동(2025.6월말)'!K11 -> 0.0 | L8: ='법정동(2025.12월말)'!L11-'법정동(2025.6월말)'!L11 -> 15.0 | M8: ='법정동(2025.12월말)'!M11-'법정동(2025.6월말)'!M11 -> 2.0 | N8: ='법정동(2025.12월말)'!N11-'법정동(2025.6월말)'!N11 -> 0.0 | O8: ='법정동(2025.12월말)'!O11-'법정동(2025.6월말)'!O11 -> 0.0 | P8: ='법정동(2025.12월말)'!P11-'법정동(2025.6월말)'!P11 -> 0.0 | Q8: ='법정동(2025.12월말)'!Q11-'법정동(2025.6월말)'!Q11 -> 0.0 | R8: ='법정동(2025.12월말)'!R11-'법정동(2025.6월말)'!R11 -> 32.0 | S8: ='법정동(2025.12월말)'!S11-'법정동(2025.6월말)'!S11 -> 3.0 | T8: ='법정동(2025.12월말)'!T11-'법정동(2025.6월말)'!T11 -> 0.0 | U8: ='법정동(2025.12월말)'!U11-'법정동(2025.6월말)'!U11 -> 0.0 | V8: ='법정동(2025.12월말)'!V11-'법정동(2025.6월말)'!V11 -> 0.0 | W8: ='법정동(2025.12월말)'!W11-'법정동(2025.6월말)'!W11 -> 0.0 | X8: ='법정동(2025.12월말)'!X11-'법정동(2025.6월말)'!X11 -> 0.0 | Y8: ='법정동(2025.12월말)'!Y11-'법정동(2025.6월말)'!Y11 -> 0.0 | Z8: ='법정동(2025.12월말)'!Z11-'법정동(2025.6월말)'!Z11 -> 0.0 | AA8: ='법정동(2025.12월말)'!AA11-'법정동(2025.6월말)'!AA11 -> 0.0 | AB8: ='법정동(2025.12월말)'!AB11-'법정동(2025.6월말)'!AB11 -> 0.0 | AC8: ='법정동(2025.12월말)'!AC11-'법정동(2025.6월말)'!AC11 -> 0.0 | AD8: ='법정동(2025.12월말)'!AD11-'법정동(2025.6월말)'!AD11 -> 0.0 | AE8: ='법정동(2025.12월말)'!AE11-'법정동(2025.6월말)'!AE11 -> 0.0 | AF8: ='법정동(2025.12월말)'!AF11-'법정동(2025.6월말)'!AF11 -> 0.0 | AG8: ='법정동(2025.12월말)'!AG11-'법정동(2025.6월말)'!AG11 -> 0.0 | AH8: ='법정동(2025.12월말)'!AH11-'법정동(2025.6월말)'!AH11 -> 0.0 | AI8: ='법정동(2025.12월말)'!AI11-'법정동(2025.6월말)'!AI11 -> 0.0 | AJ8: ='법정동(2025.12월말)'!AJ11-'법정동(2025.6월말)'!AJ11 -> 0.0 | AK8: ='법정동(2025.12월말)'!AK11-'법정동(2025.6월말)'!AK11 -> 0.0 | AL8: ='법정동(2025.12월말)'!AL11-'법정동(2025.6월말)'!AL11 -> 0.0 | AM8: ='법정동(2025.12월말)'!AM11-'법정동(2025.6월말)'!AM11 -> 0.0 | AN8: ='법정동(2025.12월말)'!AN11-'법정동(2025.6월말)'!AN11 -> 0.0 | AO8: ='법정동(2025.12월말)'!AO11-'법정동(2025.6월말)'!AO11 -> 0.0 | AP8: ='법정동(2025.12월말)'!AP11-'법정동(2025.6월말)'!AP11 -> 0.0 | AQ8: ='법정동(2025.12월말)'!AQ11-'법정동(2025.6월말)'!AQ11 -> 0.0 | AR8: ='법정동(2025.12월말)'!AR11-'법정동(2025.6월말)'!AR11 -> 0.0 | AS8: ='법정동(2025.12월말)'!AS11-'법정동(2025.6월말)'!AS11 -> 0.0 | AT8: ='법정동(2025.12월말)'!AT11-'법정동(2025.6월말)'!AT11 -> 0.0 | AU8: ='법정동(2025.12월말)'!AU11-'법정동(2025.6월말)'!AU11 -> 0.0 | AV8: ='법정동(2025.12월말)'!AV11-'법정동(2025.6월말)'!AV11 -> 0.0 | AW8: ='법정동(2025.12월말)'!AW11-'법정동(2025.6월말)'!AW11 -> 0.0 | AX8: ='법정동(2025.12월말)'!AX11-'법정동(2025.6월말)'!AX11 -> 0.0 | AY8: ='법정동(2025.12월말)'!AY11-'법정동(2025.6월말)'!AY11 -> 0.0 | AZ8: ='법정동(2025.12월말)'!AZ11-'법정동(2025.6월말)'!AZ11 -> 0.0 | BA8: ='법정동(2025.12월말)'!BA11-'법정동(2025.6월말)'!BA11 -> 0.0 | BB8: ='법정동(2025.12월말)'!BB11-'법정동(2025.6월말)'!BB11 -> 0.0 | BC8: ='법정동(2025.12월말)'!BC11-'법정동(2025.6월말)'!BC11 -> 0.0 | BD8: ='법정동(2025.12월말)'!BD11-'법정동(2025.6월말)'!BD11 -> 0.0 | BE8: ='법정동(2025.12월말)'!BE11-'법정동(2025.6월말)'!BE11 -> 0.0 | BF8: ='법정동(2025.12월말)'!BF11-'법정동(2025.6월말)'!BF11 -> 0.0 | BG8: ='법정동(2025.12월말)'!BG11-'법정동(2025.6월말)'!BG11 -> 0.0
A9: 동산동 | B9: ='법정동(2025.12월말)'!B12-'법정동(2025.6월말)'!B12 -> 0.0 | C9: ='법정동(2025.12월말)'!C12-'법정동(2025.6월말)'!C12 -> 3.0 | D9: ='법정동(2025.12월말)'!D12-'법정동(2025.6월말)'!D12 -> -13.0 | E9: ='법정동(2025.12월말)'!E12-'법정동(2025.6월말)'!E12 -> -1.0 | F9: ='법정동(2025.12월말)'!F12-'법정동(2025.6월말)'!F12 -> 0.0 | G9: ='법정동(2025.12월말)'!G12-'법정동(2025.6월말)'!G12 -> 0.0 | H9: ='법정동(2025.12월말)'!H12-'법정동(2025.6월말)'!H12 -> 0.0 | I9: ='법정동(2025.12월말)'!I12-'법정동(2025.6월말)'!I12 -> 0.0 | J9: ='법정동(2025.12월말)'!J12-'법정동(2025.6월말)'!J12 -> 0.0 | K9: ='법정동(2025.12월말)'!K12-'법정동(2025.6월말)'!K12 -> 0.0 | L9: ='법정동(2025.12월말)'!L12-'법정동(2025.6월말)'!L12 -> -42.0 | M9: ='법정동(2025.12월말)'!M12-'법정동(2025.6월말)'!M12 -> -2.0 | N9: ='법정동(2025.12월말)'!N12-'법정동(2025.6월말)'!N12 -> 0.0 | O9: ='법정동(2025.12월말)'!O12-'법정동(2025.6월말)'!O12 -> 0.0 | P9: ='법정동(2025.12월말)'!P12-'법정동(2025.6월말)'!P12 -> 0.0 | Q9: ='법정동(2025.12월말)'!Q12-'법정동(2025.6월말)'!Q12 -> 0.0 | R9: ='법정동(2025.12월말)'!R12-'법정동(2025.6월말)'!R12 -> 0.0 | S9: ='법정동(2025.12월말)'!S12-'법정동(2025.6월말)'!S12 -> 2.0 | T9: ='법정동(2025.12월말)'!T12-'법정동(2025.6월말)'!T12 -> 0.0 | U9: ='법정동(2025.12월말)'!U12-'법정동(2025.6월말)'!U12 -> 0.0 | V9: ='법정동(2025.12월말)'!V12-'법정동(2025.6월말)'!V12 -> 0.0 | W9: ='법정동(2025.12월말)'!W12-'법정동(2025.6월말)'!W12 -> 0.0 | X9: ='법정동(2025.12월말)'!X12-'법정동(2025.6월말)'!X12 -> 0.0 | Y9: ='법정동(2025.12월말)'!Y12-'법정동(2025.6월말)'!Y12 -> 0.0 | Z9: ='법정동(2025.12월말)'!Z12-'법정동(2025.6월말)'!Z12 -> 0.0 | AA9: ='법정동(2025.12월말)'!AA12-'법정동(2025.6월말)'!AA12 -> 0.0 | AB9: ='법정동(2025.12월말)'!AB12-'법정동(2025.6월말)'!AB12 -> 0.0 | AC9: ='법정동(2025.12월말)'!AC12-'법정동(2025.6월말)'!AC12 -> 0.0 | AD9: ='법정동(2025.12월말)'!AD12-'법정동(2025.6월말)'!AD12 -> 0.0 | AE9: ='법정동(2025.12월말)'!AE12-'법정동(2025.6월말)'!AE12 -> 0.0 | AF9: ='법정동(2025.12월말)'!AF12-'법정동(2025.6월말)'!AF12 -> 0.0 | AG9: ='법정동(2025.12월말)'!AG12-'법정동(2025.6월말)'!AG12 -> 0.0 | AH9: ='법정동(2025.12월말)'!AH12-'법정동(2025.6월말)'!AH12 -> 0.0 | AI9: ='법정동(2025.12월말)'!AI12-'법정동(2025.6월말)'!AI12 -> 0.0 | AJ9: ='법정동(2025.12월말)'!AJ12-'법정동(2025.6월말)'!AJ12 -> 0.0 | AK9: ='법정동(2025.12월말)'!AK12-'법정동(2025.6월말)'!AK12 -> 0.0 | AL9: ='법정동(2025.12월말)'!AL12-'법정동(2025.6월말)'!AL12 -> 0.0 | AM9: ='법정동(2025.12월말)'!AM12-'법정동(2025.6월말)'!AM12 -> 0.0 | AN9: ='법정동(2025.12월말)'!AN12-'법정동(2025.6월말)'!AN12 -> 0.0 | AO9: ='법정동(2025.12월말)'!AO12-'법정동(2025.6월말)'!AO12 -> 0.0 | AP9: ='법정동(2025.12월말)'!AP12-'법정동(2025.6월말)'!AP12 -> 0.0 | AQ9: ='법정동(2025.12월말)'!AQ12-'법정동(2025.6월말)'!AQ12 -> 0.0 | AR9: ='법정동(2025.12월말)'!AR12-'법정동(2025.6월말)'!AR12 -> 0.0 | AS9: ='법정동(2025.12월말)'!AS12-'법정동(2025.6월말)'!AS12 -> 0.0 | AT9: ='법정동(2025.12월말)'!AT12-'법정동(2025.6월말)'!AT12 -> 0.0 | AU9: ='법정동(2025.12월말)'!AU12-'법정동(2025.6월말)'!AU12 -> 0.0 | AV9: ='법정동(2025.12월말)'!AV12-'법정동(2025.6월말)'!AV12 -> 0.0 | AW9: ='법정동(2025.12월말)'!AW12-'법정동(2025.6월말)'!AW12 -> 0.0 | AX9: ='법정동(2025.12월말)'!AX12-'법정동(2025.6월말)'!AX12 -> 0.0 | AY9: ='법정동(2025.12월말)'!AY12-'법정동(2025.6월말)'!AY12 -> 0.0 | AZ9: ='법정동(2025.12월말)'!AZ12-'법정동(2025.6월말)'!AZ12 -> 0.0 | BA9: ='법정동(2025.12월말)'!BA12-'법정동(2025.6월말)'!BA12 -> 0.0 | BB9: ='법정동(2025.12월말)'!BB12-'법정동(2025.6월말)'!BB12 -> 0.0 | BC9: ='법정동(2025.12월말)'!BC12-'법정동(2025.6월말)'!BC12 -> 0.0 | BD9: ='법정동(2025.12월말)'!BD12-'법정동(2025.6월말)'!BD12 -> 0.0 | BE9: ='법정동(2025.12월말)'!BE12-'법정동(2025.6월말)'!BE12 -> 0.0 | BF9: ='법정동(2025.12월말)'!BF12-'법정동(2025.6월말)'!BF12 -> 55.0 | BG9: ='법정동(2025.12월말)'!BG12-'법정동(2025.6월말)'!BG12 -> 4.0
A10: 중앙동 | B10: ='법정동(2025.12월말)'!B13-'법정동(2025.6월말)'!B13 -> 0.0 | C10: ='법정동(2025.12월말)'!C13-'법정동(2025.6월말)'!C13 -> 0.0 | D10: ='법정동(2025.12월말)'!D13-'법정동(2025.6월말)'!D13 -> 0.0 | E10: ='법정동(2025.12월말)'!E13-'법정동(2025.6월말)'!E13 -> 0.0 | F10: ='법정동(2025.12월말)'!F13-'법정동(2025.6월말)'!F13 -> 0.0 | G10: ='법정동(2025.12월말)'!G13-'법정동(2025.6월말)'!G13 -> 0.0 | H10: ='법정동(2025.12월말)'!H13-'법정동(2025.6월말)'!H13 -> 0.0 | I10: ='법정동(2025.12월말)'!I13-'법정동(2025.6월말)'!I13 -> 0.0 | J10: ='법정동(2025.12월말)'!J13-'법정동(2025.6월말)'!J13 -> 0.0 | K10: ='법정동(2025.12월말)'!K13-'법정동(2025.6월말)'!K13 -> 0.0 | L10: ='법정동(2025.12월말)'!L13-'법정동(2025.6월말)'!L13 -> 0.0 | M10: ='법정동(2025.12월말)'!M13-'법정동(2025.6월말)'!M13 -> 0.0 | N10: ='법정동(2025.12월말)'!N13-'법정동(2025.6월말)'!N13 -> 0.0 | O10: ='법정동(2025.12월말)'!O13-'법정동(2025.6월말)'!O13 -> 0.0 | P10: ='법정동(2025.12월말)'!P13-'법정동(2025.6월말)'!P13 -> 0.0 | Q10: ='법정동(2025.12월말)'!Q13-'법정동(2025.6월말)'!Q13 -> 0.0 | R10: ='법정동(2025.12월말)'!R13-'법정동(2025.6월말)'!R13 -> 0.0 | S10: ='법정동(2025.12월말)'!S13-'법정동(2025.6월말)'!S13 -> 0.0 | T10: ='법정동(2025.12월말)'!T13-'법정동(2025.6월말)'!T13 -> 0.0 | U10: ='법정동(2025.12월말)'!U13-'법정동(2025.6월말)'!U13 -> 0.0 | V10: ='법정동(2025.12월말)'!V13-'법정동(2025.6월말)'!V13 -> 0.0 | W10: ='법정동(2025.12월말)'!W13-'법정동(2025.6월말)'!W13 -> 0.0 | X10: ='법정동(2025.12월말)'!X13-'법정동(2025.6월말)'!X13 -> 0.0 | Y10: ='법정동(2025.12월말)'!Y13-'법정동(2025.6월말)'!Y13 -> 0.0 | Z10: ='법정동(2025.12월말)'!Z13-'법정동(2025.6월말)'!Z13 -> 0.0 | AA10: ='법정동(2025.12월말)'!AA13-'법정동(2025.6월말)'!AA13 -> 0.0 | AB10: ='법정동(2025.12월말)'!AB13-'법정동(2025.6월말)'!AB13 -> 0.0 | AC10: ='법정동(2025.12월말)'!AC13-'법정동(2025.6월말)'!AC13 -> 0.0 | AD10: ='법정동(2025.12월말)'!AD13-'법정동(2025.6월말)'!AD13 -> 0.0 | AE10: ='법정동(2025.12월말)'!AE13-'법정동(2025.6월말)'!AE13 -> 0.0 | AF10: ='법정동(2025.12월말)'!AF13-'법정동(2025.6월말)'!AF13 -> 0.0 | AG10: ='법정동(2025.12월말)'!AG13-'법정동(2025.6월말)'!AG13 -> 0.0 | AH10: ='법정동(2025.12월말)'!AH13-'법정동(2025.6월말)'!AH13 -> 0.0 | AI10: ='법정동(2025.12월말)'!AI13-'법정동(2025.6월말)'!AI13 -> 0.0 | AJ10: ='법정동(2025.12월말)'!AJ13-'법정동(2025.6월말)'!AJ13 -> 0.0 | AK10: ='법정동(2025.12월말)'!AK13-'법정동(2025.6월말)'!AK13 -> 0.0 | AL10: ='법정동(2025.12월말)'!AL13-'법정동(2025.6월말)'!AL13 -> 0.0 | AM10: ='법정동(2025.12월말)'!AM13-'법정동(2025.6월말)'!AM13 -> 0.0 | AN10: ='법정동(2025.12월말)'!AN13-'법정동(2025.6월말)'!AN13 -> 0.0 | AO10: ='법정동(2025.12월말)'!AO13-'법정동(2025.6월말)'!AO13 -> 0.0 | AP10: ='법정동(2025.12월말)'!AP13-'법정동(2025.6월말)'!AP13 -> 0.0 | AQ10: ='법정동(2025.12월말)'!AQ13-'법정동(2025.6월말)'!AQ13 -> 0.0 | AR10: ='법정동(2025.12월말)'!AR13-'법정동(2025.6월말)'!AR13 -> 0.0 | AS10: ='법정동(2025.12월말)'!AS13-'법정동(2025.6월말)'!AS13 -> 0.0 | AT10: ='법정동(2025.12월말)'!AT13-'법정동(2025.6월말)'!AT13 -> 0.0 | AU10: ='법정동(2025.12월말)'!AU13-'법정동(2025.6월말)'!AU13 -> 0.0 | AV10: ='법정동(2025.12월말)'!AV13-'법정동(2025.6월말)'!AV13 -> 0.0 | AW10: ='법정동(2025.12월말)'!AW13-'법정동(2025.6월말)'!AW13 -> 0.0 | AX10: ='법정동(2025.12월말)'!AX13-'법정동(2025.6월말)'!AX13 -> 0.0 | AY10: ='법정동(2025.12월말)'!AY13-'법정동(2025.6월말)'!AY13 -> 0.0 | AZ10: ='법정동(2025.12월말)'!AZ13-'법정동(2025.6월말)'!AZ13 -> 0.0 | BA10: ='법정동(2025.12월말)'!BA13-'법정동(2025.6월말)'!BA13 -> 0.0 | BB10: ='법정동(2025.12월말)'!BB13-'법정동(2025.6월말)'!BB13 -> 0.0 | BC10: ='법정동(2025.12월말)'!BC13-'법정동(2025.6월말)'!BC13 -> 0.0 | BD10: ='법정동(2025.12월말)'!BD13-'법정동(2025.6월말)'!BD13 -> 0.0 | BE10: ='법정동(2025.12월말)'!BE13-'법정동(2025.6월말)'!BE13 -> 0.0 | BF10: ='법정동(2025.12월말)'!BF13-'법정동(2025.6월말)'!BF13 -> 0.0 | BG10: ='법정동(2025.12월말)'!BG13-'법정동(2025.6월말)'!BG13 -> 0.0
A11: 교동 | B11: ='법정동(2025.12월말)'!B14-'법정동(2025.6월말)'!B14 -> 0.0 | C11: ='법정동(2025.12월말)'!C14-'법정동(2025.6월말)'!C14 -> -1.0 | D11: ='법정동(2025.12월말)'!D14-'법정동(2025.6월말)'!D14 -> 0.0 | E11: ='법정동(2025.12월말)'!E14-'법정동(2025.6월말)'!E14 -> 0.0 | F11: ='법정동(2025.12월말)'!F14-'법정동(2025.6월말)'!F14 -> 0.0 | G11: ='법정동(2025.12월말)'!G14-'법정동(2025.6월말)'!G14 -> 0.0 | H11: ='법정동(2025.12월말)'!H14-'법정동(2025.6월말)'!H14 -> 0.0 | I11: ='법정동(2025.12월말)'!I14-'법정동(2025.6월말)'!I14 -> 0.0 | J11: ='법정동(2025.12월말)'!J14-'법정동(2025.6월말)'!J14 -> 0.0 | K11: ='법정동(2025.12월말)'!K14-'법정동(2025.6월말)'!K14 -> 0.0 | L11: ='법정동(2025.12월말)'!L14-'법정동(2025.6월말)'!L14 -> 0.0 | M11: ='법정동(2025.12월말)'!M14-'법정동(2025.6월말)'!M14 -> 0.0 | N11: ='법정동(2025.12월말)'!N14-'법정동(2025.6월말)'!N14 -> 0.0 | O11: ='법정동(2025.12월말)'!O14-'법정동(2025.6월말)'!O14 -> 0.0 | P11: ='법정동(2025.12월말)'!P14-'법정동(2025.6월말)'!P14 -> 0.0 | Q11: ='법정동(2025.12월말)'!Q14-'법정동(2025.6월말)'!Q14 -> 0.0 | R11: ='법정동(2025.12월말)'!R14-'법정동(2025.6월말)'!R14 -> 0.0 | S11: ='법정동(2025.12월말)'!S14-'법정동(2025.6월말)'!S14 -> -1.0 | T11: ='법정동(2025.12월말)'!T14-'법정동(2025.6월말)'!T14 -> 0.0 | U11: ='법정동(2025.12월말)'!U14-'법정동(2025.6월말)'!U14 -> 0.0 | V11: ='법정동(2025.12월말)'!V14-'법정동(2025.6월말)'!V14 -> 0.0 | W11: ='법정동(2025.12월말)'!W14-'법정동(2025.6월말)'!W14 -> 0.0 | X11: ='법정동(2025.12월말)'!X14-'법정동(2025.6월말)'!X14 -> 0.0 | Y11: ='법정동(2025.12월말)'!Y14-'법정동(2025.6월말)'!Y14 -> 0.0 | Z11: ='법정동(2025.12월말)'!Z14-'법정동(2025.6월말)'!Z14 -> 0.0 | AA11: ='법정동(2025.12월말)'!AA14-'법정동(2025.6월말)'!AA14 -> 0.0 | AB11: ='법정동(2025.12월말)'!AB14-'법정동(2025.6월말)'!AB14 -> 0.0 | AC11: ='법정동(2025.12월말)'!AC14-'법정동(2025.6월말)'!AC14 -> 0.0 | AD11: ='법정동(2025.12월말)'!AD14-'법정동(2025.6월말)'!AD14 -> 0.0 | AE11: ='법정동(2025.12월말)'!AE14-'법정동(2025.6월말)'!AE14 -> 0.0 | AF11: ='법정동(2025.12월말)'!AF14-'법정동(2025.6월말)'!AF14 -> 0.0 | AG11: ='법정동(2025.12월말)'!AG14-'법정동(2025.6월말)'!AG14 -> 0.0 | AH11: ='법정동(2025.12월말)'!AH14-'법정동(2025.6월말)'!AH14 -> 0.0 | AI11: ='법정동(2025.12월말)'!AI14-'법정동(2025.6월말)'!AI14 -> 0.0 | AJ11: ='법정동(2025.12월말)'!AJ14-'법정동(2025.6월말)'!AJ14 -> 0.0 | AK11: ='법정동(2025.12월말)'!AK14-'법정동(2025.6월말)'!AK14 -> 0.0 | AL11: ='법정동(2025.12월말)'!AL14-'법정동(2025.6월말)'!AL14 -> 0.0 | AM11: ='법정동(2025.12월말)'!AM14-'법정동(2025.6월말)'!AM14 -> 0.0 | AN11: ='법정동(2025.12월말)'!AN14-'법정동(2025.6월말)'!AN14 -> 0.0 | AO11: ='법정동(2025.12월말)'!AO14-'법정동(2025.6월말)'!AO14 -> 0.0 | AP11: ='법정동(2025.12월말)'!AP14-'법정동(2025.6월말)'!AP14 -> 0.0 | AQ11: ='법정동(2025.12월말)'!AQ14-'법정동(2025.6월말)'!AQ14 -> 0.0 | AR11: ='법정동(2025.12월말)'!AR14-'법정동(2025.6월말)'!AR14 -> 0.0 | AS11: ='법정동(2025.12월말)'!AS14-'법정동(2025.6월말)'!AS14 -> 0.0 | AT11: ='법정동(2025.12월말)'!AT14-'법정동(2025.6월말)'!AT14 -> 0.0 | AU11: ='법정동(2025.12월말)'!AU14-'법정동(2025.6월말)'!AU14 -> 0.0 | AV11: ='법정동(2025.12월말)'!AV14-'법정동(2025.6월말)'!AV14 -> 0.0 | AW11: ='법정동(2025.12월말)'!AW14-'법정동(2025.6월말)'!AW14 -> 0.0 | AX11: ='법정동(2025.12월말)'!AX14-'법정동(2025.6월말)'!AX14 -> 0.0 | AY11: ='법정동(2025.12월말)'!AY14-'법정동(2025.6월말)'!AY14 -> 0.0 | AZ11: ='법정동(2025.12월말)'!AZ14-'법정동(2025.6월말)'!AZ14 -> 0.0 | BA11: ='법정동(2025.12월말)'!BA14-'법정동(2025.6월말)'!BA14 -> 0.0 | BB11: ='법정동(2025.12월말)'!BB14-'법정동(2025.6월말)'!BB14 -> 0.0 | BC11: ='법정동(2025.12월말)'!BC14-'법정동(2025.6월말)'!BC14 -> 0.0 | BD11: ='법정동(2025.12월말)'!BD14-'법정동(2025.6월말)'!BD14 -> 0.0 | BE11: ='법정동(2025.12월말)'!BE14-'법정동(2025.6월말)'!BE14 -> 0.0 | BF11: ='법정동(2025.12월말)'!BF14-'법정동(2025.6월말)'!BF14 -> 0.0 | BG11: ='법정동(2025.12월말)'!BG14-'법정동(2025.6월말)'!BG14 -> 0.0
A12: 군자동 | B12: ='법정동(2025.12월말)'!B15-'법정동(2025.6월말)'!B15 -> 0.0 | C12: ='법정동(2025.12월말)'!C15-'법정동(2025.6월말)'!C15 -> -13.0 | D12: ='법정동(2025.12월말)'!D15-'법정동(2025.6월말)'!D15 -> -192.0 | E12: ='법정동(2025.12월말)'!E15-'법정동(2025.6월말)'!E15 -> -5.0 | F12: ='법정동(2025.12월말)'!F15-'법정동(2025.6월말)'!F15 -> 0.0 | G12: ='법정동(2025.12월말)'!G15-'법정동(2025.6월말)'!G15 -> 0.0 | H12: ='법정동(2025.12월말)'!H15-'법정동(2025.6월말)'!H15 -> 0.0 | I12: ='법정동(2025.12월말)'!I15-'법정동(2025.6월말)'!I15 -> 0.0 | J12: ='법정동(2025.12월말)'!J15-'법정동(2025.6월말)'!J15 -> 0.0 | K12: ='법정동(2025.12월말)'!K15-'법정동(2025.6월말)'!K15 -> 0.0 | L12: ='법정동(2025.12월말)'!L15-'법정동(2025.6월말)'!L15 -> 0.0 | M12: ='법정동(2025.12월말)'!M15-'법정동(2025.6월말)'!M15 -> 0.0 | N12: ='법정동(2025.12월말)'!N15-'법정동(2025.6월말)'!N15 -> 0.0 | O12: ='법정동(2025.12월말)'!O15-'법정동(2025.6월말)'!O15 -> 0.0 | P12: ='법정동(2025.12월말)'!P15-'법정동(2025.6월말)'!P15 -> 0.0 | Q12: ='법정동(2025.12월말)'!Q15-'법정동(2025.6월말)'!Q15 -> 0.0 | R12: ='법정동(2025.12월말)'!R15-'법정동(2025.6월말)'!R15 -> -157.0 | S12: ='법정동(2025.12월말)'!S15-'법정동(2025.6월말)'!S15 -> -5.0 | T12: ='법정동(2025.12월말)'!T15-'법정동(2025.6월말)'!T15 -> 0.0 | U12: ='법정동(2025.12월말)'!U15-'법정동(2025.6월말)'!U15 -> 0.0 | V12: ='법정동(2025.12월말)'!V15-'법정동(2025.6월말)'!V15 -> 0.0 | W12: ='법정동(2025.12월말)'!W15-'법정동(2025.6월말)'!W15 -> 0.0 | X12: ='법정동(2025.12월말)'!X15-'법정동(2025.6월말)'!X15 -> 0.0 | Y12: ='법정동(2025.12월말)'!Y15-'법정동(2025.6월말)'!Y15 -> 0.0 | Z12: ='법정동(2025.12월말)'!Z15-'법정동(2025.6월말)'!Z15 -> 0.0 | AA12: ='법정동(2025.12월말)'!AA15-'법정동(2025.6월말)'!AA15 -> 0.0 | AB12: ='법정동(2025.12월말)'!AB15-'법정동(2025.6월말)'!AB15 -> 0.0 | AC12: ='법정동(2025.12월말)'!AC15-'법정동(2025.6월말)'!AC15 -> 0.0 | AD12: ='법정동(2025.12월말)'!AD15-'법정동(2025.6월말)'!AD15 -> 362.0 | AE12: ='법정동(2025.12월말)'!AE15-'법정동(2025.6월말)'!AE15 -> -2.0 | AF12: ='법정동(2025.12월말)'!AF15-'법정동(2025.6월말)'!AF15 -> 0.0 | AG12: ='법정동(2025.12월말)'!AG15-'법정동(2025.6월말)'!AG15 -> 0.0 | AH12: ='법정동(2025.12월말)'!AH15-'법정동(2025.6월말)'!AH15 -> 0.0 | AI12: ='법정동(2025.12월말)'!AI15-'법정동(2025.6월말)'!AI15 -> 0.0 | AJ12: ='법정동(2025.12월말)'!AJ15-'법정동(2025.6월말)'!AJ15 -> 0.0 | AK12: ='법정동(2025.12월말)'!AK15-'법정동(2025.6월말)'!AK15 -> 0.0 | AL12: ='법정동(2025.12월말)'!AL15-'법정동(2025.6월말)'!AL15 -> -13.0 | AM12: ='법정동(2025.12월말)'!AM15-'법정동(2025.6월말)'!AM15 -> -1.0 | AN12: ='법정동(2025.12월말)'!AN15-'법정동(2025.6월말)'!AN15 -> 0.0 | AO12: ='법정동(2025.12월말)'!AO15-'법정동(2025.6월말)'!AO15 -> 0.0 | AP12: ='법정동(2025.12월말)'!AP15-'법정동(2025.6월말)'!AP15 -> 0.0 | AQ12: ='법정동(2025.12월말)'!AQ15-'법정동(2025.6월말)'!AQ15 -> 0.0 | AR12: ='법정동(2025.12월말)'!AR15-'법정동(2025.6월말)'!AR15 -> 0.0 | AS12: ='법정동(2025.12월말)'!AS15-'법정동(2025.6월말)'!AS15 -> 0.0 | AT12: ='법정동(2025.12월말)'!AT15-'법정동(2025.6월말)'!AT15 -> 0.0 | AU12: ='법정동(2025.12월말)'!AU15-'법정동(2025.6월말)'!AU15 -> 0.0 | AV12: ='법정동(2025.12월말)'!AV15-'법정동(2025.6월말)'!AV15 -> 0.0 | AW12: ='법정동(2025.12월말)'!AW15-'법정동(2025.6월말)'!AW15 -> 0.0 | AX12: ='법정동(2025.12월말)'!AX15-'법정동(2025.6월말)'!AX15 -> 0.0 | AY12: ='법정동(2025.12월말)'!AY15-'법정동(2025.6월말)'!AY15 -> 0.0 | AZ12: ='법정동(2025.12월말)'!AZ15-'법정동(2025.6월말)'!AZ15 -> 0.0 | BA12: ='법정동(2025.12월말)'!BA15-'법정동(2025.6월말)'!BA15 -> 0.0 | BB12: ='법정동(2025.12월말)'!BB15-'법정동(2025.6월말)'!BB15 -> 0.0 | BC12: ='법정동(2025.12월말)'!BC15-'법정동(2025.6월말)'!BC15 -> 0.0 | BD12: ='법정동(2025.12월말)'!BD15-'법정동(2025.6월말)'!BD15 -> 0.0 | BE12: ='법정동(2025.12월말)'!BE15-'법정동(2025.6월말)'!BE15 -> 0.0 | BF12: ='법정동(2025.12월말)'!BF15-'법정동(2025.6월말)'!BF15 -> 0.0 | BG12: ='법정동(2025.12월말)'!BG15-'법정동(2025.6월말)'!BG15 -> 0.0
A13: 충무동 | B13: ='법정동(2025.12월말)'!B16-'법정동(2025.6월말)'!B16 -> 0.0 | C13: ='법정동(2025.12월말)'!C16-'법정동(2025.6월말)'!C16 -> -19.0 | D13: ='법정동(2025.12월말)'!D16-'법정동(2025.6월말)'!D16 -> -165.0 | E13: ='법정동(2025.12월말)'!E16-'법정동(2025.6월말)'!E16 -> -5.0 | F13: ='법정동(2025.12월말)'!F16-'법정동(2025.6월말)'!F16 -> 0.0 | G13: ='법정동(2025.12월말)'!G16-'법정동(2025.6월말)'!G16 -> 0.0 | H13: ='법정동(2025.12월말)'!H16-'법정동(2025.6월말)'!H16 -> 0.0 | I13: ='법정동(2025.12월말)'!I16-'법정동(2025.6월말)'!I16 -> 0.0 | J13: ='법정동(2025.12월말)'!J16-'법정동(2025.6월말)'!J16 -> 0.0 | K13: ='법정동(2025.12월말)'!K16-'법정동(2025.6월말)'!K16 -> 0.0 | L13: ='법정동(2025.12월말)'!L16-'법정동(2025.6월말)'!L16 -> 0.0 | M13: ='법정동(2025.12월말)'!M16-'법정동(2025.6월말)'!M16 -> 0.0 | N13: ='법정동(2025.12월말)'!N16-'법정동(2025.6월말)'!N16 -> 0.0 | O13: ='법정동(2025.12월말)'!O16-'법정동(2025.6월말)'!O16 -> 0.0 | P13: ='법정동(2025.12월말)'!P16-'법정동(2025.6월말)'!P16 -> 0.0 | Q13: ='법정동(2025.12월말)'!Q16-'법정동(2025.6월말)'!Q16 -> 0.0 | R13: ='법정동(2025.12월말)'!R16-'법정동(2025.6월말)'!R16 -> -372.0 | S13: ='법정동(2025.12월말)'!S16-'법정동(2025.6월말)'!S16 -> -14.0 | T13: ='법정동(2025.12월말)'!T16-'법정동(2025.6월말)'!T16 -> 0.0 | U13: ='법정동(2025.12월말)'!U16-'법정동(2025.6월말)'!U16 -> 0.0 | V13: ='법정동(2025.12월말)'!V16-'법정동(2025.6월말)'!V16 -> 0.0 | W13: ='법정동(2025.12월말)'!W16-'법정동(2025.6월말)'!W16 -> 0.0 | X13: ='법정동(2025.12월말)'!X16-'법정동(2025.6월말)'!X16 -> 0.0 | Y13: ='법정동(2025.12월말)'!Y16-'법정동(2025.6월말)'!Y16 -> 0.0 | Z13: ='법정동(2025.12월말)'!Z16-'법정동(2025.6월말)'!Z16 -> 0.0 | AA13: ='법정동(2025.12월말)'!AA16-'법정동(2025.6월말)'!AA16 -> 0.0 | AB13: ='법정동(2025.12월말)'!AB16-'법정동(2025.6월말)'!AB16 -> 0.0 | AC13: ='법정동(2025.12월말)'!AC16-'법정동(2025.6월말)'!AC16 -> 0.0 | AD13: ='법정동(2025.12월말)'!AD16-'법정동(2025.6월말)'!AD16 -> 537.0 | AE13: ='법정동(2025.12월말)'!AE16-'법정동(2025.6월말)'!AE16 -> 0.0 | AF13: ='법정동(2025.12월말)'!AF16-'법정동(2025.6월말)'!AF16 -> 0.0 | AG13: ='법정동(2025.12월말)'!AG16-'법정동(2025.6월말)'!AG16 -> 0.0 | AH13: ='법정동(2025.12월말)'!AH16-'법정동(2025.6월말)'!AH16 -> 0.0 | AI13: ='법정동(2025.12월말)'!AI16-'법정동(2025.6월말)'!AI16 -> 0.0 | AJ13: ='법정동(2025.12월말)'!AJ16-'법정동(2025.6월말)'!AJ16 -> 0.0 | AK13: ='법정동(2025.12월말)'!AK16-'법정동(2025.6월말)'!AK16 -> 0.0 | AL13: ='법정동(2025.12월말)'!AL16-'법정동(2025.6월말)'!AL16 -> 0.0 | AM13: ='법정동(2025.12월말)'!AM16-'법정동(2025.6월말)'!AM16 -> 0.0 | AN13: ='법정동(2025.12월말)'!AN16-'법정동(2025.6월말)'!AN16 -> 0.0 | AO13: ='법정동(2025.12월말)'!AO16-'법정동(2025.6월말)'!AO16 -> 0.0 | AP13: ='법정동(2025.12월말)'!AP16-'법정동(2025.6월말)'!AP16 -> 0.0 | AQ13: ='법정동(2025.12월말)'!AQ16-'법정동(2025.6월말)'!AQ16 -> 0.0 | AR13: ='법정동(2025.12월말)'!AR16-'법정동(2025.6월말)'!AR16 -> 0.0 | AS13: ='법정동(2025.12월말)'!AS16-'법정동(2025.6월말)'!AS16 -> 0.0 | AT13: ='법정동(2025.12월말)'!AT16-'법정동(2025.6월말)'!AT16 -> 0.0 | AU13: ='법정동(2025.12월말)'!AU16-'법정동(2025.6월말)'!AU16 -> 0.0 | AV13: ='법정동(2025.12월말)'!AV16-'법정동(2025.6월말)'!AV16 -> 0.0 | AW13: ='법정동(2025.12월말)'!AW16-'법정동(2025.6월말)'!AW16 -> 0.0 | AX13: ='법정동(2025.12월말)'!AX16-'법정동(2025.6월말)'!AX16 -> 0.0 | AY13: ='법정동(2025.12월말)'!AY16-'법정동(2025.6월말)'!AY16 -> 0.0 | AZ13: ='법정동(2025.12월말)'!AZ16-'법정동(2025.6월말)'!AZ16 -> 0.0 | BA13: ='법정동(2025.12월말)'!BA16-'법정동(2025.6월말)'!BA16 -> 0.0 | BB13: ='법정동(2025.12월말)'!BB16-'법정동(2025.6월말)'!BB16 -> 0.0 | BC13: ='법정동(2025.12월말)'!BC16-'법정동(2025.6월말)'!BC16 -> 0.0 | BD13: ='법정동(2025.12월말)'!BD16-'법정동(2025.6월말)'!BD16 -> 0.0 | BE13: ='법정동(2025.12월말)'!BE16-'법정동(2025.6월말)'!BE16 -> 0.0 | BF13: ='법정동(2025.12월말)'!BF16-'법정동(2025.6월말)'!BF16 -> 0.0 | BG13: ='법정동(2025.12월말)'!BG16-'법정동(2025.6월말)'!BG16 -> 0.0
A14: 연등동 | B14: ='법정동(2025.12월말)'!B17-'법정동(2025.6월말)'!B17 -> 0.0 | C14: ='법정동(2025.12월말)'!C17-'법정동(2025.6월말)'!C17 -> 0.0 | D14: ='법정동(2025.12월말)'!D17-'법정동(2025.6월말)'!D17 -> -134.0 | E14: ='법정동(2025.12월말)'!E17-'법정동(2025.6월말)'!E17 -> -1.0 | F14: ='법정동(2025.12월말)'!F17-'법정동(2025.6월말)'!F17 -> 0.0 | G14: ='법정동(2025.12월말)'!G17-'법정동(2025.6월말)'!G17 -> 0.0 | H14: ='법정동(2025.12월말)'!H17-'법정동(2025.6월말)'!H17 -> 0.0 | I14: ='법정동(2025.12월말)'!I17-'법정동(2025.6월말)'!I17 -> 0.0 | J14: ='법정동(2025.12월말)'!J17-'법정동(2025.6월말)'!J17 -> 0.0 | K14: ='법정동(2025.12월말)'!K17-'법정동(2025.6월말)'!K17 -> 0.0 | L14: ='법정동(2025.12월말)'!L17-'법정동(2025.6월말)'!L17 -> 0.0 | M14: ='법정동(2025.12월말)'!M17-'법정동(2025.6월말)'!M17 -> 0.0 | N14: ='법정동(2025.12월말)'!N17-'법정동(2025.6월말)'!N17 -> 0.0 | O14: ='법정동(2025.12월말)'!O17-'법정동(2025.6월말)'!O17 -> 0.0 | P14: ='법정동(2025.12월말)'!P17-'법정동(2025.6월말)'!P17 -> 0.0 | Q14: ='법정동(2025.12월말)'!Q17-'법정동(2025.6월말)'!Q17 -> 0.0 | R14: ='법정동(2025.12월말)'!R17-'법정동(2025.6월말)'!R17 -> 134.0 | S14: ='법정동(2025.12월말)'!S17-'법정동(2025.6월말)'!S17 -> 1.0 | T14: ='법정동(2025.12월말)'!T17-'법정동(2025.6월말)'!T17 -> 0.0 | U14: ='법정동(2025.12월말)'!U17-'법정동(2025.6월말)'!U17 -> 0.0 | V14: ='법정동(2025.12월말)'!V17-'법정동(2025.6월말)'!V17 -> 0.0 | W14: ='법정동(2025.12월말)'!W17-'법정동(2025.6월말)'!W17 -> 0.0 | X14: ='법정동(2025.12월말)'!X17-'법정동(2025.6월말)'!X17 -> 0.0 | Y14: ='법정동(2025.12월말)'!Y17-'법정동(2025.6월말)'!Y17 -> 0.0 | Z14: ='법정동(2025.12월말)'!Z17-'법정동(2025.6월말)'!Z17 -> 0.0 | AA14: ='법정동(2025.12월말)'!AA17-'법정동(2025.6월말)'!AA17 -> 0.0 | AB14: ='법정동(2025.12월말)'!AB17-'법정동(2025.6월말)'!AB17 -> 0.0 | AC14: ='법정동(2025.12월말)'!AC17-'법정동(2025.6월말)'!AC17 -> 0.0 | AD14: ='법정동(2025.12월말)'!AD17-'법정동(2025.6월말)'!AD17 -> 0.0 | AE14: ='법정동(2025.12월말)'!AE17-'법정동(2025.6월말)'!AE17 -> 0.0 | AF14: ='법정동(2025.12월말)'!AF17-'법정동(2025.6월말)'!AF17 -> 0.0 | AG14: ='법정동(2025.12월말)'!AG17-'법정동(2025.6월말)'!AG17 -> 0.0 | AH14: ='법정동(2025.12월말)'!AH17-'법정동(2025.6월말)'!AH17 -> 0.0 | AI14: ='법정동(2025.12월말)'!AI17-'법정동(2025.6월말)'!AI17 -> 0.0 | AJ14: ='법정동(2025.12월말)'!AJ17-'법정동(2025.6월말)'!AJ17 -> 0.0 | AK14: ='법정동(2025.12월말)'!AK17-'법정동(2025.6월말)'!AK17 -> 0.0 | AL14: ='법정동(2025.12월말)'!AL17-'법정동(2025.6월말)'!AL17 -> 0.0 | AM14: ='법정동(2025.12월말)'!AM17-'법정동(2025.6월말)'!AM17 -> 0.0 | AN14: ='법정동(2025.12월말)'!AN17-'법정동(2025.6월말)'!AN17 -> 0.0 | AO14: ='법정동(2025.12월말)'!AO17-'법정동(2025.6월말)'!AO17 -> 0.0 | AP14: ='법정동(2025.12월말)'!AP17-'법정동(2025.6월말)'!AP17 -> 0.0 | AQ14: ='법정동(2025.12월말)'!AQ17-'법정동(2025.6월말)'!AQ17 -> 0.0 | AR14: ='법정동(2025.12월말)'!AR17-'법정동(2025.6월말)'!AR17 -> 0.0 | AS14: ='법정동(2025.12월말)'!AS17-'법정동(2025.6월말)'!AS17 -> 0.0 | AT14: ='법정동(2025.12월말)'!AT17-'법정동(2025.6월말)'!AT17 -> 0.0 | AU14: ='법정동(2025.12월말)'!AU17-'법정동(2025.6월말)'!AU17 -> 0.0 | AV14: ='법정동(2025.12월말)'!AV17-'법정동(2025.6월말)'!AV17 -> 0.0 | AW14: ='법정동(2025.12월말)'!AW17-'법정동(2025.6월말)'!AW17 -> 0.0 | AX14: ='법정동(2025.12월말)'!AX17-'법정동(2025.6월말)'!AX17 -> 0.0 | AY14: ='법정동(2025.12월말)'!AY17-'법정동(2025.6월말)'!AY17 -> 0.0 | AZ14: ='법정동(2025.12월말)'!AZ17-'법정동(2025.6월말)'!AZ17 -> 0.0 | BA14: ='법정동(2025.12월말)'!BA17-'법정동(2025.6월말)'!BA17 -> 0.0 | BB14: ='법정동(2025.12월말)'!BB17-'법정동(2025.6월말)'!BB17 -> 0.0 | BC14: ='법정동(2025.12월말)'!BC17-'법정동(2025.6월말)'!BC17 -> 0.0 | BD14: ='법정동(2025.12월말)'!BD17-'법정동(2025.6월말)'!BD17 -> 0.0 | BE14: ='법정동(2025.12월말)'!BE17-'법정동(2025.6월말)'!BE17 -> 0.0 | BF14: ='법정동(2025.12월말)'!BF17-'법정동(2025.6월말)'!BF17 -> 0.0 | BG14: ='법정동(2025.12월말)'!BG17-'법정동(2025.6월말)'!BG17 -> 0.0
A15: 광무동 | B15: ='법정동(2025.12월말)'!B18-'법정동(2025.6월말)'!B18 -> 0.0 | C15: ='법정동(2025.12월말)'!C18-'법정동(2025.6월말)'!C18 -> 5.0 | D15: ='법정동(2025.12월말)'!D18-'법정동(2025.6월말)'!D18 -> 0.0 | E15: ='법정동(2025.12월말)'!E18-'법정동(2025.6월말)'!E18 -> 2.0 | F15: ='법정동(2025.12월말)'!F18-'법정동(2025.6월말)'!F18 -> 0.0 | G15: ='법정동(2025.12월말)'!G18-'법정동(2025.6월말)'!G18 -> 0.0 | H15: ='법정동(2025.12월말)'!H18-'법정동(2025.6월말)'!H18 -> 0.0 | I15: ='법정동(2025.12월말)'!I18-'법정동(2025.6월말)'!I18 -> 0.0 | J15: ='법정동(2025.12월말)'!J18-'법정동(2025.6월말)'!J18 -> 0.0 | K15: ='법정동(2025.12월말)'!K18-'법정동(2025.6월말)'!K18 -> 0.0 | L15: ='법정동(2025.12월말)'!L18-'법정동(2025.6월말)'!L18 -> -1,033.0 | M15: ='법정동(2025.12월말)'!M18-'법정동(2025.6월말)'!M18 -> 4.0 | N15: ='법정동(2025.12월말)'!N18-'법정동(2025.6월말)'!N18 -> 0.0 | O15: ='법정동(2025.12월말)'!O18-'법정동(2025.6월말)'!O18 -> 0.0 | P15: ='법정동(2025.12월말)'!P18-'법정동(2025.6월말)'!P18 -> 0.0 | Q15: ='법정동(2025.12월말)'!Q18-'법정동(2025.6월말)'!Q18 -> 0.0 | R15: ='법정동(2025.12월말)'!R18-'법정동(2025.6월말)'!R18 -> -212.0 | S15: ='법정동(2025.12월말)'!S18-'법정동(2025.6월말)'!S18 -> -2.0 | T15: ='법정동(2025.12월말)'!T18-'법정동(2025.6월말)'!T18 -> 0.0 | U15: ='법정동(2025.12월말)'!U18-'법정동(2025.6월말)'!U18 -> 0.0 | V15: ='법정동(2025.12월말)'!V18-'법정동(2025.6월말)'!V18 -> 0.0 | W15: ='법정동(2025.12월말)'!W18-'법정동(2025.6월말)'!W18 -> 0.0 | X15: ='법정동(2025.12월말)'!X18-'법정동(2025.6월말)'!X18 -> 1,245.0 | Y15: ='법정동(2025.12월말)'!Y18-'법정동(2025.6월말)'!Y18 -> 1.0 | Z15: ='법정동(2025.12월말)'!Z18-'법정동(2025.6월말)'!Z18 -> 0.0 | AA15: ='법정동(2025.12월말)'!AA18-'법정동(2025.6월말)'!AA18 -> 0.0 | AB15: ='법정동(2025.12월말)'!AB18-'법정동(2025.6월말)'!AB18 -> 0.0 | AC15: ='법정동(2025.12월말)'!AC18-'법정동(2025.6월말)'!AC18 -> 0.0 | AD15: ='법정동(2025.12월말)'!AD18-'법정동(2025.6월말)'!AD18 -> 0.0 | AE15: ='법정동(2025.12월말)'!AE18-'법정동(2025.6월말)'!AE18 -> 0.0 | AF15: ='법정동(2025.12월말)'!AF18-'법정동(2025.6월말)'!AF18 -> 0.0 | AG15: ='법정동(2025.12월말)'!AG18-'법정동(2025.6월말)'!AG18 -> 0.0 | AH15: ='법정동(2025.12월말)'!AH18-'법정동(2025.6월말)'!AH18 -> 0.0 | AI15: ='법정동(2025.12월말)'!AI18-'법정동(2025.6월말)'!AI18 -> 0.0 | AJ15: ='법정동(2025.12월말)'!AJ18-'법정동(2025.6월말)'!AJ18 -> 0.0 | AK15: ='법정동(2025.12월말)'!AK18-'법정동(2025.6월말)'!AK18 -> 0.0 | AL15: ='법정동(2025.12월말)'!AL18-'법정동(2025.6월말)'!AL18 -> 0.0 | AM15: ='법정동(2025.12월말)'!AM18-'법정동(2025.6월말)'!AM18 -> 0.0 | AN15: ='법정동(2025.12월말)'!AN18-'법정동(2025.6월말)'!AN18 -> 0.0 | AO15: ='법정동(2025.12월말)'!AO18-'법정동(2025.6월말)'!AO18 -> 0.0 | AP15: ='법정동(2025.12월말)'!AP18-'법정동(2025.6월말)'!AP18 -> 0.0 | AQ15: ='법정동(2025.12월말)'!AQ18-'법정동(2025.6월말)'!AQ18 -> 0.0 | AR15: ='법정동(2025.12월말)'!AR18-'법정동(2025.6월말)'!AR18 -> 0.0 | AS15: ='법정동(2025.12월말)'!AS18-'법정동(2025.6월말)'!AS18 -> 0.0 | AT15: ='법정동(2025.12월말)'!AT18-'법정동(2025.6월말)'!AT18 -> 0.0 | AU15: ='법정동(2025.12월말)'!AU18-'법정동(2025.6월말)'!AU18 -> 0.0 | AV15: ='법정동(2025.12월말)'!AV18-'법정동(2025.6월말)'!AV18 -> 0.0 | AW15: ='법정동(2025.12월말)'!AW18-'법정동(2025.6월말)'!AW18 -> 0.0 | AX15: ='법정동(2025.12월말)'!AX18-'법정동(2025.6월말)'!AX18 -> 0.0 | AY15: ='법정동(2025.12월말)'!AY18-'법정동(2025.6월말)'!AY18 -> 0.0 | AZ15: ='법정동(2025.12월말)'!AZ18-'법정동(2025.6월말)'!AZ18 -> 0.0 | BA15: ='법정동(2025.12월말)'!BA18-'법정동(2025.6월말)'!BA18 -> 0.0 | BB15: ='법정동(2025.12월말)'!BB18-'법정동(2025.6월말)'!BB18 -> 0.0 | BC15: ='법정동(2025.12월말)'!BC18-'법정동(2025.6월말)'!BC18 -> 0.0 | BD15: ='법정동(2025.12월말)'!BD18-'법정동(2025.6월말)'!BD18 -> 0.0 | BE15: ='법정동(2025.12월말)'!BE18-'법정동(2025.6월말)'!BE18 -> 0.0 | BF15: ='법정동(2025.12월말)'!BF18-'법정동(2025.6월말)'!BF18 -> 0.0 | BG15: ='법정동(2025.12월말)'!BG18-'법정동(2025.6월말)'!BG18 -> 0.0
A16: 서교동 | B16: ='법정동(2025.12월말)'!B19-'법정동(2025.6월말)'!B19 -> 0.0 | C16: ='법정동(2025.12월말)'!C19-'법정동(2025.6월말)'!C19 -> 0.0 | D16: ='법정동(2025.12월말)'!D19-'법정동(2025.6월말)'!D19 -> 0.0 | E16: ='법정동(2025.12월말)'!E19-'법정동(2025.6월말)'!E19 -> 0.0 | F16: ='법정동(2025.12월말)'!F19-'법정동(2025.6월말)'!F19 -> 0.0 | G16: ='법정동(2025.12월말)'!G19-'법정동(2025.6월말)'!G19 -> 0.0 | H16: ='법정동(2025.12월말)'!H19-'법정동(2025.6월말)'!H19 -> 0.0 | I16: ='법정동(2025.12월말)'!I19-'법정동(2025.6월말)'!I19 -> 0.0 | J16: ='법정동(2025.12월말)'!J19-'법정동(2025.6월말)'!J19 -> 0.0 | K16: ='법정동(2025.12월말)'!K19-'법정동(2025.6월말)'!K19 -> 0.0 | L16: ='법정동(2025.12월말)'!L19-'법정동(2025.6월말)'!L19 -> 0.0 | M16: ='법정동(2025.12월말)'!M19-'법정동(2025.6월말)'!M19 -> 0.0 | N16: ='법정동(2025.12월말)'!N19-'법정동(2025.6월말)'!N19 -> 0.0 | O16: ='법정동(2025.12월말)'!O19-'법정동(2025.6월말)'!O19 -> 0.0 | P16: ='법정동(2025.12월말)'!P19-'법정동(2025.6월말)'!P19 -> 0.0 | Q16: ='법정동(2025.12월말)'!Q19-'법정동(2025.6월말)'!Q19 -> 0.0 | R16: ='법정동(2025.12월말)'!R19-'법정동(2025.6월말)'!R19 -> 0.0 | S16: ='법정동(2025.12월말)'!S19-'법정동(2025.6월말)'!S19 -> 0.0 | T16: ='법정동(2025.12월말)'!T19-'법정동(2025.6월말)'!T19 -> 0.0 | U16: ='법정동(2025.12월말)'!U19-'법정동(2025.6월말)'!U19 -> 0.0 | V16: ='법정동(2025.12월말)'!V19-'법정동(2025.6월말)'!V19 -> 0.0 | W16: ='법정동(2025.12월말)'!W19-'법정동(2025.6월말)'!W19 -> 0.0 | X16: ='법정동(2025.12월말)'!X19-'법정동(2025.6월말)'!X19 -> 0.0 | Y16: ='법정동(2025.12월말)'!Y19-'법정동(2025.6월말)'!Y19 -> 0.0 | Z16: ='법정동(2025.12월말)'!Z19-'법정동(2025.6월말)'!Z19 -> 0.0 | AA16: ='법정동(2025.12월말)'!AA19-'법정동(2025.6월말)'!AA19 -> 0.0 | AB16: ='법정동(2025.12월말)'!AB19-'법정동(2025.6월말)'!AB19 -> 0.0 | AC16: ='법정동(2025.12월말)'!AC19-'법정동(2025.6월말)'!AC19 -> 0.0 | AD16: ='법정동(2025.12월말)'!AD19-'법정동(2025.6월말)'!AD19 -> 0.0 | AE16: ='법정동(2025.12월말)'!AE19-'법정동(2025.6월말)'!AE19 -> 0.0 | AF16: ='법정동(2025.12월말)'!AF19-'법정동(2025.6월말)'!AF19 -> 0.0 | AG16: ='법정동(2025.12월말)'!AG19-'법정동(2025.6월말)'!AG19 -> 0.0 | AH16: ='법정동(2025.12월말)'!AH19-'법정동(2025.6월말)'!AH19 -> 0.0 | AI16: ='법정동(2025.12월말)'!AI19-'법정동(2025.6월말)'!AI19 -> 0.0 | AJ16: ='법정동(2025.12월말)'!AJ19-'법정동(2025.6월말)'!AJ19 -> 0.0 | AK16: ='법정동(2025.12월말)'!AK19-'법정동(2025.6월말)'!AK19 -> 0.0 | AL16: ='법정동(2025.12월말)'!AL19-'법정동(2025.6월말)'!AL19 -> 0.0 | AM16: ='법정동(2025.12월말)'!AM19-'법정동(2025.6월말)'!AM19 -> 0.0 | AN16: ='법정동(2025.12월말)'!AN19-'법정동(2025.6월말)'!AN19 -> 0.0 | AO16: ='법정동(2025.12월말)'!AO19-'법정동(2025.6월말)'!AO19 -> 0.0 | AP16: ='법정동(2025.12월말)'!AP19-'법정동(2025.6월말)'!AP19 -> 0.0 | AQ16: ='법정동(2025.12월말)'!AQ19-'법정동(2025.6월말)'!AQ19 -> 0.0 | AR16: ='법정동(2025.12월말)'!AR19-'법정동(2025.6월말)'!AR19 -> 0.0 | AS16: ='법정동(2025.12월말)'!AS19-'법정동(2025.6월말)'!AS19 -> 0.0 | AT16: ='법정동(2025.12월말)'!AT19-'법정동(2025.6월말)'!AT19 -> 0.0 | AU16: ='법정동(2025.12월말)'!AU19-'법정동(2025.6월말)'!AU19 -> 0.0 | AV16: ='법정동(2025.12월말)'!AV19-'법정동(2025.6월말)'!AV19 -> 0.0 | AW16: ='법정동(2025.12월말)'!AW19-'법정동(2025.6월말)'!AW19 -> 0.0 | AX16: ='법정동(2025.12월말)'!AX19-'법정동(2025.6월말)'!AX19 -> 0.0 | AY16: ='법정동(2025.12월말)'!AY19-'법정동(2025.6월말)'!AY19 -> 0.0 | AZ16: ='법정동(2025.12월말)'!AZ19-'법정동(2025.6월말)'!AZ19 -> 0.0 | BA16: ='법정동(2025.12월말)'!BA19-'법정동(2025.6월말)'!BA19 -> 0.0 | BB16: ='법정동(2025.12월말)'!BB19-'법정동(2025.6월말)'!BB19 -> 0.0 | BC16: ='법정동(2025.12월말)'!BC19-'법정동(2025.6월말)'!BC19 -> 0.0 | BD16: ='법정동(2025.12월말)'!BD19-'법정동(2025.6월말)'!BD19 -> 0.0 | BE16: ='법정동(2025.12월말)'!BE19-'법정동(2025.6월말)'!BE19 -> 0.0 | BF16: ='법정동(2025.12월말)'!BF19-'법정동(2025.6월말)'!BF19 -> 0.0 | BG16: ='법정동(2025.12월말)'!BG19-'법정동(2025.6월말)'!BG19 -> 0.0
A17: 봉강동 | B17: ='법정동(2025.12월말)'!B20-'법정동(2025.6월말)'!B20 -> 0.0 | C17: ='법정동(2025.12월말)'!C20-'법정동(2025.6월말)'!C20 -> -4.0 | D17: ='법정동(2025.12월말)'!D20-'법정동(2025.6월말)'!D20 -> 0.0 | E17: ='법정동(2025.12월말)'!E20-'법정동(2025.6월말)'!E20 -> 0.0 | F17: ='법정동(2025.12월말)'!F20-'법정동(2025.6월말)'!F20 -> -404.0 | G17: ='법정동(2025.12월말)'!G20-'법정동(2025.6월말)'!G20 -> -1.0 | H17: ='법정동(2025.12월말)'!H20-'법정동(2025.6월말)'!H20 -> 0.0 | I17: ='법정동(2025.12월말)'!I20-'법정동(2025.6월말)'!I20 -> 0.0 | J17: ='법정동(2025.12월말)'!J20-'법정동(2025.6월말)'!J20 -> 0.0 | K17: ='법정동(2025.12월말)'!K20-'법정동(2025.6월말)'!K20 -> 0.0 | L17: ='법정동(2025.12월말)'!L20-'법정동(2025.6월말)'!L20 -> 0.0 | M17: ='법정동(2025.12월말)'!M20-'법정동(2025.6월말)'!M20 -> 0.0 | N17: ='법정동(2025.12월말)'!N20-'법정동(2025.6월말)'!N20 -> 0.0 | O17: ='법정동(2025.12월말)'!O20-'법정동(2025.6월말)'!O20 -> 0.0 | P17: ='법정동(2025.12월말)'!P20-'법정동(2025.6월말)'!P20 -> 0.0 | Q17: ='법정동(2025.12월말)'!Q20-'법정동(2025.6월말)'!Q20 -> 0.0 | R17: ='법정동(2025.12월말)'!R20-'법정동(2025.6월말)'!R20 -> 394.0 | S17: ='법정동(2025.12월말)'!S20-'법정동(2025.6월말)'!S20 -> -4.0 | T17: ='법정동(2025.12월말)'!T20-'법정동(2025.6월말)'!T20 -> 0.0 | U17: ='법정동(2025.12월말)'!U20-'법정동(2025.6월말)'!U20 -> 0.0 | V17: ='법정동(2025.12월말)'!V20-'법정동(2025.6월말)'!V20 -> 0.0 | W17: ='법정동(2025.12월말)'!W20-'법정동(2025.6월말)'!W20 -> 0.0 | X17: ='법정동(2025.12월말)'!X20-'법정동(2025.6월말)'!X20 -> 0.0 | Y17: ='법정동(2025.12월말)'!Y20-'법정동(2025.6월말)'!Y20 -> 0.0 | Z17: ='법정동(2025.12월말)'!Z20-'법정동(2025.6월말)'!Z20 -> 0.0 | AA17: ='법정동(2025.12월말)'!AA20-'법정동(2025.6월말)'!AA20 -> 0.0 | AB17: ='법정동(2025.12월말)'!AB20-'법정동(2025.6월말)'!AB20 -> 0.0 | AC17: ='법정동(2025.12월말)'!AC20-'법정동(2025.6월말)'!AC20 -> 0.0 | AD17: ='법정동(2025.12월말)'!AD20-'법정동(2025.6월말)'!AD20 -> 10.0 | AE17: ='법정동(2025.12월말)'!AE20-'법정동(2025.6월말)'!AE20 -> 1.0 | AF17: ='법정동(2025.12월말)'!AF20-'법정동(2025.6월말)'!AF20 -> 0.0 | AG17: ='법정동(2025.12월말)'!AG20-'법정동(2025.6월말)'!AG20 -> 0.0 | AH17: ='법정동(2025.12월말)'!AH20-'법정동(2025.6월말)'!AH20 -> 0.0 | AI17: ='법정동(2025.12월말)'!AI20-'법정동(2025.6월말)'!AI20 -> 0.0 | AJ17: ='법정동(2025.12월말)'!AJ20-'법정동(2025.6월말)'!AJ20 -> 0.0 | AK17: ='법정동(2025.12월말)'!AK20-'법정동(2025.6월말)'!AK20 -> 0.0 | AL17: ='법정동(2025.12월말)'!AL20-'법정동(2025.6월말)'!AL20 -> 0.0 | AM17: ='법정동(2025.12월말)'!AM20-'법정동(2025.6월말)'!AM20 -> 0.0 | AN17: ='법정동(2025.12월말)'!AN20-'법정동(2025.6월말)'!AN20 -> 0.0 | AO17: ='법정동(2025.12월말)'!AO20-'법정동(2025.6월말)'!AO20 -> 0.0 | AP17: ='법정동(2025.12월말)'!AP20-'법정동(2025.6월말)'!AP20 -> 0.0 | AQ17: ='법정동(2025.12월말)'!AQ20-'법정동(2025.6월말)'!AQ20 -> 0.0 | AR17: ='법정동(2025.12월말)'!AR20-'법정동(2025.6월말)'!AR20 -> 0.0 | AS17: ='법정동(2025.12월말)'!AS20-'법정동(2025.6월말)'!AS20 -> 0.0 | AT17: ='법정동(2025.12월말)'!AT20-'법정동(2025.6월말)'!AT20 -> 0.0 | AU17: ='법정동(2025.12월말)'!AU20-'법정동(2025.6월말)'!AU20 -> 0.0 | AV17: ='법정동(2025.12월말)'!AV20-'법정동(2025.6월말)'!AV20 -> 0.0 | AW17: ='법정동(2025.12월말)'!AW20-'법정동(2025.6월말)'!AW20 -> 0.0 | AX17: ='법정동(2025.12월말)'!AX20-'법정동(2025.6월말)'!AX20 -> 0.0 | AY17: ='법정동(2025.12월말)'!AY20-'법정동(2025.6월말)'!AY20 -> 0.0 | AZ17: ='법정동(2025.12월말)'!AZ20-'법정동(2025.6월말)'!AZ20 -> 0.0 | BA17: ='법정동(2025.12월말)'!BA20-'법정동(2025.6월말)'!BA20 -> 0.0 | BB17: ='법정동(2025.12월말)'!BB20-'법정동(2025.6월말)'!BB20 -> 0.0 | BC17: ='법정동(2025.12월말)'!BC20-'법정동(2025.6월말)'!BC20 -> 0.0 | BD17: ='법정동(2025.12월말)'!BD20-'법정동(2025.6월말)'!BD20 -> 0.0 | BE17: ='법정동(2025.12월말)'!BE20-'법정동(2025.6월말)'!BE20 -> 0.0 | BF17: ='법정동(2025.12월말)'!BF20-'법정동(2025.6월말)'!BF20 -> 0.0 | BG17: ='법정동(2025.12월말)'!BG20-'법정동(2025.6월말)'!BG20 -> 0.0
A18: 봉산동 | B18: ='법정동(2025.12월말)'!B21-'법정동(2025.6월말)'!B21 -> 0.0 | C18: ='법정동(2025.12월말)'!C21-'법정동(2025.6월말)'!C21 -> -3.0 | D18: ='법정동(2025.12월말)'!D21-'법정동(2025.6월말)'!D21 -> -3,820.0 | E18: ='법정동(2025.12월말)'!E21-'법정동(2025.6월말)'!E21 -> -1.0 | F18: ='법정동(2025.12월말)'!F21-'법정동(2025.6월말)'!F21 -> -172.0 | G18: ='법정동(2025.12월말)'!G21-'법정동(2025.6월말)'!G21 -> -1.0 | H18: ='법정동(2025.12월말)'!H21-'법정동(2025.6월말)'!H21 -> 0.0 | I18: ='법정동(2025.12월말)'!I21-'법정동(2025.6월말)'!I21 -> 0.0 | J18: ='법정동(2025.12월말)'!J21-'법정동(2025.6월말)'!J21 -> 0.0 | K18: ='법정동(2025.12월말)'!K21-'법정동(2025.6월말)'!K21 -> 0.0 | L18: ='법정동(2025.12월말)'!L21-'법정동(2025.6월말)'!L21 -> -894.0 | M18: ='법정동(2025.12월말)'!M21-'법정동(2025.6월말)'!M21 -> -3.0 | N18: ='법정동(2025.12월말)'!N21-'법정동(2025.6월말)'!N21 -> 0.0 | O18: ='법정동(2025.12월말)'!O21-'법정동(2025.6월말)'!O21 -> 0.0 | P18: ='법정동(2025.12월말)'!P21-'법정동(2025.6월말)'!P21 -> 0.0 | Q18: ='법정동(2025.12월말)'!Q21-'법정동(2025.6월말)'!Q21 -> 0.0 | R18: ='법정동(2025.12월말)'!R21-'법정동(2025.6월말)'!R21 -> 4,886.0 | S18: ='법정동(2025.12월말)'!S21-'법정동(2025.6월말)'!S21 -> 2.0 | T18: ='법정동(2025.12월말)'!T21-'법정동(2025.6월말)'!T21 -> 0.0 | U18: ='법정동(2025.12월말)'!U21-'법정동(2025.6월말)'!U21 -> 0.0 | V18: ='법정동(2025.12월말)'!V21-'법정동(2025.6월말)'!V21 -> 0.0 | W18: ='법정동(2025.12월말)'!W21-'법정동(2025.6월말)'!W21 -> 0.0 | X18: ='법정동(2025.12월말)'!X21-'법정동(2025.6월말)'!X21 -> 0.0 | Y18: ='법정동(2025.12월말)'!Y21-'법정동(2025.6월말)'!Y21 -> 0.0 | Z18: ='법정동(2025.12월말)'!Z21-'법정동(2025.6월말)'!Z21 -> 0.0 | AA18: ='법정동(2025.12월말)'!AA21-'법정동(2025.6월말)'!AA21 -> 0.0 | AB18: ='법정동(2025.12월말)'!AB21-'법정동(2025.6월말)'!AB21 -> 0.0 | AC18: ='법정동(2025.12월말)'!AC21-'법정동(2025.6월말)'!AC21 -> 0.0 | AD18: ='법정동(2025.12월말)'!AD21-'법정동(2025.6월말)'!AD21 -> 0.0 | AE18: ='법정동(2025.12월말)'!AE21-'법정동(2025.6월말)'!AE21 -> 0.0 | AF18: ='법정동(2025.12월말)'!AF21-'법정동(2025.6월말)'!AF21 -> 0.0 | AG18: ='법정동(2025.12월말)'!AG21-'법정동(2025.6월말)'!AG21 -> 0.0 | AH18: ='법정동(2025.12월말)'!AH21-'법정동(2025.6월말)'!AH21 -> 0.0 | AI18: ='법정동(2025.12월말)'!AI21-'법정동(2025.6월말)'!AI21 -> 0.0 | AJ18: ='법정동(2025.12월말)'!AJ21-'법정동(2025.6월말)'!AJ21 -> 0.0 | AK18: ='법정동(2025.12월말)'!AK21-'법정동(2025.6월말)'!AK21 -> 0.0 | AL18: ='법정동(2025.12월말)'!AL21-'법정동(2025.6월말)'!AL21 -> 0.0 | AM18: ='법정동(2025.12월말)'!AM21-'법정동(2025.6월말)'!AM21 -> 0.0 | AN18: ='법정동(2025.12월말)'!AN21-'법정동(2025.6월말)'!AN21 -> 0.0 | AO18: ='법정동(2025.12월말)'!AO21-'법정동(2025.6월말)'!AO21 -> 0.0 | AP18: ='법정동(2025.12월말)'!AP21-'법정동(2025.6월말)'!AP21 -> 0.0 | AQ18: ='법정동(2025.12월말)'!AQ21-'법정동(2025.6월말)'!AQ21 -> 0.0 | AR18: ='법정동(2025.12월말)'!AR21-'법정동(2025.6월말)'!AR21 -> 0.0 | AS18: ='법정동(2025.12월말)'!AS21-'법정동(2025.6월말)'!AS21 -> 0.0 | AT18: ='법정동(2025.12월말)'!AT21-'법정동(2025.6월말)'!AT21 -> 0.0 | AU18: ='법정동(2025.12월말)'!AU21-'법정동(2025.6월말)'!AU21 -> 0.0 | AV18: ='법정동(2025.12월말)'!AV21-'법정동(2025.6월말)'!AV21 -> 0.0 | AW18: ='법정동(2025.12월말)'!AW21-'법정동(2025.6월말)'!AW21 -> 0.0 | AX18: ='법정동(2025.12월말)'!AX21-'법정동(2025.6월말)'!AX21 -> 0.0 | AY18: ='법정동(2025.12월말)'!AY21-'법정동(2025.6월말)'!AY21 -> 0.0 | AZ18: ='법정동(2025.12월말)'!AZ21-'법정동(2025.6월말)'!AZ21 -> 0.0 | BA18: ='법정동(2025.12월말)'!BA21-'법정동(2025.6월말)'!BA21 -> 0.0 | BB18: ='법정동(2025.12월말)'!BB21-'법정동(2025.6월말)'!BB21 -> 0.0 | BC18: ='법정동(2025.12월말)'!BC21-'법정동(2025.6월말)'!BC21 -> 0.0 | BD18: ='법정동(2025.12월말)'!BD21-'법정동(2025.6월말)'!BD21 -> 0.0 | BE18: ='법정동(2025.12월말)'!BE21-'법정동(2025.6월말)'!BE21 -> 0.0 | BF18: ='법정동(2025.12월말)'!BF21-'법정동(2025.6월말)'!BF21 -> 0.0 | BG18: ='법정동(2025.12월말)'!BG21-'법정동(2025.6월말)'!BG21 -> 0.0
A19: 남산동 | B19: ='법정동(2025.12월말)'!B22-'법정동(2025.6월말)'!B22 -> 0.0 | C19: ='법정동(2025.12월말)'!C22-'법정동(2025.6월말)'!C22 -> 4.0 | D19: ='법정동(2025.12월말)'!D22-'법정동(2025.6월말)'!D22 -> 0.0 | E19: ='법정동(2025.12월말)'!E22-'법정동(2025.6월말)'!E22 -> 0.0 | F19: ='법정동(2025.12월말)'!F22-'법정동(2025.6월말)'!F22 -> 0.0 | G19: ='법정동(2025.12월말)'!G22-'법정동(2025.6월말)'!G22 -> 0.0 | H19: ='법정동(2025.12월말)'!H22-'법정동(2025.6월말)'!H22 -> 0.0 | I19: ='법정동(2025.12월말)'!I22-'법정동(2025.6월말)'!I22 -> 0.0 | J19: ='법정동(2025.12월말)'!J22-'법정동(2025.6월말)'!J22 -> 0.0 | K19: ='법정동(2025.12월말)'!K22-'법정동(2025.6월말)'!K22 -> 0.0 | L19: ='법정동(2025.12월말)'!L22-'법정동(2025.6월말)'!L22 -> -71.0 | M19: ='법정동(2025.12월말)'!M22-'법정동(2025.6월말)'!M22 -> 1.0 | N19: ='법정동(2025.12월말)'!N22-'법정동(2025.6월말)'!N22 -> 0.0 | O19: ='법정동(2025.12월말)'!O22-'법정동(2025.6월말)'!O22 -> 0.0 | P19: ='법정동(2025.12월말)'!P22-'법정동(2025.6월말)'!P22 -> 0.0 | Q19: ='법정동(2025.12월말)'!Q22-'법정동(2025.6월말)'!Q22 -> 0.0 | R19: ='법정동(2025.12월말)'!R22-'법정동(2025.6월말)'!R22 -> 53.0 | S19: ='법정동(2025.12월말)'!S22-'법정동(2025.6월말)'!S22 -> 1.0 | T19: ='법정동(2025.12월말)'!T22-'법정동(2025.6월말)'!T22 -> 0.0 | U19: ='법정동(2025.12월말)'!U22-'법정동(2025.6월말)'!U22 -> 0.0 | V19: ='법정동(2025.12월말)'!V22-'법정동(2025.6월말)'!V22 -> 0.0 | W19: ='법정동(2025.12월말)'!W22-'법정동(2025.6월말)'!W22 -> 0.0 | X19: ='법정동(2025.12월말)'!X22-'법정동(2025.6월말)'!X22 -> 0.0 | Y19: ='법정동(2025.12월말)'!Y22-'법정동(2025.6월말)'!Y22 -> 0.0 | Z19: ='법정동(2025.12월말)'!Z22-'법정동(2025.6월말)'!Z22 -> 0.0 | AA19: ='법정동(2025.12월말)'!AA22-'법정동(2025.6월말)'!AA22 -> 0.0 | AB19: ='법정동(2025.12월말)'!AB22-'법정동(2025.6월말)'!AB22 -> 0.0 | AC19: ='법정동(2025.12월말)'!AC22-'법정동(2025.6월말)'!AC22 -> 0.0 | AD19: ='법정동(2025.12월말)'!AD22-'법정동(2025.6월말)'!AD22 -> 18.0 | AE19: ='법정동(2025.12월말)'!AE22-'법정동(2025.6월말)'!AE22 -> 2.0 | AF19: ='법정동(2025.12월말)'!AF22-'법정동(2025.6월말)'!AF22 -> 0.0 | AG19: ='법정동(2025.12월말)'!AG22-'법정동(2025.6월말)'!AG22 -> 0.0 | AH19: ='법정동(2025.12월말)'!AH22-'법정동(2025.6월말)'!AH22 -> 0.0 | AI19: ='법정동(2025.12월말)'!AI22-'법정동(2025.6월말)'!AI22 -> 0.0 | AJ19: ='법정동(2025.12월말)'!AJ22-'법정동(2025.6월말)'!AJ22 -> 0.0 | AK19: ='법정동(2025.12월말)'!AK22-'법정동(2025.6월말)'!AK22 -> 0.0 | AL19: ='법정동(2025.12월말)'!AL22-'법정동(2025.6월말)'!AL22 -> 0.0 | AM19: ='법정동(2025.12월말)'!AM22-'법정동(2025.6월말)'!AM22 -> 0.0 | AN19: ='법정동(2025.12월말)'!AN22-'법정동(2025.6월말)'!AN22 -> 0.0 | AO19: ='법정동(2025.12월말)'!AO22-'법정동(2025.6월말)'!AO22 -> 0.0 | AP19: ='법정동(2025.12월말)'!AP22-'법정동(2025.6월말)'!AP22 -> 0.0 | AQ19: ='법정동(2025.12월말)'!AQ22-'법정동(2025.6월말)'!AQ22 -> 0.0 | AR19: ='법정동(2025.12월말)'!AR22-'법정동(2025.6월말)'!AR22 -> 0.0 | AS19: ='법정동(2025.12월말)'!AS22-'법정동(2025.6월말)'!AS22 -> 0.0 | AT19: ='법정동(2025.12월말)'!AT22-'법정동(2025.6월말)'!AT22 -> 0.0 | AU19: ='법정동(2025.12월말)'!AU22-'법정동(2025.6월말)'!AU22 -> 0.0 | AV19: ='법정동(2025.12월말)'!AV22-'법정동(2025.6월말)'!AV22 -> 0.0 | AW19: ='법정동(2025.12월말)'!AW22-'법정동(2025.6월말)'!AW22 -> 0.0 | AX19: ='법정동(2025.12월말)'!AX22-'법정동(2025.6월말)'!AX22 -> 0.0 | AY19: ='법정동(2025.12월말)'!AY22-'법정동(2025.6월말)'!AY22 -> 0.0 | AZ19: ='법정동(2025.12월말)'!AZ22-'법정동(2025.6월말)'!AZ22 -> 0.0 | BA19: ='법정동(2025.12월말)'!BA22-'법정동(2025.6월말)'!BA22 -> 0.0 | BB19: ='법정동(2025.12월말)'!BB22-'법정동(2025.6월말)'!BB22 -> 0.0 | BC19: ='법정동(2025.12월말)'!BC22-'법정동(2025.6월말)'!BC22 -> 0.0 | BD19: ='법정동(2025.12월말)'!BD22-'법정동(2025.6월말)'!BD22 -> 0.0 | BE19: ='법정동(2025.12월말)'!BE22-'법정동(2025.6월말)'!BE22 -> 0.0 | BF19: ='법정동(2025.12월말)'!BF22-'법정동(2025.6월말)'!BF22 -> 0.0 | BG19: ='법정동(2025.12월말)'!BG22-'법정동(2025.6월말)'!BG22 -> 0.0
A20: 국동 | B20: ='법정동(2025.12월말)'!B23-'법정동(2025.6월말)'!B23 -> -48.0 | C20: ='법정동(2025.12월말)'!C23-'법정동(2025.6월말)'!C23 -> 4.0 | D20: ='법정동(2025.12월말)'!D23-'법정동(2025.6월말)'!D23 -> -240.0 | E20: ='법정동(2025.12월말)'!E23-'법정동(2025.6월말)'!E23 -> -1.0 | F20: ='법정동(2025.12월말)'!F23-'법정동(2025.6월말)'!F23 -> 0.0 | G20: ='법정동(2025.12월말)'!G23-'법정동(2025.6월말)'!G23 -> 0.0 | H20: ='법정동(2025.12월말)'!H23-'법정동(2025.6월말)'!H23 -> 0.0 | I20: ='법정동(2025.12월말)'!I23-'법정동(2025.6월말)'!I23 -> 0.0 | J20: ='법정동(2025.12월말)'!J23-'법정동(2025.6월말)'!J23 -> 0.0 | K20: ='법정동(2025.12월말)'!K23-'법정동(2025.6월말)'!K23 -> 0.0 | L20: ='법정동(2025.12월말)'!L23-'법정동(2025.6월말)'!L23 -> -303.0 | M20: ='법정동(2025.12월말)'!M23-'법정동(2025.6월말)'!M23 -> -1.0 | N20: ='법정동(2025.12월말)'!N23-'법정동(2025.6월말)'!N23 -> 0.0 | O20: ='법정동(2025.12월말)'!O23-'법정동(2025.6월말)'!O23 -> 0.0 | P20: ='법정동(2025.12월말)'!P23-'법정동(2025.6월말)'!P23 -> 0.0 | Q20: ='법정동(2025.12월말)'!Q23-'법정동(2025.6월말)'!Q23 -> 0.0 | R20: ='법정동(2025.12월말)'!R23-'법정동(2025.6월말)'!R23 -> 445.0 | S20: ='법정동(2025.12월말)'!S23-'법정동(2025.6월말)'!S23 -> 3.0 | T20: ='법정동(2025.12월말)'!T23-'법정동(2025.6월말)'!T23 -> 0.0 | U20: ='법정동(2025.12월말)'!U23-'법정동(2025.6월말)'!U23 -> 0.0 | V20: ='법정동(2025.12월말)'!V23-'법정동(2025.6월말)'!V23 -> 0.0 | W20: ='법정동(2025.12월말)'!W23-'법정동(2025.6월말)'!W23 -> 0.0 | X20: ='법정동(2025.12월말)'!X23-'법정동(2025.6월말)'!X23 -> 0.0 | Y20: ='법정동(2025.12월말)'!Y23-'법정동(2025.6월말)'!Y23 -> 0.0 | Z20: ='법정동(2025.12월말)'!Z23-'법정동(2025.6월말)'!Z23 -> 0.0 | AA20: ='법정동(2025.12월말)'!AA23-'법정동(2025.6월말)'!AA23 -> 0.0 | AB20: ='법정동(2025.12월말)'!AB23-'법정동(2025.6월말)'!AB23 -> 0.0 | AC20: ='법정동(2025.12월말)'!AC23-'법정동(2025.6월말)'!AC23 -> 0.0 | AD20: ='법정동(2025.12월말)'!AD23-'법정동(2025.6월말)'!AD23 -> 50.0 | AE20: ='법정동(2025.12월말)'!AE23-'법정동(2025.6월말)'!AE23 -> 3.0 | AF20: ='법정동(2025.12월말)'!AF23-'법정동(2025.6월말)'!AF23 -> 0.0 | AG20: ='법정동(2025.12월말)'!AG23-'법정동(2025.6월말)'!AG23 -> 0.0 | AH20: ='법정동(2025.12월말)'!AH23-'법정동(2025.6월말)'!AH23 -> 0.0 | AI20: ='법정동(2025.12월말)'!AI23-'법정동(2025.6월말)'!AI23 -> 0.0 | AJ20: ='법정동(2025.12월말)'!AJ23-'법정동(2025.6월말)'!AJ23 -> 0.0 | AK20: ='법정동(2025.12월말)'!AK23-'법정동(2025.6월말)'!AK23 -> 0.0 | AL20: ='법정동(2025.12월말)'!AL23-'법정동(2025.6월말)'!AL23 -> 0.0 | AM20: ='법정동(2025.12월말)'!AM23-'법정동(2025.6월말)'!AM23 -> 0.0 | AN20: ='법정동(2025.12월말)'!AN23-'법정동(2025.6월말)'!AN23 -> 0.0 | AO20: ='법정동(2025.12월말)'!AO23-'법정동(2025.6월말)'!AO23 -> 0.0 | AP20: ='법정동(2025.12월말)'!AP23-'법정동(2025.6월말)'!AP23 -> 0.0 | AQ20: ='법정동(2025.12월말)'!AQ23-'법정동(2025.6월말)'!AQ23 -> 0.0 | AR20: ='법정동(2025.12월말)'!AR23-'법정동(2025.6월말)'!AR23 -> 0.0 | AS20: ='법정동(2025.12월말)'!AS23-'법정동(2025.6월말)'!AS23 -> 0.0 | AT20: ='법정동(2025.12월말)'!AT23-'법정동(2025.6월말)'!AT23 -> 0.0 | AU20: ='법정동(2025.12월말)'!AU23-'법정동(2025.6월말)'!AU23 -> 0.0 | AV20: ='법정동(2025.12월말)'!AV23-'법정동(2025.6월말)'!AV23 -> 0.0 | AW20: ='법정동(2025.12월말)'!AW23-'법정동(2025.6월말)'!AW23 -> 0.0 | AX20: ='법정동(2025.12월말)'!AX23-'법정동(2025.6월말)'!AX23 -> 0.0 | AY20: ='법정동(2025.12월말)'!AY23-'법정동(2025.6월말)'!AY23 -> 0.0 | AZ20: ='법정동(2025.12월말)'!AZ23-'법정동(2025.6월말)'!AZ23 -> 0.0 | BA20: ='법정동(2025.12월말)'!BA23-'법정동(2025.6월말)'!BA23 -> 0.0 | BB20: ='법정동(2025.12월말)'!BB23-'법정동(2025.6월말)'!BB23 -> 0.0 | BC20: ='법정동(2025.12월말)'!BC23-'법정동(2025.6월말)'!BC23 -> 0.0 | BD20: ='법정동(2025.12월말)'!BD23-'법정동(2025.6월말)'!BD23 -> 0.0 | BE20: ='법정동(2025.12월말)'!BE23-'법정동(2025.6월말)'!BE23 -> 0.0 | BF20: ='법정동(2025.12월말)'!BF23-'법정동(2025.6월말)'!BF23 -> 0.0 | BG20: ='법정동(2025.12월말)'!BG23-'법정동(2025.6월말)'!BG23 -> 0.0
A21: 신월동 | B21: ='법정동(2025.12월말)'!B24-'법정동(2025.6월말)'!B24 -> -35.0 | C21: ='법정동(2025.12월말)'!C24-'법정동(2025.6월말)'!C24 -> 4.0 | D21: ='법정동(2025.12월말)'!D24-'법정동(2025.6월말)'!D24 -> 0.0 | E21: ='법정동(2025.12월말)'!E24-'법정동(2025.6월말)'!E24 -> 2.0 | F21: ='법정동(2025.12월말)'!F24-'법정동(2025.6월말)'!F24 -> 0.0 | G21: ='법정동(2025.12월말)'!G24-'법정동(2025.6월말)'!G24 -> 0.0 | H21: ='법정동(2025.12월말)'!H24-'법정동(2025.6월말)'!H24 -> 0.0 | I21: ='법정동(2025.12월말)'!I24-'법정동(2025.6월말)'!I24 -> 0.0 | J21: ='법정동(2025.12월말)'!J24-'법정동(2025.6월말)'!J24 -> 0.0 | K21: ='법정동(2025.12월말)'!K24-'법정동(2025.6월말)'!K24 -> 0.0 | L21: ='법정동(2025.12월말)'!L24-'법정동(2025.6월말)'!L24 -> 0.0 | M21: ='법정동(2025.12월말)'!M24-'법정동(2025.6월말)'!M24 -> 0.0 | N21: ='법정동(2025.12월말)'!N24-'법정동(2025.6월말)'!N24 -> 0.0 | O21: ='법정동(2025.12월말)'!O24-'법정동(2025.6월말)'!O24 -> 0.0 | P21: ='법정동(2025.12월말)'!P24-'법정동(2025.6월말)'!P24 -> 0.0 | Q21: ='법정동(2025.12월말)'!Q24-'법정동(2025.6월말)'!Q24 -> 0.0 | R21: ='법정동(2025.12월말)'!R24-'법정동(2025.6월말)'!R24 -> 0.0 | S21: ='법정동(2025.12월말)'!S24-'법정동(2025.6월말)'!S24 -> 0.0 | T21: ='법정동(2025.12월말)'!T24-'법정동(2025.6월말)'!T24 -> 0.0 | U21: ='법정동(2025.12월말)'!U24-'법정동(2025.6월말)'!U24 -> 0.0 | V21: ='법정동(2025.12월말)'!V24-'법정동(2025.6월말)'!V24 -> 0.0 | W21: ='법정동(2025.12월말)'!W24-'법정동(2025.6월말)'!W24 -> 0.0 | X21: ='법정동(2025.12월말)'!X24-'법정동(2025.6월말)'!X24 -> 0.0 | Y21: ='법정동(2025.12월말)'!Y24-'법정동(2025.6월말)'!Y24 -> 0.0 | Z21: ='법정동(2025.12월말)'!Z24-'법정동(2025.6월말)'!Z24 -> 0.0 | AA21: ='법정동(2025.12월말)'!AA24-'법정동(2025.6월말)'!AA24 -> 0.0 | AB21: ='법정동(2025.12월말)'!AB24-'법정동(2025.6월말)'!AB24 -> 0.0 | AC21: ='법정동(2025.12월말)'!AC24-'법정동(2025.6월말)'!AC24 -> 0.0 | AD21: ='법정동(2025.12월말)'!AD24-'법정동(2025.6월말)'!AD24 -> 0.0 | AE21: ='법정동(2025.12월말)'!AE24-'법정동(2025.6월말)'!AE24 -> 1.0 | AF21: ='법정동(2025.12월말)'!AF24-'법정동(2025.6월말)'!AF24 -> 0.0 | AG21: ='법정동(2025.12월말)'!AG24-'법정동(2025.6월말)'!AG24 -> 0.0 | AH21: ='법정동(2025.12월말)'!AH24-'법정동(2025.6월말)'!AH24 -> 0.0 | AI21: ='법정동(2025.12월말)'!AI24-'법정동(2025.6월말)'!AI24 -> 0.0 | AJ21: ='법정동(2025.12월말)'!AJ24-'법정동(2025.6월말)'!AJ24 -> 0.0 | AK21: ='법정동(2025.12월말)'!AK24-'법정동(2025.6월말)'!AK24 -> 0.0 | AL21: ='법정동(2025.12월말)'!AL24-'법정동(2025.6월말)'!AL24 -> -35.0 | AM21: ='법정동(2025.12월말)'!AM24-'법정동(2025.6월말)'!AM24 -> 1.0 | AN21: ='법정동(2025.12월말)'!AN24-'법정동(2025.6월말)'!AN24 -> 0.0 | AO21: ='법정동(2025.12월말)'!AO24-'법정동(2025.6월말)'!AO24 -> 0.0 | AP21: ='법정동(2025.12월말)'!AP24-'법정동(2025.6월말)'!AP24 -> 0.0 | AQ21: ='법정동(2025.12월말)'!AQ24-'법정동(2025.6월말)'!AQ24 -> 0.0 | AR21: ='법정동(2025.12월말)'!AR24-'법정동(2025.6월말)'!AR24 -> 0.0 | AS21: ='법정동(2025.12월말)'!AS24-'법정동(2025.6월말)'!AS24 -> 0.0 | AT21: ='법정동(2025.12월말)'!AT24-'법정동(2025.6월말)'!AT24 -> 0.0 | AU21: ='법정동(2025.12월말)'!AU24-'법정동(2025.6월말)'!AU24 -> 0.0 | AV21: ='법정동(2025.12월말)'!AV24-'법정동(2025.6월말)'!AV24 -> 0.0 | AW21: ='법정동(2025.12월말)'!AW24-'법정동(2025.6월말)'!AW24 -> 0.0 | AX21: ='법정동(2025.12월말)'!AX24-'법정동(2025.6월말)'!AX24 -> 0.0 | AY21: ='법정동(2025.12월말)'!AY24-'법정동(2025.6월말)'!AY24 -> 0.0 | AZ21: ='법정동(2025.12월말)'!AZ24-'법정동(2025.6월말)'!AZ24 -> 0.0 | BA21: ='법정동(2025.12월말)'!BA24-'법정동(2025.6월말)'!BA24 -> 0.0 | BB21: ='법정동(2025.12월말)'!BB24-'법정동(2025.6월말)'!BB24 -> 0.0 | BC21: ='법정동(2025.12월말)'!BC24-'법정동(2025.6월말)'!BC24 -> 0.0 | BD21: ='법정동(2025.12월말)'!BD24-'법정동(2025.6월말)'!BD24 -> 0.0 | BE21: ='법정동(2025.12월말)'!BE24-'법정동(2025.6월말)'!BE24 -> 0.0 | BF21: ='법정동(2025.12월말)'!BF24-'법정동(2025.6월말)'!BF24 -> 0.0 | BG21: ='법정동(2025.12월말)'!BG24-'법정동(2025.6월말)'!BG24 -> 0.0
A22: 여서동 | B22: ='법정동(2025.12월말)'!B25-'법정동(2025.6월말)'!B25 -> 0.0 | C22: ='법정동(2025.12월말)'!C25-'법정동(2025.6월말)'!C25 -> 1.0 | D22: ='법정동(2025.12월말)'!D25-'법정동(2025.6월말)'!D25 -> 0.0 | E22: ='법정동(2025.12월말)'!E25-'법정동(2025.6월말)'!E25 -> 0.0 | F22: ='법정동(2025.12월말)'!F25-'법정동(2025.6월말)'!F25 -> 0.0 | G22: ='법정동(2025.12월말)'!G25-'법정동(2025.6월말)'!G25 -> 0.0 | H22: ='법정동(2025.12월말)'!H25-'법정동(2025.6월말)'!H25 -> 0.0 | I22: ='법정동(2025.12월말)'!I25-'법정동(2025.6월말)'!I25 -> 0.0 | J22: ='법정동(2025.12월말)'!J25-'법정동(2025.6월말)'!J25 -> 0.0 | K22: ='법정동(2025.12월말)'!K25-'법정동(2025.6월말)'!K25 -> 0.0 | L22: ='법정동(2025.12월말)'!L25-'법정동(2025.6월말)'!L25 -> 0.0 | M22: ='법정동(2025.12월말)'!M25-'법정동(2025.6월말)'!M25 -> 1.0 | N22: ='법정동(2025.12월말)'!N25-'법정동(2025.6월말)'!N25 -> 0.0 | O22: ='법정동(2025.12월말)'!O25-'법정동(2025.6월말)'!O25 -> 0.0 | P22: ='법정동(2025.12월말)'!P25-'법정동(2025.6월말)'!P25 -> 0.0 | Q22: ='법정동(2025.12월말)'!Q25-'법정동(2025.6월말)'!Q25 -> 0.0 | R22: ='법정동(2025.12월말)'!R25-'법정동(2025.6월말)'!R25 -> 0.0 | S22: ='법정동(2025.12월말)'!S25-'법정동(2025.6월말)'!S25 -> 0.0 | T22: ='법정동(2025.12월말)'!T25-'법정동(2025.6월말)'!T25 -> 0.0 | U22: ='법정동(2025.12월말)'!U25-'법정동(2025.6월말)'!U25 -> 0.0 | V22: ='법정동(2025.12월말)'!V25-'법정동(2025.6월말)'!V25 -> 0.0 | W22: ='법정동(2025.12월말)'!W25-'법정동(2025.6월말)'!W25 -> 0.0 | X22: ='법정동(2025.12월말)'!X25-'법정동(2025.6월말)'!X25 -> 0.0 | Y22: ='법정동(2025.12월말)'!Y25-'법정동(2025.6월말)'!Y25 -> 0.0 | Z22: ='법정동(2025.12월말)'!Z25-'법정동(2025.6월말)'!Z25 -> 0.0 | AA22: ='법정동(2025.12월말)'!AA25-'법정동(2025.6월말)'!AA25 -> 0.0 | AB22: ='법정동(2025.12월말)'!AB25-'법정동(2025.6월말)'!AB25 -> 0.0 | AC22: ='법정동(2025.12월말)'!AC25-'법정동(2025.6월말)'!AC25 -> 0.0 | AD22: ='법정동(2025.12월말)'!AD25-'법정동(2025.6월말)'!AD25 -> 0.0 | AE22: ='법정동(2025.12월말)'!AE25-'법정동(2025.6월말)'!AE25 -> 0.0 | AF22: ='법정동(2025.12월말)'!AF25-'법정동(2025.6월말)'!AF25 -> 0.0 | AG22: ='법정동(2025.12월말)'!AG25-'법정동(2025.6월말)'!AG25 -> 0.0 | AH22: ='법정동(2025.12월말)'!AH25-'법정동(2025.6월말)'!AH25 -> 0.0 | AI22: ='법정동(2025.12월말)'!AI25-'법정동(2025.6월말)'!AI25 -> 0.0 | AJ22: ='법정동(2025.12월말)'!AJ25-'법정동(2025.6월말)'!AJ25 -> 0.0 | AK22: ='법정동(2025.12월말)'!AK25-'법정동(2025.6월말)'!AK25 -> 0.0 | AL22: ='법정동(2025.12월말)'!AL25-'법정동(2025.6월말)'!AL25 -> 0.0 | AM22: ='법정동(2025.12월말)'!AM25-'법정동(2025.6월말)'!AM25 -> 0.0 | AN22: ='법정동(2025.12월말)'!AN25-'법정동(2025.6월말)'!AN25 -> 0.0 | AO22: ='법정동(2025.12월말)'!AO25-'법정동(2025.6월말)'!AO25 -> 0.0 | AP22: ='법정동(2025.12월말)'!AP25-'법정동(2025.6월말)'!AP25 -> 0.0 | AQ22: ='법정동(2025.12월말)'!AQ25-'법정동(2025.6월말)'!AQ25 -> 0.0 | AR22: ='법정동(2025.12월말)'!AR25-'법정동(2025.6월말)'!AR25 -> 0.0 | AS22: ='법정동(2025.12월말)'!AS25-'법정동(2025.6월말)'!AS25 -> 0.0 | AT22: ='법정동(2025.12월말)'!AT25-'법정동(2025.6월말)'!AT25 -> 0.0 | AU22: ='법정동(2025.12월말)'!AU25-'법정동(2025.6월말)'!AU25 -> 0.0 | AV22: ='법정동(2025.12월말)'!AV25-'법정동(2025.6월말)'!AV25 -> 0.0 | AW22: ='법정동(2025.12월말)'!AW25-'법정동(2025.6월말)'!AW25 -> 0.0 | AX22: ='법정동(2025.12월말)'!AX25-'법정동(2025.6월말)'!AX25 -> 0.0 | AY22: ='법정동(2025.12월말)'!AY25-'법정동(2025.6월말)'!AY25 -> 0.0 | AZ22: ='법정동(2025.12월말)'!AZ25-'법정동(2025.6월말)'!AZ25 -> 0.0 | BA22: ='법정동(2025.12월말)'!BA25-'법정동(2025.6월말)'!BA25 -> 0.0 | BB22: ='법정동(2025.12월말)'!BB25-'법정동(2025.6월말)'!BB25 -> 0.0 | BC22: ='법정동(2025.12월말)'!BC25-'법정동(2025.6월말)'!BC25 -> 0.0 | BD22: ='법정동(2025.12월말)'!BD25-'법정동(2025.6월말)'!BD25 -> 0.0 | BE22: ='법정동(2025.12월말)'!BE25-'법정동(2025.6월말)'!BE25 -> 0.0 | BF22: ='법정동(2025.12월말)'!BF25-'법정동(2025.6월말)'!BF25 -> 0.0 | BG22: ='법정동(2025.12월말)'!BG25-'법정동(2025.6월말)'!BG25 -> 0.0
A23: 문수동 | B23: ='법정동(2025.12월말)'!B26-'법정동(2025.6월말)'!B26 -> 0.0 | C23: ='법정동(2025.12월말)'!C26-'법정동(2025.6월말)'!C26 -> -31.0 | D23: ='법정동(2025.12월말)'!D26-'법정동(2025.6월말)'!D26 -> 0.0 | E23: ='법정동(2025.12월말)'!E26-'법정동(2025.6월말)'!E26 -> 0.0 | F23: ='법정동(2025.12월말)'!F26-'법정동(2025.6월말)'!F26 -> -81.0 | G23: ='법정동(2025.12월말)'!G26-'법정동(2025.6월말)'!G26 -> -1.0 | H23: ='법정동(2025.12월말)'!H26-'법정동(2025.6월말)'!H26 -> 0.0 | I23: ='법정동(2025.12월말)'!I26-'법정동(2025.6월말)'!I26 -> 0.0 | J23: ='법정동(2025.12월말)'!J26-'법정동(2025.6월말)'!J26 -> 0.0 | K23: ='법정동(2025.12월말)'!K26-'법정동(2025.6월말)'!K26 -> 0.0 | L23: ='법정동(2025.12월말)'!L26-'법정동(2025.6월말)'!L26 -> 0.0 | M23: ='법정동(2025.12월말)'!M26-'법정동(2025.6월말)'!M26 -> 0.0 | N23: ='법정동(2025.12월말)'!N26-'법정동(2025.6월말)'!N26 -> 0.0 | O23: ='법정동(2025.12월말)'!O26-'법정동(2025.6월말)'!O26 -> 0.0 | P23: ='법정동(2025.12월말)'!P26-'법정동(2025.6월말)'!P26 -> 0.0 | Q23: ='법정동(2025.12월말)'!Q26-'법정동(2025.6월말)'!Q26 -> 0.0 | R23: ='법정동(2025.12월말)'!R26-'법정동(2025.6월말)'!R26 -> -12,454.7 | S23: ='법정동(2025.12월말)'!S26-'법정동(2025.6월말)'!S26 -> -46.0 | T23: ='법정동(2025.12월말)'!T26-'법정동(2025.6월말)'!T26 -> 0.0 | U23: ='법정동(2025.12월말)'!U26-'법정동(2025.6월말)'!U26 -> 0.0 | V23: ='법정동(2025.12월말)'!V26-'법정동(2025.6월말)'!V26 -> 0.0 | W23: ='법정동(2025.12월말)'!W26-'법정동(2025.6월말)'!W26 -> 0.0 | X23: ='법정동(2025.12월말)'!X26-'법정동(2025.6월말)'!X26 -> 5,983.0 | Y23: ='법정동(2025.12월말)'!Y26-'법정동(2025.6월말)'!Y26 -> 18.0 | Z23: ='법정동(2025.12월말)'!Z26-'법정동(2025.6월말)'!Z26 -> 0.0 | AA23: ='법정동(2025.12월말)'!AA26-'법정동(2025.6월말)'!AA26 -> 0.0 | AB23: ='법정동(2025.12월말)'!AB26-'법정동(2025.6월말)'!AB26 -> 0.0 | AC23: ='법정동(2025.12월말)'!AC26-'법정동(2025.6월말)'!AC26 -> 0.0 | AD23: ='법정동(2025.12월말)'!AD26-'법정동(2025.6월말)'!AD26 -> 4,312.4 | AE23: ='법정동(2025.12월말)'!AE26-'법정동(2025.6월말)'!AE26 -> -1.0 | AF23: ='법정동(2025.12월말)'!AF26-'법정동(2025.6월말)'!AF26 -> 0.0 | AG23: ='법정동(2025.12월말)'!AG26-'법정동(2025.6월말)'!AG26 -> 0.0 | AH23: ='법정동(2025.12월말)'!AH26-'법정동(2025.6월말)'!AH26 -> 0.0 | AI23: ='법정동(2025.12월말)'!AI26-'법정동(2025.6월말)'!AI26 -> 0.0 | AJ23: ='법정동(2025.12월말)'!AJ26-'법정동(2025.6월말)'!AJ26 -> 0.0 | AK23: ='법정동(2025.12월말)'!AK26-'법정동(2025.6월말)'!AK26 -> 0.0 | AL23: ='법정동(2025.12월말)'!AL26-'법정동(2025.6월말)'!AL26 -> 0.0 | AM23: ='법정동(2025.12월말)'!AM26-'법정동(2025.6월말)'!AM26 -> 0.0 | AN23: ='법정동(2025.12월말)'!AN26-'법정동(2025.6월말)'!AN26 -> 0.0 | AO23: ='법정동(2025.12월말)'!AO26-'법정동(2025.6월말)'!AO26 -> 0.0 | AP23: ='법정동(2025.12월말)'!AP26-'법정동(2025.6월말)'!AP26 -> 0.0 | AQ23: ='법정동(2025.12월말)'!AQ26-'법정동(2025.6월말)'!AQ26 -> 0.0 | AR23: ='법정동(2025.12월말)'!AR26-'법정동(2025.6월말)'!AR26 -> 0.0 | AS23: ='법정동(2025.12월말)'!AS26-'법정동(2025.6월말)'!AS26 -> 0.0 | AT23: ='법정동(2025.12월말)'!AT26-'법정동(2025.6월말)'!AT26 -> 2,240.3 | AU23: ='법정동(2025.12월말)'!AU26-'법정동(2025.6월말)'!AU26 -> -1.0 | AV23: ='법정동(2025.12월말)'!AV26-'법정동(2025.6월말)'!AV26 -> 0.0 | AW23: ='법정동(2025.12월말)'!AW26-'법정동(2025.6월말)'!AW26 -> 0.0 | AX23: ='법정동(2025.12월말)'!AX26-'법정동(2025.6월말)'!AX26 -> 0.0 | AY23: ='법정동(2025.12월말)'!AY26-'법정동(2025.6월말)'!AY26 -> 0.0 | AZ23: ='법정동(2025.12월말)'!AZ26-'법정동(2025.6월말)'!AZ26 -> 0.0 | BA23: ='법정동(2025.12월말)'!BA26-'법정동(2025.6월말)'!BA26 -> 0.0 | BB23: ='법정동(2025.12월말)'!BB26-'법정동(2025.6월말)'!BB26 -> 0.0 | BC23: ='법정동(2025.12월말)'!BC26-'법정동(2025.6월말)'!BC26 -> 0.0 | BD23: ='법정동(2025.12월말)'!BD26-'법정동(2025.6월말)'!BD26 -> 0.0 | BE23: ='법정동(2025.12월말)'!BE26-'법정동(2025.6월말)'!BE26 -> 0.0 | BF23: ='법정동(2025.12월말)'!BF26-'법정동(2025.6월말)'!BF26 -> 0.0 | BG23: ='법정동(2025.12월말)'!BG26-'법정동(2025.6월말)'!BG26 -> 0.0
A24: 오림동 | B24: ='법정동(2025.12월말)'!B27-'법정동(2025.6월말)'!B27 -> 0.0 | C24: ='법정동(2025.12월말)'!C27-'법정동(2025.6월말)'!C27 -> 0.0 | D24: ='법정동(2025.12월말)'!D27-'법정동(2025.6월말)'!D27 -> 0.0 | E24: ='법정동(2025.12월말)'!E27-'법정동(2025.6월말)'!E27 -> 0.0 | F24: ='법정동(2025.12월말)'!F27-'법정동(2025.6월말)'!F27 -> 0.0 | G24: ='법정동(2025.12월말)'!G27-'법정동(2025.6월말)'!G27 -> 0.0 | H24: ='법정동(2025.12월말)'!H27-'법정동(2025.6월말)'!H27 -> 0.0 | I24: ='법정동(2025.12월말)'!I27-'법정동(2025.6월말)'!I27 -> 0.0 | J24: ='법정동(2025.12월말)'!J27-'법정동(2025.6월말)'!J27 -> 0.0 | K24: ='법정동(2025.12월말)'!K27-'법정동(2025.6월말)'!K27 -> 0.0 | L24: ='법정동(2025.12월말)'!L27-'법정동(2025.6월말)'!L27 -> 0.0 | M24: ='법정동(2025.12월말)'!M27-'법정동(2025.6월말)'!M27 -> 0.0 | N24: ='법정동(2025.12월말)'!N27-'법정동(2025.6월말)'!N27 -> 0.0 | O24: ='법정동(2025.12월말)'!O27-'법정동(2025.6월말)'!O27 -> 0.0 | P24: ='법정동(2025.12월말)'!P27-'법정동(2025.6월말)'!P27 -> 0.0 | Q24: ='법정동(2025.12월말)'!Q27-'법정동(2025.6월말)'!Q27 -> 0.0 | R24: ='법정동(2025.12월말)'!R27-'법정동(2025.6월말)'!R27 -> 0.0 | S24: ='법정동(2025.12월말)'!S27-'법정동(2025.6월말)'!S27 -> 0.0 | T24: ='법정동(2025.12월말)'!T27-'법정동(2025.6월말)'!T27 -> 0.0 | U24: ='법정동(2025.12월말)'!U27-'법정동(2025.6월말)'!U27 -> 0.0 | V24: ='법정동(2025.12월말)'!V27-'법정동(2025.6월말)'!V27 -> 0.0 | W24: ='법정동(2025.12월말)'!W27-'법정동(2025.6월말)'!W27 -> 0.0 | X24: ='법정동(2025.12월말)'!X27-'법정동(2025.6월말)'!X27 -> 0.0 | Y24: ='법정동(2025.12월말)'!Y27-'법정동(2025.6월말)'!Y27 -> 0.0 | Z24: ='법정동(2025.12월말)'!Z27-'법정동(2025.6월말)'!Z27 -> 0.0 | AA24: ='법정동(2025.12월말)'!AA27-'법정동(2025.6월말)'!AA27 -> 0.0 | AB24: ='법정동(2025.12월말)'!AB27-'법정동(2025.6월말)'!AB27 -> 0.0 | AC24: ='법정동(2025.12월말)'!AC27-'법정동(2025.6월말)'!AC27 -> 0.0 | AD24: ='법정동(2025.12월말)'!AD27-'법정동(2025.6월말)'!AD27 -> 0.0 | AE24: ='법정동(2025.12월말)'!AE27-'법정동(2025.6월말)'!AE27 -> 0.0 | AF24: ='법정동(2025.12월말)'!AF27-'법정동(2025.6월말)'!AF27 -> 0.0 | AG24: ='법정동(2025.12월말)'!AG27-'법정동(2025.6월말)'!AG27 -> 0.0 | AH24: ='법정동(2025.12월말)'!AH27-'법정동(2025.6월말)'!AH27 -> 0.0 | AI24: ='법정동(2025.12월말)'!AI27-'법정동(2025.6월말)'!AI27 -> 0.0 | AJ24: ='법정동(2025.12월말)'!AJ27-'법정동(2025.6월말)'!AJ27 -> 0.0 | AK24: ='법정동(2025.12월말)'!AK27-'법정동(2025.6월말)'!AK27 -> 0.0 | AL24: ='법정동(2025.12월말)'!AL27-'법정동(2025.6월말)'!AL27 -> 0.0 | AM24: ='법정동(2025.12월말)'!AM27-'법정동(2025.6월말)'!AM27 -> 0.0 | AN24: ='법정동(2025.12월말)'!AN27-'법정동(2025.6월말)'!AN27 -> 0.0 | AO24: ='법정동(2025.12월말)'!AO27-'법정동(2025.6월말)'!AO27 -> 0.0 | AP24: ='법정동(2025.12월말)'!AP27-'법정동(2025.6월말)'!AP27 -> 0.0 | AQ24: ='법정동(2025.12월말)'!AQ27-'법정동(2025.6월말)'!AQ27 -> 0.0 | AR24: ='법정동(2025.12월말)'!AR27-'법정동(2025.6월말)'!AR27 -> 0.0 | AS24: ='법정동(2025.12월말)'!AS27-'법정동(2025.6월말)'!AS27 -> 0.0 | AT24: ='법정동(2025.12월말)'!AT27-'법정동(2025.6월말)'!AT27 -> 0.0 | AU24: ='법정동(2025.12월말)'!AU27-'법정동(2025.6월말)'!AU27 -> 0.0 | AV24: ='법정동(2025.12월말)'!AV27-'법정동(2025.6월말)'!AV27 -> 0.0 | AW24: ='법정동(2025.12월말)'!AW27-'법정동(2025.6월말)'!AW27 -> 0.0 | AX24: ='법정동(2025.12월말)'!AX27-'법정동(2025.6월말)'!AX27 -> 0.0 | AY24: ='법정동(2025.12월말)'!AY27-'법정동(2025.6월말)'!AY27 -> 0.0 | AZ24: ='법정동(2025.12월말)'!AZ27-'법정동(2025.6월말)'!AZ27 -> 0.0 | BA24: ='법정동(2025.12월말)'!BA27-'법정동(2025.6월말)'!BA27 -> 0.0 | BB24: ='법정동(2025.12월말)'!BB27-'법정동(2025.6월말)'!BB27 -> 0.0 | BC24: ='법정동(2025.12월말)'!BC27-'법정동(2025.6월말)'!BC27 -> 0.0 | BD24: ='법정동(2025.12월말)'!BD27-'법정동(2025.6월말)'!BD27 -> 0.0 | BE24: ='법정동(2025.12월말)'!BE27-'법정동(2025.6월말)'!BE27 -> 0.0 | BF24: ='법정동(2025.12월말)'!BF27-'법정동(2025.6월말)'!BF27 -> 0.0 | BG24: ='법정동(2025.12월말)'!BG27-'법정동(2025.6월말)'!BG27 -> 0.0
A25: 미평동 | B25: ='법정동(2025.12월말)'!B28-'법정동(2025.6월말)'!B28 -> 0.0 | C25: ='법정동(2025.12월말)'!C28-'법정동(2025.6월말)'!C28 -> -6.0 | D25: ='법정동(2025.12월말)'!D28-'법정동(2025.6월말)'!D28 -> -381.0 | E25: ='법정동(2025.12월말)'!E28-'법정동(2025.6월말)'!E28 -> -5.0 | F25: ='법정동(2025.12월말)'!F28-'법정동(2025.6월말)'!F28 -> -2,460.0 | G25: ='법정동(2025.12월말)'!G28-'법정동(2025.6월말)'!G28 -> -5.0 | H25: ='법정동(2025.12월말)'!H28-'법정동(2025.6월말)'!H28 -> 0.0 | I25: ='법정동(2025.12월말)'!I28-'법정동(2025.6월말)'!I28 -> 0.0 | J25: ='법정동(2025.12월말)'!J28-'법정동(2025.6월말)'!J28 -> 0.0 | K25: ='법정동(2025.12월말)'!K28-'법정동(2025.6월말)'!K28 -> 0.0 | L25: ='법정동(2025.12월말)'!L28-'법정동(2025.6월말)'!L28 -> 0.0 | M25: ='법정동(2025.12월말)'!M28-'법정동(2025.6월말)'!M28 -> 0.0 | N25: ='법정동(2025.12월말)'!N28-'법정동(2025.6월말)'!N28 -> 0.0 | O25: ='법정동(2025.12월말)'!O28-'법정동(2025.6월말)'!O28 -> 0.0 | P25: ='법정동(2025.12월말)'!P28-'법정동(2025.6월말)'!P28 -> 0.0 | Q25: ='법정동(2025.12월말)'!Q28-'법정동(2025.6월말)'!Q28 -> 0.0 | R25: ='법정동(2025.12월말)'!R28-'법정동(2025.6월말)'!R28 -> 244.0 | S25: ='법정동(2025.12월말)'!S28-'법정동(2025.6월말)'!S28 -> -1.0 | T25: ='법정동(2025.12월말)'!T28-'법정동(2025.6월말)'!T28 -> 0.0 | U25: ='법정동(2025.12월말)'!U28-'법정동(2025.6월말)'!U28 -> 0.0 | V25: ='법정동(2025.12월말)'!V28-'법정동(2025.6월말)'!V28 -> 0.0 | W25: ='법정동(2025.12월말)'!W28-'법정동(2025.6월말)'!W28 -> 0.0 | X25: ='법정동(2025.12월말)'!X28-'법정동(2025.6월말)'!X28 -> -71.0 | Y25: ='법정동(2025.12월말)'!Y28-'법정동(2025.6월말)'!Y28 -> 0.0 | Z25: ='법정동(2025.12월말)'!Z28-'법정동(2025.6월말)'!Z28 -> 0.0 | AA25: ='법정동(2025.12월말)'!AA28-'법정동(2025.6월말)'!AA28 -> 0.0 | AB25: ='법정동(2025.12월말)'!AB28-'법정동(2025.6월말)'!AB28 -> 0.0 | AC25: ='법정동(2025.12월말)'!AC28-'법정동(2025.6월말)'!AC28 -> 0.0 | AD25: ='법정동(2025.12월말)'!AD28-'법정동(2025.6월말)'!AD28 -> 3,142.0 | AE25: ='법정동(2025.12월말)'!AE28-'법정동(2025.6월말)'!AE28 -> 6.0 | AF25: ='법정동(2025.12월말)'!AF28-'법정동(2025.6월말)'!AF28 -> 0.0 | AG25: ='법정동(2025.12월말)'!AG28-'법정동(2025.6월말)'!AG28 -> 0.0 | AH25: ='법정동(2025.12월말)'!AH28-'법정동(2025.6월말)'!AH28 -> 0.0 | AI25: ='법정동(2025.12월말)'!AI28-'법정동(2025.6월말)'!AI28 -> 0.0 | AJ25: ='법정동(2025.12월말)'!AJ28-'법정동(2025.6월말)'!AJ28 -> 0.0 | AK25: ='법정동(2025.12월말)'!AK28-'법정동(2025.6월말)'!AK28 -> 0.0 | AL25: ='법정동(2025.12월말)'!AL28-'법정동(2025.6월말)'!AL28 -> 0.0 | AM25: ='법정동(2025.12월말)'!AM28-'법정동(2025.6월말)'!AM28 -> 0.0 | AN25: ='법정동(2025.12월말)'!AN28-'법정동(2025.6월말)'!AN28 -> 0.0 | AO25: ='법정동(2025.12월말)'!AO28-'법정동(2025.6월말)'!AO28 -> 0.0 | AP25: ='법정동(2025.12월말)'!AP28-'법정동(2025.6월말)'!AP28 -> 0.0 | AQ25: ='법정동(2025.12월말)'!AQ28-'법정동(2025.6월말)'!AQ28 -> 0.0 | AR25: ='법정동(2025.12월말)'!AR28-'법정동(2025.6월말)'!AR28 -> -474.0 | AS25: ='법정동(2025.12월말)'!AS28-'법정동(2025.6월말)'!AS28 -> -1.0 | AT25: ='법정동(2025.12월말)'!AT28-'법정동(2025.6월말)'!AT28 -> 0.0 | AU25: ='법정동(2025.12월말)'!AU28-'법정동(2025.6월말)'!AU28 -> 0.0 | AV25: ='법정동(2025.12월말)'!AV28-'법정동(2025.6월말)'!AV28 -> 0.0 | AW25: ='법정동(2025.12월말)'!AW28-'법정동(2025.6월말)'!AW28 -> 0.0 | AX25: ='법정동(2025.12월말)'!AX28-'법정동(2025.6월말)'!AX28 -> 0.0 | AY25: ='법정동(2025.12월말)'!AY28-'법정동(2025.6월말)'!AY28 -> 0.0 | AZ25: ='법정동(2025.12월말)'!AZ28-'법정동(2025.6월말)'!AZ28 -> 0.0 | BA25: ='법정동(2025.12월말)'!BA28-'법정동(2025.6월말)'!BA28 -> 0.0 | BB25: ='법정동(2025.12월말)'!BB28-'법정동(2025.6월말)'!BB28 -> 0.0 | BC25: ='법정동(2025.12월말)'!BC28-'법정동(2025.6월말)'!BC28 -> 0.0 | BD25: ='법정동(2025.12월말)'!BD28-'법정동(2025.6월말)'!BD28 -> 0.0 | BE25: ='법정동(2025.12월말)'!BE28-'법정동(2025.6월말)'!BE28 -> 0.0 | BF25: ='법정동(2025.12월말)'!BF28-'법정동(2025.6월말)'!BF28 -> 0.0 | BG25: ='법정동(2025.12월말)'!BG28-'법정동(2025.6월말)'!BG28 -> 0.0
A26: 둔덕동 | B26: ='법정동(2025.12월말)'!B29-'법정동(2025.6월말)'!B29 -> 0.0 | C26: ='법정동(2025.12월말)'!C29-'법정동(2025.6월말)'!C29 -> -5.0 | D26: ='법정동(2025.12월말)'!D29-'법정동(2025.6월말)'!D29 -> -19.0 | E26: ='법정동(2025.12월말)'!E29-'법정동(2025.6월말)'!E29 -> -2.0 | F26: ='법정동(2025.12월말)'!F29-'법정동(2025.6월말)'!F29 -> -624.0 | G26: ='법정동(2025.12월말)'!G29-'법정동(2025.6월말)'!G29 -> -3.0 | H26: ='법정동(2025.12월말)'!H29-'법정동(2025.6월말)'!H29 -> 0.0 | I26: ='법정동(2025.12월말)'!I29-'법정동(2025.6월말)'!I29 -> 0.0 | J26: ='법정동(2025.12월말)'!J29-'법정동(2025.6월말)'!J29 -> 0.0 | K26: ='법정동(2025.12월말)'!K29-'법정동(2025.6월말)'!K29 -> 0.0 | L26: ='법정동(2025.12월말)'!L29-'법정동(2025.6월말)'!L29 -> 0.0 | M26: ='법정동(2025.12월말)'!M29-'법정동(2025.6월말)'!M29 -> 0.0 | N26: ='법정동(2025.12월말)'!N29-'법정동(2025.6월말)'!N29 -> 0.0 | O26: ='법정동(2025.12월말)'!O29-'법정동(2025.6월말)'!O29 -> 0.0 | P26: ='법정동(2025.12월말)'!P29-'법정동(2025.6월말)'!P29 -> 0.0 | Q26: ='법정동(2025.12월말)'!Q29-'법정동(2025.6월말)'!Q29 -> 0.0 | R26: ='법정동(2025.12월말)'!R29-'법정동(2025.6월말)'!R29 -> 0.0 | S26: ='법정동(2025.12월말)'!S29-'법정동(2025.6월말)'!S29 -> 0.0 | T26: ='법정동(2025.12월말)'!T29-'법정동(2025.6월말)'!T29 -> 0.0 | U26: ='법정동(2025.12월말)'!U29-'법정동(2025.6월말)'!U29 -> 0.0 | V26: ='법정동(2025.12월말)'!V29-'법정동(2025.6월말)'!V29 -> 0.0 | W26: ='법정동(2025.12월말)'!W29-'법정동(2025.6월말)'!W29 -> 0.0 | X26: ='법정동(2025.12월말)'!X29-'법정동(2025.6월말)'!X29 -> 0.0 | Y26: ='법정동(2025.12월말)'!Y29-'법정동(2025.6월말)'!Y29 -> 0.0 | Z26: ='법정동(2025.12월말)'!Z29-'법정동(2025.6월말)'!Z29 -> 0.0 | AA26: ='법정동(2025.12월말)'!AA29-'법정동(2025.6월말)'!AA29 -> 0.0 | AB26: ='법정동(2025.12월말)'!AB29-'법정동(2025.6월말)'!AB29 -> 0.0 | AC26: ='법정동(2025.12월말)'!AC29-'법정동(2025.6월말)'!AC29 -> 0.0 | AD26: ='법정동(2025.12월말)'!AD29-'법정동(2025.6월말)'!AD29 -> 643.0 | AE26: ='법정동(2025.12월말)'!AE29-'법정동(2025.6월말)'!AE29 -> 3.0 | AF26: ='법정동(2025.12월말)'!AF29-'법정동(2025.6월말)'!AF29 -> 0.0 | AG26: ='법정동(2025.12월말)'!AG29-'법정동(2025.6월말)'!AG29 -> 0.0 | AH26: ='법정동(2025.12월말)'!AH29-'법정동(2025.6월말)'!AH29 -> 0.0 | AI26: ='법정동(2025.12월말)'!AI29-'법정동(2025.6월말)'!AI29 -> 0.0 | AJ26: ='법정동(2025.12월말)'!AJ29-'법정동(2025.6월말)'!AJ29 -> 0.0 | AK26: ='법정동(2025.12월말)'!AK29-'법정동(2025.6월말)'!AK29 -> 0.0 | AL26: ='법정동(2025.12월말)'!AL29-'법정동(2025.6월말)'!AL29 -> 0.0 | AM26: ='법정동(2025.12월말)'!AM29-'법정동(2025.6월말)'!AM29 -> 0.0 | AN26: ='법정동(2025.12월말)'!AN29-'법정동(2025.6월말)'!AN29 -> 0.0 | AO26: ='법정동(2025.12월말)'!AO29-'법정동(2025.6월말)'!AO29 -> 0.0 | AP26: ='법정동(2025.12월말)'!AP29-'법정동(2025.6월말)'!AP29 -> 0.0 | AQ26: ='법정동(2025.12월말)'!AQ29-'법정동(2025.6월말)'!AQ29 -> 0.0 | AR26: ='법정동(2025.12월말)'!AR29-'법정동(2025.6월말)'!AR29 -> 0.0 | AS26: ='법정동(2025.12월말)'!AS29-'법정동(2025.6월말)'!AS29 -> 0.0 | AT26: ='법정동(2025.12월말)'!AT29-'법정동(2025.6월말)'!AT29 -> 0.0 | AU26: ='법정동(2025.12월말)'!AU29-'법정동(2025.6월말)'!AU29 -> 0.0 | AV26: ='법정동(2025.12월말)'!AV29-'법정동(2025.6월말)'!AV29 -> 0.0 | AW26: ='법정동(2025.12월말)'!AW29-'법정동(2025.6월말)'!AW29 -> 0.0 | AX26: ='법정동(2025.12월말)'!AX29-'법정동(2025.6월말)'!AX29 -> 0.0 | AY26: ='법정동(2025.12월말)'!AY29-'법정동(2025.6월말)'!AY29 -> 0.0 | AZ26: ='법정동(2025.12월말)'!AZ29-'법정동(2025.6월말)'!AZ29 -> 0.0 | BA26: ='법정동(2025.12월말)'!BA29-'법정동(2025.6월말)'!BA29 -> 0.0 | BB26: ='법정동(2025.12월말)'!BB29-'법정동(2025.6월말)'!BB29 -> 0.0 | BC26: ='법정동(2025.12월말)'!BC29-'법정동(2025.6월말)'!BC29 -> 0.0 | BD26: ='법정동(2025.12월말)'!BD29-'법정동(2025.6월말)'!BD29 -> 0.0 | BE26: ='법정동(2025.12월말)'!BE29-'법정동(2025.6월말)'!BE29 -> 0.0 | BF26: ='법정동(2025.12월말)'!BF29-'법정동(2025.6월말)'!BF29 -> 0.0 | BG26: ='법정동(2025.12월말)'!BG29-'법정동(2025.6월말)'!BG29 -> -3.0
A27: 오천동 | B27: ='법정동(2025.12월말)'!B30-'법정동(2025.6월말)'!B30 -> 0.0 | C27: ='법정동(2025.12월말)'!C30-'법정동(2025.6월말)'!C30 -> -1.0 | D27: ='법정동(2025.12월말)'!D30-'법정동(2025.6월말)'!D30 -> -64.0 | E27: ='법정동(2025.12월말)'!E30-'법정동(2025.6월말)'!E30 -> -1.0 | F27: ='법정동(2025.12월말)'!F30-'법정동(2025.6월말)'!F30 -> 0.0 | G27: ='법정동(2025.12월말)'!G30-'법정동(2025.6월말)'!G30 -> 0.0 | H27: ='법정동(2025.12월말)'!H30-'법정동(2025.6월말)'!H30 -> 0.0 | I27: ='법정동(2025.12월말)'!I30-'법정동(2025.6월말)'!I30 -> 0.0 | J27: ='법정동(2025.12월말)'!J30-'법정동(2025.6월말)'!J30 -> 0.0 | K27: ='법정동(2025.12월말)'!K30-'법정동(2025.6월말)'!K30 -> 0.0 | L27: ='법정동(2025.12월말)'!L30-'법정동(2025.6월말)'!L30 -> 0.0 | M27: ='법정동(2025.12월말)'!M30-'법정동(2025.6월말)'!M30 -> 0.0 | N27: ='법정동(2025.12월말)'!N30-'법정동(2025.6월말)'!N30 -> 0.0 | O27: ='법정동(2025.12월말)'!O30-'법정동(2025.6월말)'!O30 -> 0.0 | P27: ='법정동(2025.12월말)'!P30-'법정동(2025.6월말)'!P30 -> 0.0 | Q27: ='법정동(2025.12월말)'!Q30-'법정동(2025.6월말)'!Q30 -> 0.0 | R27: ='법정동(2025.12월말)'!R30-'법정동(2025.6월말)'!R30 -> -188.0 | S27: ='법정동(2025.12월말)'!S30-'법정동(2025.6월말)'!S30 -> -1.0 | T27: ='법정동(2025.12월말)'!T30-'법정동(2025.6월말)'!T30 -> 0.0 | U27: ='법정동(2025.12월말)'!U30-'법정동(2025.6월말)'!U30 -> 0.0 | V27: ='법정동(2025.12월말)'!V30-'법정동(2025.6월말)'!V30 -> 0.0 | W27: ='법정동(2025.12월말)'!W30-'법정동(2025.6월말)'!W30 -> 0.0 | X27: ='법정동(2025.12월말)'!X30-'법정동(2025.6월말)'!X30 -> 0.0 | Y27: ='법정동(2025.12월말)'!Y30-'법정동(2025.6월말)'!Y30 -> 0.0 | Z27: ='법정동(2025.12월말)'!Z30-'법정동(2025.6월말)'!Z30 -> 0.0 | AA27: ='법정동(2025.12월말)'!AA30-'법정동(2025.6월말)'!AA30 -> 0.0 | AB27: ='법정동(2025.12월말)'!AB30-'법정동(2025.6월말)'!AB30 -> 0.0 | AC27: ='법정동(2025.12월말)'!AC30-'법정동(2025.6월말)'!AC30 -> 0.0 | AD27: ='법정동(2025.12월말)'!AD30-'법정동(2025.6월말)'!AD30 -> 252.0 | AE27: ='법정동(2025.12월말)'!AE30-'법정동(2025.6월말)'!AE30 -> 1.0 | AF27: ='법정동(2025.12월말)'!AF30-'법정동(2025.6월말)'!AF30 -> 0.0 | AG27: ='법정동(2025.12월말)'!AG30-'법정동(2025.6월말)'!AG30 -> 0.0 | AH27: ='법정동(2025.12월말)'!AH30-'법정동(2025.6월말)'!AH30 -> 0.0 | AI27: ='법정동(2025.12월말)'!AI30-'법정동(2025.6월말)'!AI30 -> 0.0 | AJ27: ='법정동(2025.12월말)'!AJ30-'법정동(2025.6월말)'!AJ30 -> 0.0 | AK27: ='법정동(2025.12월말)'!AK30-'법정동(2025.6월말)'!AK30 -> 0.0 | AL27: ='법정동(2025.12월말)'!AL30-'법정동(2025.6월말)'!AL30 -> 0.0 | AM27: ='법정동(2025.12월말)'!AM30-'법정동(2025.6월말)'!AM30 -> 0.0 | AN27: ='법정동(2025.12월말)'!AN30-'법정동(2025.6월말)'!AN30 -> 0.0 | AO27: ='법정동(2025.12월말)'!AO30-'법정동(2025.6월말)'!AO30 -> 0.0 | AP27: ='법정동(2025.12월말)'!AP30-'법정동(2025.6월말)'!AP30 -> 0.0 | AQ27: ='법정동(2025.12월말)'!AQ30-'법정동(2025.6월말)'!AQ30 -> 0.0 | AR27: ='법정동(2025.12월말)'!AR30-'법정동(2025.6월말)'!AR30 -> 0.0 | AS27: ='법정동(2025.12월말)'!AS30-'법정동(2025.6월말)'!AS30 -> 0.0 | AT27: ='법정동(2025.12월말)'!AT30-'법정동(2025.6월말)'!AT30 -> 0.0 | AU27: ='법정동(2025.12월말)'!AU30-'법정동(2025.6월말)'!AU30 -> 0.0 | AV27: ='법정동(2025.12월말)'!AV30-'법정동(2025.6월말)'!AV30 -> 0.0 | AW27: ='법정동(2025.12월말)'!AW30-'법정동(2025.6월말)'!AW30 -> 0.0 | AX27: ='법정동(2025.12월말)'!AX30-'법정동(2025.6월말)'!AX30 -> 0.0 | AY27: ='법정동(2025.12월말)'!AY30-'법정동(2025.6월말)'!AY30 -> 0.0 | AZ27: ='법정동(2025.12월말)'!AZ30-'법정동(2025.6월말)'!AZ30 -> 0.0 | BA27: ='법정동(2025.12월말)'!BA30-'법정동(2025.6월말)'!BA30 -> 0.0 | BB27: ='법정동(2025.12월말)'!BB30-'법정동(2025.6월말)'!BB30 -> 0.0 | BC27: ='법정동(2025.12월말)'!BC30-'법정동(2025.6월말)'!BC30 -> 0.0 | BD27: ='법정동(2025.12월말)'!BD30-'법정동(2025.6월말)'!BD30 -> 0.0 | BE27: ='법정동(2025.12월말)'!BE30-'법정동(2025.6월말)'!BE30 -> 0.0 | BF27: ='법정동(2025.12월말)'!BF30-'법정동(2025.6월말)'!BF30 -> 0.0 | BG27: ='법정동(2025.12월말)'!BG30-'법정동(2025.6월말)'!BG30 -> 0.0
A28: 만흥동 | B28: ='법정동(2025.12월말)'!B31-'법정동(2025.6월말)'!B31 -> -855.0 | C28: ='법정동(2025.12월말)'!C31-'법정동(2025.6월말)'!C31 -> -1.0 | D28: ='법정동(2025.12월말)'!D31-'법정동(2025.6월말)'!D31 -> -1,340.0 | E28: ='법정동(2025.12월말)'!E31-'법정동(2025.6월말)'!E31 -> -1.0 | F28: ='법정동(2025.12월말)'!F31-'법정동(2025.6월말)'!F31 -> -345.0 | G28: ='법정동(2025.12월말)'!G31-'법정동(2025.6월말)'!G31 -> -1.0 | H28: ='법정동(2025.12월말)'!H31-'법정동(2025.6월말)'!H31 -> 0.0 | I28: ='법정동(2025.12월말)'!I31-'법정동(2025.6월말)'!I31 -> 0.0 | J28: ='법정동(2025.12월말)'!J31-'법정동(2025.6월말)'!J31 -> 0.0 | K28: ='법정동(2025.12월말)'!K31-'법정동(2025.6월말)'!K31 -> 0.0 | L28: ='법정동(2025.12월말)'!L31-'법정동(2025.6월말)'!L31 -> -855.0 | M28: ='법정동(2025.12월말)'!M31-'법정동(2025.6월말)'!M31 -> 0.0 | N28: ='법정동(2025.12월말)'!N31-'법정동(2025.6월말)'!N31 -> 0.0 | O28: ='법정동(2025.12월말)'!O31-'법정동(2025.6월말)'!O31 -> 0.0 | P28: ='법정동(2025.12월말)'!P31-'법정동(2025.6월말)'!P31 -> 0.0 | Q28: ='법정동(2025.12월말)'!Q31-'법정동(2025.6월말)'!Q31 -> 0.0 | R28: ='법정동(2025.12월말)'!R31-'법정동(2025.6월말)'!R31 -> 0.0 | S28: ='법정동(2025.12월말)'!S31-'법정동(2025.6월말)'!S31 -> -1.0 | T28: ='법정동(2025.12월말)'!T31-'법정동(2025.6월말)'!T31 -> 0.0 | U28: ='법정동(2025.12월말)'!U31-'법정동(2025.6월말)'!U31 -> 0.0 | V28: ='법정동(2025.12월말)'!V31-'법정동(2025.6월말)'!V31 -> 0.0 | W28: ='법정동(2025.12월말)'!W31-'법정동(2025.6월말)'!W31 -> 0.0 | X28: ='법정동(2025.12월말)'!X31-'법정동(2025.6월말)'!X31 -> 1,723.0 | Y28: ='법정동(2025.12월말)'!Y31-'법정동(2025.6월말)'!Y31 -> 3.0 | Z28: ='법정동(2025.12월말)'!Z31-'법정동(2025.6월말)'!Z31 -> 0.0 | AA28: ='법정동(2025.12월말)'!AA31-'법정동(2025.6월말)'!AA31 -> 0.0 | AB28: ='법정동(2025.12월말)'!AB31-'법정동(2025.6월말)'!AB31 -> 0.0 | AC28: ='법정동(2025.12월말)'!AC31-'법정동(2025.6월말)'!AC31 -> 0.0 | AD28: ='법정동(2025.12월말)'!AD31-'법정동(2025.6월말)'!AD31 -> -38.0 | AE28: ='법정동(2025.12월말)'!AE31-'법정동(2025.6월말)'!AE31 -> -1.0 | AF28: ='법정동(2025.12월말)'!AF31-'법정동(2025.6월말)'!AF31 -> 0.0 | AG28: ='법정동(2025.12월말)'!AG31-'법정동(2025.6월말)'!AG31 -> 0.0 | AH28: ='법정동(2025.12월말)'!AH31-'법정동(2025.6월말)'!AH31 -> 0.0 | AI28: ='법정동(2025.12월말)'!AI31-'법정동(2025.6월말)'!AI31 -> 0.0 | AJ28: ='법정동(2025.12월말)'!AJ31-'법정동(2025.6월말)'!AJ31 -> 0.0 | AK28: ='법정동(2025.12월말)'!AK31-'법정동(2025.6월말)'!AK31 -> 0.0 | AL28: ='법정동(2025.12월말)'!AL31-'법정동(2025.6월말)'!AL31 -> 0.0 | AM28: ='법정동(2025.12월말)'!AM31-'법정동(2025.6월말)'!AM31 -> 0.0 | AN28: ='법정동(2025.12월말)'!AN31-'법정동(2025.6월말)'!AN31 -> 0.0 | AO28: ='법정동(2025.12월말)'!AO31-'법정동(2025.6월말)'!AO31 -> 0.0 | AP28: ='법정동(2025.12월말)'!AP31-'법정동(2025.6월말)'!AP31 -> 0.0 | AQ28: ='법정동(2025.12월말)'!AQ31-'법정동(2025.6월말)'!AQ31 -> 0.0 | AR28: ='법정동(2025.12월말)'!AR31-'법정동(2025.6월말)'!AR31 -> 0.0 | AS28: ='법정동(2025.12월말)'!AS31-'법정동(2025.6월말)'!AS31 -> 0.0 | AT28: ='법정동(2025.12월말)'!AT31-'법정동(2025.6월말)'!AT31 -> 0.0 | AU28: ='법정동(2025.12월말)'!AU31-'법정동(2025.6월말)'!AU31 -> 0.0 | AV28: ='법정동(2025.12월말)'!AV31-'법정동(2025.6월말)'!AV31 -> 0.0 | AW28: ='법정동(2025.12월말)'!AW31-'법정동(2025.6월말)'!AW31 -> 0.0 | AX28: ='법정동(2025.12월말)'!AX31-'법정동(2025.6월말)'!AX31 -> 0.0 | AY28: ='법정동(2025.12월말)'!AY31-'법정동(2025.6월말)'!AY31 -> 0.0 | AZ28: ='법정동(2025.12월말)'!AZ31-'법정동(2025.6월말)'!AZ31 -> 0.0 | BA28: ='법정동(2025.12월말)'!BA31-'법정동(2025.6월말)'!BA31 -> 0.0 | BB28: ='법정동(2025.12월말)'!BB31-'법정동(2025.6월말)'!BB31 -> 0.0 | BC28: ='법정동(2025.12월말)'!BC31-'법정동(2025.6월말)'!BC31 -> 0.0 | BD28: ='법정동(2025.12월말)'!BD31-'법정동(2025.6월말)'!BD31 -> 0.0 | BE28: ='법정동(2025.12월말)'!BE31-'법정동(2025.6월말)'!BE31 -> 0.0 | BF28: ='법정동(2025.12월말)'!BF31-'법정동(2025.6월말)'!BF31 -> 0.0 | BG28: ='법정동(2025.12월말)'!BG31-'법정동(2025.6월말)'!BG31 -> 0.0
A29: 덕충동 | B29: ='법정동(2025.12월말)'!B32-'법정동(2025.6월말)'!B32 -> -107.0 | C29: ='법정동(2025.12월말)'!C32-'법정동(2025.6월말)'!C32 -> 0.0 | D29: ='법정동(2025.12월말)'!D32-'법정동(2025.6월말)'!D32 -> -373.0 | E29: ='법정동(2025.12월말)'!E32-'법정동(2025.6월말)'!E32 -> -1.0 | F29: ='법정동(2025.12월말)'!F32-'법정동(2025.6월말)'!F32 -> 0.0 | G29: ='법정동(2025.12월말)'!G32-'법정동(2025.6월말)'!G32 -> 0.0 | H29: ='법정동(2025.12월말)'!H32-'법정동(2025.6월말)'!H32 -> 0.0 | I29: ='법정동(2025.12월말)'!I32-'법정동(2025.6월말)'!I32 -> 0.0 | J29: ='법정동(2025.12월말)'!J32-'법정동(2025.6월말)'!J32 -> 0.0 | K29: ='법정동(2025.12월말)'!K32-'법정동(2025.6월말)'!K32 -> 0.0 | L29: ='법정동(2025.12월말)'!L32-'법정동(2025.6월말)'!L32 -> 0.0 | M29: ='법정동(2025.12월말)'!M32-'법정동(2025.6월말)'!M32 -> 0.0 | N29: ='법정동(2025.12월말)'!N32-'법정동(2025.6월말)'!N32 -> 0.0 | O29: ='법정동(2025.12월말)'!O32-'법정동(2025.6월말)'!O32 -> 0.0 | P29: ='법정동(2025.12월말)'!P32-'법정동(2025.6월말)'!P32 -> 0.0 | Q29: ='법정동(2025.12월말)'!Q32-'법정동(2025.6월말)'!Q32 -> 0.0 | R29: ='법정동(2025.12월말)'!R32-'법정동(2025.6월말)'!R32 -> 373.0 | S29: ='법정동(2025.12월말)'!S32-'법정동(2025.6월말)'!S32 -> 1.0 | T29: ='법정동(2025.12월말)'!T32-'법정동(2025.6월말)'!T32 -> 0.0 | U29: ='법정동(2025.12월말)'!U32-'법정동(2025.6월말)'!U32 -> 0.0 | V29: ='법정동(2025.12월말)'!V32-'법정동(2025.6월말)'!V32 -> 0.0 | W29: ='법정동(2025.12월말)'!W32-'법정동(2025.6월말)'!W32 -> 0.0 | X29: ='법정동(2025.12월말)'!X32-'법정동(2025.6월말)'!X32 -> 0.0 | Y29: ='법정동(2025.12월말)'!Y32-'법정동(2025.6월말)'!Y32 -> 0.0 | Z29: ='법정동(2025.12월말)'!Z32-'법정동(2025.6월말)'!Z32 -> 0.0 | AA29: ='법정동(2025.12월말)'!AA32-'법정동(2025.6월말)'!AA32 -> 0.0 | AB29: ='법정동(2025.12월말)'!AB32-'법정동(2025.6월말)'!AB32 -> 0.0 | AC29: ='법정동(2025.12월말)'!AC32-'법정동(2025.6월말)'!AC32 -> 0.0 | AD29: ='법정동(2025.12월말)'!AD32-'법정동(2025.6월말)'!AD32 -> -107.0 | AE29: ='법정동(2025.12월말)'!AE32-'법정동(2025.6월말)'!AE32 -> 0.0 | AF29: ='법정동(2025.12월말)'!AF32-'법정동(2025.6월말)'!AF32 -> 0.0 | AG29: ='법정동(2025.12월말)'!AG32-'법정동(2025.6월말)'!AG32 -> 0.0 | AH29: ='법정동(2025.12월말)'!AH32-'법정동(2025.6월말)'!AH32 -> 0.0 | AI29: ='법정동(2025.12월말)'!AI32-'법정동(2025.6월말)'!AI32 -> 0.0 | AJ29: ='법정동(2025.12월말)'!AJ32-'법정동(2025.6월말)'!AJ32 -> 0.0 | AK29: ='법정동(2025.12월말)'!AK32-'법정동(2025.6월말)'!AK32 -> 0.0 | AL29: ='법정동(2025.12월말)'!AL32-'법정동(2025.6월말)'!AL32 -> 0.0 | AM29: ='법정동(2025.12월말)'!AM32-'법정동(2025.6월말)'!AM32 -> 0.0 | AN29: ='법정동(2025.12월말)'!AN32-'법정동(2025.6월말)'!AN32 -> 0.0 | AO29: ='법정동(2025.12월말)'!AO32-'법정동(2025.6월말)'!AO32 -> 0.0 | AP29: ='법정동(2025.12월말)'!AP32-'법정동(2025.6월말)'!AP32 -> 0.0 | AQ29: ='법정동(2025.12월말)'!AQ32-'법정동(2025.6월말)'!AQ32 -> 0.0 | AR29: ='법정동(2025.12월말)'!AR32-'법정동(2025.6월말)'!AR32 -> 0.0 | AS29: ='법정동(2025.12월말)'!AS32-'법정동(2025.6월말)'!AS32 -> 0.0 | AT29: ='법정동(2025.12월말)'!AT32-'법정동(2025.6월말)'!AT32 -> 0.0 | AU29: ='법정동(2025.12월말)'!AU32-'법정동(2025.6월말)'!AU32 -> 0.0 | AV29: ='법정동(2025.12월말)'!AV32-'법정동(2025.6월말)'!AV32 -> 0.0 | AW29: ='법정동(2025.12월말)'!AW32-'법정동(2025.6월말)'!AW32 -> 0.0 | AX29: ='법정동(2025.12월말)'!AX32-'법정동(2025.6월말)'!AX32 -> 0.0 | AY29: ='법정동(2025.12월말)'!AY32-'법정동(2025.6월말)'!AY32 -> 0.0 | AZ29: ='법정동(2025.12월말)'!AZ32-'법정동(2025.6월말)'!AZ32 -> 0.0 | BA29: ='법정동(2025.12월말)'!BA32-'법정동(2025.6월말)'!BA32 -> 0.0 | BB29: ='법정동(2025.12월말)'!BB32-'법정동(2025.6월말)'!BB32 -> 0.0 | BC29: ='법정동(2025.12월말)'!BC32-'법정동(2025.6월말)'!BC32 -> 0.0 | BD29: ='법정동(2025.12월말)'!BD32-'법정동(2025.6월말)'!BD32 -> 0.0 | BE29: ='법정동(2025.12월말)'!BE32-'법정동(2025.6월말)'!BE32 -> 0.0 | BF29: ='법정동(2025.12월말)'!BF32-'법정동(2025.6월말)'!BF32 -> 0.0 | BG29: ='법정동(2025.12월말)'!BG32-'법정동(2025.6월말)'!BG32 -> 0.0
A30: 경호동 | B30: ='법정동(2025.12월말)'!B33-'법정동(2025.6월말)'!B33 -> -17.4 | C30: ='법정동(2025.12월말)'!C33-'법정동(2025.6월말)'!C33 -> -27.0 | D30: ='법정동(2025.12월말)'!D33-'법정동(2025.6월말)'!D33 -> -23,334.0 | E30: ='법정동(2025.12월말)'!E33-'법정동(2025.6월말)'!E33 -> -22.0 | F30: ='법정동(2025.12월말)'!F33-'법정동(2025.6월말)'!F33 -> 0.0 | G30: ='법정동(2025.12월말)'!G33-'법정동(2025.6월말)'!G33 -> 0.0 | H30: ='법정동(2025.12월말)'!H33-'법정동(2025.6월말)'!H33 -> 0.0 | I30: ='법정동(2025.12월말)'!I33-'법정동(2025.6월말)'!I33 -> 0.0 | J30: ='법정동(2025.12월말)'!J33-'법정동(2025.6월말)'!J33 -> 0.0 | K30: ='법정동(2025.12월말)'!K33-'법정동(2025.6월말)'!K33 -> 0.0 | L30: ='법정동(2025.12월말)'!L33-'법정동(2025.6월말)'!L33 -> -17,894.0 | M30: ='법정동(2025.12월말)'!M33-'법정동(2025.6월말)'!M33 -> -8.0 | N30: ='법정동(2025.12월말)'!N33-'법정동(2025.6월말)'!N33 -> 0.0 | O30: ='법정동(2025.12월말)'!O33-'법정동(2025.6월말)'!O33 -> 0.0 | P30: ='법정동(2025.12월말)'!P33-'법정동(2025.6월말)'!P33 -> 0.0 | Q30: ='법정동(2025.12월말)'!Q33-'법정동(2025.6월말)'!Q33 -> 0.0 | R30: ='법정동(2025.12월말)'!R33-'법정동(2025.6월말)'!R33 -> 21,249.0 | S30: ='법정동(2025.12월말)'!S33-'법정동(2025.6월말)'!S33 -> 1.0 | T30: ='법정동(2025.12월말)'!T33-'법정동(2025.6월말)'!T33 -> 0.0 | U30: ='법정동(2025.12월말)'!U33-'법정동(2025.6월말)'!U33 -> 0.0 | V30: ='법정동(2025.12월말)'!V33-'법정동(2025.6월말)'!V33 -> 15,727.6 | W30: ='법정동(2025.12월말)'!W33-'법정동(2025.6월말)'!W33 -> 1.0 | X30: ='법정동(2025.12월말)'!X33-'법정동(2025.6월말)'!X33 -> 0.0 | Y30: ='법정동(2025.12월말)'!Y33-'법정동(2025.6월말)'!Y33 -> 0.0 | Z30: ='법정동(2025.12월말)'!Z33-'법정동(2025.6월말)'!Z33 -> 0.0 | AA30: ='법정동(2025.12월말)'!AA33-'법정동(2025.6월말)'!AA33 -> 0.0 | AB30: ='법정동(2025.12월말)'!AB33-'법정동(2025.6월말)'!AB33 -> 0.0 | AC30: ='법정동(2025.12월말)'!AC33-'법정동(2025.6월말)'!AC33 -> 0.0 | AD30: ='법정동(2025.12월말)'!AD33-'법정동(2025.6월말)'!AD33 -> 33.0 | AE30: ='법정동(2025.12월말)'!AE33-'법정동(2025.6월말)'!AE33 -> 1.0 | AF30: ='법정동(2025.12월말)'!AF33-'법정동(2025.6월말)'!AF33 -> 0.0 | AG30: ='법정동(2025.12월말)'!AG33-'법정동(2025.6월말)'!AG33 -> 0.0 | AH30: ='법정동(2025.12월말)'!AH33-'법정동(2025.6월말)'!AH33 -> 0.0 | AI30: ='법정동(2025.12월말)'!AI33-'법정동(2025.6월말)'!AI33 -> 0.0 | AJ30: ='법정동(2025.12월말)'!AJ33-'법정동(2025.6월말)'!AJ33 -> 0.0 | AK30: ='법정동(2025.12월말)'!AK33-'법정동(2025.6월말)'!AK33 -> 0.0 | AL30: ='법정동(2025.12월말)'!AL33-'법정동(2025.6월말)'!AL33 -> 0.0 | AM30: ='법정동(2025.12월말)'!AM33-'법정동(2025.6월말)'!AM33 -> 0.0 | AN30: ='법정동(2025.12월말)'!AN33-'법정동(2025.6월말)'!AN33 -> 0.0 | AO30: ='법정동(2025.12월말)'!AO33-'법정동(2025.6월말)'!AO33 -> 0.0 | AP30: ='법정동(2025.12월말)'!AP33-'법정동(2025.6월말)'!AP33 -> 0.0 | AQ30: ='법정동(2025.12월말)'!AQ33-'법정동(2025.6월말)'!AQ33 -> 0.0 | AR30: ='법정동(2025.12월말)'!AR33-'법정동(2025.6월말)'!AR33 -> 0.0 | AS30: ='법정동(2025.12월말)'!AS33-'법정동(2025.6월말)'!AS33 -> 0.0 | AT30: ='법정동(2025.12월말)'!AT33-'법정동(2025.6월말)'!AT33 -> 4,674.0 | AU30: ='법정동(2025.12월말)'!AU33-'법정동(2025.6월말)'!AU33 -> 2.0 | AV30: ='법정동(2025.12월말)'!AV33-'법정동(2025.6월말)'!AV33 -> 0.0 | AW30: ='법정동(2025.12월말)'!AW33-'법정동(2025.6월말)'!AW33 -> 0.0 | AX30: ='법정동(2025.12월말)'!AX33-'법정동(2025.6월말)'!AX33 -> 0.0 | AY30: ='법정동(2025.12월말)'!AY33-'법정동(2025.6월말)'!AY33 -> 0.0 | AZ30: ='법정동(2025.12월말)'!AZ33-'법정동(2025.6월말)'!AZ33 -> 0.0 | BA30: ='법정동(2025.12월말)'!BA33-'법정동(2025.6월말)'!BA33 -> 0.0 | BB30: ='법정동(2025.12월말)'!BB33-'법정동(2025.6월말)'!BB33 -> 0.0 | BC30: ='법정동(2025.12월말)'!BC33-'법정동(2025.6월말)'!BC33 -> 0.0 | BD30: ='법정동(2025.12월말)'!BD33-'법정동(2025.6월말)'!BD33 -> -473.0 | BE30: ='법정동(2025.12월말)'!BE33-'법정동(2025.6월말)'!BE33 -> -2.0 | BF30: ='법정동(2025.12월말)'!BF33-'법정동(2025.6월말)'!BF33 -> 0.0 | BG30: ='법정동(2025.12월말)'!BG33-'법정동(2025.6월말)'!BG33 -> 0.0
A31: 학동 | B31: ='법정동(2025.12월말)'!B34-'법정동(2025.6월말)'!B34 -> 0.0 | C31: ='법정동(2025.12월말)'!C34-'법정동(2025.6월말)'!C34 -> -1.0 | D31: ='법정동(2025.12월말)'!D34-'법정동(2025.6월말)'!D34 -> 0.0 | E31: ='법정동(2025.12월말)'!E34-'법정동(2025.6월말)'!E34 -> 0.0 | F31: ='법정동(2025.12월말)'!F34-'법정동(2025.6월말)'!F34 -> -183.0 | G31: ='법정동(2025.12월말)'!G34-'법정동(2025.6월말)'!G34 -> -1.0 | H31: ='법정동(2025.12월말)'!H34-'법정동(2025.6월말)'!H34 -> 0.0 | I31: ='법정동(2025.12월말)'!I34-'법정동(2025.6월말)'!I34 -> 0.0 | J31: ='법정동(2025.12월말)'!J34-'법정동(2025.6월말)'!J34 -> 0.0 | K31: ='법정동(2025.12월말)'!K34-'법정동(2025.6월말)'!K34 -> 0.0 | L31: ='법정동(2025.12월말)'!L34-'법정동(2025.6월말)'!L34 -> 0.0 | M31: ='법정동(2025.12월말)'!M34-'법정동(2025.6월말)'!M34 -> 0.0 | N31: ='법정동(2025.12월말)'!N34-'법정동(2025.6월말)'!N34 -> 0.0 | O31: ='법정동(2025.12월말)'!O34-'법정동(2025.6월말)'!O34 -> 0.0 | P31: ='법정동(2025.12월말)'!P34-'법정동(2025.6월말)'!P34 -> 0.0 | Q31: ='법정동(2025.12월말)'!Q34-'법정동(2025.6월말)'!Q34 -> 0.0 | R31: ='법정동(2025.12월말)'!R34-'법정동(2025.6월말)'!R34 -> -186.2 | S31: ='법정동(2025.12월말)'!S34-'법정동(2025.6월말)'!S34 -> -2.0 | T31: ='법정동(2025.12월말)'!T34-'법정동(2025.6월말)'!T34 -> 0.0 | U31: ='법정동(2025.12월말)'!U34-'법정동(2025.6월말)'!U34 -> 0.0 | V31: ='법정동(2025.12월말)'!V34-'법정동(2025.6월말)'!V34 -> 0.0 | W31: ='법정동(2025.12월말)'!W34-'법정동(2025.6월말)'!W34 -> 0.0 | X31: ='법정동(2025.12월말)'!X34-'법정동(2025.6월말)'!X34 -> 0.0 | Y31: ='법정동(2025.12월말)'!Y34-'법정동(2025.6월말)'!Y34 -> 0.0 | Z31: ='법정동(2025.12월말)'!Z34-'법정동(2025.6월말)'!Z34 -> 0.0 | AA31: ='법정동(2025.12월말)'!AA34-'법정동(2025.6월말)'!AA34 -> 0.0 | AB31: ='법정동(2025.12월말)'!AB34-'법정동(2025.6월말)'!AB34 -> 0.0 | AC31: ='법정동(2025.12월말)'!AC34-'법정동(2025.6월말)'!AC34 -> 0.0 | AD31: ='법정동(2025.12월말)'!AD34-'법정동(2025.6월말)'!AD34 -> 369.2 | AE31: ='법정동(2025.12월말)'!AE34-'법정동(2025.6월말)'!AE34 -> 2.0 | AF31: ='법정동(2025.12월말)'!AF34-'법정동(2025.6월말)'!AF34 -> 0.0 | AG31: ='법정동(2025.12월말)'!AG34-'법정동(2025.6월말)'!AG34 -> 0.0 | AH31: ='법정동(2025.12월말)'!AH34-'법정동(2025.6월말)'!AH34 -> 0.0 | AI31: ='법정동(2025.12월말)'!AI34-'법정동(2025.6월말)'!AI34 -> 0.0 | AJ31: ='법정동(2025.12월말)'!AJ34-'법정동(2025.6월말)'!AJ34 -> 0.0 | AK31: ='법정동(2025.12월말)'!AK34-'법정동(2025.6월말)'!AK34 -> 0.0 | AL31: ='법정동(2025.12월말)'!AL34-'법정동(2025.6월말)'!AL34 -> 0.0 | AM31: ='법정동(2025.12월말)'!AM34-'법정동(2025.6월말)'!AM34 -> 0.0 | AN31: ='법정동(2025.12월말)'!AN34-'법정동(2025.6월말)'!AN34 -> 0.0 | AO31: ='법정동(2025.12월말)'!AO34-'법정동(2025.6월말)'!AO34 -> 0.0 | AP31: ='법정동(2025.12월말)'!AP34-'법정동(2025.6월말)'!AP34 -> 0.0 | AQ31: ='법정동(2025.12월말)'!AQ34-'법정동(2025.6월말)'!AQ34 -> 0.0 | AR31: ='법정동(2025.12월말)'!AR34-'법정동(2025.6월말)'!AR34 -> 0.0 | AS31: ='법정동(2025.12월말)'!AS34-'법정동(2025.6월말)'!AS34 -> 0.0 | AT31: ='법정동(2025.12월말)'!AT34-'법정동(2025.6월말)'!AT34 -> 0.0 | AU31: ='법정동(2025.12월말)'!AU34-'법정동(2025.6월말)'!AU34 -> 0.0 | AV31: ='법정동(2025.12월말)'!AV34-'법정동(2025.6월말)'!AV34 -> 0.0 | AW31: ='법정동(2025.12월말)'!AW34-'법정동(2025.6월말)'!AW34 -> 0.0 | AX31: ='법정동(2025.12월말)'!AX34-'법정동(2025.6월말)'!AX34 -> 0.0 | AY31: ='법정동(2025.12월말)'!AY34-'법정동(2025.6월말)'!AY34 -> 0.0 | AZ31: ='법정동(2025.12월말)'!AZ34-'법정동(2025.6월말)'!AZ34 -> 0.0 | BA31: ='법정동(2025.12월말)'!BA34-'법정동(2025.6월말)'!BA34 -> 0.0 | BB31: ='법정동(2025.12월말)'!BB34-'법정동(2025.6월말)'!BB34 -> 0.0 | BC31: ='법정동(2025.12월말)'!BC34-'법정동(2025.6월말)'!BC34 -> 0.0 | BD31: ='법정동(2025.12월말)'!BD34-'법정동(2025.6월말)'!BD34 -> 0.0 | BE31: ='법정동(2025.12월말)'!BE34-'법정동(2025.6월말)'!BE34 -> 0.0 | BF31: ='법정동(2025.12월말)'!BF34-'법정동(2025.6월말)'!BF34 -> 0.0 | BG31: ='법정동(2025.12월말)'!BG34-'법정동(2025.6월말)'!BG34 -> 0.0
... 38 more rows

Sheet 법정동(2025.12월말)
A1: 여수시 지적(地籍) 통계 현황
A3: (기준일자 : 2025. 12. 31. / 단위 : 필지, ㎡)
A4: 구 분 | B4: 계 | D4: 전 | F4: 답 | H4: 과수원 | J4: 목장용지 | L4: 임야 | N4: 광천지 | P4: 염전 | R4: 대 | T4: 공장용지 | V4: 학교용지 | X4: 주차장 | Z4: 주유소용지 | AB4: 창고용지 | AD4: 도로 | AF4: 철도용지 | AH4: 제방 | AJ4: 하천 | AL4: 구거 | AN4: 유지 | AP4: 양어장 | AR4: 수도용지 | AT4: 공원 | AV4: 체육용지 | AX4: 유원지 | AZ4: 종교용지 | BB4: 사적지 | BD4: 묘지 | BF4: 잡종지
B5: 면 적 | C5: 지번수 | D5: 면 적 | E5: 지번수 | F5: 면 적 | G5: 지번수 | H5: 면 적 | I5: 지번수 | J5: 면 적 | K5: 지번수 | L5: 면 적 | M5: 지번수 | N5: 면 적 | O5: 지번수 | P5: 면 적 | Q5: 지번수 | R5: 면 적 | S5: 지번수 | T5: 면 적 | U5: 지번수 | V5: 면 적 | W5: 지번수 | X5: 면 적 | Y5: 지번수 | Z5: 면 적 | AA5: 지번수 | AB5: 면 적 | AC5: 지번수 | AD5: 면 적 | AE5: 지번수 | AF5: 면 적 | AG5: 지번수 | AH5: 면 적 | AI5: 지번수 | AJ5: 면 적 | AK5: 지번수 | AL5: 면 적 | AM5: 지번수 | AN5: 면 적 | AO5: 지번수 | AP5: 면 적 | AQ5: 지번수 | AR5: 면 적 | AS5: 지번수 | AT5: 면 적 | AU5: 지번수 | AV5: 면 적 | AW5: 지번수 | AX5: 면 적 | AY5: 지번수 | AZ5: 면 적 | BA5: 지번수 | BB5: 면 적 | BC5: 지번수 | BD5: 면 적 | BE5: 지번수 | BF5: 면 적 | BG5: 지번수
A6: 합 계 | B6: =SUM(B7:B120) -> 512,463,977.70 | C6: =SUM(C7:C120) -> 302,203.00 | D6: 62,187,162.00 | E6: 69,784.00 | F6: 37,453,003.70 | G6: 42,344.00 | H6: 591,813.10 | I6: 227.00 | J6: 1,877,586.10 | K6: 544.00 | L6: 298,251,525.80 | M6: 53,050.00 | N6: 0.00 | O6: 0.00 | P6: 2,828.00 | Q6: 5.00 | R6: 26,226,122.00 | S6: 67,210.00 | T6: 21,339,687.90 | U6: 1,514.00 | V6: 2,075,904.80 | W6: 356.00 | X6: 636,113.70 | Y6: 647.00 | Z6: 899,427.00 | AA6: 259.00 | AB6: 419,597.30 | AC6: 536.00 | AD6: 24,233,482.60 | AE6: 46,950.00 | AF6: 1,624,279.20 | AG6: 1,875.00 | AH6: 694,619.40 | AI6: 802.00 | AJ6: 2,679,546.30 | AK6: 983.00 | AL6: 4,511,556.80 | AM6: 5,213.00 | AN6: 2,784,465.10 | AO6: 1,348.00 | AP6: 259,990.60 | AQ6: 182.00 | AR6: 607,526.50 | AS6: 408.00 | AT6: 3,831,247.90 | AU6: 527.00 | AV6: 3,559,074.30 | AW6: 82.00 | AX6: 441,752.30 | AY6: 41.00 | AZ6: 481,414.10 | BA6: 502.00 | BB6: 84,641.20 | BC6: 27.00 | BD6: 1,757,892.60 | BE6: 1,854.00 | BF6: 12,951,717.40 | BG6: 4,933.00
A7: 종화동 | B7: 402,966.00 | C7: 1691 | D7: 64706.00 | E7: 203 | F7: 1,267.00 | G7: 13 | H7: 0.00 | I7: 0 | J7: 0.00 | K7: 0 | L7: 22,878.00 | M7: 57 | N7: 0.00 | O7: 0 | P7: 0.00 | Q7: 0 | R7: 110,480.00 | S7: 1023 | T7: 0.00 | U7: 0 | V7: 16,641.00 | W7: 4 | X7: 60.00 | Y7: 1 | Z7: 0.00 | AA7: 0 | AB7: 0.00 | AC7: 0 | AD7: 80,260.00 | AE7: 328 | AF7: 0.00 | AG7: 0 | AH7: 2,134.00 | AI7: 5 | AJ7: 0.00 | AK7: 0 | AL7: 2,501.00 | AM7: 12 | AN7: 0.00 | AO7: 0 | AP7: 0.00 | AQ7: 0 | AR7: 985.00 | AS7: 2 | AT7: 84,107.00 | AU7: 14 | AV7: 0.00 | AW7: 0 | AX7: 0.00 | AY7: 0 | AZ7: 676.00 | BA7: 3 | BB7: 0.00 | BC7: 0 | BD7: 3,587.00 | BE7: 12 | BF7: 12,684.00 | BG7: 14
A8: 수정동 | B8: 636,199.50 | C8: 1249 | D8: 36278.00 | E8: 199 | F8: 0.00 | G8: 0 | H8: 0.00 | I8: 0 | J8: 0.00 | K8: 0 | L8: 130,967.00 | M8: 51 | N8: 0.00 | O8: 0 | P8: 0.00 | Q8: 0 | R8: 183,079.80 | S8: 718 | T8: 0.00 | U8: 0 | V8: 37,527.00 | W8: 2 | X8: 15,635.80 | Y8: 8 | Z8: 0.00 | AA8: 0 | AB8: 0.00 | AC8: 0 | AD8: 127,907.90 | AE8: 236 | AF8: 18.00 | AG8: 1 | AH8: 11,759.00 | AI8: 4 | AJ8: 0.00 | AK8: 0 | AL8: 0.00 | AM8: 0 | AN8: 0.00 | AO8: 0 | AP8: 0.00 | AQ8: 0 | AR8: 0.00 | AS8: 0 | AT8: 69,680.80 | AU8: 7 | AV8: 0.00 | AW8: 0 | AX8: 0.00 | AY8: 0 | AZ8: 0.00 | BA8: 0 | BB8: 0.00 | BC8: 0 | BD8: 1,128.00 | BE8: 5 | BF8: 22,218.20 | BG8: 18
A9: 공화동 | B9: 313,624.20 | C9: 1719 | D9: 3321.00 | E9: 30 | F9: 0.00 | G9: 0 | H9: 0.00 | I9: 0 | J9: 0.00 | K9: 0 | L9: 388.00 | M9: 1 | N9: 0.00 | O9: 0 | P9: 0.00 | Q9: 0 | R9: 139,740.50 | S9: 1380 | T9: 0.00 | U9: 0 | V9: 51,511.00 | W9: 6 | X9: 2,578.00 | Y9: 9 | Z9: 912.00 | AA9: 3 | AB9: 0.00 | AC9: 0 | AD9: 92,871.20 | AE9: 238 | AF9: 3,340.00 | AG9: 13 | AH9: 0.00 | AI9: 0 | AJ9: 0.00 | AK9: 0 | AL9: 3,487.00 | AM9: 23 | AN9: 0.00 | AO9: 0 | AP9: 0.00 | AQ9: 0 | AR9: 0.00 | AS9: 0 | AT9: 3,749.00 | AU9: 2 | AV9: 0.00 | AW9: 0 | AX9: 0.00 | AY9: 0 | AZ9: 6,337.00 | BA9: 9 | BB9: 0.00 | BC9: 0 | BD9: 0.00 | BE9: 0 | BF9: 5,389.50 | BG9: 5
A10: 관문동 | B10: 248,748.30 | C10: 1505 | D10: 3686.00 | E10: 50 | F10: 50.00 | G10: 5 | H10: 0.00 | I10: 0 | J10: 0.00 | K10: 0 | L10: 4,406.00 | M10: 26 | N10: 0.00 | O10: 0 | P10: 0.00 | Q10: 0 | R10: 142,221.10 | S10: 1163 | T10: 0.00 | U10: 0 | V10: 48,650.00 | W10: 5 | X10: 1,511.00 | Y10: 11 | Z10: 0.00 | AA10: 0 | AB10: 0.00 | AC10: 0 | AD10: 46,293.20 | AE10: 238 | AF10: 0.00 | AG10: 0 | AH10: 0.00 | AI10: 0 | AJ10: 0.00 | AK10: 0 | AL10: 66.00 | AM10: 2 | AN10: 0.00 | AO10: 0 | AP10: 0.00 | AQ10: 0 | AR10: 0.00 | AS10: 0 | AT10: 0.00 | AU10: 0 | AV10: 0.00 | AW10: 0 | AX10: 0.00 | AY10: 0 | AZ10: 1,704.00 | BA10: 4 | BB10: 0.00 | BC10: 0 | BD10: 0.00 | BE10: 0 | BF10: 161.00 | BG10: 1
A11: 고소동 | B11: 176,687.00 | C11: 1267 | D11: 14500.00 | E11: 97 | F11: 0.00 | G11: 0 | H11: 0.00 | I11: 0 | J11: 0.00 | K11: 0 | L11: 498.00 | M11: 10 | N11: 0.00 | O11: 0 | P11: 0.00 | Q11: 0 | R11: 116,511.00 | S11: 887 | T11: 0.00 | U11: 0 | V11: 0.00 | W11: 0 | X11: 711.00 | Y11: 3 | Z11: 0.00 | AA11: 0 | AB11: 0.00 | AC11: 0 | AD11: 36,205.00 | AE11: 259 | AF11: 0.00 | AG11: 0 | AH11: 0.00 | AI11: 0 | AJ11: 0.00 | AK11: 0 | AL11: 0.00 | AM11: 0 | AN11: 0.00 | AO11: 0 | AP11: 0.00 | AQ11: 0 | AR11: 671.00 | AS11: 1 | AT11: 1,206.00 | AU11: 1 | AV11: 0.00 | AW11: 0 | AX11: 0.00 | AY11: 0 | AZ11: 4,294.00 | BA11: 4 | BB11: 1,583.00 | BC11: 1 | BD11: 0.00 | BE11: 0 | BF11: 508.00 | BG11: 4
A12: 동산동 | B12: 280,084.00 | C12: 1246 | D12: 29387.00 | E12: 75 | F12: 2,765.00 | G12: 6 | H12: 0.00 | I12: 0 | J12: 0.00 | K12: 0 | L12: 124,702.00 | M12: 24 | N12: 0.00 | O12: 0 | P12: 0.00 | Q12: 0 | R12: 86,899.00 | S12: 881 | T12: 0.00 | U12: 0 | V12: 10,782.00 | W12: 1 | X12: 556.00 | Y12: 2 | Z12: 0.00 | AA12: 0 | AB12: 0.00 | AC12: 0 | AD12: 16,979.00 | AE12: 238 | AF12: 0.00 | AG12: 0 | AH12: 0.00 | AI12: 0 | AJ12: 0.00 | AK12: 0 | AL12: 3,257.00 | AM12: 5 | AN12: 0.00 | AO12: 0 | AP12: 0.00 | AQ12: 0 | AR12: 396.00 | AS12: 4 | AT12: 0.00 | AU12: 0 | AV12: 0.00 | AW12: 0 | AX12: 0.00 | AY12: 0 | AZ12: 578.00 | BA12: 2 | BB12: 0.00 | BC12: 0 | BD12: 0.00 | BE12: 0 | BF12: 3,783.00 | BG12: 8
A13: 중앙동 | B13: 159,275.00 | C13: 771 | D13: 44.00 | E13: 4 | F13: 0.00 | G13: 0 | H13: 0.00 | I13: 0 | J13: 0.00 | K13: 0 | L13: 19,948.00 | M13: 18 | N13: 0.00 | O13: 0 | P13: 0.00 | Q13: 0 | R13: 66,363.00 | S13: 583 | T13: 0.00 | U13: 0 | V13: 0.00 | W13: 0 | X13: 1,767.00 | Y13: 2 | Z13: 0.00 | AA13: 0 | AB13: 0.00 | AC13: 0 | AD13: 50,580.00 | AE13: 154 | AF13: 0.00 | AG13: 0 | AH13: 0.00 | AI13: 0 | AJ13: 0.00 | AK13: 0 | AL13: 0.00 | AM13: 0 | AN13: 0.00 | AO13: 0 | AP13: 0.00 | AQ13: 0 | AR13: 0.00 | AS13: 0 | AT13: 9,732.00 | AU13: 1 | AV13: 0.00 | AW13: 0 | AX13: 0.00 | AY13: 0 | AZ13: 0.00 | BA13: 0 | BB13: 0.00 | BC13: 0 | BD13: 0.00 | BE13: 0 | BF13: 10,841.00 | BG13: 9
A14: 교동 | B14: 166,094.20 | C14: 1149 | D14: 0.00 | E14: 0 | F14: 0.00 | G14: 0 | H14: 0.00 | I14: 0 | J14: 0.00 | K14: 0 | L14: 0.00 | M14: 0 | N14: 0.00 | O14: 0 | P14: 0.00 | Q14: 0 | R14: 95,845.00 | S14: 1070 | T14: 0.00 | U14: 0 | V14: 0.00 | W14: 0 | X14: 5,270.20 | Y14: 6 | Z14: 0.00 | AA14: 0 | AB14: 0.00 | AC14: 0 | AD14: 50,033.00 | AE14: 62 | AF14: 0.00 | AG14: 0 | AH14: 800.00 | AI14: 2 | AJ14: 9,005.00 | AK14: 1 | AL14: 445.00 | AM14: 5 | AN14: 0.00 | AO14: 0 | AP14: 0.00 | AQ14: 0 | AR14: 0.00 | AS14: 0 | AT14: 0.00 | AU14: 0 | AV14: 0.00 | AW14: 0 | AX14: 0.00 | AY14: 0 | AZ14: 0.00 | BA14: 0 | BB14: 0.00 | BC14: 0 | BD14: 0.00 | BE14: 0 | BF14: 4,696.00 | BG14: 3
A15: 군자동 | B15: 121,045.00 | C15: 636 | D15: 34158.00 | E15: 78 | F15: 0.00 | G15: 0 | H15: 0.00 | I15: 0 | J15: 0.00 | K15: 0 | L15: 0.00 | M15: 0 | N15: 0.00 | O15: 0 | P15: 0.00 | Q15: 0 | R15: 53,646.00 | S15: 464 | T15: 0.00 | U15: 0 | V15: 7,308.00 | W15: 1 | X15: 827.00 | Y15: 4 | Z15: 0.00 | AA15: 0 | AB15: 0.00 | AC15: 0 | AD15: 15,247.00 | AE15: 73 | AF15: 0.00 | AG15: 0 | AH15: 0.00 | AI15: 0 | AJ15: 0.00 | AK15: 0 | AL15: 1,031.00 | AM15: 5 | AN15: 0.00 | AO15: 0 | AP15: 0.00 | AQ15: 0 | AR15: 363.00 | AS15: 3 | AT15: 0.00 | AU15: 0 | AV15: 0.00 | AW15: 0 | AX15: 0.00 | AY15: 0 | AZ15: 2,650.00 | BA15: 2 | BB15: 5,642.00 | BC15: 4 | BD15: 0.00 | BE15: 0 | BF15: 173.00 | BG15: 2
A16: 충무동 | B16: 144,707.00 | C16: 1006 | D16: 2669.00 | E16: 21 | F16: 2,075.00 | G16: 11 | H16: 0.00 | I16: 0 | J16: 0.00 | K16: 0 | L16: 0.00 | M16: 0 | N16: 0.00 | O16: 0 | P16: 0.00 | Q16: 0 | R16: 92,386.00 | S16: 834 | T16: 0.00 | U16: 0 | V16: 0.00 | W16: 0 | X16: 1,903.00 | Y16: 10 | Z16: 0.00 | AA16: 0 | AB16: 0.00 | AC16: 0 | AD16: 37,176.00 | AE16: 111 | AF16: 0.00 | AG16: 0 | AH16: 0.00 | AI16: 0 | AJ16: 5,576.00 | AK16: 2 | AL16: 271.00 | AM16: 1 | AN16: 0.00 | AO16: 0 | AP16: 0.00 | AQ16: 0 | AR16: 0.00 | AS16: 0 | AT16: 0.00 | AU16: 0 | AV16: 0.00 | AW16: 0 | AX16: 0.00 | AY16: 0 | AZ16: 1,647.00 | BA16: 9 | BB16: 0.00 | BC16: 0 | BD16: 0.00 | BE16: 0 | BF16: 1,004.00 | BG16: 7
A17: 연등동 | B17: 1,081,786.50 | C17: 2161 | D17: 187387.00 | E17: 386 | F17: 41,806.00 | G17: 68 | H17: 0.00 | I17: 0 | J17: 0.00 | K17: 0 | L17: 442,665.80 | M17: 144 | N17: 0.00 | O17: 0 | P17: 0.00 | Q17: 0 | R17: 165,550.60 | S17: 1094 | T17: 696.70 | U17: 1 | V17: 14,194.00 | W17: 2 | X17: 321.00 | Y17: 1 | Z17: 1,190.10 | AA17: 5 | AB17: 2,638.40 | AC17: 3 | AD17: 161,397.60 | AE17: 380 | AF17: 0.00 | AG17: 0 | AH17: 0.00 | AI17: 0 | AJ17: 12,928.00 | AK17: 23 | AL17: 31,004.40 | AM17: 23 | AN17: 0.00 | AO17: 0 | AP17: 0.00 | AQ17: 0 | AR17: 2,410.00 | AS17: 2 | AT17: 991.90 | AU17: 1 | AV17: 0.00 | AW17: 0 | AX17: 0.00 | AY17: 0 | AZ17: 4,986.00 | BA17: 5 | BB17: 76.00 | BC17: 1 | BD17: 5,021.00 | BE17: 9 | BF17: 6,522.00 | BG17: 13
A18: 광무동 | B18: 1,264,805.70 | C18: 2894 | D18: 178028.00 | E18: 390 | F18: 5,177.00 | G18: 31 | H18: 0.00 | I18: 0 | J18: 0.00 | K18: 0 | L18: 617,248.00 | M18: 98 | N18: 0.00 | O18: 0 | P18: 0.00 | Q18: 0 | R18: 269,242.20 | S18: 1760 | T18: 0.00 | U18: 0 | V18: 19,814.00 | W18: 5 | X18: 5,532.00 | Y18: 8 | Z18: 0.00 | AA18: 0 | AB18: 0.00 | AC18: 0 | AD18: 136,307.30 | AE18: 541 | AF18: 0.00 | AG18: 0 | AH18: 0.00 | AI18: 0 | AJ18: 8,810.00 | AK18: 10 | AL18: 3,768.90 | AM18: 12 | AN18: 0.00 | AO18: 0 | AP18: 0.00 | AQ18: 0 | AR18: 2,277.00 | AS18: 4 | AT18: 616.00 | AU18: 1 | AV18: 0.00 | AW18: 0 | AX18: 0.00 | AY18: 0 | AZ18: 6,669.00 | BA18: 12 | BB18: 0.00 | BC18: 0 | BD18: 3,772.00 | BE18: 15 | BF18: 7,544.30 | BG18: 7
A19: 서교동 | B19: 168,978.00 | C19: 1187 | D19: 53.00 | E19: 1 | F19: 378.00 | G19: 7 | H19: 0.00 | I19: 0 | J19: 0.00 | K19: 0 | L19: 0.00 | M19: 0 | N19: 0.00 | O19: 0 | P19: 0.00 | Q19: 0 | R19: 83,642.00 | S19: 863 | T19: 0.00 | U19: 0 | V19: 19,337.00 | W19: 1 | X19: 8,104.00 | Y19: 7 | Z19: 0.00 | AA19: 0 | AB19: 0.00 | AC19: 0 | AD19: 42,766.00 | AE19: 286 | AF19: 0.00 | AG19: 0 | AH19: 0.00 | AI19: 0 | AJ19: 8,724.00 | AK19: 4 | AL19: 753.00 | AM19: 13 | AN19: 0.00 | AO19: 0 | AP19: 0.00 | AQ19: 0 | AR19: 0.00 | AS19: 0 | AT19: 143.00 | AU19: 1 | AV19: 0.00 | AW19: 0 | AX19: 0.00 | AY19: 0 | AZ19: 4,681.00 | BA19: 3 | BB19: 0.00 | BC19: 0 | BD19: 0.00 | BE19: 0 | BF19: 397.00 | BG19: 1
A20: 봉강동 | B20: 486,193.50 | C20: 1533 | D20: 76115.00 | E20: 162 | F20: 26,568.00 | G20: 52 | H20: 0.00 | I20: 0 | J20: 0.00 | K20: 0 | L20: 153,502.00 | M20: 56 | N20: 0.00 | O20: 0 | P20: 0.00 | Q20: 0 | R20: 127,142.20 | S20: 844 | T20: 0.00 | U20: 0 | V20: 35,979.00 | W20: 3 | X20: 812.00 | Y20: 5 | Z20: 0.00 | AA20: 0 | AB20: 0.00 | AC20: 0 | AD20: 54,219.70 | AE20: 372 | AF20: 0.00 | AG20: 0 | AH20: 0.00 | AI20: 0 | AJ20: 0.00 | AK20: 0 | AL20: 3,404.00 | AM20: 13 | AN20: 0.00 | AO20: 0 | AP20: 0.00 | AQ20: 0 | AR20: 0.00 | AS20: 0 | AT20: 1,906.90 | AU20: 1 | AV20: 0.00 | AW20: 0 | AX20: 0.00 | AY20: 0 | AZ20: 3,652.00 | BA20: 6 | BB20: 0.00 | BC20: 0 | BD20: 0.00 | BE20: 0 | BF20: 2,892.70 | BG20: 19
A21: 봉산동 | B21: 1,213,130.70 | C21: 2878 | D21: 132619.00 | E21: 294 | F21: 36,173.00 | G21: 76 | H21: 0.00 | I21: 0 | J21: 0.00 | K21: 0 | L21: 348,356.00 | M21: 63 | N21: 0.00 | O21: 0 | P21: 0.00 | Q21: 0 | R21: 432,434.80 | S21: 1903 | T21: 353.10 | U21: 1 | V21: 29,460.00 | W21: 6 | X21: 1,070.20 | Y21: 7 | Z21: 2,234.60 | AA21: 4 | AB21: 2,338.10 | AC21: 7 | AD21: 185,923.90 | AE21: 478 | AF21: 0.00 | AG21: 0 | AH21: 0.00 | AI21: 0 | AJ21: 0.00 | AK21: 0 | AL21: 3,774.00 | AM21: 12 | AN21: 27.00 | AO21: 2 | AP21: 0.00 | AQ21: 0 | AR21: 0.00 | AS21: 0 | AT21: 0.00 | AU21: 0 | AV21: 0.00 | AW21: 0 | AX21: 0.00 | AY21: 0 | AZ21: 11,341.00 | BA21: 8 | BB21: 0.00 | BC21: 0 | BD21: 2,606.00 | BE21: 10 | BF21: 24,420.00 | BG21: 7
A22: 남산동 | B22: 400,569.00 | C22: 1816 | D22: 95489.00 | E22: 213 | F22: 83.00 | G22: 3 | H22: 0.00 | I22: 0 | J22: 0.00 | K22: 0 | L22: 32,391.00 | M22: 31 | N22: 0.00 | O22: 0 | P22: 0.00 | Q22: 0 | R22: 131,199.00 | S22: 1148 | T22: 0.00 | U22: 0 | V22: 4,469.00 | W22: 2 | X22: 4,882.00 | Y22: 13 | Z22: 0.00 | AA22: 0 | AB22: 0.00 | AC22: 0 | AD22: 100,559.00 | AE22: 362 | AF22: 0.00 | AG22: 0 | AH22: 273.00 | AI22: 4 | AJ22: 9,140.00 | AK22: 1 | AL22: 595.00 | AM22: 6 | AN22: 0.00 | AO22: 0 | AP22: 0.00 | AQ22: 0 | AR22: 283.00 | AS22: 2 | AT22: 0.00 | AU22: 0 | AV22: 0.00 | AW22: 0 | AX22: 0.00 | AY22: 0 | AZ22: 0.00 | BA22: 0 | BB22: 0.00 | BC22: 0 | BD22: 58.00 | BE22: 2 | BF22: 21,148.00 | BG22: 29
A23: 국동 | B23: 1,533,693.30 | C23: 3139 | D23: 71267.00 | E23: 398 | F23: 11,631.00 | G23: 63 | H23: 815.00 | I23: 1 | J23: 0.00 | K23: 0 | L23: 484,506.00 | M23: 84 | N23: 0.00 | O23: 0 | P23: 0.00 | Q23: 0 | R23: 544,395.20 | S23: 1898 | T23: 8,962.00 | U23: 21 | V23: 126,886.20 | W23: 27 | X23: 6,695.00 | Y23: 10 | Z23: 1,291.00 | AA23: 2 | AB23: 2,039.00 | AC23: 8 | AD23: 187,390.60 | AE23: 533 | AF23: 0.00 | AG23: 0 | AH23: 2,006.00 | AI23: 1 | AJ23: 0.00 | AK23: 0 | AL23: 15,676.00 | AM23: 16 | AN23: 0.00 | AO23: 0 | AP23: 0.00 | AQ23: 0 | AR23: 3,448.00 | AS23: 5 | AT23: 0.00 | AU23: 0 | AV23: 1,163.00 | AW23: 1 | AX23: 0.00 | AY23: 0 | AZ23: 7,538.50 | BA23: 14 | BB23: 0.00 | BC23: 0 | BD23: 11.00 | BE23: 2 | BF23: 57,972.80 | BG23: 55
A24: 신월동 | B24: 3,715,191.30 | C24: 2614 | D24: 589317.80 | E24: 806 | F24: 114,525.70 | G24: 185 | H24: 0.00 | I24: 0 | J24: 0.00 | K24: 0 | L24: 1,361,897.00 | M24: 322 | N24: 0.00 | O24: 0 | P24: 0.00 | Q24: 0 | R24: 291,338.90 | S24: 555 | T24: 862,406.30 | U24: 131 | V24: 7,970.00 | W24: 1 | X24: 1,745.00 | Y24: 2 | Z24: 2,571.00 | AA24: 9 | AB24: 1,810.00 | AC24: 2 | AD24: 208,896.90 | AE24: 385 | AF24: 0.00 | AG24: 0 | AH24: 5,885.10 | AI24: 19 | AJ24: 0.00 | AK24: 0 | AL24: 45,008.50 | AM24: 31 | AN24: 0.00 | AO24: 0 | AP24: 0.00 | AQ24: 0 | AR24: 327.00 | AS24: 1 | AT24: 0.00 | AU24: 0 | AV24: 0.00 | AW24: 0 | AX24: 0.00 | AY24: 0 | AZ24: 10,274.00 | BA24: 10 | BB24: 0.00 | BC24: 0 | BD24: 5,856.00 | BE24: 25 | BF24: 205,362.10 | BG24: 130
A25: 여서동 | B25: 2,574,409.00 | C25: 1970 | D25: 194814.30 | E25: 273 | F25: 106,450.70 | G25: 180 | H25: 0.00 | I25: 0 | J25: 0.00 | K25: 0 | L25: 1,219,596.00 | M25: 321 | N25: 0.00 | O25: 0 | P25: 0.00 | Q25: 0 | R25: 568,218.20 | S25: 768 | T25: 0.00 | U25: 0 | V25: 57,898.00 | W25: 4 | X25: 4,285.30 | Y25: 20 | Z25: 2,215.00 | AA25: 2 | AB25: 741.00 | AC25: 1 | AD25: 308,890.50 | AE25: 275 | AF25: 0.00 | AG25: 0 | AH25: 0.00 | AI25: 0 | AJ25: 0.00 | AK25: 0 | AL25: 14,431.90 | AM25: 25 | AN25: 958.00 | AO25: 2 | AP25: 0.00 | AQ25: 0 | AR25: 8,637.00 | AS25: 4 | AT25: 32,420.40 | AU25: 9 | AV25: 8,842.00 | AW25: 6 | AX25: 0.00 | AY25: 0 | AZ25: 18,262.40 | BA25: 22 | BB25: 0.00 | BC25: 0 | BD25: 2,313.00 | BE25: 7 | BF25: 25,435.30 | BG25: 51
A26: 문수동 | B26: 2,242,579.20 | C26: 3099 | D26: 144666.60 | E26: 258 | F26: 29,261.50 | G26: 79 | H26: 0.00 | I26: 0 | J26: 0.00 | K26: 0 | L26: 792,321.70 | M26: 286 | N26: 0.00 | O26: 0 | P26: 0.00 | Q26: 0 | R26: 766,172.50 | S26: 1818 | T26: 0.00 | U26: 0 | V26: 117,920.40 | W26: 10 | X26: 22,501.40 | Y26: 83 | Z26: 1,477.80 | AA26: 3 | AB26: 398.00 | AC26: 2 | AD26: 256,650.00 | AE26: 431 | AF26: 0.00 | AG26: 0 | AH26: 0.00 | AI26: 0 | AJ26: 8,513.00 | AK26: 5 | AL26: 9,255.40 | AM26: 15 | AN26: 0.00 | AO26: 0 | AP26: 0.00 | AQ26: 0 | AR26: 31.00 | AS26: 1 | AT26: 53,155.90 | AU26: 27 | AV26: 0.00 | AW26: 0 | AX26: 0.00 | AY26: 0 | AZ26: 23,982.20 | BA26: 15 | BB26: 0.00 | BC26: 0 | BD26: 3,583.00 | BE26: 17 | BF26: 12,688.80 | BG26: 49
A27: 오림동 | B27: 2,127,981.40 | C27: 1675 | D27: 142114.00 | E27: 270 | F27: 38,803.00 | G27: 99 | H27: 0.00 | I27: 0 | J27: 0.00 | K27: 0 | L27: 1,130,016.00 | M27: 281 | N27: 0.00 | O27: 0 | P27: 0.00 | Q27: 0 | R27: 182,434.60 | S27: 575 | T27: 38.00 | U27: 3 | V27: 25,821.00 | W27: 2 | X27: 1,383.30 | Y27: 3 | Z27: 1,817.80 | AA27: 1 | AB27: 1,806.00 | AC27: 3 | AD27: 142,286.10 | AE27: 304 | AF27: 31,909.00 | AG27: 32 | AH27: 0.00 | AI27: 0 | AJ27: 17,042.40 | AK27: 6 | AL27: 14,839.20 | AM27: 38 | AN27: 10.00 | AO27: 1 | AP27: 0.00 | AQ27: 0 | AR27: 23.00 | AS27: 1 | AT27: 1,699.40 | AU27: 1 | AV27: 333,668.70 | AW27: 18 | AX27: 0.00 | AY27: 0 | AZ27: 8,496.90 | BA27: 5 | BB27: 0.00 | BC27: 0 | BD27: 36,169.00 | BE27: 13 | BF27: 17,604.00 | BG27: 19
A28: 미평동 | B28: 3,088,178.80 | C28: 2686 | D28: 123020.70 | E28: 300 | F28: 71,185.00 | G28: 196 | H28: 0.00 | I28: 0 | J28: 0.00 | K28: 0 | L28: 1,760,692.00 | M28: 205 | N28: 0.00 | O28: 0 | P28: 0.00 | Q28: 0 | R28: 510,321.40 | S28: 1193 | T28: 1,501.00 | U28: 3 | V28: 64,462.10 | W28: 10 | X28: 11,110.50 | Y28: 25 | Z28: 1,804.20 | AA28: 3 | AB28: 177.40 | AC28: 1 | AD28: 291,450.20 | AE28: 547 | AF28: 53,203.00 | AG28: 46 | AH28: 0.00 | AI28: 0 | AJ28: 9,529.40 | AK28: 3 | AL28: 25,645.00 | AM28: 51 | AN28: 0.00 | AO28: 0 | AP28: 0.00 | AQ28: 0 | AR28: 90,756.50 | AS28: 48 | AT28: 16,700.40 | AU28: 11 | AV28: 0.00 | AW28: 0 | AX28: 0.00 | AY28: 0 | AZ28: 9,169.30 | BA28: 9 | BB28: 0.00 | BC28: 0 | BD28: 5,643.00 | BE28: 6 | BF28: 41,807.70 | BG28: 29
A29: 둔덕동 | B29: 4,074,426.10 | C29: 2545 | D29: 173486.00 | E29: 277 | F29: 417,233.00 | G29: 555 | H29: 3,464.00 | I29: 1 | J29: 0.00 | K29: 0 | L29: 2,141,474.00 | M29: 359 | N29: 0.00 | O29: 0 | P29: 0.00 | Q29: 0 | R29: 510,344.00 | S29: 682 | T29: 362.00 | U29: 1 | V29: 722.00 | W29: 1 | X29: 2,812.70 | Y29: 6 | Z29: 12,999.60 | AA29: 15 | AB29: 6,602.70 | AC29: 12 | AD29: 387,565.60 | AE29: 477 | AF29: 22,933.00 | AG29: 34 | AH29: 0.00 | AI29: 0 | AJ29: 9,119.10 | AK29: 3 | AL29: 21,254.00 | AM29: 27 | AN29: 0.00 | AO29: 0 | AP29: 0.00 | AQ29: 0 | AR29: 72,838.00 | AS29: 3 | AT29: 18,073.40 | AU29: 8 | AV29: 166,279.00 | AW29: 6 | AX29: 0.00 | AY29: 0 | AZ29: 17,893.30 | BA29: 10 | BB29: 0.00 | BC29: 0 | BD29: 3,315.00 | BE29: 9 | BF29: 85,655.70 | BG29: 59
A30: 오천동 | B30: 5,600,496.90 | C30: 1375 | D30: 253266.00 | E30: 327 | F30: 93,177.00 | G30: 145 | H30: 0.00 | I30: 0 | J30: 0.00 | K30: 0 | L30: 3,730,857.60 | M30: 179 | N30: 0.00 | O30: 0 | P30: 0.00 | Q30: 0 | R30: 527,416.40 | S30: 304 | T30: 91,583.90 | U30: 63 | V30: 0.00 | W30: 0 | X30: 44.00 | Y30: 2 | Z30: 0.00 | AA30: 0 | AB30: 288.00 | AC30: 1 | AD30: 108,647.70 | AE30: 273 | AF30: 0.00 | AG30: 0 | AH30: 1,109.00 | AI30: 2 | AJ30: 5,346.30 | AK30: 3 | AL30: 19,290.90 | AM30: 37 | AN30: 0.00 | AO30: 0 | AP30: 0.00 | AQ30: 0 | AR30: 921.00 | AS30: 19 | AT30: 372,271.60 | AU30: 5 | AV30: 388,946.50 | AW30: 1 | AX30: 0.00 | AY30: 0 | AZ30: 1,566.00 | BA30: 1 | BB30: 0.00 | BC30: 0 | BD30: 1,989.00 | BE30: 7 | BF30: 3,776.00 | BG30: 6
A31: 만흥동 | B31: 7,435,712.10 | C31: 3977 | D31: 778830.00 | E31: 982 | F31: 591,378.00 | G31: 676 | H31: 0.00 | I31: 0 | J31: 0.00 | K31: 0 | L31: 5,034,429.00 | M31: 750 | N31: 0.00 | O31: 0 | P31: 0.00 | Q31: 0 | R31: 170,935.00 | S31: 460 | T31: 53,319.00 | U31: 34 | V31: 11,073.00 | W31: 1 | X31: 4,516.00 | Y31: 6 | Z31: 1,056.00 | AA31: 2 | AB31: 4,535.00 | AC31: 10 | AD31: 419,284.60 | AE31: 635 | AF31: 117,773.00 | AG31: 168 | AH31: 2,284.90 | AI31: 7 | AJ31: 7,761.00 | AK31: 6 | AL31: 71,823.90 | AM31: 92 | AN31: 0.00 | AO31: 0 | AP31: 0.00 | AQ31: 0 | AR31: 15,257.00 | AS31: 24 | AT31: 0.00 | AU31: 0 | AV31: 0.00 | AW31: 0 | AX31: 0.00 | AY31: 0 | AZ31: 4,925.00 | BA31: 3 | BB31: 0.00 | BC31: 0 | BD31: 19,588.00 | BE31: 44 | BF31: 126,943.70 | BG31: 77
... 38 more rows

Sheet 행정동(2025.12월말)
A1: 여수시 지적(地籍) 통계 현황
A3: (기준일자 : 2025. 12. 31. / 단위 : 필지, ㎡)
A4: 구 분 | B4: 합 계 | D4: 전 | F4: 답 | H4: 과수원 | J4: 목장용지 | L4: 임야 | N4: 광천지 | P4: 염전 | R4: 대 | T4: 공장용지 | V4: 학교용지 | X4: 주차장 | Z4: 주유소용지 | AB4: 창고용지 | AD4: 도로 | AF4: 철도용지 | AH4: 제방 | AJ4: 하천 | AL4: 구거 | AN4: 유지 | AP4: 양어장 | AR4: 수도용지 | AT4: 공원 | AV4: 체육용지 | AX4: 유원지 | AZ4: 종교용지 | BB4: 사적지 | BD4: 묘지 | BF4: 잡종지
B5: 면 적 | C5: 지번수 | D5: 면 적 | E5: 지번수 | F5: 면 적 | G5: 지번수 | H5: 면 적 | I5: 지번수 | J5: 면 적 | K5: 지번수 | L5: 면 적 | M5: 지번수 | N5: 면 적 | O5: 지번수 | P5: 면 적 | Q5: 지번수 | R5: 면 적 | S5: 지번수 | T5: 면 적 | U5: 지번수 | V5: 면 적 | W5: 지번수 | X5: 면 적 | Y5: 지번수 | Z5: 면 적 | AA5: 지번수 | AB5: 면 적 | AC5: 지번수 | AD5: 면 적 | AE5: 지번수 | AF5: 면 적 | AG5: 지번수 | AH5: 면 적 | AI5: 지번수 | AJ5: 면 적 | AK5: 지번수 | AL5: 면 적 | AM5: 지번수 | AN5: 면 적 | AO5: 지번수 | AP5: 면 적 | AQ5: 지번수 | AR5: 면 적 | AS5: 지번수 | AT5: 면 적 | AU5: 지번수 | AV5: 면 적 | AW5: 지번수 | AX5: 면 적 | AY5: 지번수 | AZ5: 면 적 | BA5: 지번수 | BB5: 면 적 | BC5: 지번수 | BD5: 면 적 | BE5: 지번수 | BF5: 면 적 | BG5: 지번수
A6: 합 계 | B6: =SUM(B7:B33) -> 512,463,977.7 | C6: =SUM(C7:C33) -> 302,203.0 | D6: =SUM(D7:D33) -> 62,187,162.0 | E6: 69,784 | F6: 37,453,003.7 | G6: 42,344 | H6: 591,813.1 | I6: 227 | J6: 1,877,586.1 | K6: 544 | L6: 298,251,525.8 | M6: 53,050 | N6: 0 | O6: 0 | P6: 2,828.0 | Q6: 5 | R6: 26,226,122.0 | S6: 67,210 | T6: 21,339,687.9 | U6: 1,514 | V6: 2,075,904.8 | W6: 356 | X6: 636,113.7 | Y6: 647 | Z6: 899,427.0 | AA6: 259 | AB6: 419,597.3 | AC6: 536 | AD6: 24,233,482.6 | AE6: 46,950 | AF6: 1,624,279.2 | AG6: 1,875 | AH6: 694,619.4 | AI6: 802 | AJ6: 2,679,546.3 | AK6: 983 | AL6: 4,511,556.8 | AM6: 5,213 | AN6: 2,784,465.1 | AO6: 1,348 | AP6: 259,990.6 | AQ6: 182 | AR6: 607,526.5 | AS6: 408 | AT6: 3,831,247.9 | AU6: 527 | AV6: 3,559,074.3 | AW6: 82 | AX6: 441,752.3 | AY6: 41 | AZ6: 481,414.1 | BA6: 502 | BB6: 84,641.2 | BC6: 27 | BD6: 1,757,892.6 | BE6: 1,854 | BF6: 12,951,717.4 | BG6: 4,933
A7: 돌산읍 | B7: =SUM('법정동(2025.12월말)'!B58:B67) -> 72,135,848.4 | C7: =SUM('법정동(2025.12월말)'!C58:C67) -> 43,124.0 | D7: =SUM('법정동(2025.12월말)'!D58:D67) -> 10,041,145.6 | E7: =SUM('법정동(2025.12월말)'!E58:E67) -> 10,669 | F7: =SUM('법정동(2025.12월말)'!F58:F67) -> 4,612,933.1 | G7: =SUM('법정동(2025.12월말)'!G58:G67) -> 5,592 | H7: =SUM('법정동(2025.12월말)'!H58:H67) -> 81,126.0 | I7: =SUM('법정동(2025.12월말)'!I58:I67) -> 31 | J7: =SUM('법정동(2025.12월말)'!J58:J67) -> 984,680.0 | K7: =SUM('법정동(2025.12월말)'!K58:K67) -> 67 | L7: =SUM('법정동(2025.12월말)'!L58:L67) -> 47,421,703.8 | M7: =SUM('법정동(2025.12월말)'!M58:M67) -> 8,724 | N7: =SUM('법정동(2025.12월말)'!N58:N67) -> 0 | O7: =SUM('법정동(2025.12월말)'!O58:O67) -> 0 | P7: =SUM('법정동(2025.12월말)'!P58:P67) -> 0 | Q7: =SUM('법정동(2025.12월말)'!Q58:Q67) -> 0 | R7: =SUM('법정동(2025.12월말)'!R58:R67) -> 3,070,555.4 | S7: =SUM('법정동(2025.12월말)'!S58:S67) -> 7,392 | T7: =SUM('법정동(2025.12월말)'!T58:T67) -> 69,070.2 | U7: =SUM('법정동(2025.12월말)'!U58:U67) -> 61 | V7: =SUM('법정동(2025.12월말)'!V58:V67) -> 165,853.0 | W7: =SUM('법정동(2025.12월말)'!W58:W67) -> 33 | X7: =SUM('법정동(2025.12월말)'!X58:X67) -> 20,694.3 | Y7: =SUM('법정동(2025.12월말)'!Y58:Y67) -> 18 | Z7: =SUM('법정동(2025.12월말)'!Z58:Z67) -> 7,039.5 | AA7: =SUM('법정동(2025.12월말)'!AA58:AA67) -> 13 | AB7: =SUM('법정동(2025.12월말)'!AB58:AB67) -> 84,892.6 | AC7: =SUM('법정동(2025.12월말)'!AC58:AC67) -> 116 | AD7: =SUM('법정동(2025.12월말)'!AD58:AD67) -> 3,051,299.2 | AE7: =SUM('법정동(2025.12월말)'!AE58:AE67) -> 7,685 | AF7: =SUM('법정동(2025.12월말)'!AF58:AF67) -> 0 | AG7: =SUM('법정동(2025.12월말)'!AG58:AG67) -> 0 | AH7: =SUM('법정동(2025.12월말)'!AH58:AH67) -> 101,999.7 | AI7: =SUM('법정동(2025.12월말)'!AI58:AI67) -> 192 | AJ7: =SUM('법정동(2025.12월말)'!AJ58:AJ67) -> 57,055.7 | AK7: =SUM('법정동(2025.12월말)'!AK58:AK67) -> 82 | AL7: =SUM('법정동(2025.12월말)'!AL58:AL67) -> 582,687.5 | AM7: =SUM('법정동(2025.12월말)'!AM58:AM67) -> 778 | AN7: =SUM('법정동(2025.12월말)'!AN58:AN67) -> 418,483.1 | AO7: =SUM('법정동(2025.12월말)'!AO58:AO67) -> 340 | AP7: =SUM('법정동(2025.12월말)'!AP58:AP67) -> 137,001.2 | AQ7: =SUM('법정동(2025.12월말)'!AQ58:AQ67) -> 77 | AR7: =SUM('법정동(2025.12월말)'!AR58:AR67) -> 4,593.7 | AS7: =SUM('법정동(2025.12월말)'!AS58:AS67) -> 7 | AT7: =SUM('법정동(2025.12월말)'!AT58:AT67) -> 63,383.2 | AU7: =SUM('법정동(2025.12월말)'!AU58:AU67) -> 13 | AV7: =SUM('법정동(2025.12월말)'!AV58:AV67) -> 0 | AW7: =SUM('법정동(2025.12월말)'!AW58:AW67) -> 0 | AX7: =SUM('법정동(2025.12월말)'!AX58:AX67) -> 232,000.6 | AY7: =SUM('법정동(2025.12월말)'!AY58:AY67) -> 12 | AZ7: =SUM('법정동(2025.12월말)'!AZ58:AZ67) -> 69,333.1 | BA7: =SUM('법정동(2025.12월말)'!BA58:BA67) -> 61 | BB7: =SUM('법정동(2025.12월말)'!BB58:BB67) -> 669.2 | BC7: =SUM('법정동(2025.12월말)'!BC58:BC67) -> 4 | BD7: =SUM('법정동(2025.12월말)'!BD58:BD67) -> 216,427.1 | BE7: =SUM('법정동(2025.12월말)'!BE58:BE67) -> 240 | BF7: =SUM('법정동(2025.12월말)'!BF58:BF67) -> 641,221.6 | BG7: =SUM('법정동(2025.12월말)'!BG58:BG67) -> 917
A8: 소라면 | B8: =SUM('법정동(2025.12월말)'!B68:B75) -> 60,555,405.5 | C8: =SUM('법정동(2025.12월말)'!C68:C75) -> 33,881.0 | D8: =SUM('법정동(2025.12월말)'!D68:D75) -> 6,339,858.0 | E8: =SUM('법정동(2025.12월말)'!E68:E75) -> 7,185 | F8: =SUM('법정동(2025.12월말)'!F68:F75) -> 8,816,992.4 | G8: =SUM('법정동(2025.12월말)'!G68:G75) -> 7,525 | H8: =SUM('법정동(2025.12월말)'!H68:H75) -> 63,336.0 | I8: =SUM('법정동(2025.12월말)'!I68:I75) -> 18 | J8: =SUM('법정동(2025.12월말)'!J68:J75) -> 197,618.4 | K8: =SUM('법정동(2025.12월말)'!K68:K75) -> 96 | L8: =SUM('법정동(2025.12월말)'!L68:L75) -> 34,536,601.2 | M8: =SUM('법정동(2025.12월말)'!M68:M75) -> 5,635 | N8: =SUM('법정동(2025.12월말)'!N68:N75) -> 0 | O8: =SUM('법정동(2025.12월말)'!O68:O75) -> 0 | P8: =SUM('법정동(2025.12월말)'!P68:P75) -> 0 | Q8: =SUM('법정동(2025.12월말)'!Q68:Q75) -> 0 | R8: =SUM('법정동(2025.12월말)'!R68:R75) -> 2,852,866.1 | S8: =SUM('법정동(2025.12월말)'!S68:S75) -> 5,063 | T8: =SUM('법정동(2025.12월말)'!T68:T75) -> 126,426.3 | U8: =SUM('법정동(2025.12월말)'!U68:U75) -> 66 | V8: =SUM('법정동(2025.12월말)'!V68:V75) -> 141,102.8 | W8: =SUM('법정동(2025.12월말)'!W68:W75) -> 23 | X8: =SUM('법정동(2025.12월말)'!X68:X75) -> 95,001.8 | Y8: =SUM('법정동(2025.12월말)'!Y68:Y75) -> 80 | Z8: =SUM('법정동(2025.12월말)'!Z68:Z75) -> 31,698.9 | AA8: =SUM('법정동(2025.12월말)'!AA68:AA75) -> 25 | AB8: =SUM('법정동(2025.12월말)'!AB68:AB75) -> 94,373.1 | AC8: =SUM('법정동(2025.12월말)'!AC68:AC75) -> 109 | AD8: =SUM('법정동(2025.12월말)'!AD68:AD75) -> 2,766,857.3 | AE8: =SUM('법정동(2025.12월말)'!AE68:AE75) -> 5,542 | AF8: =SUM('법정동(2025.12월말)'!AF68:AF75) -> 252,889.6 | AG8: =SUM('법정동(2025.12월말)'!AG68:AG75) -> 324 | AH8: =SUM('법정동(2025.12월말)'!AH68:AH75) -> 62,634.6 | AI8: =SUM('법정동(2025.12월말)'!AI68:AI75) -> 44 | AJ8: =SUM('법정동(2025.12월말)'!AJ68:AJ75) -> 799,353.9 | AK8: =SUM('법정동(2025.12월말)'!AK68:AK75) -> 138 | AL8: =SUM('법정동(2025.12월말)'!AL68:AL75) -> 895,929.7 | AM8: =SUM('법정동(2025.12월말)'!AM68:AM75) -> 939 | AN8: =SUM('법정동(2025.12월말)'!AN68:AN75) -> 960,665.6 | AO8: =SUM('법정동(2025.12월말)'!AO68:AO75) -> 190 | AP8: =SUM('법정동(2025.12월말)'!AP68:AP75) -> 1,375.0 | AQ8: =SUM('법정동(2025.12월말)'!AQ68:AQ75) -> 1 | AR8: =SUM('법정동(2025.12월말)'!AR68:AR75) -> 33,659.3 | AS8: =SUM('법정동(2025.12월말)'!AS68:AS75) -> 54 | AT8: =SUM('법정동(2025.12월말)'!AT68:AT75) -> 439,081.7 | AU8: =SUM('법정동(2025.12월말)'!AU68:AU75) -> 112 | AV8: =SUM('법정동(2025.12월말)'!AV68:AV75) -> 6,422.0 | AW8: =SUM('법정동(2025.12월말)'!AW68:AW75) -> 1 | AX8: =SUM('법정동(2025.12월말)'!AX68:AX75) -> 84,450.0 | AY8: =SUM('법정동(2025.12월말)'!AY68:AY75) -> 18 | AZ8: =SUM('법정동(2025.12월말)'!AZ68:AZ75) -> 38,127.5 | BA8: =SUM('법정동(2025.12월말)'!BA68:BA75) -> 45 | BB8: =SUM('법정동(2025.12월말)'!BB68:BB75) -> 0 | BC8: =SUM('법정동(2025.12월말)'!BC68:BC75) -> 0 | BD8: =SUM('법정동(2025.12월말)'!BD68:BD75) -> 350,509.0 | BE8: =SUM('법정동(2025.12월말)'!BE68:BE75) -> 198 | BF8: =SUM('법정동(2025.12월말)'!BF68:BF75) -> 567,575.3 | BG8: =SUM('법정동(2025.12월말)'!BG68:BG75) -> 450
A9: 율촌면 | B9: =SUM('법정동(2025.12월말)'!B76:B85) -> 50,042,415.9 | C9: =SUM('법정동(2025.12월말)'!C76:C85) -> 31,250.0 | D9: =SUM('법정동(2025.12월말)'!D76:D85) -> 4,746,239.3 | E9: =SUM('법정동(2025.12월말)'!E76:E85) -> 5,377 | F9: =SUM('법정동(2025.12월말)'!F76:F85) -> 7,221,943.8 | G9: =SUM('법정동(2025.12월말)'!G76:G85) -> 7,914 | H9: =SUM('법정동(2025.12월말)'!H76:H85) -> 194,566.1 | I9: =SUM('법정동(2025.12월말)'!I76:I85) -> 81 | J9: =SUM('법정동(2025.12월말)'!J76:J85) -> 361,838.5 | K9: =SUM('법정동(2025.12월말)'!K76:K85) -> 227 | L9: =SUM('법정동(2025.12월말)'!L76:L85) -> 26,327,265.8 | M9: =SUM('법정동(2025.12월말)'!M76:M85) -> 5,514 | N9: =SUM('법정동(2025.12월말)'!N76:N85) -> 0 | O9: =SUM('법정동(2025.12월말)'!O76:O85) -> 0 | P9: =SUM('법정동(2025.12월말)'!P76:P85) -> 1,937.0 | Q9: =SUM('법정동(2025.12월말)'!Q76:Q85) -> 4 | R9: =SUM('법정동(2025.12월말)'!R76:R85) -> 1,698,476.6 | S9: =SUM('법정동(2025.12월말)'!S76:S85) -> 3,909 | T9: =SUM('법정동(2025.12월말)'!T76:T85) -> 1,094,689.2 | U9: =SUM('법정동(2025.12월말)'!U76:U85) -> 102 | V9: =SUM('법정동(2025.12월말)'!V76:V85) -> 78,440.0 | W9: =SUM('법정동(2025.12월말)'!W76:W85) -> 17 | X9: =SUM('법정동(2025.12월말)'!X76:X85) -> 73,049.9 | Y9: =SUM('법정동(2025.12월말)'!Y76:Y85) -> 51 | Z9: =SUM('법정동(2025.12월말)'!Z76:Z85) -> 22,941.0 | AA9: =SUM('법정동(2025.12월말)'!AA76:AA85) -> 21 | AB9: =SUM('법정동(2025.12월말)'!AB76:AB85) -> 40,385.0 | AC9: =SUM('법정동(2025.12월말)'!AC76:AC85) -> 52 | AD9: =SUM('법정동(2025.12월말)'!AD76:AD85) -> 2,104,329.5 | AE9: =SUM('법정동(2025.12월말)'!AE76:AE85) -> 5,561 | AF9: =SUM('법정동(2025.12월말)'!AF76:AF85) -> 362,938.0 | AG9: =SUM('법정동(2025.12월말)'!AG76:AG85) -> 453 | AH9: =SUM('법정동(2025.12월말)'!AH76:AH85) -> 35,663.3 | AI9: =SUM('법정동(2025.12월말)'!AI76:AI85) -> 37 | AJ9: =SUM('법정동(2025.12월말)'!AJ76:AJ85) -> 249,950.4 | AK9: =SUM('법정동(2025.12월말)'!AK76:AK85) -> 72 | AL9: =SUM('법정동(2025.12월말)'!AL76:AL85) -> 825,575.0 | AM9: =SUM('법정동(2025.12월말)'!AM76:AM85) -> 886 | AN9: =SUM('법정동(2025.12월말)'!AN76:AN85) -> 341,518.0 | AO9: =SUM('법정동(2025.12월말)'!AO76:AO85) -> 192 | AP9: =SUM('법정동(2025.12월말)'!AP76:AP85) -> 2,992.0 | AQ9: =SUM('법정동(2025.12월말)'!AQ76:AQ85) -> 2 | AR9: =SUM('법정동(2025.12월말)'!AR76:AR85) -> 103,696.0 | AS9: =SUM('법정동(2025.12월말)'!AS76:AS85) -> 122 | AT9: =SUM('법정동(2025.12월말)'!AT76:AT85) -> 678,723.5 | AU9: =SUM('법정동(2025.12월말)'!AU76:AU85) -> 28 | AV9: =SUM('법정동(2025.12월말)'!AV76:AV85) -> 0 | AW9: =SUM('법정동(2025.12월말)'!AW76:AW85) -> 0 | AX9: =SUM('법정동(2025.12월말)'!AX76:AX85) -> 7,027.0 | AY9: =SUM('법정동(2025.12월말)'!AY76:AY85) -> 3 | AZ9: =SUM('법정동(2025.12월말)'!AZ76:AZ85) -> 31,887.3 | BA9: =SUM('법정동(2025.12월말)'!BA76:BA85) -> 44 | BB9: =SUM('법정동(2025.12월말)'!BB76:BB85) -> 0 | BC9: =SUM('법정동(2025.12월말)'!BC76:BC85) -> 0 | BD9: =SUM('법정동(2025.12월말)'!BD76:BD85) -> 119,497.4 | BE9: =SUM('법정동(2025.12월말)'!BE76:BE85) -> 161 | BF9: =SUM('법정동(2025.12월말)'!BF76:BF85) -> 3,316,846.3 | BG9: =SUM('법정동(2025.12월말)'!BG76:BG85) -> 420
A10: 화양면 | B10: =SUM('법정동(2025.12월말)'!B86:B95) -> 70,147,588.3 | C10: =SUM('법정동(2025.12월말)'!C86:C95) -> 39,743.0 | D10: =SUM('법정동(2025.12월말)'!D86:D95) -> 10,320,172.4 | E10: =SUM('법정동(2025.12월말)'!E86:E95) -> 10,243 | F10: =SUM('법정동(2025.12월말)'!F86:F95) -> 5,698,508.3 | G10: =SUM('법정동(2025.12월말)'!G86:G95) -> 6,215 | H10: =SUM('법정동(2025.12월말)'!H86:H95) -> 155,429.0 | I10: =SUM('법정동(2025.12월말)'!I86:I95) -> 57 | J10: =SUM('법정동(2025.12월말)'!J86:J95) -> 234,149.0 | K10: =SUM('법정동(2025.12월말)'!K86:K95) -> 127 | L10: =SUM('법정동(2025.12월말)'!L86:L95) -> 45,580,160.5 | M10: =SUM('법정동(2025.12월말)'!M86:M95) -> 8,520 | N10: =SUM('법정동(2025.12월말)'!N86:N95) -> 0 | O10: =SUM('법정동(2025.12월말)'!O86:O95) -> 0 | P10: =SUM('법정동(2025.12월말)'!P86:P95) -> 0 | Q10: =SUM('법정동(2025.12월말)'!Q86:Q95) -> 0 | R10: =SUM('법정동(2025.12월말)'!R86:R95) -> 1,785,874.6 | S10: =SUM('법정동(2025.12월말)'!S86:S95) -> 4,525 | T10: =SUM('법정동(2025.12월말)'!T86:T95) -> 240,482.8 | U10: =SUM('법정동(2025.12월말)'!U86:U95) -> 103 | V10: =SUM('법정동(2025.12월말)'!V86:V95) -> 112,792.1 | W10: =SUM('법정동(2025.12월말)'!W86:W95) -> 31 | X10: =SUM('법정동(2025.12월말)'!X86:X95) -> 9,069.0 | Y10: =SUM('법정동(2025.12월말)'!Y86:Y95) -> 15 | Z10: =SUM('법정동(2025.12월말)'!Z86:Z95) -> 12,077.0 | AA10: =SUM('법정동(2025.12월말)'!AA86:AA95) -> 8 | AB10: =SUM('법정동(2025.12월말)'!AB86:AB95) -> 53,903.0 | AC10: =SUM('법정동(2025.12월말)'!AC86:AC95) -> 96 | AD10: =SUM('법정동(2025.12월말)'!AD86:AD95) -> 2,877,497.1 | AE10: =SUM('법정동(2025.12월말)'!AE86:AE95) -> 7,522 | AF10: =SUM('법정동(2025.12월말)'!AF86:AF95) -> 0 | AG10: =SUM('법정동(2025.12월말)'!AG86:AG95) -> 0 | AH10: =SUM('법정동(2025.12월말)'!AH86:AH95) -> 46,446.9 | AI10: =SUM('법정동(2025.12월말)'!AI86:AI95) -> 96 | AJ10: =SUM('법정동(2025.12월말)'!AJ86:AJ95) -> 96,631.1 | AK10: =SUM('법정동(2025.12월말)'!AK86:AK95) -> 59 | AL10: =SUM('법정동(2025.12월말)'!AL86:AL95) -> 765,902.4 | AM10: =SUM('법정동(2025.12월말)'!AM86:AM95) -> 877 | AN10: =SUM('법정동(2025.12월말)'!AN86:AN95) -> 577,036.8 | AO10: =SUM('법정동(2025.12월말)'!AO86:AO95) -> 268 | AP10: =SUM('법정동(2025.12월말)'!AP86:AP95) -> 44,501.0 | AQ10: =SUM('법정동(2025.12월말)'!AQ86:AQ95) -> 44 | AR10: =SUM('법정동(2025.12월말)'!AR86:AR95) -> 0 | AS10: =SUM('법정동(2025.12월말)'!AS86:AS95) -> 0 | AT10: =SUM('법정동(2025.12월말)'!AT86:AT95) -> 5,900.0 | AU10: =SUM('법정동(2025.12월말)'!AU86:AU95) -> 3 | AV10: =SUM('법정동(2025.12월말)'!AV86:AV95) -> 759,110.4 | AW10: =SUM('법정동(2025.12월말)'!AW86:AW95) -> 4 | AX10: =SUM('법정동(2025.12월말)'!AX86:AX95) -> 7,796.0 | AY10: =SUM('법정동(2025.12월말)'!AY86:AY95) -> 2 | AZ10: =SUM('법정동(2025.12월말)'!AZ86:AZ95) -> 27,965.7 | BA10: =SUM('법정동(2025.12월말)'!BA86:BA95) -> 45 | BB10: =SUM('법정동(2025.12월말)'!BB86:BB95) -> 6,161.0 | BC10: =SUM('법정동(2025.12월말)'!BC86:BC95) -> 3 | BD10: =SUM('법정동(2025.12월말)'!BD86:BD95) -> 143,404.0 | BE10: =SUM('법정동(2025.12월말)'!BE86:BE95) -> 177 | BF10: =SUM('법정동(2025.12월말)'!BF86:BF95) -> 586,618.2 | BG10: =SUM('법정동(2025.12월말)'!BG86:BG95) -> 703
A11: 남 면 | B11: =SUM('법정동(2025.12월말)'!B96:B104) -> 42,554,575.3 | C11: =SUM('법정동(2025.12월말)'!C96:C104) -> 21,422.0 | D11: =SUM('법정동(2025.12월말)'!D96:D104) -> 8,980,805.9 | E11: =SUM('법정동(2025.12월말)'!E96:E104) -> 8,316 | F11: =SUM('법정동(2025.12월말)'!F96:F104) -> 1,358,674.4 | G11: =SUM('법정동(2025.12월말)'!G96:G104) -> 3,082 | H11: =SUM('법정동(2025.12월말)'!H96:H104) -> 0 | I11: =SUM('법정동(2025.12월말)'!I96:I104) -> 0 | J11: =SUM('법정동(2025.12월말)'!J96:J104) -> 0 | K11: =SUM('법정동(2025.12월말)'!K96:K104) -> 0 | L11: =SUM('법정동(2025.12월말)'!L96:L104) -> 29,795,922.2 | M11: =SUM('법정동(2025.12월말)'!M96:M104) -> 4,354 | N11: =SUM('법정동(2025.12월말)'!N96:N104) -> 0 | O11: =SUM('법정동(2025.12월말)'!O96:O104) -> 0 | P11: =SUM('법정동(2025.12월말)'!P96:P104) -> 0 | Q11: =SUM('법정동(2025.12월말)'!Q96:Q104) -> 0 | R11: =SUM('법정동(2025.12월말)'!R96:R104) -> 747,374.0 | S11: =SUM('법정동(2025.12월말)'!S96:S104) -> 2,895 | T11: =SUM('법정동(2025.12월말)'!T96:T104) -> 2,032.0 | U11: =SUM('법정동(2025.12월말)'!U96:U104) -> 2 | V11: =SUM('법정동(2025.12월말)'!V96:V104) -> 88,843.2 | W11: =SUM('법정동(2025.12월말)'!W96:W104) -> 41 | X11: =SUM('법정동(2025.12월말)'!X96:X104) -> 302.0 | Y11: =SUM('법정동(2025.12월말)'!Y96:Y104) -> 2 | Z11: =SUM('법정동(2025.12월말)'!Z96:Z104) -> 395.0 | AA11: =SUM('법정동(2025.12월말)'!AA96:AA104) -> 2 | AB11: =SUM('법정동(2025.12월말)'!AB96:AB104) -> 11,509.0 | AC11: =SUM('법정동(2025.12월말)'!AC96:AC104) -> 14 | AD11: =SUM('법정동(2025.12월말)'!AD96:AD104) -> 870,353.2 | AE11: =SUM('법정동(2025.12월말)'!AE96:AE104) -> 1,839 | AF11: =SUM('법정동(2025.12월말)'!AF96:AF104) -> 0 | AG11: =SUM('법정동(2025.12월말)'!AG96:AG104) -> 0 | AH11: =SUM('법정동(2025.12월말)'!AH96:AH104) -> 33,609.3 | AI11: =SUM('법정동(2025.12월말)'!AI96:AI104) -> 104 | AJ11: =SUM('법정동(2025.12월말)'!AJ96:AJ104) -> 14,717.0 | AK11: =SUM('법정동(2025.12월말)'!AK96:AK104) -> 48 | AL11: =SUM('법정동(2025.12월말)'!AL96:AL104) -> 126,541.3 | AM11: =SUM('법정동(2025.12월말)'!AM96:AM104) -> 147 | AN11: =SUM('법정동(2025.12월말)'!AN96:AN104) -> 19,751.7 | AO11: =SUM('법정동(2025.12월말)'!AO96:AO104) -> 38 | AP11: =SUM('법정동(2025.12월말)'!AP96:AP104) -> 17,305.8 | AQ11: =SUM('법정동(2025.12월말)'!AQ96:AQ104) -> 19 | AR11: =SUM('법정동(2025.12월말)'!AR96:AR104) -> 73,152.0 | AS11: =SUM('법정동(2025.12월말)'!AS96:AS104) -> 10 | AT11: =SUM('법정동(2025.12월말)'!AT96:AT104) -> 0 | AU11: =SUM('법정동(2025.12월말)'!AU96:AU104) -> 0 | AV11: =SUM('법정동(2025.12월말)'!AV96:AV104) -> 0 | AW11: =SUM('법정동(2025.12월말)'!AW96:AW104) -> 0 | AX11: =SUM('법정동(2025.12월말)'!AX96:AX104) -> 0 | AY11: =SUM('법정동(2025.12월말)'!AY96:AY104) -> 0 | AZ11: =SUM('법정동(2025.12월말)'!AZ96:AZ104) -> 8,847.9 | BA11: =SUM('법정동(2025.12월말)'!BA96:BA104) -> 15 | BB11: =SUM('법정동(2025.12월말)'!BB96:BB104) -> 0 | BC11: =SUM('법정동(2025.12월말)'!BC96:BC104) -> 0 | BD11: =SUM('법정동(2025.12월말)'!BD96:BD104) -> 126,736.1 | BE11: =SUM('법정동(2025.12월말)'!BE96:BE104) -> 131 | BF11: =SUM('법정동(2025.12월말)'!BF96:BF104) -> 277,703.3 | BG11: =SUM('법정동(2025.12월말)'!BG96:BG104) -> 363
A12: 화정면 | B12: =SUM('법정동(2025.12월말)'!B105:B114) -> 26,356,261.0 | C12: =SUM('법정동(2025.12월말)'!C105:C114) -> 16,739.0 | D12: =SUM('법정동(2025.12월말)'!D105:D114) -> 6,437,222.0 | E12: =SUM('법정동(2025.12월말)'!E105:E114) -> 7,015 | F12: =SUM('법정동(2025.12월말)'!F105:F114) -> 869,554.5 | G12: =SUM('법정동(2025.12월말)'!G105:G114) -> 1,185 | H12: =SUM('법정동(2025.12월말)'!H105:H114) -> 1,353.0 | I12: =SUM('법정동(2025.12월말)'!I105:I114) -> 1 | J12: =SUM('법정동(2025.12월말)'!J105:J114) -> 2,992.0 | K12: =SUM('법정동(2025.12월말)'!K105:K114) -> 4 | L12: =SUM('법정동(2025.12월말)'!L105:L114) -> 16,847,671.2 | M12: =SUM('법정동(2025.12월말)'!M105:M114) -> 3,976 | N12: =SUM('법정동(2025.12월말)'!N105:N114) -> 0 | O12: =SUM('법정동(2025.12월말)'!O105:O114) -> 0 | P12: =SUM('법정동(2025.12월말)'!P105:P114) -> 891.0 | Q12: =SUM('법정동(2025.12월말)'!Q105:Q114) -> 1 | R12: =SUM('법정동(2025.12월말)'!R105:R114) -> 612,310.2 | S12: =SUM('법정동(2025.12월말)'!S105:S114) -> 2,226 | T12: =SUM('법정동(2025.12월말)'!T105:T114) -> 0 | U12: =SUM('법정동(2025.12월말)'!U105:U114) -> 0 | V12: =SUM('법정동(2025.12월말)'!V105:V114) -> 92,137.8 | W12: =SUM('법정동(2025.12월말)'!W105:W114) -> 42 | X12: =SUM('법정동(2025.12월말)'!X105:X114) -> 4,903.4 | Y12: =SUM('법정동(2025.12월말)'!Y105:Y114) -> 2 | Z12: =SUM('법정동(2025.12월말)'!Z105:Z114) -> 0 | AA12: =SUM('법정동(2025.12월말)'!AA105:AA114) -> 0 | AB12: =SUM('법정동(2025.12월말)'!AB105:AB114) -> 1,521.0 | AC12: =SUM('법정동(2025.12월말)'!AC105:AC114) -> 4 | AD12: =SUM('법정동(2025.12월말)'!AD105:AD114) -> 883,648.6 | AE12: =SUM('법정동(2025.12월말)'!AE105:AE114) -> 1,547 | AF12: =SUM('법정동(2025.12월말)'!AF105:AF114) -> 0 | AG12: =SUM('법정동(2025.12월말)'!AG105:AG114) -> 0 | AH12: =SUM('법정동(2025.12월말)'!AH105:AH114) -> 48,116.3 | AI12: =SUM('법정동(2025.12월말)'!AI105:AI114) -> 100 | AJ12: =SUM('법정동(2025.12월말)'!AJ105:AJ114) -> 15,033.0 | AK12: =SUM('법정동(2025.12월말)'!AK105:AK114) -> 15 | AL12: =SUM('법정동(2025.12월말)'!AL105:AL114) -> 134,675.2 | AM12: =SUM('법정동(2025.12월말)'!AM105:AM114) -> 134 | AN12: =SUM('법정동(2025.12월말)'!AN105:AN114) -> 73,639.0 | AO12: =SUM('법정동(2025.12월말)'!AO105:AO114) -> 28 | AP12: =SUM('법정동(2025.12월말)'!AP105:AP114) -> 43,480.6 | AQ12: =SUM('법정동(2025.12월말)'!AQ105:AQ114) -> 26 | AR12: =SUM('법정동(2025.12월말)'!AR105:AR114) -> 26,403.0 | AS12: =SUM('법정동(2025.12월말)'!AS105:AS114) -> 21 | AT12: =SUM('법정동(2025.12월말)'!AT105:AT114) -> 0 | AU12: =SUM('법정동(2025.12월말)'!AU105:AU114) -> 0 | AV12: =SUM('법정동(2025.12월말)'!AV105:AV114) -> 0 | AW12: =SUM('법정동(2025.12월말)'!AW105:AW114) -> 0 | AX12: =SUM('법정동(2025.12월말)'!AX105:AX114) -> 0 | AY12: =SUM('법정동(2025.12월말)'!AY105:AY114) -> 0 | AZ12: =SUM('법정동(2025.12월말)'!AZ105:AZ114) -> 8,209.3 | BA12: =SUM('법정동(2025.12월말)'!BA105:BA114) -> 15 | BB12: =SUM('법정동(2025.12월말)'!BB105:BB114) -> 0 | BC12: =SUM('법정동(2025.12월말)'!BC105:BC114) -> 0 | BD12: =SUM('법정동(2025.12월말)'!BD105:BD114) -> 104,943.0 | BE12: =SUM('법정동(2025.12월말)'!BE105:BE114) -> 201 | BF12: =SUM('법정동(2025.12월말)'!BF105:BF114) -> 147,556.9 | BG12: =SUM('법정동(2025.12월말)'!BG105:BG114) -> 196
A13: 삼산면 | B13: =SUM('법정동(2025.12월말)'!B115:B120) -> 27,569,041.3 | C13: =SUM('법정동(2025.12월말)'!C115:C120) -> 13,892.0 | D13: =SUM('법정동(2025.12월말)'!D115:D120) -> 4,750,832.0 | E13: =SUM('법정동(2025.12월말)'!E115:E120) -> 5,673 | F13: =SUM('법정동(2025.12월말)'!F115:F120) -> 281,678.0 | G13: =SUM('법정동(2025.12월말)'!G115:G120) -> 663 | H13: =SUM('법정동(2025.12월말)'!H115:H120) -> 981.0 | I13: =SUM('법정동(2025.12월말)'!I115:I120) -> 1 | J13: =SUM('법정동(2025.12월말)'!J115:J120) -> 81,491.0 | K13: =SUM('법정동(2025.12월말)'!K115:K120) -> 6 | L13: =SUM('법정동(2025.12월말)'!L115:L120) -> 20,727,232.0 | M13: =SUM('법정동(2025.12월말)'!M115:M120) -> 4,253 | N13: =SUM('법정동(2025.12월말)'!N115:N120) -> 0 | O13: =SUM('법정동(2025.12월말)'!O115:O120) -> 0 | P13: =SUM('법정동(2025.12월말)'!P115:P120) -> 0 | Q13: =SUM('법정동(2025.12월말)'!Q115:Q120) -> 0 | R13: =SUM('법정동(2025.12월말)'!R115:R120) -> 496,963.0 | S13: =SUM('법정동(2025.12월말)'!S115:S120) -> 2,176 | T13: =SUM('법정동(2025.12월말)'!T115:T120) -> 0 | U13: =SUM('법정동(2025.12월말)'!U115:U120) -> 0 | V13: =SUM('법정동(2025.12월말)'!V115:V120) -> 72,367.0 | W13: =SUM('법정동(2025.12월말)'!W115:W120) -> 26 | X13: =SUM('법정동(2025.12월말)'!X115:X120) -> 0 | Y13: =SUM('법정동(2025.12월말)'!Y115:Y120) -> 0 | Z13: =SUM('법정동(2025.12월말)'!Z115:Z120) -> 0 | AA13: =SUM('법정동(2025.12월말)'!AA115:AA120) -> 0 | AB13: =SUM('법정동(2025.12월말)'!AB115:AB120) -> 1,945.0 | AC13: =SUM('법정동(2025.12월말)'!AC115:AC120) -> 4 | AD13: =SUM('법정동(2025.12월말)'!AD115:AD120) -> 426,902.0 | AE13: =SUM('법정동(2025.12월말)'!AE115:AE120) -> 551 | AF13: =SUM('법정동(2025.12월말)'!AF115:AF120) -> 0 | AG13: =SUM('법정동(2025.12월말)'!AG115:AG120) -> 0 | AH13: =SUM('법정동(2025.12월말)'!AH115:AH120) -> 30,827.2 | AI13: =SUM('법정동(2025.12월말)'!AI115:AI120) -> 43 | AJ13: =SUM('법정동(2025.12월말)'!AJ115:AJ120) -> 1,424.0 | AK13: =SUM('법정동(2025.12월말)'!AK115:AK120) -> 8 | AL13: =SUM('법정동(2025.12월말)'!AL115:AL120) -> 48,852.0 | AM13: =SUM('법정동(2025.12월말)'!AM115:AM120) -> 41 | AN13: =SUM('법정동(2025.12월말)'!AN115:AN120) -> 4,297.0 | AO13: =SUM('법정동(2025.12월말)'!AO115:AO120) -> 5 | AP13: =SUM('법정동(2025.12월말)'!AP115:AP120) -> 10,718.0 | AQ13: =SUM('법정동(2025.12월말)'!AQ115:AQ120) -> 11 | AR13: =SUM('법정동(2025.12월말)'!AR115:AR120) -> 16,874.0 | AS13: =SUM('법정동(2025.12월말)'!AS115:AS120) -> 5 | AT13: =SUM('법정동(2025.12월말)'!AT115:AT120) -> 0 | AU13: =SUM('법정동(2025.12월말)'!AU115:AU120) -> 0 | AV13: =SUM('법정동(2025.12월말)'!AV115:AV120) -> 0 | AW13: =SUM('법정동(2025.12월말)'!AW115:AW120) -> 0 | AX13: =SUM('법정동(2025.12월말)'!AX115:AX120) -> 0 | AY13: =SUM('법정동(2025.12월말)'!AY115:AY120) -> 0 | AZ13: =SUM('법정동(2025.12월말)'!AZ115:AZ120) -> 1,963.0 | BA13: =SUM('법정동(2025.12월말)'!BA115:BA120) -> 9 | BB13: =SUM('법정동(2025.12월말)'!BB115:BB120) -> 0 | BC13: =SUM('법정동(2025.12월말)'!BC115:BC120) -> 0 | BD13: =SUM('법정동(2025.12월말)'!BD115:BD120) -> 418,174.0 | BE13: =SUM('법정동(2025.12월말)'!BE115:BE120) -> 246 | BF13: =SUM('법정동(2025.12월말)'!BF115:BF120) -> 195,521.1 | BG13: =SUM('법정동(2025.12월말)'!BG115:BG120) -> 171
A14: 동문동 | B14: =SUM('법정동(2025.12월말)'!B7,'법정동(2025.12월말)'!B10,'법정동(2025.12월말)'!B12) -> 931,798.3 | C14: =SUM('법정동(2025.12월말)'!C7,'법정동(2025.12월말)'!C10,'법정동(2025.12월말)'!C12) -> 4,442.0 | D14: =SUM('법정동(2025.12월말)'!D7,'법정동(2025.12월말)'!D10,'법정동(2025.12월말)'!D12) -> 97,779.0 | E14: =SUM('법정동(2025.12월말)'!E7,'법정동(2025.12월말)'!E10,'법정동(2025.12월말)'!E12) -> 328 | F14: =SUM('법정동(2025.12월말)'!F7,'법정동(2025.12월말)'!F10,'법정동(2025.12월말)'!F12) -> 4,082.0 | G14: =SUM('법정동(2025.12월말)'!G7,'법정동(2025.12월말)'!G10,'법정동(2025.12월말)'!G12) -> 24 | H14: =SUM('법정동(2025.12월말)'!H7,'법정동(2025.12월말)'!H10,'법정동(2025.12월말)'!H12) -> 0 | I14: =SUM('법정동(2025.12월말)'!I7,'법정동(2025.12월말)'!I10,'법정동(2025.12월말)'!I12) -> 0 | J14: =SUM('법정동(2025.12월말)'!J7,'법정동(2025.12월말)'!J10,'법정동(2025.12월말)'!J12) -> 0 | K14: =SUM('법정동(2025.12월말)'!K7,'법정동(2025.12월말)'!K10,'법정동(2025.12월말)'!K12) -> 0 | L14: =SUM('법정동(2025.12월말)'!L7,'법정동(2025.12월말)'!L10,'법정동(2025.12월말)'!L12) -> 151,986.0 | M14: =SUM('법정동(2025.12월말)'!M7,'법정동(2025.12월말)'!M10,'법정동(2025.12월말)'!M12) -> 107 | N14: =SUM('법정동(2025.12월말)'!N7,'법정동(2025.12월말)'!N10,'법정동(2025.12월말)'!N12) -> 0 | O14: =SUM('법정동(2025.12월말)'!O7,'법정동(2025.12월말)'!O10,'법정동(2025.12월말)'!O12) -> 0 | P14: =SUM('법정동(2025.12월말)'!P7,'법정동(2025.12월말)'!P10,'법정동(2025.12월말)'!P12) -> 0 | Q14: =SUM('법정동(2025.12월말)'!Q7,'법정동(2025.12월말)'!Q10,'법정동(2025.12월말)'!Q12) -> 0 | R14: =SUM('법정동(2025.12월말)'!R7,'법정동(2025.12월말)'!R10,'법정동(2025.12월말)'!R12) -> 339,600.1 | S14: =SUM('법정동(2025.12월말)'!S7,'법정동(2025.12월말)'!S10,'법정동(2025.12월말)'!S12) -> 3,067 | T14: =SUM('법정동(2025.12월말)'!T7,'법정동(2025.12월말)'!T10,'법정동(2025.12월말)'!T12) -> 0 | U14: =SUM('법정동(2025.12월말)'!U7,'법정동(2025.12월말)'!U10,'법정동(2025.12월말)'!U12) -> 0 | V14: =SUM('법정동(2025.12월말)'!V7,'법정동(2025.12월말)'!V10,'법정동(2025.12월말)'!V12) -> 76,073.0 | W14: =SUM('법정동(2025.12월말)'!W7,'법정동(2025.12월말)'!W10,'법정동(2025.12월말)'!W12) -> 10 | X14: =SUM('법정동(2025.12월말)'!X7,'법정동(2025.12월말)'!X10,'법정동(2025.12월말)'!X12) -> 2,127.0 | Y14: =SUM('법정동(2025.12월말)'!Y7,'법정동(2025.12월말)'!Y10,'법정동(2025.12월말)'!Y12) -> 14 | Z14: =SUM('법정동(2025.12월말)'!Z7,'법정동(2025.12월말)'!Z10,'법정동(2025.12월말)'!Z12) -> 0 | AA14: =SUM('법정동(2025.12월말)'!AA7,'법정동(2025.12월말)'!AA10,'법정동(2025.12월말)'!AA12) -> 0 | AB14: =SUM('법정동(2025.12월말)'!AB7,'법정동(2025.12월말)'!AB10,'법정동(2025.12월말)'!AB12) -> 0 | AC14: =SUM('법정동(2025.12월말)'!AC7,'법정동(2025.12월말)'!AC10,'법정동(2025.12월말)'!AC12) -> 0 | AD14: =SUM('법정동(2025.12월말)'!AD7,'법정동(2025.12월말)'!AD10,'법정동(2025.12월말)'!AD12) -> 143,532.2 | AE14: =SUM('법정동(2025.12월말)'!AE7,'법정동(2025.12월말)'!AE10,'법정동(2025.12월말)'!AE12) -> 804 | AF14: =SUM('법정동(2025.12월말)'!AF7,'법정동(2025.12월말)'!AF10,'법정동(2025.12월말)'!AF12) -> 0 | AG14: =SUM('법정동(2025.12월말)'!AG7,'법정동(2025.12월말)'!AG10,'법정동(2025.12월말)'!AG12) -> 0 | AH14: =SUM('법정동(2025.12월말)'!AH7,'법정동(2025.12월말)'!AH10,'법정동(2025.12월말)'!AH12) -> 2,134.0 | AI14: =SUM('법정동(2025.12월말)'!AI7,'법정동(2025.12월말)'!AI10,'법정동(2025.12월말)'!AI12) -> 5 | AJ14: =SUM('법정동(2025.12월말)'!AJ7,'법정동(2025.12월말)'!AJ10,'법정동(2025.12월말)'!AJ12) -> 0 | AK14: =SUM('법정동(2025.12월말)'!AK7,'법정동(2025.12월말)'!AK10,'법정동(2025.12월말)'!AK12) -> 0 | AL14: =SUM('법정동(2025.12월말)'!AL7,'법정동(2025.12월말)'!AL10,'법정동(2025.12월말)'!AL12) -> 5,824.0 | AM14: =SUM('법정동(2025.12월말)'!AM7,'법정동(2025.12월말)'!AM10,'법정동(2025.12월말)'!AM12) -> 19 | AN14: =SUM('법정동(2025.12월말)'!AN7,'법정동(2025.12월말)'!AN10,'법정동(2025.12월말)'!AN12) -> 0 | AO14: =SUM('법정동(2025.12월말)'!AO7,'법정동(2025.12월말)'!AO10,'법정동(2025.12월말)'!AO12) -> 0 | AP14: =SUM('법정동(2025.12월말)'!AP7,'법정동(2025.12월말)'!AP10,'법정동(2025.12월말)'!AP12) -> 0 | AQ14: =SUM('법정동(2025.12월말)'!AQ7,'법정동(2025.12월말)'!AQ10,'법정동(2025.12월말)'!AQ12) -> 0 | AR14: =SUM('법정동(2025.12월말)'!AR7,'법정동(2025.12월말)'!AR10,'법정동(2025.12월말)'!AR12) -> 1,381.0 | AS14: =SUM('법정동(2025.12월말)'!AS7,'법정동(2025.12월말)'!AS10,'법정동(2025.12월말)'!AS12) -> 6 | AT14: =SUM('법정동(2025.12월말)'!AT7,'법정동(2025.12월말)'!AT10,'법정동(2025.12월말)'!AT12) -> 84,107.0 | AU14: =SUM('법정동(2025.12월말)'!AU7,'법정동(2025.12월말)'!AU10,'법정동(2025.12월말)'!AU12) -> 14 | AV14: =SUM('법정동(2025.12월말)'!AV7,'법정동(2025.12월말)'!AV10,'법정동(2025.12월말)'!AV12) -> 0 | AW14: =SUM('법정동(2025.12월말)'!AW7,'법정동(2025.12월말)'!AW10,'법정동(2025.12월말)'!AW12) -> 0 | AX14: =SUM('법정동(2025.12월말)'!AX7,'법정동(2025.12월말)'!AX10,'법정동(2025.12월말)'!AX12) -> 0 | AY14: =SUM('법정동(2025.12월말)'!AY7,'법정동(2025.12월말)'!AY10,'법정동(2025.12월말)'!AY12) -> 0 | AZ14: =SUM('법정동(2025.12월말)'!AZ7,'법정동(2025.12월말)'!AZ10,'법정동(2025.12월말)'!AZ12) -> 2,958.0 | BA14: =SUM('법정동(2025.12월말)'!BA7,'법정동(2025.12월말)'!BA10,'법정동(2025.12월말)'!BA12) -> 9 | BB14: =SUM('법정동(2025.12월말)'!BB7,'법정동(2025.12월말)'!BB10,'법정동(2025.12월말)'!BB12) -> 0 | BC14: =SUM('법정동(2025.12월말)'!BC7,'법정동(2025.12월말)'!BC10,'법정동(2025.12월말)'!BC12) -> 0 | BD14: =SUM('법정동(2025.12월말)'!BD7,'법정동(2025.12월말)'!BD10,'법정동(2025.12월말)'!BD12) -> 3,587.0 | BE14: =SUM('법정동(2025.12월말)'!BE7,'법정동(2025.12월말)'!BE10,'법정동(2025.12월말)'!BE12) -> 12 | BF14: =SUM('법정동(2025.12월말)'!BF7,'법정동(2025.12월말)'!BF10,'법정동(2025.12월말)'!BF12) -> 16,628.0 | BG14: =SUM('법정동(2025.12월말)'!BG7,'법정동(2025.12월말)'!BG10,'법정동(2025.12월말)'!BG12) -> 23
A15: 한려동 | B15: =SUM('법정동(2025.12월말)'!B8:B9) -> 949,823.7 | C15: =SUM('법정동(2025.12월말)'!C8:C9) -> 2,968.0 | D15: =SUM('법정동(2025.12월말)'!D8:D9) -> 39,599.0 | E15: =SUM('법정동(2025.12월말)'!E8:E9) -> 229 | F15: =SUM('법정동(2025.12월말)'!F8:F9) -> 0 | G15: =SUM('법정동(2025.12월말)'!G8:G9) -> 0 | H15: =SUM('법정동(2025.12월말)'!H8:H9) -> 0 | I15: =SUM('법정동(2025.12월말)'!I8:I9) -> 0 | J15: =SUM('법정동(2025.12월말)'!J8:J9) -> 0 | K15: =SUM('법정동(2025.12월말)'!K8:K9) -> 0 | L15: =SUM('법정동(2025.12월말)'!L8:L9) -> 131,355.0 | M15: =SUM('법정동(2025.12월말)'!M8:M9) -> 52 | N15: =SUM('법정동(2025.12월말)'!N8:N9) -> 0 | O15: =SUM('법정동(2025.12월말)'!O8:O9) -> 0 | P15: =SUM('법정동(2025.12월말)'!P8:P9) -> 0 | Q15: =SUM('법정동(2025.12월말)'!Q8:Q9) -> 0 | R15: =SUM('법정동(2025.12월말)'!R8:R9) -> 322,820.3 | S15: =SUM('법정동(2025.12월말)'!S8:S9) -> 2,098 | T15: =SUM('법정동(2025.12월말)'!T8:T9) -> 0 | U15: =SUM('법정동(2025.12월말)'!U8:U9) -> 0 | V15: =SUM('법정동(2025.12월말)'!V8:V9) -> 89,038.0 | W15: =SUM('법정동(2025.12월말)'!W8:W9) -> 8 | X15: =SUM('법정동(2025.12월말)'!X8:X9) -> 18,213.8 | Y15: =SUM('법정동(2025.12월말)'!Y8:Y9) -> 17 | Z15: =SUM('법정동(2025.12월말)'!Z8:Z9) -> 912.0 | AA15: =SUM('법정동(2025.12월말)'!AA8:AA9) -> 3 | AB15: =SUM('법정동(2025.12월말)'!AB8:AB9) -> 0 | AC15: =SUM('법정동(2025.12월말)'!AC8:AC9) -> 0 | AD15: =SUM('법정동(2025.12월말)'!AD8:AD9) -> 220,779.1 | AE15: =SUM('법정동(2025.12월말)'!AE8:AE9) -> 474 | AF15: =SUM('법정동(2025.12월말)'!AF8:AF9) -> 3,358.0 | AG15: =SUM('법정동(2025.12월말)'!AG8:AG9) -> 14 | AH15: =SUM('법정동(2025.12월말)'!AH8:AH9) -> 11,759.0 | AI15: =SUM('법정동(2025.12월말)'!AI8:AI9) -> 4 | AJ15: =SUM('법정동(2025.12월말)'!AJ8:AJ9) -> 0 | AK15: =SUM('법정동(2025.12월말)'!AK8:AK9) -> 0 | AL15: =SUM('법정동(2025.12월말)'!AL8:AL9) -> 3,487.0 | AM15: =SUM('법정동(2025.12월말)'!AM8:AM9) -> 23 | AN15: =SUM('법정동(2025.12월말)'!AN8:AN9) -> 0 | AO15: =SUM('법정동(2025.12월말)'!AO8:AO9) -> 0 | AP15: =SUM('법정동(2025.12월말)'!AP8:AP9) -> 0 | AQ15: =SUM('법정동(2025.12월말)'!AQ8:AQ9) -> 0 | AR15: =SUM('법정동(2025.12월말)'!AR8:AR9) -> 0 | AS15: =SUM('법정동(2025.12월말)'!AS8:AS9) -> 0 | AT15: =SUM('법정동(2025.12월말)'!AT8:AT9) -> 73,429.8 | AU15: =SUM('법정동(2025.12월말)'!AU8:AU9) -> 9 | AV15: =SUM('법정동(2025.12월말)'!AV8:AV9) -> 0 | AW15: =SUM('법정동(2025.12월말)'!AW8:AW9) -> 0 | AX15: =SUM('법정동(2025.12월말)'!AX8:AX9) -> 0 | AY15: =SUM('법정동(2025.12월말)'!AY8:AY9) -> 0 | AZ15: =SUM('법정동(2025.12월말)'!AZ8:AZ9) -> 6,337.0 | BA15: =SUM('법정동(2025.12월말)'!BA8:BA9) -> 9 | BB15: =SUM('법정동(2025.12월말)'!BB8:BB9) -> 0 | BC15: =SUM('법정동(2025.12월말)'!BC8:BC9) -> 0 | BD15: =SUM('법정동(2025.12월말)'!BD8:BD9) -> 1,128.0 | BE15: =SUM('법정동(2025.12월말)'!BE8:BE9) -> 5 | BF15: =SUM('법정동(2025.12월말)'!BF8:BF9) -> 27,607.7 | BG15: =SUM('법정동(2025.12월말)'!BG8:BG9) -> 23
A16: 중앙동 | B16: =SUM('법정동(2025.12월말)'!B11,'법정동(2025.12월말)'!B13:B14) -> 502,056.2 | C16: =SUM('법정동(2025.12월말)'!C11,'법정동(2025.12월말)'!C13:C14) -> 3,187.0 | D16: =SUM('법정동(2025.12월말)'!D11,'법정동(2025.12월말)'!D13:D14) -> 14,544.0 | E16: =SUM('법정동(2025.12월말)'!E11,'법정동(2025.12월말)'!E13:E14) -> 101 | F16: =SUM('법정동(2025.12월말)'!F11,'법정동(2025.12월말)'!F13:F14) -> 0 | G16: =SUM('법정동(2025.12월말)'!G11,'법정동(2025.12월말)'!G13:G14) -> 0 | H16: =SUM('법정동(2025.12월말)'!H11,'법정동(2025.12월말)'!H13:H14) -> 0 | I16: =SUM('법정동(2025.12월말)'!I11,'법정동(2025.12월말)'!I13:I14) -> 0 | J16: =SUM('법정동(2025.12월말)'!J11,'법정동(2025.12월말)'!J13:J14) -> 0 | K16: =SUM('법정동(2025.12월말)'!K11,'법정동(2025.12월말)'!K13:K14) -> 0 | L16: =SUM('법정동(2025.12월말)'!L11,'법정동(2025.12월말)'!L13:L14) -> 20,446.0 | M16: =SUM('법정동(2025.12월말)'!M11,'법정동(2025.12월말)'!M13:M14) -> 28 | N16: =SUM('법정동(2025.12월말)'!N11,'법정동(2025.12월말)'!N13:N14) -> 0 | O16: =SUM('법정동(2025.12월말)'!O11,'법정동(2025.12월말)'!O13:O14) -> 0 | P16: =SUM('법정동(2025.12월말)'!P11,'법정동(2025.12월말)'!P13:P14) -> 0 | Q16: =SUM('법정동(2025.12월말)'!Q11,'법정동(2025.12월말)'!Q13:Q14) -> 0 | R16: =SUM('법정동(2025.12월말)'!R11,'법정동(2025.12월말)'!R13:R14) -> 278,719.0 | S16: =SUM('법정동(2025.12월말)'!S11,'법정동(2025.12월말)'!S13:S14) -> 2,540 | T16: =SUM('법정동(2025.12월말)'!T11,'법정동(2025.12월말)'!T13:T14) -> 0 | U16: =SUM('법정동(2025.12월말)'!U11,'법정동(2025.12월말)'!U13:U14) -> 0 | V16: =SUM('법정동(2025.12월말)'!V11,'법정동(2025.12월말)'!V13:V14) -> 0 | W16: =SUM('법정동(2025.12월말)'!W11,'법정동(2025.12월말)'!W13:W14) -> 0 | X16: =SUM('법정동(2025.12월말)'!X11,'법정동(2025.12월말)'!X13:X14) -> 7,748.2 | Y16: =SUM('법정동(2025.12월말)'!Y11,'법정동(2025.12월말)'!Y13:Y14) -> 11 | Z16: =SUM('법정동(2025.12월말)'!Z11,'법정동(2025.12월말)'!Z13:Z14) -> 0 | AA16: =SUM('법정동(2025.12월말)'!AA11,'법정동(2025.12월말)'!AA13:AA14) -> 0 | AB16: =SUM('법정동(2025.12월말)'!AB11,'법정동(2025.12월말)'!AB13:AB14) -> 0 | AC16: =SUM('법정동(2025.12월말)'!AC11,'법정동(2025.12월말)'!AC13:AC14) -> 0 | AD16: =SUM('법정동(2025.12월말)'!AD11,'법정동(2025.12월말)'!AD13:AD14) -> 136,818.0 | AE16: =SUM('법정동(2025.12월말)'!AE11,'법정동(2025.12월말)'!AE13:AE14) -> 475 | AF16: =SUM('법정동(2025.12월말)'!AF11,'법정동(2025.12월말)'!AF13:AF14) -> 0 | AG16: =SUM('법정동(2025.12월말)'!AG11,'법정동(2025.12월말)'!AG13:AG14) -> 0 | AH16: =SUM('법정동(2025.12월말)'!AH11,'법정동(2025.12월말)'!AH13:AH14) -> 800.0 | AI16: =SUM('법정동(2025.12월말)'!AI11,'법정동(2025.12월말)'!AI13:AI14) -> 2 | AJ16: =SUM('법정동(2025.12월말)'!AJ11,'법정동(2025.12월말)'!AJ13:AJ14) -> 9,005.0 | AK16: =SUM('법정동(2025.12월말)'!AK11,'법정동(2025.12월말)'!AK13:AK14) -> 1 | AL16: =SUM('법정동(2025.12월말)'!AL11,'법정동(2025.12월말)'!AL13:AL14) -> 445.0 | AM16: =SUM('법정동(2025.12월말)'!AM11,'법정동(2025.12월말)'!AM13:AM14) -> 5 | AN16: =SUM('법정동(2025.12월말)'!AN11,'법정동(2025.12월말)'!AN13:AN14) -> 0 | AO16: =SUM('법정동(2025.12월말)'!AO11,'법정동(2025.12월말)'!AO13:AO14) -> 0 | AP16: =SUM('법정동(2025.12월말)'!AP11,'법정동(2025.12월말)'!AP13:AP14) -> 0 | AQ16: =SUM('법정동(2025.12월말)'!AQ11,'법정동(2025.12월말)'!AQ13:AQ14) -> 0 | AR16: =SUM('법정동(2025.12월말)'!AR11,'법정동(2025.12월말)'!AR13:AR14) -> 671.0 | AS16: =SUM('법정동(2025.12월말)'!AS11,'법정동(2025.12월말)'!AS13:AS14) -> 1 | AT16: =SUM('법정동(2025.12월말)'!AT11,'법정동(2025.12월말)'!AT13:AT14) -> 10,938.0 | AU16: =SUM('법정동(2025.12월말)'!AU11,'법정동(2025.12월말)'!AU13:AU14) -> 2 | AV16: =SUM('법정동(2025.12월말)'!AV11,'법정동(2025.12월말)'!AV13:AV14) -> 0 | AW16: =SUM('법정동(2025.12월말)'!AW11,'법정동(2025.12월말)'!AW13:AW14) -> 0 | AX16: =SUM('법정동(2025.12월말)'!AX11,'법정동(2025.12월말)'!AX13:AX14) -> 0 | AY16: =SUM('법정동(2025.12월말)'!AY11,'법정동(2025.12월말)'!AY13:AY14) -> 0 | AZ16: =SUM('법정동(2025.12월말)'!AZ11,'법정동(2025.12월말)'!AZ13:AZ14) -> 4,294.0 | BA16: =SUM('법정동(2025.12월말)'!BA11,'법정동(2025.12월말)'!BA13:BA14) -> 4 | BB16: =SUM('법정동(2025.12월말)'!BB11,'법정동(2025.12월말)'!BB13:BB14) -> 1,583.0 | BC16: =SUM('법정동(2025.12월말)'!BC11,'법정동(2025.12월말)'!BC13:BC14) -> 1 | BD16: =SUM('법정동(2025.12월말)'!BD11,'법정동(2025.12월말)'!BD13:BD14) -> 0 | BE16: =SUM('법정동(2025.12월말)'!BE11,'법정동(2025.12월말)'!BE13:BE14) -> 0 | BF16: =SUM('법정동(2025.12월말)'!BF11,'법정동(2025.12월말)'!BF13:BF14) -> 16,045.0 | BG16: =SUM('법정동(2025.12월말)'!BG11,'법정동(2025.12월말)'!BG13:BG14) -> 16
A17: 충무동 | B17: =SUM('법정동(2025.12월말)'!B15:B17) -> 1,347,538.5 | C17: =SUM('법정동(2025.12월말)'!C15:C17) -> 3,803.0 | D17: =SUM('법정동(2025.12월말)'!D15:D17) -> 224,214.0 | E17: =SUM('법정동(2025.12월말)'!E15:E17) -> 485 | F17: =SUM('법정동(2025.12월말)'!F15:F17) -> 43,881.0 | G17: =SUM('법정동(2025.12월말)'!G15:G17) -> 79 | H17: =SUM('법정동(2025.12월말)'!H15:H17) -> 0 | I17: =SUM('법정동(2025.12월말)'!I15:I17) -> 0 | J17: =SUM('법정동(2025.12월말)'!J15:J17) -> 0 | K17: =SUM('법정동(2025.12월말)'!K15:K17) -> 0 | L17: =SUM('법정동(2025.12월말)'!L15:L17) -> 442,665.8 | M17: =SUM('법정동(2025.12월말)'!M15:M17) -> 144 | N17: =SUM('법정동(2025.12월말)'!N15:N17) -> 0 | O17: =SUM('법정동(2025.12월말)'!O15:O17) -> 0 | P17: =SUM('법정동(2025.12월말)'!P15:P17) -> 0 | Q17: =SUM('법정동(2025.12월말)'!Q15:Q17) -> 0 | R17: =SUM('법정동(2025.12월말)'!R15:R17) -> 311,582.6 | S17: =SUM('법정동(2025.12월말)'!S15:S17) -> 2,392 | T17: =SUM('법정동(2025.12월말)'!T15:T17) -> 696.7 | U17: =SUM('법정동(2025.12월말)'!U15:U17) -> 1 | V17: =SUM('법정동(2025.12월말)'!V15:V17) -> 21,502.0 | W17: =SUM('법정동(2025.12월말)'!W15:W17) -> 3 | X17: =SUM('법정동(2025.12월말)'!X15:X17) -> 3,051.0 | Y17: =SUM('법정동(2025.12월말)'!Y15:Y17) -> 15 | Z17: =SUM('법정동(2025.12월말)'!Z15:Z17) -> 1,190.1 | AA17: =SUM('법정동(2025.12월말)'!AA15:AA17) -> 5 | AB17: =SUM('법정동(2025.12월말)'!AB15:AB17) -> 2,638.4 | AC17: =SUM('법정동(2025.12월말)'!AC15:AC17) -> 3 | AD17: =SUM('법정동(2025.12월말)'!AD15:AD17) -> 213,820.6 | AE17: =SUM('법정동(2025.12월말)'!AE15:AE17) -> 564 | AF17: =SUM('법정동(2025.12월말)'!AF15:AF17) -> 0 | AG17: =SUM('법정동(2025.12월말)'!AG15:AG17) -> 0 | AH17: =SUM('법정동(2025.12월말)'!AH15:AH17) -> 0 | AI17: =SUM('법정동(2025.12월말)'!AI15:AI17) -> 0 | AJ17: =SUM('법정동(2025.12월말)'!AJ15:AJ17) -> 18,504.0 | AK17: =SUM('법정동(2025.12월말)'!AK15:AK17) -> 25 | AL17: =SUM('법정동(2025.12월말)'!AL15:AL17) -> 32,306.4 | AM17: =SUM('법정동(2025.12월말)'!AM15:AM17) -> 29 | AN17: =SUM('법정동(2025.12월말)'!AN15:AN17) -> 0 | AO17: =SUM('법정동(2025.12월말)'!AO15:AO17) -> 0 | AP17: =SUM('법정동(2025.12월말)'!AP15:AP17) -> 0 | AQ17: =SUM('법정동(2025.12월말)'!AQ15:AQ17) -> 0 | AR17: =SUM('법정동(2025.12월말)'!AR15:AR17) -> 2,773.0 | AS17: =SUM('법정동(2025.12월말)'!AS15:AS17) -> 5 | AT17: =SUM('법정동(2025.12월말)'!AT15:AT17) -> 991.9 | AU17: =SUM('법정동(2025.12월말)'!AU15:AU17) -> 1 | AV17: =SUM('법정동(2025.12월말)'!AV15:AV17) -> 0 | AW17: =SUM('법정동(2025.12월말)'!AW15:AW17) -> 0 | AX17: =SUM('법정동(2025.12월말)'!AX15:AX17) -> 0 | AY17: =SUM('법정동(2025.12월말)'!AY15:AY17) -> 0 | AZ17: =SUM('법정동(2025.12월말)'!AZ15:AZ17) -> 9,283.0 | BA17: =SUM('법정동(2025.12월말)'!BA15:BA17) -> 16 | BB17: =SUM('법정동(2025.12월말)'!BB15:BB17) -> 5,718.0 | BC17: =SUM('법정동(2025.12월말)'!BC15:BC17) -> 5 | BD17: =SUM('법정동(2025.12월말)'!BD15:BD17) -> 5,021.0 | BE17: =SUM('법정동(2025.12월말)'!BE15:BE17) -> 9 | BF17: =SUM('법정동(2025.12월말)'!BF15:BF17) -> 7,699.0 | BG17: =SUM('법정동(2025.12월말)'!BG15:BG17) -> 22
A18: 광림동 | B18: =SUM('법정동(2025.12월말)'!B18,'법정동(2025.12월말)'!B27) -> 3,392,787.1 | C18: =SUM('법정동(2025.12월말)'!C18,'법정동(2025.12월말)'!C27) -> 4,569.0 | D18: =SUM('법정동(2025.12월말)'!D18,'법정동(2025.12월말)'!D27) -> 320,142.0 | E18: =SUM('법정동(2025.12월말)'!E18,'법정동(2025.12월말)'!E27) -> 660 | F18: =SUM('법정동(2025.12월말)'!F18,'법정동(2025.12월말)'!F27) -> 43,980.0 | G18: =SUM('법정동(2025.12월말)'!G18,'법정동(2025.12월말)'!G27) -> 130 | H18: =SUM('법정동(2025.12월말)'!H18,'법정동(2025.12월말)'!H27) -> 0 | I18: =SUM('법정동(2025.12월말)'!I18,'법정동(2025.12월말)'!I27) -> 0 | J18: =SUM('법정동(2025.12월말)'!J18,'법정동(2025.12월말)'!J27) -> 0 | K18: =SUM('법정동(2025.12월말)'!K18,'법정동(2025.12월말)'!K27) -> 0 | L18: =SUM('법정동(2025.12월말)'!L18,'법정동(2025.12월말)'!L27) -> 1,747,264.0 | M18: =SUM('법정동(2025.12월말)'!M18,'법정동(2025.12월말)'!M27) -> 379 | N18: =SUM('법정동(2025.12월말)'!N18,'법정동(2025.12월말)'!N27) -> 0 | O18: =SUM('법정동(2025.12월말)'!O18,'법정동(2025.12월말)'!O27) -> 0 | P18: =SUM('법정동(2025.12월말)'!P18,'법정동(2025.12월말)'!P27) -> 0 | Q18: =SUM('법정동(2025.12월말)'!Q18,'법정동(2025.12월말)'!Q27) -> 0 | R18: =SUM('법정동(2025.12월말)'!R18,'법정동(2025.12월말)'!R27) -> 451,676.8 | S18: =SUM('법정동(2025.12월말)'!S18,'법정동(2025.12월말)'!S27) -> 2,335 | T18: =SUM('법정동(2025.12월말)'!T18,'법정동(2025.12월말)'!T27) -> 38.0 | U18: =SUM('법정동(2025.12월말)'!U18,'법정동(2025.12월말)'!U27) -> 3 | V18: =SUM('법정동(2025.12월말)'!V18,'법정동(2025.12월말)'!V27) -> 45,635.0 | W18: =SUM('법정동(2025.12월말)'!W18,'법정동(2025.12월말)'!W27) -> 7 | X18: =SUM('법정동(2025.12월말)'!X18,'법정동(2025.12월말)'!X27) -> 6,915.3 | Y18: =SUM('법정동(2025.12월말)'!Y18,'법정동(2025.12월말)'!Y27) -> 11 | Z18: =SUM('법정동(2025.12월말)'!Z18,'법정동(2025.12월말)'!Z27) -> 1,817.8 | AA18: =SUM('법정동(2025.12월말)'!AA18,'법정동(2025.12월말)'!AA27) -> 1 | AB18: =SUM('법정동(2025.12월말)'!AB18,'법정동(2025.12월말)'!AB27) -> 1,806.0 | AC18: =SUM('법정동(2025.12월말)'!AC18,'법정동(2025.12월말)'!AC27) -> 3 | AD18: =SUM('법정동(2025.12월말)'!AD18,'법정동(2025.12월말)'!AD27) -> 278,593.4 | AE18: =SUM('법정동(2025.12월말)'!AE18,'법정동(2025.12월말)'!AE27) -> 845 | AF18: =SUM('법정동(2025.12월말)'!AF18,'법정동(2025.12월말)'!AF27) -> 31,909.0 | AG18: =SUM('법정동(2025.12월말)'!AG18,'법정동(2025.12월말)'!AG27) -> 32 | AH18: =SUM('법정동(2025.12월말)'!AH18,'법정동(2025.12월말)'!AH27) -> 0 | AI18: =SUM('법정동(2025.12월말)'!AI18,'법정동(2025.12월말)'!AI27) -> 0 | AJ18: =SUM('법정동(2025.12월말)'!AJ18,'법정동(2025.12월말)'!AJ27) -> 25,852.4 | AK18: =SUM('법정동(2025.12월말)'!AK18,'법정동(2025.12월말)'!AK27) -> 16 | AL18: =SUM('법정동(2025.12월말)'!AL18,'법정동(2025.12월말)'!AL27) -> 18,608.1 | AM18: =SUM('법정동(2025.12월말)'!AM18,'법정동(2025.12월말)'!AM27) -> 50 | AN18: =SUM('법정동(2025.12월말)'!AN18,'법정동(2025.12월말)'!AN27) -> 10.0 | AO18: =SUM('법정동(2025.12월말)'!AO18,'법정동(2025.12월말)'!AO27) -> 1 | AP18: =SUM('법정동(2025.12월말)'!AP18,'법정동(2025.12월말)'!AP27) -> 0 | AQ18: =SUM('법정동(2025.12월말)'!AQ18,'법정동(2025.12월말)'!AQ27) -> 0 | AR18: =SUM('법정동(2025.12월말)'!AR18,'법정동(2025.12월말)'!AR27) -> 2,300.0 | AS18: =SUM('법정동(2025.12월말)'!AS18,'법정동(2025.12월말)'!AS27) -> 5 | AT18: =SUM('법정동(2025.12월말)'!AT18,'법정동(2025.12월말)'!AT27) -> 2,315.4 | AU18: =SUM('법정동(2025.12월말)'!AU18,'법정동(2025.12월말)'!AU27) -> 2 | AV18: =SUM('법정동(2025.12월말)'!AV18,'법정동(2025.12월말)'!AV27) -> 333,668.7 | AW18: =SUM('법정동(2025.12월말)'!AW18,'법정동(2025.12월말)'!AW27) -> 18 | AX18: =SUM('법정동(2025.12월말)'!AX18,'법정동(2025.12월말)'!AX27) -> 0 | AY18: =SUM('법정동(2025.12월말)'!AY18,'법정동(2025.12월말)'!AY27) -> 0 | AZ18: =SUM('법정동(2025.12월말)'!AZ18,'법정동(2025.12월말)'!AZ27) -> 15,165.9 | BA18: =SUM('법정동(2025.12월말)'!BA18,'법정동(2025.12월말)'!BA27) -> 17 | BB18: =SUM('법정동(2025.12월말)'!BB18,'법정동(2025.12월말)'!BB27) -> 0 | BC18: =SUM('법정동(2025.12월말)'!BC18,'법정동(2025.12월말)'!BC27) -> 0 | BD18: =SUM('법정동(2025.12월말)'!BD18,'법정동(2025.12월말)'!BD27) -> 39,941.0 | BE18: =SUM('법정동(2025.12월말)'!BE18,'법정동(2025.12월말)'!BE27) -> 28 | BF18: =SUM('법정동(2025.12월말)'!BF18,'법정동(2025.12월말)'!BF27) -> 25,148.3 | BG18: =SUM('법정동(2025.12월말)'!BG18,'법정동(2025.12월말)'!BG27) -> 26
A19: 서강동 | B19: =SUM('법정동(2025.12월말)'!B19:B20) -> 655,171.5 | C19: =SUM('법정동(2025.12월말)'!C19:C20) -> 2,720.0 | D19: =SUM('법정동(2025.12월말)'!D19:D20) -> 76,168.0 | E19: =SUM('법정동(2025.12월말)'!E19:E20) -> 163 | F19: =SUM('법정동(2025.12월말)'!F19:F20) -> 26,946.0 | G19: =SUM('법정동(2025.12월말)'!G19:G20) -> 59 | H19: =SUM('법정동(2025.12월말)'!H19:H20) -> 0 | I19: =SUM('법정동(2025.12월말)'!I19:I20) -> 0 | J19: =SUM('법정동(2025.12월말)'!J19:J20) -> 0 | K19: =SUM('법정동(2025.12월말)'!K19:K20) -> 0 | L19: =SUM('법정동(2025.12월말)'!L19:L20) -> 153,502.0 | M19: =SUM('법정동(2025.12월말)'!M19:M20) -> 56 | N19: =SUM('법정동(2025.12월말)'!N19:N20) -> 0 | O19: =SUM('법정동(2025.12월말)'!O19:O20) -> 0 | P19: =SUM('법정동(2025.12월말)'!P19:P20) -> 0 | Q19: =SUM('법정동(2025.12월말)'!Q19:Q20) -> 0 | R19: =SUM('법정동(2025.12월말)'!R19:R20) -> 210,784.2 | S19: =SUM('법정동(2025.12월말)'!S19:S20) -> 1,707 | T19: =SUM('법정동(2025.12월말)'!T19:T20) -> 0 | U19: =SUM('법정동(2025.12월말)'!U19:U20) -> 0 | V19: =SUM('법정동(2025.12월말)'!V19:V20) -> 55,316.0 | W19: =SUM('법정동(2025.12월말)'!W19:W20) -> 4 | X19: =SUM('법정동(2025.12월말)'!X19:X20) -> 8,916.0 | Y19: =SUM('법정동(2025.12월말)'!Y19:Y20) -> 12 | Z19: =SUM('법정동(2025.12월말)'!Z19:Z20) -> 0 | AA19: =SUM('법정동(2025.12월말)'!AA19:AA20) -> 0 | AB19: =SUM('법정동(2025.12월말)'!AB19:AB20) -> 0 | AC19: =SUM('법정동(2025.12월말)'!AC19:AC20) -> 0 | AD19: =SUM('법정동(2025.12월말)'!AD19:AD20) -> 96,985.7 | AE19: =SUM('법정동(2025.12월말)'!AE19:AE20) -> 658 | AF19: =SUM('법정동(2025.12월말)'!AF19:AF20) -> 0 | AG19: =SUM('법정동(2025.12월말)'!AG19:AG20) -> 0 | AH19: =SUM('법정동(2025.12월말)'!AH19:AH20) -> 0 | AI19: =SUM('법정동(2025.12월말)'!AI19:AI20) -> 0 | AJ19: =SUM('법정동(2025.12월말)'!AJ19:AJ20) -> 8,724.0 | AK19: =SUM('법정동(2025.12월말)'!AK19:AK20) -> 4 | AL19: =SUM('법정동(2025.12월말)'!AL19:AL20) -> 4,157.0 | AM19: =SUM('법정동(2025.12월말)'!AM19:AM20) -> 26 | AN19: =SUM('법정동(2025.12월말)'!AN19:AN20) -> 0 | AO19: =SUM('법정동(2025.12월말)'!AO19:AO20) -> 0 | AP19: =SUM('법정동(2025.12월말)'!AP19:AP20) -> 0 | AQ19: =SUM('법정동(2025.12월말)'!AQ19:AQ20) -> 0 | AR19: =SUM('법정동(2025.12월말)'!AR19:AR20) -> 0 | AS19: =SUM('법정동(2025.12월말)'!AS19:AS20) -> 0 | AT19: =SUM('법정동(2025.12월말)'!AT19:AT20) -> 2,049.9 | AU19: =SUM('법정동(2025.12월말)'!AU19:AU20) -> 2 | AV19: =SUM('법정동(2025.12월말)'!AV19:AV20) -> 0 | AW19: =SUM('법정동(2025.12월말)'!AW19:AW20) -> 0 | AX19: =SUM('법정동(2025.12월말)'!AX19:AX20) -> 0 | AY19: =SUM('법정동(2025.12월말)'!AY19:AY20) -> 0 | AZ19: =SUM('법정동(2025.12월말)'!AZ19:AZ20) -> 8,333.0 | BA19: =SUM('법정동(2025.12월말)'!BA19:BA20) -> 9 | BB19: =SUM('법정동(2025.12월말)'!BB19:BB20) -> 0 | BC19: =SUM('법정동(2025.12월말)'!BC19:BC20) -> 0 | BD19: =SUM('법정동(2025.12월말)'!BD19:BD20) -> 0 | BE19: =SUM('법정동(2025.12월말)'!BE19:BE20) -> 0 | BF19: =SUM('법정동(2025.12월말)'!BF19:BF20) -> 3,289.7 | BG19: =SUM('법정동(2025.12월말)'!BG19:BG20) -> 20
A20: 대교동 | B20: =SUM('법정동(2025.12월말)'!B21:B22) -> 1,613,699.7 | C20: =SUM('법정동(2025.12월말)'!C21:C22) -> 4,694.0 | D20: =SUM('법정동(2025.12월말)'!D21:D22) -> 228,108.0 | E20: =SUM('법정동(2025.12월말)'!E21:E22) -> 507 | F20: =SUM('법정동(2025.12월말)'!F21:F22) -> 36,256.0 | G20: =SUM('법정동(2025.12월말)'!G21:G22) -> 79 | H20: =SUM('법정동(2025.12월말)'!H21:H22) -> 0 | I20: =SUM('법정동(2025.12월말)'!I21:I22) -> 0 | J20: =SUM('법정동(2025.12월말)'!J21:J22) -> 0 | K20: =SUM('법정동(2025.12월말)'!K21:K22) -> 0 | L20: =SUM('법정동(2025.12월말)'!L21:L22) -> 380,747.0 | M20: =SUM('법정동(2025.12월말)'!M21:M22) -> 94 | N20: =SUM('법정동(2025.12월말)'!N21:N22) -> 0 | O20: =SUM('법정동(2025.12월말)'!O21:O22) -> 0 | P20: =SUM('법정동(2025.12월말)'!P21:P22) -> 0 | Q20: =SUM('법정동(2025.12월말)'!Q21:Q22) -> 0 | R20: =SUM('법정동(2025.12월말)'!R21:R22) -> 563,633.8 | S20: =SUM('법정동(2025.12월말)'!S21:S22) -> 3,051 | T20: =SUM('법정동(2025.12월말)'!T21:T22) -> 353.1 | U20: =SUM('법정동(2025.12월말)'!U21:U22) -> 1 | V20: =SUM('법정동(2025.12월말)'!V21:V22) -> 33,929.0 | W20: =SUM('법정동(2025.12월말)'!W21:W22) -> 8 | X20: =SUM('법정동(2025.12월말)'!X21:X22) -> 5,952.2 | Y20: =SUM('법정동(2025.12월말)'!Y21:Y22) -> 20 | Z20: =SUM('법정동(2025.12월말)'!Z21:Z22) -> 2,234.6 | AA20: =SUM('법정동(2025.12월말)'!AA21:AA22) -> 4 | AB20: =SUM('법정동(2025.12월말)'!AB21:AB22) -> 2,338.1 | AC20: =SUM('법정동(2025.12월말)'!AC21:AC22) -> 7 | AD20: =SUM('법정동(2025.12월말)'!AD21:AD22) -> 286,482.9 | AE20: =SUM('법정동(2025.12월말)'!AE21:AE22) -> 840 | AF20: =SUM('법정동(2025.12월말)'!AF21:AF22) -> 0 | AG20: =SUM('법정동(2025.12월말)'!AG21:AG22) -> 0 | AH20: =SUM('법정동(2025.12월말)'!AH21:AH22) -> 273.0 | AI20: =SUM('법정동(2025.12월말)'!AI21:AI22) -> 4 | AJ20: =SUM('법정동(2025.12월말)'!AJ21:AJ22) -> 9,140.0 | AK20: =SUM('법정동(2025.12월말)'!AK21:AK22) -> 1 | AL20: =SUM('법정동(2025.12월말)'!AL21:AL22) -> 4,369.0 | AM20: =SUM('법정동(2025.12월말)'!AM21:AM22) -> 18 | AN20: =SUM('법정동(2025.12월말)'!AN21:AN22) -> 27.0 | AO20: =SUM('법정동(2025.12월말)'!AO21:AO22) -> 2 | AP20: =SUM('법정동(2025.12월말)'!AP21:AP22) -> 0 | AQ20: =SUM('법정동(2025.12월말)'!AQ21:AQ22) -> 0 | AR20: =SUM('법정동(2025.12월말)'!AR21:AR22) -> 283.0 | AS20: =SUM('법정동(2025.12월말)'!AS21:AS22) -> 2 | AT20: =SUM('법정동(2025.12월말)'!AT21:AT22) -> 0 | AU20: =SUM('법정동(2025.12월말)'!AU21:AU22) -> 0 | AV20: =SUM('법정동(2025.12월말)'!AV21:AV22) -> 0 | AW20: =SUM('법정동(2025.12월말)'!AW21:AW22) -> 0 | AX20: =SUM('법정동(2025.12월말)'!AX21:AX22) -> 0 | AY20: =SUM('법정동(2025.12월말)'!AY21:AY22) -> 0 | AZ20: =SUM('법정동(2025.12월말)'!AZ21:AZ22) -> 11,341.0 | BA20: =SUM('법정동(2025.12월말)'!BA21:BA22) -> 8 | BB20: =SUM('법정동(2025.12월말)'!BB21:BB22) -> 0 | BC20: =SUM('법정동(2025.12월말)'!BC21:BC22) -> 0 | BD20: =SUM('법정동(2025.12월말)'!BD21:BD22) -> 2,664.0 | BE20: =SUM('법정동(2025.12월말)'!BE21:BE22) -> 12 | BF20: =SUM('법정동(2025.12월말)'!BF21:BF22) -> 45,568.0 | BG20: =SUM('법정동(2025.12월말)'!BG21:BG22) -> 36
A21: 국 동 | B21: =SUM('법정동(2025.12월말)'!B23) -> 1,533,693.3 | C21: =SUM('법정동(2025.12월말)'!C23) -> 3,139.0 | D21: =SUM('법정동(2025.12월말)'!D23) -> 71,267.0 | E21: =SUM('법정동(2025.12월말)'!E23) -> 398 | F21: =SUM('법정동(2025.12월말)'!F23) -> 11,631.0 | G21: =SUM('법정동(2025.12월말)'!G23) -> 63 | H21: =SUM('법정동(2025.12월말)'!H23) -> 815.0 | I21: =SUM('법정동(2025.12월말)'!I23) -> 1 | J21: =SUM('법정동(2025.12월말)'!J23) -> 0 | K21: =SUM('법정동(2025.12월말)'!K23) -> 0 | L21: =SUM('법정동(2025.12월말)'!L23) -> 484,506.0 | M21: =SUM('법정동(2025.12월말)'!M23) -> 84 | N21: =SUM('법정동(2025.12월말)'!N23) -> 0 | O21: =SUM('법정동(2025.12월말)'!O23) -> 0 | P21: =SUM('법정동(2025.12월말)'!P23) -> 0 | Q21: =SUM('법정동(2025.12월말)'!Q23) -> 0 | R21: =SUM('법정동(2025.12월말)'!R23) -> 544,395.2 | S21: =SUM('법정동(2025.12월말)'!S23) -> 1,898 | T21: =SUM('법정동(2025.12월말)'!T23) -> 8,962.0 | U21: =SUM('법정동(2025.12월말)'!U23) -> 21 | V21: =SUM('법정동(2025.12월말)'!V23) -> 126,886.2 | W21: =SUM('법정동(2025.12월말)'!W23) -> 27 | X21: =SUM('법정동(2025.12월말)'!X23) -> 6,695.0 | Y21: =SUM('법정동(2025.12월말)'!Y23) -> 10 | Z21: =SUM('법정동(2025.12월말)'!Z23) -> 1,291.0 | AA21: =SUM('법정동(2025.12월말)'!AA23) -> 2 | AB21: =SUM('법정동(2025.12월말)'!AB23) -> 2,039.0 | AC21: =SUM('법정동(2025.12월말)'!AC23) -> 8 | AD21: =SUM('법정동(2025.12월말)'!AD23) -> 187,390.6 | AE21: =SUM('법정동(2025.12월말)'!AE23) -> 533 | AF21: =SUM('법정동(2025.12월말)'!AF23) -> 0 | AG21: =SUM('법정동(2025.12월말)'!AG23) -> 0 | AH21: =SUM('법정동(2025.12월말)'!AH23) -> 2,006.0 | AI21: =SUM('법정동(2025.12월말)'!AI23) -> 1 | AJ21: =SUM('법정동(2025.12월말)'!AJ23) -> 0 | AK21: =SUM('법정동(2025.12월말)'!AK23) -> 0 | AL21: =SUM('법정동(2025.12월말)'!AL23) -> 15,676.0 | AM21: =SUM('법정동(2025.12월말)'!AM23) -> 16 | AN21: =SUM('법정동(2025.12월말)'!AN23) -> 0 | AO21: =SUM('법정동(2025.12월말)'!AO23) -> 0 | AP21: =SUM('법정동(2025.12월말)'!AP23) -> 0 | AQ21: =SUM('법정동(2025.12월말)'!AQ23) -> 0 | AR21: =SUM('법정동(2025.12월말)'!AR23) -> 3,448.0 | AS21: =SUM('법정동(2025.12월말)'!AS23) -> 5 | AT21: =SUM('법정동(2025.12월말)'!AT23) -> 0 | AU21: =SUM('법정동(2025.12월말)'!AU23) -> 0 | AV21: =SUM('법정동(2025.12월말)'!AV23) -> 1,163.0 | AW21: =SUM('법정동(2025.12월말)'!AW23) -> 1 | AX21: =SUM('법정동(2025.12월말)'!AX23) -> 0 | AY21: =SUM('법정동(2025.12월말)'!AY23) -> 0 | AZ21: =SUM('법정동(2025.12월말)'!AZ23) -> 7,538.5 | BA21: =SUM('법정동(2025.12월말)'!BA23) -> 14 | BB21: =SUM('법정동(2025.12월말)'!BB23) -> 0 | BC21: =SUM('법정동(2025.12월말)'!BC23) -> 0 | BD21: =SUM('법정동(2025.12월말)'!BD23) -> 11.0 | BE21: =SUM('법정동(2025.12월말)'!BE23) -> 2 | BF21: =SUM('법정동(2025.12월말)'!BF23) -> 57,972.8 | BG21: =SUM('법정동(2025.12월말)'!BG23) -> 55
A22: 월호동 | B22: =SUM('법정동(2025.12월말)'!B24,'법정동(2025.12월말)'!B33) -> 6,797,151.4 | C22: =SUM('법정동(2025.12월말)'!C24,'법정동(2025.12월말)'!C33) -> 4,620.0 | D22: =SUM('법정동(2025.12월말)'!D24,'법정동(2025.12월말)'!D33) -> 1,084,384.8 | E22: =SUM('법정동(2025.12월말)'!E24,'법정동(2025.12월말)'!E33) -> 1,448 | F22: =SUM('법정동(2025.12월말)'!F24,'법정동(2025.12월말)'!F33) -> 138,396.7 | G22: =SUM('법정동(2025.12월말)'!G24,'법정동(2025.12월말)'!G33) -> 248 | H22: =SUM('법정동(2025.12월말)'!H24,'법정동(2025.12월말)'!H33) -> 0 | I22: =SUM('법정동(2025.12월말)'!I24,'법정동(2025.12월말)'!I33) -> 0 | J22: =SUM('법정동(2025.12월말)'!J24,'법정동(2025.12월말)'!J33) -> 0 | K22: =SUM('법정동(2025.12월말)'!K24,'법정동(2025.12월말)'!K33) -> 0 | L22: =SUM('법정동(2025.12월말)'!L24,'법정동(2025.12월말)'!L33) -> 2,316,130.9 | M22: =SUM('법정동(2025.12월말)'!M24,'법정동(2025.12월말)'!M33) -> 554 | N22: =SUM('법정동(2025.12월말)'!N24,'법정동(2025.12월말)'!N33) -> 0 | O22: =SUM('법정동(2025.12월말)'!O24,'법정동(2025.12월말)'!O33) -> 0 | P22: =SUM('법정동(2025.12월말)'!P24,'법정동(2025.12월말)'!P33) -> 0 | Q22: =SUM('법정동(2025.12월말)'!Q24,'법정동(2025.12월말)'!Q33) -> 0 | R22: =SUM('법정동(2025.12월말)'!R24,'법정동(2025.12월말)'!R33) -> 464,681.2 | S22: =SUM('법정동(2025.12월말)'!S24,'법정동(2025.12월말)'!S33) -> 1,142 | T22: =SUM('법정동(2025.12월말)'!T24,'법정동(2025.12월말)'!T33) -> 862,406.3 | U22: =SUM('법정동(2025.12월말)'!U24,'법정동(2025.12월말)'!U33) -> 131 | V22: =SUM('법정동(2025.12월말)'!V24,'법정동(2025.12월말)'!V33) -> 35,047.6 | W22: =SUM('법정동(2025.12월말)'!W24,'법정동(2025.12월말)'!W33) -> 4 | X22: =SUM('법정동(2025.12월말)'!X24,'법정동(2025.12월말)'!X33) -> 7,324.1 | Y22: =SUM('법정동(2025.12월말)'!Y24,'법정동(2025.12월말)'!Y33) -> 11 | Z22: =SUM('법정동(2025.12월말)'!Z24,'법정동(2025.12월말)'!Z33) -> 2,571.0 | AA22: =SUM('법정동(2025.12월말)'!AA24,'법정동(2025.12월말)'!AA33) -> 9 | AB22: =SUM('법정동(2025.12월말)'!AB24,'법정동(2025.12월말)'!AB33) -> 1,810.0 | AC22: =SUM('법정동(2025.12월말)'!AC24,'법정동(2025.12월말)'!AC33) -> 2 | AD22: =SUM('법정동(2025.12월말)'!AD24,'법정동(2025.12월말)'!AD33) -> 306,436.2 | AE22: =SUM('법정동(2025.12월말)'!AE24,'법정동(2025.12월말)'!AE33) -> 760 | AF22: =SUM('법정동(2025.12월말)'!AF24,'법정동(2025.12월말)'!AF33) -> 0 | AG22: =SUM('법정동(2025.12월말)'!AG24,'법정동(2025.12월말)'!AG33) -> 0 | AH22: =SUM('법정동(2025.12월말)'!AH24,'법정동(2025.12월말)'!AH33) -> 13,829.1 | AI22: =SUM('법정동(2025.12월말)'!AI24,'법정동(2025.12월말)'!AI33) -> 35 | AJ22: =SUM('법정동(2025.12월말)'!AJ24,'법정동(2025.12월말)'!AJ33) -> 506.0 | AK22: =SUM('법정동(2025.12월말)'!AK24,'법정동(2025.12월말)'!AK33) -> 2 | AL22: =SUM('법정동(2025.12월말)'!AL24,'법정동(2025.12월말)'!AL33) -> 45,115.5 | AM22: =SUM('법정동(2025.12월말)'!AM24,'법정동(2025.12월말)'!AM33) -> 32 | AN22: =SUM('법정동(2025.12월말)'!AN24,'법정동(2025.12월말)'!AN33) -> 221.0 | AO22: =SUM('법정동(2025.12월말)'!AO24,'법정동(2025.12월말)'!AO33) -> 1 | AP22: =SUM('법정동(2025.12월말)'!AP24,'법정동(2025.12월말)'!AP33) -> 1,601.0 | AQ22: =SUM('법정동(2025.12월말)'!AQ24,'법정동(2025.12월말)'!AQ33) -> 1 | AR22: =SUM('법정동(2025.12월말)'!AR24,'법정동(2025.12월말)'!AR33) -> 1,979.7 | AS22: =SUM('법정동(2025.12월말)'!AS24,'법정동(2025.12월말)'!AS33) -> 3 | AT22: =SUM('법정동(2025.12월말)'!AT24,'법정동(2025.12월말)'!AT33) -> 85,326.8 | AU22: =SUM('법정동(2025.12월말)'!AU24,'법정동(2025.12월말)'!AU33) -> 22 | AV22: =SUM('법정동(2025.12월말)'!AV24,'법정동(2025.12월말)'!AV33) -> 1,142,605.1 | AW22: =SUM('법정동(2025.12월말)'!AW24,'법정동(2025.12월말)'!AW33) -> 5 | AX22: =SUM('법정동(2025.12월말)'!AX24,'법정동(2025.12월말)'!AX33) -> 38,738.1 | AY22: =SUM('법정동(2025.12월말)'!AY24,'법정동(2025.12월말)'!AY33) -> 2 | AZ22: =SUM('법정동(2025.12월말)'!AZ24,'법정동(2025.12월말)'!AZ33) -> 11,490.0 | BA22: =SUM('법정동(2025.12월말)'!BA24,'법정동(2025.12월말)'!BA33) -> 13 | BB22: =SUM('법정동(2025.12월말)'!BB24,'법정동(2025.12월말)'!BB33) -> 0 | BC22: =SUM('법정동(2025.12월말)'!BC24,'법정동(2025.12월말)'!BC33) -> 0 | BD22: =SUM('법정동(2025.12월말)'!BD24,'법정동(2025.12월말)'!BD33) -> 12,297.0 | BE22: =SUM('법정동(2025.12월말)'!BE24,'법정동(2025.12월말)'!BE33) -> 41 | BF22: =SUM('법정동(2025.12월말)'!BF24,'법정동(2025.12월말)'!BF33) -> 224,253.3 | BG22: =SUM('법정동(2025.12월말)'!BG24,'법정동(2025.12월말)'!BG33) -> 154
A23: 여서동 | B23: =SUM('법정동(2025.12월말)'!B25) -> 2,574,409.0 | C23: =SUM('법정동(2025.12월말)'!C25) -> 1,970.0 | D23: =SUM('법정동(2025.12월말)'!D25) -> 194,814.3 | E23: =SUM('법정동(2025.12월말)'!E25) -> 273 | F23: =SUM('법정동(2025.12월말)'!F25) -> 106,450.7 | G23: =SUM('법정동(2025.12월말)'!G25) -> 180 | H23: =SUM('법정동(2025.12월말)'!H25) -> 0 | I23: =SUM('법정동(2025.12월말)'!I25) -> 0 | J23: =SUM('법정동(2025.12월말)'!J25) -> 0 | K23: =SUM('법정동(2025.12월말)'!K25) -> 0 | L23: =SUM('법정동(2025.12월말)'!L25) -> 1,219,596.0 | M23: =SUM('법정동(2025.12월말)'!M25) -> 321 | N23: =SUM('법정동(2025.12월말)'!N25) -> 0 | O23: =SUM('법정동(2025.12월말)'!O25) -> 0 | P23: =SUM('법정동(2025.12월말)'!P25) -> 0 | Q23: =SUM('법정동(2025.12월말)'!Q25) -> 0 | R23: =SUM('법정동(2025.12월말)'!R25) -> 568,218.2 | S23: =SUM('법정동(2025.12월말)'!S25) -> 768 | T23: =SUM('법정동(2025.12월말)'!T25) -> 0 | U23: =SUM('법정동(2025.12월말)'!U25) -> 0 | V23: =SUM('법정동(2025.12월말)'!V25) -> 57,898.0 | W23: =SUM('법정동(2025.12월말)'!W25) -> 4 | X23: =SUM('법정동(2025.12월말)'!X25) -> 4,285.3 | Y23: =SUM('법정동(2025.12월말)'!Y25) -> 20 | Z23: =SUM('법정동(2025.12월말)'!Z25) -> 2,215.0 | AA23: =SUM('법정동(2025.12월말)'!AA25) -> 2 | AB23: =SUM('법정동(2025.12월말)'!AB25) -> 741.0 | AC23: =SUM('법정동(2025.12월말)'!AC25) -> 1 | AD23: =SUM('법정동(2025.12월말)'!AD25) -> 308,890.5 | AE23: =SUM('법정동(2025.12월말)'!AE25) -> 275 | AF23: =SUM('법정동(2025.12월말)'!AF25) -> 0 | AG23: =SUM('법정동(2025.12월말)'!AG25) -> 0 | AH23: =SUM('법정동(2025.12월말)'!AH25) -> 0 | AI23: =SUM('법정동(2025.12월말)'!AI25) -> 0 | AJ23: =SUM('법정동(2025.12월말)'!AJ25) -> 0 | AK23: =SUM('법정동(2025.12월말)'!AK25) -> 0 | AL23: =SUM('법정동(2025.12월말)'!AL25) -> 14,431.9 | AM23: =SUM('법정동(2025.12월말)'!AM25) -> 25 | AN23: =SUM('법정동(2025.12월말)'!AN25) -> 958.0 | AO23: =SUM('법정동(2025.12월말)'!AO25) -> 2 | AP23: =SUM('법정동(2025.12월말)'!AP25) -> 0 | AQ23: =SUM('법정동(2025.12월말)'!AQ25) -> 0 | AR23: =SUM('법정동(2025.12월말)'!AR25) -> 8,637.0 | AS23: =SUM('법정동(2025.12월말)'!AS25) -> 4 | AT23: =SUM('법정동(2025.12월말)'!AT25) -> 32,420.4 | AU23: =SUM('법정동(2025.12월말)'!AU25) -> 9 | AV23: =SUM('법정동(2025.12월말)'!AV25) -> 8,842.0 | AW23: =SUM('법정동(2025.12월말)'!AW25) -> 6 | AX23: =SUM('법정동(2025.12월말)'!AX25) -> 0 | AY23: =SUM('법정동(2025.12월말)'!AY25) -> 0 | AZ23: =SUM('법정동(2025.12월말)'!AZ25) -> 18,262.4 | BA23: =SUM('법정동(2025.12월말)'!BA25) -> 22 | BB23: =SUM('법정동(2025.12월말)'!BB25) -> 0 | BC23: =SUM('법정동(2025.12월말)'!BC25) -> 0 | BD23: =SUM('법정동(2025.12월말)'!BD25) -> 2,313.0 | BE23: =SUM('법정동(2025.12월말)'!BE25) -> 7 | BF23: =SUM('법정동(2025.12월말)'!BF25) -> 25,435.3 | BG23: =SUM('법정동(2025.12월말)'!BG25) -> 51
A24: 문수동 | B24: =SUM('법정동(2025.12월말)'!B26) -> 2,242,579.2 | C24: =SUM('법정동(2025.12월말)'!C26) -> 3,099.0 | D24: =SUM('법정동(2025.12월말)'!D26) -> 144,666.6 | E24: =SUM('법정동(2025.12월말)'!E26) -> 258 | F24: =SUM('법정동(2025.12월말)'!F26) -> 29,261.5 | G24: =SUM('법정동(2025.12월말)'!G26) -> 79 | H24: =SUM('법정동(2025.12월말)'!H26) -> 0 | I24: =SUM('법정동(2025.12월말)'!I26) -> 0 | J24: =SUM('법정동(2025.12월말)'!J26) -> 0 | K24: =SUM('법정동(2025.12월말)'!K26) -> 0 | L24: =SUM('법정동(2025.12월말)'!L26) -> 792,321.7 | M24: =SUM('법정동(2025.12월말)'!M26) -> 286 | N24: =SUM('법정동(2025.12월말)'!N26) -> 0 | O24: =SUM('법정동(2025.12월말)'!O26) -> 0 | P24: =SUM('법정동(2025.12월말)'!P26) -> 0 | Q24: =SUM('법정동(2025.12월말)'!Q26) -> 0 | R24: =SUM('법정동(2025.12월말)'!R26) -> 766,172.5 | S24: =SUM('법정동(2025.12월말)'!S26) -> 1,818 | T24: =SUM('법정동(2025.12월말)'!T26) -> 0 | U24: =SUM('법정동(2025.12월말)'!U26) -> 0 | V24: =SUM('법정동(2025.12월말)'!V26) -> 117,920.4 | W24: =SUM('법정동(2025.12월말)'!W26) -> 10 | X24: =SUM('법정동(2025.12월말)'!X26) -> 22,501.4 | Y24: =SUM('법정동(2025.12월말)'!Y26) -> 83 | Z24: =SUM('법정동(2025.12월말)'!Z26) -> 1,477.8 | AA24: =SUM('법정동(2025.12월말)'!AA26) -> 3 | AB24: =SUM('법정동(2025.12월말)'!AB26) -> 398.0 | AC24: =SUM('법정동(2025.12월말)'!AC26) -> 2 | AD24: =SUM('법정동(2025.12월말)'!AD26) -> 256,650.0 | AE24: =SUM('법정동(2025.12월말)'!AE26) -> 431 | AF24: =SUM('법정동(2025.12월말)'!AF26) -> 0 | AG24: =SUM('법정동(2025.12월말)'!AG26) -> 0 | AH24: =SUM('법정동(2025.12월말)'!AH26) -> 0 | AI24: =SUM('법정동(2025.12월말)'!AI26) -> 0 | AJ24: =SUM('법정동(2025.12월말)'!AJ26) -> 8,513.0 | AK24: =SUM('법정동(2025.12월말)'!AK26) -> 5 | AL24: =SUM('법정동(2025.12월말)'!AL26) -> 9,255.4 | AM24: =SUM('법정동(2025.12월말)'!AM26) -> 15 | AN24: =SUM('법정동(2025.12월말)'!AN26) -> 0 | AO24: =SUM('법정동(2025.12월말)'!AO26) -> 0 | AP24: =SUM('법정동(2025.12월말)'!AP26) -> 0 | AQ24: =SUM('법정동(2025.12월말)'!AQ26) -> 0 | AR24: =SUM('법정동(2025.12월말)'!AR26) -> 31.0 | AS24: =SUM('법정동(2025.12월말)'!AS26) -> 1 | AT24: =SUM('법정동(2025.12월말)'!AT26) -> 53,155.9 | AU24: =SUM('법정동(2025.12월말)'!AU26) -> 27 | AV24: =SUM('법정동(2025.12월말)'!AV26) -> 0 | AW24: =SUM('법정동(2025.12월말)'!AW26) -> 0 | AX24: =SUM('법정동(2025.12월말)'!AX26) -> 0 | AY24: =SUM('법정동(2025.12월말)'!AY26) -> 0 | AZ24: =SUM('법정동(2025.12월말)'!AZ26) -> 23,982.2 | BA24: =SUM('법정동(2025.12월말)'!BA26) -> 15 | BB24: =SUM('법정동(2025.12월말)'!BB26) -> 0 | BC24: =SUM('법정동(2025.12월말)'!BC26) -> 0 | BD24: =SUM('법정동(2025.12월말)'!BD26) -> 3,583.0 | BE24: =SUM('법정동(2025.12월말)'!BE26) -> 17 | BF24: =SUM('법정동(2025.12월말)'!BF26) -> 12,688.8 | BG24: =SUM('법정동(2025.12월말)'!BG26) -> 49
A25: 미평동 | B25: =SUM('법정동(2025.12월말)'!B28) -> 3,088,178.8 | C25: =SUM('법정동(2025.12월말)'!C28) -> 2,686.0 | D25: =SUM('법정동(2025.12월말)'!D28) -> 123,020.7 | E25: =SUM('법정동(2025.12월말)'!E28) -> 300 | F25: =SUM('법정동(2025.12월말)'!F28) -> 71,185.0 | G25: =SUM('법정동(2025.12월말)'!G28) -> 196 | H25: =SUM('법정동(2025.12월말)'!H28) -> 0 | I25: =SUM('법정동(2025.12월말)'!I28) -> 0 | J25: =SUM('법정동(2025.12월말)'!J28) -> 0 | K25: =SUM('법정동(2025.12월말)'!K28) -> 0 | L25: =SUM('법정동(2025.12월말)'!L28) -> 1,760,692.0 | M25: =SUM('법정동(2025.12월말)'!M28) -> 205 | N25: =SUM('법정동(2025.12월말)'!N28) -> 0 | O25: =SUM('법정동(2025.12월말)'!O28) -> 0 | P25: =SUM('법정동(2025.12월말)'!P28) -> 0 | Q25: =SUM('법정동(2025.12월말)'!Q28) -> 0 | R25: =SUM('법정동(2025.12월말)'!R28) -> 510,321.4 | S25: =SUM('법정동(2025.12월말)'!S28) -> 1,193 | T25: =SUM('법정동(2025.12월말)'!T28) -> 1,501.0 | U25: =SUM('법정동(2025.12월말)'!U28) -> 3 | V25: =SUM('법정동(2025.12월말)'!V28) -> 64,462.1 | W25: =SUM('법정동(2025.12월말)'!W28) -> 10 | X25: =SUM('법정동(2025.12월말)'!X28) -> 11,110.5 | Y25: =SUM('법정동(2025.12월말)'!Y28) -> 25 | Z25: =SUM('법정동(2025.12월말)'!Z28) -> 1,804.2 | AA25: =SUM('법정동(2025.12월말)'!AA28) -> 3 | AB25: =SUM('법정동(2025.12월말)'!AB28) -> 177.4 | AC25: =SUM('법정동(2025.12월말)'!AC28) -> 1 | AD25: =SUM('법정동(2025.12월말)'!AD28) -> 291,450.2 | AE25: =SUM('법정동(2025.12월말)'!AE28) -> 547 | AF25: =SUM('법정동(2025.12월말)'!AF28) -> 53,203.0 | AG25: =SUM('법정동(2025.12월말)'!AG28) -> 46 | AH25: =SUM('법정동(2025.12월말)'!AH28) -> 0 | AI25: =SUM('법정동(2025.12월말)'!AI28) -> 0 | AJ25: =SUM('법정동(2025.12월말)'!AJ28) -> 9,529.4 | AK25: =SUM('법정동(2025.12월말)'!AK28) -> 3 | AL25: =SUM('법정동(2025.12월말)'!AL28) -> 25,645.0 | AM25: =SUM('법정동(2025.12월말)'!AM28) -> 51 | AN25: =SUM('법정동(2025.12월말)'!AN28) -> 0 | AO25: =SUM('법정동(2025.12월말)'!AO28) -> 0 | AP25: =SUM('법정동(2025.12월말)'!AP28) -> 0 | AQ25: =SUM('법정동(2025.12월말)'!AQ28) -> 0 | AR25: =SUM('법정동(2025.12월말)'!AR28) -> 90,756.5 | AS25: =SUM('법정동(2025.12월말)'!AS28) -> 48 | AT25: =SUM('법정동(2025.12월말)'!AT28) -> 16,700.4 | AU25: =SUM('법정동(2025.12월말)'!AU28) -> 11 | AV25: =SUM('법정동(2025.12월말)'!AV28) -> 0 | AW25: =SUM('법정동(2025.12월말)'!AW28) -> 0 | AX25: =SUM('법정동(2025.12월말)'!AX28) -> 0 | AY25: =SUM('법정동(2025.12월말)'!AY28) -> 0 | AZ25: =SUM('법정동(2025.12월말)'!AZ28) -> 9,169.3 | BA25: =SUM('법정동(2025.12월말)'!BA28) -> 9 | BB25: =SUM('법정동(2025.12월말)'!BB28) -> 0 | BC25: =SUM('법정동(2025.12월말)'!BC28) -> 0 | BD25: =SUM('법정동(2025.12월말)'!BD28) -> 5,643.0 | BE25: =SUM('법정동(2025.12월말)'!BE28) -> 6 | BF25: =SUM('법정동(2025.12월말)'!BF28) -> 41,807.7 | BG25: =SUM('법정동(2025.12월말)'!BG28) -> 29
A26: 둔덕동 | B26: =SUM('법정동(2025.12월말)'!B29) -> 4,074,426.1 | C26: =SUM('법정동(2025.12월말)'!C29) -> 2,545.0 | D26: =SUM('법정동(2025.12월말)'!D29) -> 173,486.0 | E26: =SUM('법정동(2025.12월말)'!E29) -> 277 | F26: =SUM('법정동(2025.12월말)'!F29) -> 417,233.0 | G26: =SUM('법정동(2025.12월말)'!G29) -> 555 | H26: =SUM('법정동(2025.12월말)'!H29) -> 3,464.0 | I26: =SUM('법정동(2025.12월말)'!I29) -> 1 | J26: =SUM('법정동(2025.12월말)'!J29) -> 0 | K26: =SUM('법정동(2025.12월말)'!K29) -> 0 | L26: =SUM('법정동(2025.12월말)'!L29) -> 2,141,474.0 | M26: =SUM('법정동(2025.12월말)'!M29) -> 359 | N26: =SUM('법정동(2025.12월말)'!N29) -> 0 | O26: =SUM('법정동(2025.12월말)'!O29) -> 0 | P26: =SUM('법정동(2025.12월말)'!P29) -> 0 | Q26: =SUM('법정동(2025.12월말)'!Q29) -> 0 | R26: =SUM('법정동(2025.12월말)'!R29) -> 510,344.0 | S26: =SUM('법정동(2025.12월말)'!S29) -> 682 | T26: =SUM('법정동(2025.12월말)'!T29) -> 362.0 | U26: =SUM('법정동(2025.12월말)'!U29) -> 1 | V26: =SUM('법정동(2025.12월말)'!V29) -> 722.0 | W26: =SUM('법정동(2025.12월말)'!W29) -> 1 | X26: =SUM('법정동(2025.12월말)'!X29) -> 2,812.7 | Y26: =SUM('법정동(2025.12월말)'!Y29) -> 6 | Z26: =SUM('법정동(2025.12월말)'!Z29) -> 12,999.6 | AA26: =SUM('법정동(2025.12월말)'!AA29) -> 15 | AB26: =SUM('법정동(2025.12월말)'!AB29) -> 6,602.7 | AC26: =SUM('법정동(2025.12월말)'!AC29) -> 12 | AD26: =SUM('법정동(2025.12월말)'!AD29) -> 387,565.6 | AE26: =SUM('법정동(2025.12월말)'!AE29) -> 477 | AF26: =SUM('법정동(2025.12월말)'!AF29) -> 22,933.0 | AG26: =SUM('법정동(2025.12월말)'!AG29) -> 34 | AH26: =SUM('법정동(2025.12월말)'!AH29) -> 0 | AI26: =SUM('법정동(2025.12월말)'!AI29) -> 0 | AJ26: =SUM('법정동(2025.12월말)'!AJ29) -> 9,119.1 | AK26: =SUM('법정동(2025.12월말)'!AK29) -> 3 | AL26: =SUM('법정동(2025.12월말)'!AL29) -> 21,254.0 | AM26: =SUM('법정동(2025.12월말)'!AM29) -> 27 | AN26: =SUM('법정동(2025.12월말)'!AN29) -> 0 | AO26: =SUM('법정동(2025.12월말)'!AO29) -> 0 | AP26: =SUM('법정동(2025.12월말)'!AP29) -> 0 | AQ26: =SUM('법정동(2025.12월말)'!AQ29) -> 0 | AR26: =SUM('법정동(2025.12월말)'!AR29) -> 72,838.0 | AS26: =SUM('법정동(2025.12월말)'!AS29) -> 3 | AT26: =SUM('법정동(2025.12월말)'!AT29) -> 18,073.4 | AU26: =SUM('법정동(2025.12월말)'!AU29) -> 8 | AV26: =SUM('법정동(2025.12월말)'!AV29) -> 166,279.0 | AW26: =SUM('법정동(2025.12월말)'!AW29) -> 6 | AX26: =SUM('법정동(2025.12월말)'!AX29) -> 0 | AY26: =SUM('법정동(2025.12월말)'!AY29) -> 0 | AZ26: =SUM('법정동(2025.12월말)'!AZ29) -> 17,893.3 | BA26: =SUM('법정동(2025.12월말)'!BA29) -> 10 | BB26: =SUM('법정동(2025.12월말)'!BB29) -> 0 | BC26: =SUM('법정동(2025.12월말)'!BC29) -> 0 | BD26: =SUM('법정동(2025.12월말)'!BD29) -> 3,315.0 | BE26: =SUM('법정동(2025.12월말)'!BE29) -> 9 | BF26: =SUM('법정동(2025.12월말)'!BF29) -> 85,655.7 | BG26: =SUM('법정동(2025.12월말)'!BG29) -> 59
A27: 만덕동 | B27: =SUM('법정동(2025.12월말)'!B30:B32) -> 16,174,966.9 | C27: =SUM('법정동(2025.12월말)'!C30:C32) -> 8,466.0 | D27: =SUM('법정동(2025.12월말)'!D30:D32) -> 1,359,177.0 | E27: =SUM('법정동(2025.12월말)'!E30:E32) -> 2,008 | F27: =SUM('법정동(2025.12월말)'!F30:F32) -> 748,856.0 | G27: =SUM('법정동(2025.12월말)'!G30:G32) -> 966 | H27: =SUM('법정동(2025.12월말)'!H30:H32) -> 0 | I27: =SUM('법정동(2025.12월말)'!I30:I32) -> 0 | J27: =SUM('법정동(2025.12월말)'!J30:J32) -> 0 | K27: =SUM('법정동(2025.12월말)'!K30:K32) -> 0 | L27: =SUM('법정동(2025.12월말)'!L30:L32) -> 9,886,237.6 | M27: =SUM('법정동(2025.12월말)'!M30:M32) -> 1,289 | N27: =SUM('법정동(2025.12월말)'!N30:N32) -> 0 | O27: =SUM('법정동(2025.12월말)'!O30:O32) -> 0 | P27: =SUM('법정동(2025.12월말)'!P30:P32) -> 0 | Q27: =SUM('법정동(2025.12월말)'!Q30:Q32) -> 0 | R27: =SUM('법정동(2025.12월말)'!R30:R32) -> 1,339,716.3 | S27: =SUM('법정동(2025.12월말)'!S30:S32) -> 1,847 | T27: =SUM('법정동(2025.12월말)'!T30:T32) -> 146,166.9 | U27: =SUM('법정동(2025.12월말)'!U30:U32) -> 99 | V27: =SUM('법정동(2025.12월말)'!V30:V32) -> 66,776.1 | W27: =SUM('법정동(2025.12월말)'!W30:W32) -> 7 | X27: =SUM('법정동(2025.12월말)'!X30:X32) -> 54,337.1 | Y27: =SUM('법정동(2025.12월말)'!Y30:Y32) -> 19 | Z27: =SUM('법정동(2025.12월말)'!Z30:Z32) -> 3,801.0 | AA27: =SUM('법정동(2025.12월말)'!AA30:AA32) -> 6 | AB27: =SUM('법정동(2025.12월말)'!AB30:AB32) -> 5,478.0 | AC27: =SUM('법정동(2025.12월말)'!AC30:AC32) -> 14 | AD27: =SUM('법정동(2025.12월말)'!AD30:AD32) -> 800,140.8 | AE27: =SUM('법정동(2025.12월말)'!AE30:AE32) -> 1,408 | AF27: =SUM('법정동(2025.12월말)'!AF30:AF32) -> 250,852.6 | AG27: =SUM('법정동(2025.12월말)'!AG30:AG32) -> 315 | AH27: =SUM('법정동(2025.12월말)'!AH30:AH32) -> 25,818.0 | AI27: =SUM('법정동(2025.12월말)'!AI30:AI32) -> 16 | AJ27: =SUM('법정동(2025.12월말)'!AJ30:AJ32) -> 19,770.9 | AK27: =SUM('법정동(2025.12월말)'!AK30:AK32) -> 10 | AL27: =SUM('법정동(2025.12월말)'!AL30:AL32) -> 115,705.1 | AM27: =SUM('법정동(2025.12월말)'!AM30:AM32) -> 152 | AN27: =SUM('법정동(2025.12월말)'!AN30:AN32) -> 0 | AO27: =SUM('법정동(2025.12월말)'!AO30:AO32) -> 0 | AP27: =SUM('법정동(2025.12월말)'!AP30:AP32) -> 0 | AQ27: =SUM('법정동(2025.12월말)'!AQ30:AQ32) -> 0 | AR27: =SUM('법정동(2025.12월말)'!AR30:AR32) -> 21,809.7 | AS27: =SUM('법정동(2025.12월말)'!AS30:AS32) -> 53 | AT27: =SUM('법정동(2025.12월말)'!AT30:AT32) -> 529,142.7 | AU27: =SUM('법정동(2025.12월말)'!AU30:AU32) -> 38 | AV27: =SUM('법정동(2025.12월말)'!AV30:AV32) -> 389,043.5 | AW27: =SUM('법정동(2025.12월말)'!AW30:AW32) -> 4 | AX27: =SUM('법정동(2025.12월말)'!AX30:AX32) -> 0 | AY27: =SUM('법정동(2025.12월말)'!AY30:AY32) -> 0 | AZ27: =SUM('법정동(2025.12월말)'!AZ30:AZ32) -> 22,812.8 | BA27: =SUM('법정동(2025.12월말)'!BA30:BA32) -> 23 | BB27: =SUM('법정동(2025.12월말)'!BB30:BB32) -> 0 | BC27: =SUM('법정동(2025.12월말)'!BC30:BC32) -> 0 | BD27: =SUM('법정동(2025.12월말)'!BD30:BD32) -> 43,634.0 | BE27: =SUM('법정동(2025.12월말)'!BE30:BE32) -> 86 | BF27: =SUM('법정동(2025.12월말)'!BF30:BF32) -> 345,690.8 | BG27: =SUM('법정동(2025.12월말)'!BG30:BG32) -> 106
A28: 쌍봉동 | B28: =SUM('법정동(2025.12월말)'!B34:B37) -> 7,174,122.1 | C28: =SUM('법정동(2025.12월말)'!C34:C37) -> 6,117.0 | D28: =SUM('법정동(2025.12월말)'!D34:D37) -> 495,098.7 | E28: =SUM('법정동(2025.12월말)'!E34:E37) -> 766 | F28: =SUM('법정동(2025.12월말)'!F34:F37) -> 315,185.0 | G28: =SUM('법정동(2025.12월말)'!G34:G37) -> 380 | H28: =SUM('법정동(2025.12월말)'!H34:H37) -> 6,892.0 | I28: =SUM('법정동(2025.12월말)'!I34:I37) -> 5 | J28: =SUM('법정동(2025.12월말)'!J34:J37) -> 0 | K28: =SUM('법정동(2025.12월말)'!K34:K37) -> 0 | L28: =SUM('법정동(2025.12월말)'!L34:L37) -> 2,729,750.6 | M28: =SUM('법정동(2025.12월말)'!M34:M37) -> 693 | N28: =SUM('법정동(2025.12월말)'!N34:N37) -> 0 | O28: =SUM('법정동(2025.12월말)'!O34:O37) -> 0 | P28: =SUM('법정동(2025.12월말)'!P34:P37) -> 0 | Q28: =SUM('법정동(2025.12월말)'!Q34:Q37) -> 0 | R28: =SUM('법정동(2025.12월말)'!R34:R37) -> 2,162,997.4 | S28: =SUM('법정동(2025.12월말)'!S34:S37) -> 3,270 | T28: =SUM('법정동(2025.12월말)'!T34:T37) -> 12,425.0 | U28: =SUM('법정동(2025.12월말)'!U34:U37) -> 12 | V28: =SUM('법정동(2025.12월말)'!V34:V37) -> 93,087.5 | W28: =SUM('법정동(2025.12월말)'!W34:W37) -> 8 | X28: =SUM('법정동(2025.12월말)'!X34:X37) -> 25,153.6 | Y28: =SUM('법정동(2025.12월말)'!Y34:Y37) -> 36 | Z28: =SUM('법정동(2025.12월말)'!Z34:Z37) -> 6,687.6 | AA28: =SUM('법정동(2025.12월말)'!AA34:AA37) -> 8 | AB28: =SUM('법정동(2025.12월말)'!AB34:AB37) -> 1,401.0 | AC28: =SUM('법정동(2025.12월말)'!AC34:AC37) -> 3 | AD28: =SUM('법정동(2025.12월말)'!AD34:AD37) -> 882,087.6 | AE28: =SUM('법정동(2025.12월말)'!AE34:AE37) -> 648 | AF28: =SUM('법정동(2025.12월말)'!AF34:AF37) -> 73,480.0 | AG28: =SUM('법정동(2025.12월말)'!AG34:AG37) -> 71 | AH28: =SUM('법정동(2025.12월말)'!AH34:AH37) -> 7,067.2 | AI28: =SUM('법정동(2025.12월말)'!AI34:AI37) -> 8 | AJ28: =SUM('법정동(2025.12월말)'!AJ34:AJ37) -> 5,920.0 | AK28: =SUM('법정동(2025.12월말)'!AK34:AK37) -> 16 | AL28: =SUM('법정동(2025.12월말)'!AL34:AL37) -> 26,275.0 | AM28: =SUM('법정동(2025.12월말)'!AM34:AM37) -> 47 | AN28: =SUM('법정동(2025.12월말)'!AN34:AN37) -> 11,448.5 | AO28: =SUM('법정동(2025.12월말)'!AO34:AO37) -> 3 | AP28: =SUM('법정동(2025.12월말)'!AP34:AP37) -> 0 | AQ28: =SUM('법정동(2025.12월말)'!AQ34:AQ37) -> 0 | AR28: =SUM('법정동(2025.12월말)'!AR34:AR37) -> 25,254.0 | AS28: =SUM('법정동(2025.12월말)'!AS34:AS37) -> 2 | AT28: =SUM('법정동(2025.12월말)'!AT34:AT37) -> 142,708.5 | AU28: =SUM('법정동(2025.12월말)'!AU34:AU37) -> 25 | AV28: =SUM('법정동(2025.12월말)'!AV34:AV37) -> 16,593.6 | AW28: =SUM('법정동(2025.12월말)'!AW34:AW37) -> 2 | AX28: =SUM('법정동(2025.12월말)'!AX34:AX37) -> 49,654.3 | AY28: =SUM('법정동(2025.12월말)'!AY34:AY37) -> 2 | AZ28: =SUM('법정동(2025.12월말)'!AZ34:AZ37) -> 23,211.2 | BA28: =SUM('법정동(2025.12월말)'!BA34:BA37) -> 21 | BB28: =SUM('법정동(2025.12월말)'!BB34:BB37) -> 0 | BC28: =SUM('법정동(2025.12월말)'!BC34:BC37) -> 0 | BD28: =SUM('법정동(2025.12월말)'!BD34:BD37) -> 31,090.0 | BE28: =SUM('법정동(2025.12월말)'!BE34:BE37) -> 53 | BF28: =SUM('법정동(2025.12월말)'!BF34:BF37) -> 30,653.8 | BG28: =SUM('법정동(2025.12월말)'!BG34:BG37) -> 38
A29: 시전동 | B29: =SUM('법정동(2025.12월말)'!B38:B40) -> 6,641,689.6 | C29: =SUM('법정동(2025.12월말)'!C38:C40) -> 4,382.0 | D29: =SUM('법정동(2025.12월말)'!D38:D40) -> 431,800.0 | E29: =SUM('법정동(2025.12월말)'!E38:E40) -> 569 | F29: =SUM('법정동(2025.12월말)'!F38:F40) -> 87,719.0 | G29: =SUM('법정동(2025.12월말)'!G38:G40) -> 134 | H29: =SUM('법정동(2025.12월말)'!H38:H40) -> 0 | I29: =SUM('법정동(2025.12월말)'!I38:I40) -> 0 | J29: =SUM('법정동(2025.12월말)'!J38:J40) -> 0 | K29: =SUM('법정동(2025.12월말)'!K38:K40) -> 0 | L29: =SUM('법정동(2025.12월말)'!L38:L40) -> 1,773,786.5 | M29: =SUM('법정동(2025.12월말)'!M38:M40) -> 603 | N29: =SUM('법정동(2025.12월말)'!N38:N40) -> 0 | O29: =SUM('법정동(2025.12월말)'!O38:O40) -> 0 | P29: =SUM('법정동(2025.12월말)'!P38:P40) -> 0 | Q29: =SUM('법정동(2025.12월말)'!Q38:Q40) -> 0 | R29: =SUM('법정동(2025.12월말)'!R38:R40) -> 1,775,497.8 | S29: =SUM('법정동(2025.12월말)'!S38:S40) -> 2,410 | T29: =SUM('법정동(2025.12월말)'!T38:T40) -> 0 | U29: =SUM('법정동(2025.12월말)'!U38:U40) -> 0 | V29: =SUM('법정동(2025.12월말)'!V38:V40) -> 136,597.1 | W29: =SUM('법정동(2025.12월말)'!W38:W40) -> 10 | X29: =SUM('법정동(2025.12월말)'!X38:X40) -> 44,782.1 | Y29: =SUM('법정동(2025.12월말)'!Y38:Y40) -> 39 | Z29: =SUM('법정동(2025.12월말)'!Z38:Z40) -> 3,495.2 | AA29: =SUM('법정동(2025.12월말)'!AA38:AA40) -> 4 | AB29: =SUM('법정동(2025.12월말)'!AB38:AB40) -> 1,156.0 | AC29: =SUM('법정동(2025.12월말)'!AC38:AC40) -> 2 | AD29: =SUM('법정동(2025.12월말)'!AD38:AD40) -> 866,502.9 | AE29: =SUM('법정동(2025.12월말)'!AE38:AE40) -> 322 | AF29: =SUM('법정동(2025.12월말)'!AF38:AF40) -> 0 | AG29: =SUM('법정동(2025.12월말)'!AG38:AG40) -> 0 | AH29: =SUM('법정동(2025.12월말)'!AH38:AH40) -> 10,731.3 | AI29: =SUM('법정동(2025.12월말)'!AI38:AI40) -> 13 | AJ29: =SUM('법정동(2025.12월말)'!AJ38:AJ40) -> 27,673.3 | AK29: =SUM('법정동(2025.12월말)'!AK38:AK40) -> 4 | AL29: =SUM('법정동(2025.12월말)'!AL38:AL40) -> 49,958.9 | AM29: =SUM('법정동(2025.12월말)'!AM38:AM40) -> 58 | AN29: =SUM('법정동(2025.12월말)'!AN38:AN40) -> 0 | AO29: =SUM('법정동(2025.12월말)'!AO38:AO40) -> 0 | AP29: =SUM('법정동(2025.12월말)'!AP38:AP40) -> 0 | AQ29: =SUM('법정동(2025.12월말)'!AQ38:AQ40) -> 0 | AR29: =SUM('법정동(2025.12월말)'!AR38:AR40) -> 11,282.5 | AS29: =SUM('법정동(2025.12월말)'!AS38:AS40) -> 4 | AT29: =SUM('법정동(2025.12월말)'!AT38:AT40) -> 1,105,667.5 | AU29: =SUM('법정동(2025.12월말)'!AU38:AU40) -> 134 | AV29: =SUM('법정동(2025.12월말)'!AV38:AV40) -> 193,660.0 | AW29: =SUM('법정동(2025.12월말)'!AW38:AW40) -> 26 | AX29: =SUM('법정동(2025.12월말)'!AX38:AX40) -> 22,086.3 | AY29: =SUM('법정동(2025.12월말)'!AY38:AY40) -> 2 | AZ29: =SUM('법정동(2025.12월말)'!AZ38:AZ40) -> 25,250.6 | BA29: =SUM('법정동(2025.12월말)'!BA38:BA40) -> 13 | BB29: =SUM('법정동(2025.12월말)'!BB38:BB40) -> 0 | BC29: =SUM('법정동(2025.12월말)'!BC38:BC40) -> 0 | BD29: =SUM('법정동(2025.12월말)'!BD38:BD40) -> 7,412.0 | BE29: =SUM('법정동(2025.12월말)'!BE38:BE40) -> 22 | BF29: =SUM('법정동(2025.12월말)'!BF38:BF40) -> 66,630.6 | BG29: =SUM('법정동(2025.12월말)'!BG38:BG40) -> 13
A30: 여천동 | B30: =SUM('법정동(2025.12월말)'!B41:B43) -> 7,527,575.0 | C30: =SUM('법정동(2025.12월말)'!C41:C43) -> 7,261.0 | D30: =SUM('법정동(2025.12월말)'!D41:D43) -> 742,042.8 | E30: =SUM('법정동(2025.12월말)'!E41:E43) -> 882 | F30: =SUM('법정동(2025.12월말)'!F41:F43) -> 1,048,024.1 | G30: =SUM('법정동(2025.12월말)'!G41:G43) -> 1,057 | H30: =SUM('법정동(2025.12월말)'!H41:H43) -> 21,757.0 | I30: =SUM('법정동(2025.12월말)'!I41:I43) -> 6 | J30: =SUM('법정동(2025.12월말)'!J41:J43) -> 2,796.0 | K30: =SUM('법정동(2025.12월말)'!K41:K43) -> 4 | L30: =SUM('법정동(2025.12월말)'!L41:L43) -> 2,371,537.6 | M30: =SUM('법정동(2025.12월말)'!M41:M43) -> 580 | N30: =SUM('법정동(2025.12월말)'!N41:N43) -> 0 | O30: =SUM('법정동(2025.12월말)'!O41:O43) -> 0 | P30: =SUM('법정동(2025.12월말)'!P41:P43) -> 0 | Q30: =SUM('법정동(2025.12월말)'!Q41:Q43) -> 0 | R30: =SUM('법정동(2025.12월말)'!R41:R43) -> 1,431,707.1 | S30: =SUM('법정동(2025.12월말)'!S41:S43) -> 3,264 | T30: =SUM('법정동(2025.12월말)'!T41:T43) -> 20,938.0 | U30: =SUM('법정동(2025.12월말)'!U41:U43) -> 13 | V30: =SUM('법정동(2025.12월말)'!V41:V43) -> 162,547.4 | W30: =SUM('법정동(2025.12월말)'!W41:W43) -> 8 | X30: =SUM('법정동(2025.12월말)'!X41:X43) -> 37,925.8 | Y30: =SUM('법정동(2025.12월말)'!Y41:Y43) -> 54 | Z30: =SUM('법정동(2025.12월말)'!Z41:Z43) -> 16,579.0 | AA30: =SUM('법정동(2025.12월말)'!AA41:AA43) -> 18 | AB30: =SUM('법정동(2025.12월말)'!AB41:AB43) -> 22,463.0 | AC30: =SUM('법정동(2025.12월말)'!AC41:AC43) -> 21 | AD30: =SUM('법정동(2025.12월말)'!AD41:AD43) -> 904,352.3 | AE30: =SUM('법정동(2025.12월말)'!AE41:AE43) -> 816 | AF30: =SUM('법정동(2025.12월말)'!AF41:AF43) -> 157,461.0 | AG30: =SUM('법정동(2025.12월말)'!AG41:AG43) -> 155 | AH30: =SUM('법정동(2025.12월말)'!AH41:AH43) -> 0 | AI30: =SUM('법정동(2025.12월말)'!AI41:AI43) -> 0 | AJ30: =SUM('법정동(2025.12월말)'!AJ41:AJ43) -> 87,254.0 | AK30: =SUM('법정동(2025.12월말)'!AK41:AK43) -> 52 | AL30: =SUM('법정동(2025.12월말)'!AL41:AL43) -> 89,649.9 | AM30: =SUM('법정동(2025.12월말)'!AM41:AM43) -> 168 | AN30: =SUM('법정동(2025.12월말)'!AN41:AN43) -> 23,888.0 | AO30: =SUM('법정동(2025.12월말)'!AO41:AO43) -> 17 | AP30: =SUM('법정동(2025.12월말)'!AP41:AP43) -> 1,016.0 | AQ30: =SUM('법정동(2025.12월말)'!AQ41:AQ43) -> 1 | AR30: =SUM('법정동(2025.12월말)'!AR41:AR43) -> 33,844.0 | AS30: =SUM('법정동(2025.12월말)'!AS41:AS43) -> 14 | AT30: =SUM('법정동(2025.12월말)'!AT41:AT43) -> 177,390.9 | AU30: =SUM('법정동(2025.12월말)'!AU41:AU43) -> 27 | AV30: =SUM('법정동(2025.12월말)'!AV41:AV43) -> 33,581.0 | AW30: =SUM('법정동(2025.12월말)'!AW41:AW43) -> 8 | AX30: =SUM('법정동(2025.12월말)'!AX41:AX43) -> 0 | AY30: =SUM('법정동(2025.12월말)'!AY41:AY43) -> 0 | AZ30: =SUM('법정동(2025.12월말)'!AZ41:AZ43) -> 21,334.0 | BA30: =SUM('법정동(2025.12월말)'!BA41:BA43) -> 15 | BB30: =SUM('법정동(2025.12월말)'!BB41:BB43) -> 70,510.0 | BC30: =SUM('법정동(2025.12월말)'!BC41:BC43) -> 14 | BD30: =SUM('법정동(2025.12월말)'!BD41:BD43) -> 13,701.0 | BE30: =SUM('법정동(2025.12월말)'!BE41:BE43) -> 24 | BF30: =SUM('법정동(2025.12월말)'!BF41:BF43) -> 35,275.1 | BG30: =SUM('법정동(2025.12월말)'!BG41:BG43) -> 43
A31: 주삼동 | B31: =SUM('법정동(2025.12월말)'!B44:B46) -> 11,525,390.6 | C31: =SUM('법정동(2025.12월말)'!C44:C46) -> 7,890.0 | D31: =SUM('법정동(2025.12월말)'!D44:D46) -> 890,420.2 | E31: =SUM('법정동(2025.12월말)'!E44:E46) -> 1,166 | F31: =SUM('법정동(2025.12월말)'!F44:F46) -> 1,713,727.5 | G31: =SUM('법정동(2025.12월말)'!G44:G46) -> 1,726 | H31: =SUM('법정동(2025.12월말)'!H44:H46) -> 3,307.0 | I31: =SUM('법정동(2025.12월말)'!I44:I46) -> 1 | J31: =SUM('법정동(2025.12월말)'!J44:J46) -> 2,958.2 | K31: =SUM('법정동(2025.12월말)'!K44:K46) -> 4 | L31: =SUM('법정동(2025.12월말)'!L44:L46) -> 5,313,140.4 | M31: =SUM('법정동(2025.12월말)'!M44:M46) -> 1,078 | N31: =SUM('법정동(2025.12월말)'!N44:N46) -> 0 | O31: =SUM('법정동(2025.12월말)'!O44:O46) -> 0 | P31: =SUM('법정동(2025.12월말)'!P44:P46) -> 0 | Q31: =SUM('법정동(2025.12월말)'!Q44:Q46) -> 0 | R31: =SUM('법정동(2025.12월말)'!R44:R46) -> 804,290.7 | S31: =SUM('법정동(2025.12월말)'!S44:S46) -> 1,054 | T31: =SUM('법정동(2025.12월말)'!T44:T46) -> 246,166.1 | U31: =SUM('법정동(2025.12월말)'!U44:U46) -> 82 | V31: =SUM('법정동(2025.12월말)'!V44:V46) -> 85,634.6 | W31: =SUM('법정동(2025.12월말)'!W44:W46) -> 3 | X31: =SUM('법정동(2025.12월말)'!X44:X46) -> 103,137.8 | Y31: =SUM('법정동(2025.12월말)'!Y44:Y46) -> 30 | Z31: =SUM('법정동(2025.12월말)'!Z44:Z46) -> 30,876.2 | AA31: =SUM('법정동(2025.12월말)'!AA44:AA46) -> 21 | AB31: =SUM('법정동(2025.12월말)'!AB44:AB46) -> 42,725.0 | AC31: =SUM('법정동(2025.12월말)'!AC44:AC46) -> 38 | AD31: =SUM('법정동(2025.12월말)'!AD44:AD46) -> 997,896.4 | AE31: =SUM('법정동(2025.12월말)'!AE44:AE46) -> 1,894 | AF31: =SUM('법정동(2025.12월말)'!AF44:AF46) -> 143,013.0 | AG31: =SUM('법정동(2025.12월말)'!AG44:AG46) -> 250 | AH31: =SUM('법정동(2025.12월말)'!AH44:AH46) -> 9,216.0 | AI31: =SUM('법정동(2025.12월말)'!AI44:AI46) -> 13 | AJ31: =SUM('법정동(2025.12월말)'!AJ44:AJ46) -> 108,147.8 | AK31: =SUM('법정동(2025.12월말)'!AK44:AK46) -> 57 | AL31: =SUM('법정동(2025.12월말)'!AL44:AL46) -> 196,700.2 | AM31: =SUM('법정동(2025.12월말)'!AM44:AM46) -> 234 | AN31: =SUM('법정동(2025.12월말)'!AN44:AN46) -> 123,286.4 | AO31: =SUM('법정동(2025.12월말)'!AO44:AO46) -> 57 | AP31: =SUM('법정동(2025.12월말)'!AP44:AP46) -> 0 | AQ31: =SUM('법정동(2025.12월말)'!AQ44:AQ46) -> 0 | AR31: =SUM('법정동(2025.12월말)'!AR44:AR46) -> 3,607.0 | AS31: =SUM('법정동(2025.12월말)'!AS44:AS46) -> 1 | AT31: =SUM('법정동(2025.12월말)'!AT44:AT46) -> 52,319.6 | AU31: =SUM('법정동(2025.12월말)'!AU44:AU46) -> 6 | AV31: =SUM('법정동(2025.12월말)'!AV44:AV46) -> 508,106.0 | AW31: =SUM('법정동(2025.12월말)'!AW44:AW46) -> 1 | AX31: =SUM('법정동(2025.12월말)'!AX44:AX46) -> 0 | AY31: =SUM('법정동(2025.12월말)'!AY44:AY46) -> 0 | AZ31: =SUM('법정동(2025.12월말)'!AZ44:AZ46) -> 16,602.0 | BA31: =SUM('법정동(2025.12월말)'!BA44:BA46) -> 10 | BB31: =SUM('법정동(2025.12월말)'!BB44:BB46) -> 0 | BC31: =SUM('법정동(2025.12월말)'!BC44:BC46) -> 0 | BD31: =SUM('법정동(2025.12월말)'!BD44:BD46) -> 12,938.0 | BE31: =SUM('법정동(2025.12월말)'!BE44:BE46) -> 21 | BF31: =SUM('법정동(2025.12월말)'!BF44:BF46) -> 117,174.5 | BG31: =SUM('법정동(2025.12월말)'!BG44:BG46) -> 143
A32: 삼일동 | B32: =SUM('법정동(2025.12월말)'!B47:B52,'법정동(2025.12월말)'!B54:B57) -> 72,819,076.0 | C32: =SUM('법정동(2025.12월말)'!C47:C52,'법정동(2025.12월말)'!C54:C57) -> 18,116.0 | D32: =SUM('법정동(2025.12월말)'!D47:D52,'법정동(2025.12월말)'!D54:D57) -> 2,642,939.7 | E32: =SUM('법정동(2025.12월말)'!E47:E52,'법정동(2025.12월말)'!E54:E57) -> 3,232 | F32: =SUM('법정동(2025.12월말)'!F47:F52,'법정동(2025.12월말)'!F54:F57) -> 2,907,917.6 | G32: =SUM('법정동(2025.12월말)'!G47:G52,'법정동(2025.12월말)'!G54:G57) -> 3,260 | H32: =SUM('법정동(2025.12월말)'!H47:H52,'법정동(2025.12월말)'!H54:H57) -> 48,571.0 | I32: =SUM('법정동(2025.12월말)'!I47:I52,'법정동(2025.12월말)'!I54:I57) -> 20 | J32: =SUM('법정동(2025.12월말)'!J47:J52,'법정동(2025.12월말)'!J54:J57) -> 7,471.0 | K32: =SUM('법정동(2025.12월말)'!K47:K52,'법정동(2025.12월말)'!K54:K57) -> 5 | L32: =SUM('법정동(2025.12월말)'!L47:L52,'법정동(2025.12월말)'!L54:L57) -> 37,904,277.7 | M32: =SUM('법정동(2025.12월말)'!M47:M52,'법정동(2025.12월말)'!M54:M57) -> 3,510 | N32: =SUM('법정동(2025.12월말)'!N47:N52,'법정동(2025.12월말)'!N54:N57) -> 0 | O32: =SUM('법정동(2025.12월말)'!O47:O52,'법정동(2025.12월말)'!O54:O57) -> 0 | P32: =SUM('법정동(2025.12월말)'!P47:P52,'법정동(2025.12월말)'!P54:P57) -> 0 | Q32: =SUM('법정동(2025.12월말)'!Q47:Q52,'법정동(2025.12월말)'!Q54:Q57) -> 0 | R32: =SUM('법정동(2025.12월말)'!R47:R52,'법정동(2025.12월말)'!R54:R57) -> 1,375,637.3 | S32: =SUM('법정동(2025.12월말)'!S47:S52,'법정동(2025.12월말)'!S54:S57) -> 1,826 | T32: =SUM('법정동(2025.12월말)'!T47:T52,'법정동(2025.12월말)'!T54:T57) -> 18,506,542.3 | U32: =SUM('법정동(2025.12월말)'!U47:U52,'법정동(2025.12월말)'!U54:U57) -> 812 | V32: =SUM('법정동(2025.12월말)'!V47:V52,'법정동(2025.12월말)'!V54:V57) -> 37,747.0 | W32: =SUM('법정동(2025.12월말)'!W47:W52,'법정동(2025.12월말)'!W54:W57) -> 8 | X32: =SUM('법정동(2025.12월말)'!X47:X52,'법정동(2025.12월말)'!X54:X57) -> 60,076.4 | Y32: =SUM('법정동(2025.12월말)'!Y47:Y52,'법정동(2025.12월말)'!Y54:Y57) -> 45 | Z32: =SUM('법정동(2025.12월말)'!Z47:Z52,'법정동(2025.12월말)'!Z54:Z57) -> 714,239.5 | AA32: =SUM('법정동(2025.12월말)'!AA47:AA52,'법정동(2025.12월말)'!AA54:AA57) -> 73 | AB32: =SUM('법정동(2025.12월말)'!AB47:AB52,'법정동(2025.12월말)'!AB54:AB57) -> 27,744.0 | AC32: =SUM('법정동(2025.12월말)'!AC47:AC52,'법정동(2025.12월말)'!AC54:AC57) -> 18 | AD32: =SUM('법정동(2025.12월말)'!AD47:AD52,'법정동(2025.12월말)'!AD54:AD57) -> 3,081,309.2 | AE32: =SUM('법정동(2025.12월말)'!AE47:AE52,'법정동(2025.12월말)'!AE54:AE57) -> 3,190 | AF32: =SUM('법정동(2025.12월말)'!AF47:AF52,'법정동(2025.12월말)'!AF54:AF57) -> 272,242.0 | AG32: =SUM('법정동(2025.12월말)'!AG47:AG52,'법정동(2025.12월말)'!AG54:AG57) -> 181 | AH32: =SUM('법정동(2025.12월말)'!AH47:AH52,'법정동(2025.12월말)'!AH54:AH57) -> 138,461.9 | AI32: =SUM('법정동(2025.12월말)'!AI47:AI52,'법정동(2025.12월말)'!AI54:AI57) -> 71 | AJ32: =SUM('법정동(2025.12월말)'!AJ47:AJ52,'법정동(2025.12월말)'!AJ54:AJ57) -> 1,084,102.3 | AK32: =SUM('법정동(2025.12월말)'!AK47:AK52,'법정동(2025.12월말)'!AK54:AK57) -> 356 | AL32: =SUM('법정동(2025.12월말)'!AL47:AL52,'법정동(2025.12월말)'!AL54:AL57) -> 400,851.7 | AM32: =SUM('법정동(2025.12월말)'!AM47:AM52,'법정동(2025.12월말)'!AM54:AM57) -> 382 | AN32: =SUM('법정동(2025.12월말)'!AN47:AN52,'법정동(2025.12월말)'!AN54:AN57) -> 212,252.0 | AO32: =SUM('법정동(2025.12월말)'!AO47:AO52,'법정동(2025.12월말)'!AO54:AO57) -> 188 | AP32: =SUM('법정동(2025.12월말)'!AP47:AP52,'법정동(2025.12월말)'!AP54:AP57) -> 0 | AQ32: =SUM('법정동(2025.12월말)'!AQ47:AQ52,'법정동(2025.12월말)'!AQ54:AQ57) -> 0 | AR32: =SUM('법정동(2025.12월말)'!AR47:AR52,'법정동(2025.12월말)'!AR54:AR57) -> 68,253.1 | AS32: =SUM('법정동(2025.12월말)'!AS47:AS52,'법정동(2025.12월말)'!AS54:AS57) -> 32 | AT32: =SUM('법정동(2025.12월말)'!AT47:AT52,'법정동(2025.12월말)'!AT54:AT57) -> 257,421.4 | AU32: =SUM('법정동(2025.12월말)'!AU47:AU52,'법정동(2025.12월말)'!AU54:AU57) -> 34 | AV32: =SUM('법정동(2025.12월말)'!AV47:AV52,'법정동(2025.12월말)'!AV54:AV57) -> 0 | AW32: =SUM('법정동(2025.12월말)'!AW47:AW52,'법정동(2025.12월말)'!AW54:AW57) -> 0 | AX32: =SUM('법정동(2025.12월말)'!AX47:AX52,'법정동(2025.12월말)'!AX54:AX57) -> 0 | AY32: =SUM('법정동(2025.12월말)'!AY47:AY52,'법정동(2025.12월말)'!AY54:AY57) -> 0 | AZ32: =SUM('법정동(2025.12월말)'!AZ47:AZ52,'법정동(2025.12월말)'!AZ54:AZ57) -> 36,154.1 | BA32: =SUM('법정동(2025.12월말)'!BA47:BA52,'법정동(2025.12월말)'!BA54:BA57) -> 29 | BB32: =SUM('법정동(2025.12월말)'!BB47:BB52,'법정동(2025.12월말)'!BB54:BB57) -> 0 | BC32: =SUM('법정동(2025.12월말)'!BC47:BC52,'법정동(2025.12월말)'!BC54:BC57) -> 0 | BD32: =SUM('법정동(2025.12월말)'!BD47:BD52,'법정동(2025.12월말)'!BD54:BD57) -> 62,123.3 | BE32: =SUM('법정동(2025.12월말)'!BE47:BE52,'법정동(2025.12월말)'!BE54:BE57) -> 112 | BF32: =SUM('법정동(2025.12월말)'!BF47:BF52,'법정동(2025.12월말)'!BF54:BF57) -> 2,972,741.5 | BG32: =SUM('법정동(2025.12월말)'!BG47:BG52,'법정동(2025.12월말)'!BG54:BG57) -> 732
A33: 묘도동 | B33: =SUM('법정동(2025.12월말)'!B53) -> 11,536,709.0 | C33: =SUM('법정동(2025.12월말)'!C53) -> 5,478.0 | D33: =SUM('법정동(2025.12월말)'!D53) -> 1,217,215.0 | E33: =SUM('법정동(2025.12월말)'!E53) -> 1,256 | F33: =SUM('법정동(2025.12월말)'!F53) -> 841,987.1 | G33: =SUM('법정동(2025.12월말)'!G53) -> 953 | H33: =SUM('법정동(2025.12월말)'!H53) -> 10,216.0 | I33: =SUM('법정동(2025.12월말)'!I53) -> 4 | J33: =SUM('법정동(2025.12월말)'!J53) -> 1,592.0 | K33: =SUM('법정동(2025.12월말)'!K53) -> 4 | L33: =SUM('법정동(2025.12월말)'!L53) -> 5,293,552.3 | M33: =SUM('법정동(2025.12월말)'!M53) -> 1,652 | N33: =SUM('법정동(2025.12월말)'!N53) -> 0 | O33: =SUM('법정동(2025.12월말)'!O53) -> 0 | P33: =SUM('법정동(2025.12월말)'!P53) -> 0 | Q33: =SUM('법정동(2025.12월말)'!Q53) -> 0 | R33: =SUM('법정동(2025.12월말)'!R53) -> 228,906.2 | S33: =SUM('법정동(2025.12월말)'!S53) -> 662 | T33: =SUM('법정동(2025.12월말)'!T53) -> 430.0 | U33: =SUM('법정동(2025.12월말)'!U53) -> 1 | V33: =SUM('법정동(2025.12월말)'!V53) -> 17,549.9 | W33: =SUM('법정동(2025.12월말)'!W53) -> 3 | X33: =SUM('법정동(2025.12월말)'!X53) -> 28.0 | Y33: =SUM('법정동(2025.12월말)'!Y53) -> 1 | Z33: =SUM('법정동(2025.12월말)'!Z53) -> 21,084.0 | AA33: =SUM('법정동(2025.12월말)'!AA53) -> 13 | AB33: =SUM('법정동(2025.12월말)'!AB53) -> 11,551.0 | AC33: =SUM('법정동(2025.12월말)'!AC53) -> 6 | AD33: =SUM('법정동(2025.12월말)'!AD53) -> 604,911.5 | AE33: =SUM('법정동(2025.12월말)'!AE53) -> 742 | AF33: =SUM('법정동(2025.12월말)'!AF53) -> 0 | AG33: =SUM('법정동(2025.12월말)'!AG53) -> 0 | AH33: =SUM('법정동(2025.12월말)'!AH53) -> 113,226.6 | AI33: =SUM('법정동(2025.12월말)'!AI53) -> 14 | AJ33: =SUM('법정동(2025.12월말)'!AJ53) -> 13,620.0 | AK33: =SUM('법정동(2025.12월말)'!AK53) -> 6 | AL33: =SUM('법정동(2025.12월말)'!AL53) -> 51,678.6 | AM33: =SUM('법정동(2025.12월말)'!AM53) -> 34 | AN33: =SUM('법정동(2025.12월말)'!AN53) -> 16,983.0 | AO33: =SUM('법정동(2025.12월말)'!AO53) -> 16 | AP33: =SUM('법정동(2025.12월말)'!AP53) -> 0 | AQ33: =SUM('법정동(2025.12월말)'!AQ53) -> 0 | AR33: =SUM('법정동(2025.12월말)'!AR53) -> 0 | AS33: =SUM('법정동(2025.12월말)'!AS53) -> 0 | AT33: =SUM('법정동(2025.12월말)'!AT53) -> 0 | AU33: =SUM('법정동(2025.12월말)'!AU53) -> 0 | AV33: =SUM('법정동(2025.12월말)'!AV53) -> 0 | AW33: =SUM('법정동(2025.12월말)'!AW53) -> 0 | AX33: =SUM('법정동(2025.12월말)'!AX53) -> 0 | AY33: =SUM('법정동(2025.12월말)'!AY53) -> 0 | AZ33: =SUM('법정동(2025.12월말)'!AZ53) -> 3,668.0 | BA33: =SUM('법정동(2025.12월말)'!BA53) -> 2 | BB33: =SUM('법정동(2025.12월말)'!BB53) -> 0 | BC33: =SUM('법정동(2025.12월말)'!BC53) -> 0 | BD33: =SUM('법정동(2025.12월말)'!BD53) -> 27,800.7 | BE33: =SUM('법정동(2025.12월말)'!BE53) -> 34 | BF33: =SUM('법정동(2025.12월말)'!BF53) -> 3,060,709.1 | BG33: =SUM('법정동(2025.12월말)'!BG53) -> 75

Sheet 2024년 12월말 대비
A1: 구 분 | B1: 계 | D1: 전 | F1: 답 | H1: 과수원 | J1: 목장용지 | L1: 임야 | N1: 광천지 | P1: 염전 | R1: 대 | T1: 공장용지 | V1: 학교용지 | X1: 주차장 | Z1: 주유소용지 | AB1: 창고용지 | AD1: 도로 | AF1: 철도용지 | AH1: 제방 | AJ1: 하천 | AL1: 구거 | AN1: 유지 | AP1: 양어장 | AR1: 수도용지 | AT1: 공원 | AV1: 체육용지 | AX1: 유원지 | AZ1: 종교용지 | BB1: 사적지 | BD1: 묘지 | BF1: 잡종지
B2: 면 적 | C2: 지번수 | D2: 면 적 | E2: 지번수 | F2: 면 적 | G2: 지번수 | H2: 면 적 | I2: 지번수 | J2: 면 적 | K2: 지번수 | L2: 면 적 | M2: 지번수 | N2: 면 적 | O2: 지번수 | P2: 면 적 | Q2: 지번수 | R2: 면 적 | S2: 지번수 | T2: 면 적 | U2: 지번수 | V2: 면 적 | W2: 지번수 | X2: 면 적 | Y2: 지번수 | Z2: 면 적 | AA2: 지번수 | AB2: 면 적 | AC2: 지번수 | AD2: 면 적 | AE2: 지번수 | AF2: 면 적 | AG2: 지번수 | AH2: 면 적 | AI2: 지번수 | AJ2: 면 적 | AK2: 지번수 | AL2: 면 적 | AM2: 지번수 | AN2: 면 적 | AO2: 지번수 | AP2: 면 적 | AQ2: 지번수 | AR2: 면 적 | AS2: 지번수 | AT2: 면 적 | AU2: 지번수 | AV2: 면 적 | AW2: 지번수 | AX2: 면 적 | AY2: 지번수 | AZ2: 면 적 | BA2: 지번수 | BB2: 면 적 | BC2: 지번수 | BD2: 면 적 | BE2: 지번수 | BF2: 면 적 | BG2: 지번수
A3: 합 계 | B3: ='법정동(2025.6월말)'!B6-'법정동(2024.12월말)'!B6 -> 129,124.0 | C3: ='법정동(2025.6월말)'!C6-'법정동(2024.12월말)'!C6 -> 25.0 | D3: ='법정동(2025.6월말)'!D6-'법정동(2024.12월말)'!D6 -> -105,318.6 | E3: ='법정동(2025.6월말)'!E6-'법정동(2024.12월말)'!E6 -> -92.0 | F3: ='법정동(2025.6월말)'!F6-'법정동(2024.12월말)'!F6 -> -49,739.6 | G3: ='법정동(2025.6월말)'!G6-'법정동(2024.12월말)'!G6 -> -39.0 | H3: ='법정동(2025.6월말)'!H6-'법정동(2024.12월말)'!H6 -> 0.0 | I3: ='법정동(2025.6월말)'!I6-'법정동(2024.12월말)'!I6 -> 0.0 | J3: ='법정동(2025.6월말)'!J6-'법정동(2024.12월말)'!J6 -> 972.0 | K3: ='법정동(2025.6월말)'!K6-'법정동(2024.12월말)'!K6 -> 3.0 | L3: ='법정동(2025.6월말)'!L6-'법정동(2024.12월말)'!L6 -> -30,335.5 | M3: ='법정동(2025.6월말)'!M6-'법정동(2024.12월말)'!M6 -> 52.0 | N3: ='법정동(2025.6월말)'!N6-'법정동(2024.12월말)'!N6 -> 0.0 | O3: ='법정동(2025.6월말)'!O6-'법정동(2024.12월말)'!O6 -> 0.0 | P3: ='법정동(2025.6월말)'!P6-'법정동(2024.12월말)'!P6 -> 0.0 | Q3: ='법정동(2025.6월말)'!Q6-'법정동(2024.12월말)'!Q6 -> 0.0 | R3: ='법정동(2025.6월말)'!R6-'법정동(2024.12월말)'!R6 -> 161,278.9 | S3: ='법정동(2025.6월말)'!S6-'법정동(2024.12월말)'!S6 -> 22.0 | T3: ='법정동(2025.6월말)'!T6-'법정동(2024.12월말)'!T6 -> 6,207.0 | U3: ='법정동(2025.6월말)'!U6-'법정동(2024.12월말)'!U6 -> 6.0 | V3: ='법정동(2025.6월말)'!V6-'법정동(2024.12월말)'!V6 -> 3,706.0 | W3: ='법정동(2025.6월말)'!W6-'법정동(2024.12월말)'!W6 -> 1.0 | X3: ='법정동(2025.6월말)'!X6-'법정동(2024.12월말)'!X6 -> 20,505.3 | Y3: ='법정동(2025.6월말)'!Y6-'법정동(2024.12월말)'!Y6 -> 6.0 | Z3: ='법정동(2025.6월말)'!Z6-'법정동(2024.12월말)'!Z6 -> 8,866.0 | AA3: ='법정동(2025.6월말)'!AA6-'법정동(2024.12월말)'!AA6 -> 2.0 | AB3: ='법정동(2025.6월말)'!AB6-'법정동(2024.12월말)'!AB6 -> 2,146.0 | AC3: ='법정동(2025.6월말)'!AC6-'법정동(2024.12월말)'!AC6 -> 5.0 | AD3: ='법정동(2025.6월말)'!AD6-'법정동(2024.12월말)'!AD6 -> 35,731.7 | AE3: ='법정동(2025.6월말)'!AE6-'법정동(2024.12월말)'!AE6 -> 71.0 | AF3: ='법정동(2025.6월말)'!AF6-'법정동(2024.12월말)'!AF6 -> 0.0 | AG3: ='법정동(2025.6월말)'!AG6-'법정동(2024.12월말)'!AG6 -> 2.0 | AH3: ='법정동(2025.6월말)'!AH6-'법정동(2024.12월말)'!AH6 -> -145.0 | AI3: ='법정동(2025.6월말)'!AI6-'법정동(2024.12월말)'!AI6 -> 0.0 | AJ3: ='법정동(2025.6월말)'!AJ6-'법정동(2024.12월말)'!AJ6 -> -126.0 | AK3: ='법정동(2025.6월말)'!AK6-'법정동(2024.12월말)'!AK6 -> 1.0 | AL3: ='법정동(2025.6월말)'!AL6-'법정동(2024.12월말)'!AL6 -> 1,102.0 | AM3: ='법정동(2025.6월말)'!AM6-'법정동(2024.12월말)'!AM6 -> 2.0 | AN3: ='법정동(2025.6월말)'!AN6-'법정동(2024.12월말)'!AN6 -> 0.0 | AO3: ='법정동(2025.6월말)'!AO6-'법정동(2024.12월말)'!AO6 -> 0.0 | AP3: ='법정동(2025.6월말)'!AP6-'법정동(2024.12월말)'!AP6 -> 296.8 | AQ3: ='법정동(2025.6월말)'!AQ6-'법정동(2024.12월말)'!AQ6 -> 1.0 | AR3: ='법정동(2025.6월말)'!AR6-'법정동(2024.12월말)'!AR6 -> 0.0 | AS3: ='법정동(2025.6월말)'!AS6-'법정동(2024.12월말)'!AS6 -> 0.0 | AT3: ='법정동(2025.6월말)'!AT6-'법정동(2024.12월말)'!AT6 -> 20,996.9 | AU3: ='법정동(2025.6월말)'!AU6-'법정동(2024.12월말)'!AU6 -> 6.0 | AV3: ='법정동(2025.6월말)'!AV6-'법정동(2024.12월말)'!AV6 -> 0.0 | AW3: ='법정동(2025.6월말)'!AW6-'법정동(2024.12월말)'!AW6 -> 0.0 | AX3: ='법정동(2025.6월말)'!AX6-'법정동(2024.12월말)'!AX6 -> 3,076.0 | AY3: ='법정동(2025.6월말)'!AY6-'법정동(2024.12월말)'!AY6 -> 4.0 | AZ3: ='법정동(2025.6월말)'!AZ6-'법정동(2024.12월말)'!AZ6 -> -1.0 | BA3: ='법정동(2025.6월말)'!BA6-'법정동(2024.12월말)'!BA6 -> -1.0 | BB3: ='법정동(2025.6월말)'!BB6-'법정동(2024.12월말)'!BB6 -> 0.0 | BC3: ='법정동(2025.6월말)'!BC6-'법정동(2024.12월말)'!BC6 -> -84.0 | BD3: ='법정동(2025.6월말)'!BD6-'법정동(2024.12월말)'!BD6 -> 217.0 | BE3: ='법정동(2025.6월말)'!BE6-'법정동(2024.12월말)'!BE6 -> 4.0 | BF3: ='법정동(2025.6월말)'!BF6-'법정동(2024.12월말)'!BF6 -> 49,688.1 | BG3: ='법정동(2025.6월말)'!BG6-'법정동(2024.12월말)'!BG6 -> 53.0
A4: 종화동 | B4: ='법정동(2025.6월말)'!B7-'법정동(2024.12월말)'!B7 -> 0.0 | C4: ='법정동(2025.6월말)'!C7-'법정동(2024.12월말)'!C7 -> 3.0 | D4: ='법정동(2025.6월말)'!D7-'법정동(2024.12월말)'!D7 -> 0.0 | E4: ='법정동(2025.6월말)'!E7-'법정동(2024.12월말)'!E7 -> 0.0 | F4: ='법정동(2025.6월말)'!F7-'법정동(2024.12월말)'!F7 -> 0.0 | G4: ='법정동(2025.6월말)'!G7-'법정동(2024.12월말)'!G7 -> 0.0 | H4: ='법정동(2025.6월말)'!H7-'법정동(2024.12월말)'!H7 -> 0.0 | I4: ='법정동(2025.6월말)'!I7-'법정동(2024.12월말)'!I7 -> 0.0 | J4: ='법정동(2025.6월말)'!J7-'법정동(2024.12월말)'!J7 -> 0.0 | K4: ='법정동(2025.6월말)'!K7-'법정동(2024.12월말)'!K7 -> 0.0 | L4: ='법정동(2025.6월말)'!L7-'법정동(2024.12월말)'!L7 -> 0.0 | M4: ='법정동(2025.6월말)'!M7-'법정동(2024.12월말)'!M7 -> 2.0 | N4: ='법정동(2025.6월말)'!N7-'법정동(2024.12월말)'!N7 -> 0.0 | O4: ='법정동(2025.6월말)'!O7-'법정동(2024.12월말)'!O7 -> 0.0 | P4: ='법정동(2025.6월말)'!P7-'법정동(2024.12월말)'!P7 -> 0.0 | Q4: ='법정동(2025.6월말)'!Q7-'법정동(2024.12월말)'!Q7 -> 0.0 | R4: ='법정동(2025.6월말)'!R7-'법정동(2024.12월말)'!R7 -> 0.0 | S4: ='법정동(2025.6월말)'!S7-'법정동(2024.12월말)'!S7 -> 1.0 | T4: ='법정동(2025.6월말)'!T7-'법정동(2024.12월말)'!T7 -> 0.0 | U4: ='법정동(2025.6월말)'!U7-'법정동(2024.12월말)'!U7 -> 0.0 | V4: ='법정동(2025.6월말)'!V7-'법정동(2024.12월말)'!V7 -> 0.0 | W4: ='법정동(2025.6월말)'!W7-'법정동(2024.12월말)'!W7 -> 0.0 | X4: ='법정동(2025.6월말)'!X7-'법정동(2024.12월말)'!X7 -> 0.0 | Y4: ='법정동(2025.6월말)'!Y7-'법정동(2024.12월말)'!Y7 -> 0.0 | Z4: ='법정동(2025.6월말)'!Z7-'법정동(2024.12월말)'!Z7 -> 0.0 | AA4: ='법정동(2025.6월말)'!AA7-'법정동(2024.12월말)'!AA7 -> 0.0 | AB4: ='법정동(2025.6월말)'!AB7-'법정동(2024.12월말)'!AB7 -> 0.0 | AC4: ='법정동(2025.6월말)'!AC7-'법정동(2024.12월말)'!AC7 -> 0.0 | AD4: ='법정동(2025.6월말)'!AD7-'법정동(2024.12월말)'!AD7 -> 0.0 | AE4: ='법정동(2025.6월말)'!AE7-'법정동(2024.12월말)'!AE7 -> 0.0 | AF4: ='법정동(2025.6월말)'!AF7-'법정동(2024.12월말)'!AF7 -> 0.0 | AG4: ='법정동(2025.6월말)'!AG7-'법정동(2024.12월말)'!AG7 -> 0.0 | AH4: ='법정동(2025.6월말)'!AH7-'법정동(2024.12월말)'!AH7 -> 0.0 | AI4: ='법정동(2025.6월말)'!AI7-'법정동(2024.12월말)'!AI7 -> 0.0 | AJ4: ='법정동(2025.6월말)'!AJ7-'법정동(2024.12월말)'!AJ7 -> 0.0 | AK4: ='법정동(2025.6월말)'!AK7-'법정동(2024.12월말)'!AK7 -> 0.0 | AL4: ='법정동(2025.6월말)'!AL7-'법정동(2024.12월말)'!AL7 -> 0.0 | AM4: ='법정동(2025.6월말)'!AM7-'법정동(2024.12월말)'!AM7 -> 0.0 | AN4: ='법정동(2025.6월말)'!AN7-'법정동(2024.12월말)'!AN7 -> 0.0 | AO4: ='법정동(2025.6월말)'!AO7-'법정동(2024.12월말)'!AO7 -> 0.0 | AP4: ='법정동(2025.6월말)'!AP7-'법정동(2024.12월말)'!AP7 -> 0.0 | AQ4: ='법정동(2025.6월말)'!AQ7-'법정동(2024.12월말)'!AQ7 -> 0.0 | AR4: ='법정동(2025.6월말)'!AR7-'법정동(2024.12월말)'!AR7 -> 0.0 | AS4: ='법정동(2025.6월말)'!AS7-'법정동(2024.12월말)'!AS7 -> 0.0 | AT4: ='법정동(2025.6월말)'!AT7-'법정동(2024.12월말)'!AT7 -> 0.0 | AU4: ='법정동(2025.6월말)'!AU7-'법정동(2024.12월말)'!AU7 -> 0.0 | AV4: ='법정동(2025.6월말)'!AV7-'법정동(2024.12월말)'!AV7 -> 0.0 | AW4: ='법정동(2025.6월말)'!AW7-'법정동(2024.12월말)'!AW7 -> 0.0 | AX4: ='법정동(2025.6월말)'!AX7-'법정동(2024.12월말)'!AX7 -> 0.0 | AY4: ='법정동(2025.6월말)'!AY7-'법정동(2024.12월말)'!AY7 -> 0.0 | AZ4: ='법정동(2025.6월말)'!AZ7-'법정동(2024.12월말)'!AZ7 -> 0.0 | BA4: ='법정동(2025.6월말)'!BA7-'법정동(2024.12월말)'!BA7 -> 0.0 | BB4: ='법정동(2025.6월말)'!BB7-'법정동(2024.12월말)'!BB7 -> 0.0 | BC4: ='법정동(2025.6월말)'!BC7-'법정동(2024.12월말)'!BC7 -> 0.0 | BD4: ='법정동(2025.6월말)'!BD7-'법정동(2024.12월말)'!BD7 -> 0.0 | BE4: ='법정동(2025.6월말)'!BE7-'법정동(2024.12월말)'!BE7 -> 0.0 | BF4: ='법정동(2025.6월말)'!BF7-'법정동(2024.12월말)'!BF7 -> 0.0 | BG4: ='법정동(2025.6월말)'!BG7-'법정동(2024.12월말)'!BG7 -> 0.0
A5: 수정동 | B5: ='법정동(2025.6월말)'!B8-'법정동(2024.12월말)'!B8 -> 0.0 | C5: ='법정동(2025.6월말)'!C8-'법정동(2024.12월말)'!C8 -> 0.0 | D5: ='법정동(2025.6월말)'!D8-'법정동(2024.12월말)'!D8 -> 0.0 | E5: ='법정동(2025.6월말)'!E8-'법정동(2024.12월말)'!E8 -> 0.0 | F5: ='법정동(2025.6월말)'!F8-'법정동(2024.12월말)'!F8 -> 0.0 | G5: ='법정동(2025.6월말)'!G8-'법정동(2024.12월말)'!G8 -> 0.0 | H5: ='법정동(2025.6월말)'!H8-'법정동(2024.12월말)'!H8 -> 0.0 | I5: ='법정동(2025.6월말)'!I8-'법정동(2024.12월말)'!I8 -> 0.0 | J5: ='법정동(2025.6월말)'!J8-'법정동(2024.12월말)'!J8 -> 0.0 | K5: ='법정동(2025.6월말)'!K8-'법정동(2024.12월말)'!K8 -> 0.0 | L5: ='법정동(2025.6월말)'!L8-'법정동(2024.12월말)'!L8 -> 0.0 | M5: ='법정동(2025.6월말)'!M8-'법정동(2024.12월말)'!M8 -> 0.0 | N5: ='법정동(2025.6월말)'!N8-'법정동(2024.12월말)'!N8 -> 0.0 | O5: ='법정동(2025.6월말)'!O8-'법정동(2024.12월말)'!O8 -> 0.0 | P5: ='법정동(2025.6월말)'!P8-'법정동(2024.12월말)'!P8 -> 0.0 | Q5: ='법정동(2025.6월말)'!Q8-'법정동(2024.12월말)'!Q8 -> 0.0 | R5: ='법정동(2025.6월말)'!R8-'법정동(2024.12월말)'!R8 -> 0.0 | S5: ='법정동(2025.6월말)'!S8-'법정동(2024.12월말)'!S8 -> 0.0 | T5: ='법정동(2025.6월말)'!T8-'법정동(2024.12월말)'!T8 -> 0.0 | U5: ='법정동(2025.6월말)'!U8-'법정동(2024.12월말)'!U8 -> 0.0 | V5: ='법정동(2025.6월말)'!V8-'법정동(2024.12월말)'!V8 -> 0.0 | W5: ='법정동(2025.6월말)'!W8-'법정동(2024.12월말)'!W8 -> 0.0 | X5: ='법정동(2025.6월말)'!X8-'법정동(2024.12월말)'!X8 -> 0.0 | Y5: ='법정동(2025.6월말)'!Y8-'법정동(2024.12월말)'!Y8 -> 0.0 | Z5: ='법정동(2025.6월말)'!Z8-'법정동(2024.12월말)'!Z8 -> 0.0 | AA5: ='법정동(2025.6월말)'!AA8-'법정동(2024.12월말)'!AA8 -> 0.0 | AB5: ='법정동(2025.6월말)'!AB8-'법정동(2024.12월말)'!AB8 -> 0.0 | AC5: ='법정동(2025.6월말)'!AC8-'법정동(2024.12월말)'!AC8 -> 0.0 | AD5: ='법정동(2025.6월말)'!AD8-'법정동(2024.12월말)'!AD8 -> 0.0 | AE5: ='법정동(2025.6월말)'!AE8-'법정동(2024.12월말)'!AE8 -> 0.0 | AF5: ='법정동(2025.6월말)'!AF8-'법정동(2024.12월말)'!AF8 -> 0.0 | AG5: ='법정동(2025.6월말)'!AG8-'법정동(2024.12월말)'!AG8 -> 0.0 | AH5: ='법정동(2025.6월말)'!AH8-'법정동(2024.12월말)'!AH8 -> 0.0 | AI5: ='법정동(2025.6월말)'!AI8-'법정동(2024.12월말)'!AI8 -> 0.0 | AJ5: ='법정동(2025.6월말)'!AJ8-'법정동(2024.12월말)'!AJ8 -> 0.0 | AK5: ='법정동(2025.6월말)'!AK8-'법정동(2024.12월말)'!AK8 -> 0.0 | AL5: ='법정동(2025.6월말)'!AL8-'법정동(2024.12월말)'!AL8 -> 0.0 | AM5: ='법정동(2025.6월말)'!AM8-'법정동(2024.12월말)'!AM8 -> 0.0 | AN5: ='법정동(2025.6월말)'!AN8-'법정동(2024.12월말)'!AN8 -> 0.0 | AO5: ='법정동(2025.6월말)'!AO8-'법정동(2024.12월말)'!AO8 -> 0.0 | AP5: ='법정동(2025.6월말)'!AP8-'법정동(2024.12월말)'!AP8 -> 0.0 | AQ5: ='법정동(2025.6월말)'!AQ8-'법정동(2024.12월말)'!AQ8 -> 0.0 | AR5: ='법정동(2025.6월말)'!AR8-'법정동(2024.12월말)'!AR8 -> 0.0 | AS5: ='법정동(2025.6월말)'!AS8-'법정동(2024.12월말)'!AS8 -> 0.0 | AT5: ='법정동(2025.6월말)'!AT8-'법정동(2024.12월말)'!AT8 -> 0.0 | AU5: ='법정동(2025.6월말)'!AU8-'법정동(2024.12월말)'!AU8 -> 0.0 | AV5: ='법정동(2025.6월말)'!AV8-'법정동(2024.12월말)'!AV8 -> 0.0 | AW5: ='법정동(2025.6월말)'!AW8-'법정동(2024.12월말)'!AW8 -> 0.0 | AX5: ='법정동(2025.6월말)'!AX8-'법정동(2024.12월말)'!AX8 -> 0.0 | AY5: ='법정동(2025.6월말)'!AY8-'법정동(2024.12월말)'!AY8 -> 0.0 | AZ5: ='법정동(2025.6월말)'!AZ8-'법정동(2024.12월말)'!AZ8 -> 0.0 | BA5: ='법정동(2025.6월말)'!BA8-'법정동(2024.12월말)'!BA8 -> 0.0 | BB5: ='법정동(2025.6월말)'!BB8-'법정동(2024.12월말)'!BB8 -> 0.0 | BC5: ='법정동(2025.6월말)'!BC8-'법정동(2024.12월말)'!BC8 -> 0.0 | BD5: ='법정동(2025.6월말)'!BD8-'법정동(2024.12월말)'!BD8 -> 0.0 | BE5: ='법정동(2025.6월말)'!BE8-'법정동(2024.12월말)'!BE8 -> 0.0 | BF5: ='법정동(2025.6월말)'!BF8-'법정동(2024.12월말)'!BF8 -> 0.0 | BG5: ='법정동(2025.6월말)'!BG8-'법정동(2024.12월말)'!BG8 -> 0.0
A6: 공화동 | B6: ='법정동(2025.6월말)'!B9-'법정동(2024.12월말)'!B9 -> 0.0 | C6: ='법정동(2025.6월말)'!C9-'법정동(2024.12월말)'!C9 -> -2.0 | D6: ='법정동(2025.6월말)'!D9-'법정동(2024.12월말)'!D9 -> 0.0 | E6: ='법정동(2025.6월말)'!E9-'법정동(2024.12월말)'!E9 -> 0.0 | F6: ='법정동(2025.6월말)'!F9-'법정동(2024.12월말)'!F9 -> 0.0 | G6: ='법정동(2025.6월말)'!G9-'법정동(2024.12월말)'!G9 -> 0.0 | H6: ='법정동(2025.6월말)'!H9-'법정동(2024.12월말)'!H9 -> 0.0 | I6: ='법정동(2025.6월말)'!I9-'법정동(2024.12월말)'!I9 -> 0.0 | J6: ='법정동(2025.6월말)'!J9-'법정동(2024.12월말)'!J9 -> 0.0 | K6: ='법정동(2025.6월말)'!K9-'법정동(2024.12월말)'!K9 -> 0.0 | L6: ='법정동(2025.6월말)'!L9-'법정동(2024.12월말)'!L9 -> 0.0 | M6: ='법정동(2025.6월말)'!M9-'법정동(2024.12월말)'!M9 -> 0.0 | N6: ='법정동(2025.6월말)'!N9-'법정동(2024.12월말)'!N9 -> 0.0 | O6: ='법정동(2025.6월말)'!O9-'법정동(2024.12월말)'!O9 -> 0.0 | P6: ='법정동(2025.6월말)'!P9-'법정동(2024.12월말)'!P9 -> 0.0 | Q6: ='법정동(2025.6월말)'!Q9-'법정동(2024.12월말)'!Q9 -> 0.0 | R6: ='법정동(2025.6월말)'!R9-'법정동(2024.12월말)'!R9 -> 0.0 | S6: ='법정동(2025.6월말)'!S9-'법정동(2024.12월말)'!S9 -> -2.0 | T6: ='법정동(2025.6월말)'!T9-'법정동(2024.12월말)'!T9 -> 0.0 | U6: ='법정동(2025.6월말)'!U9-'법정동(2024.12월말)'!U9 -> 0.0 | V6: ='법정동(2025.6월말)'!V9-'법정동(2024.12월말)'!V9 -> 0.0 | W6: ='법정동(2025.6월말)'!W9-'법정동(2024.12월말)'!W9 -> 0.0 | X6: ='법정동(2025.6월말)'!X9-'법정동(2024.12월말)'!X9 -> 0.0 | Y6: ='법정동(2025.6월말)'!Y9-'법정동(2024.12월말)'!Y9 -> 0.0 | Z6: ='법정동(2025.6월말)'!Z9-'법정동(2024.12월말)'!Z9 -> 0.0 | AA6: ='법정동(2025.6월말)'!AA9-'법정동(2024.12월말)'!AA9 -> 0.0 | AB6: ='법정동(2025.6월말)'!AB9-'법정동(2024.12월말)'!AB9 -> 0.0 | AC6: ='법정동(2025.6월말)'!AC9-'법정동(2024.12월말)'!AC9 -> 0.0 | AD6: ='법정동(2025.6월말)'!AD9-'법정동(2024.12월말)'!AD9 -> 0.0 | AE6: ='법정동(2025.6월말)'!AE9-'법정동(2024.12월말)'!AE9 -> 0.0 | AF6: ='법정동(2025.6월말)'!AF9-'법정동(2024.12월말)'!AF9 -> 0.0 | AG6: ='법정동(2025.6월말)'!AG9-'법정동(2024.12월말)'!AG9 -> 0.0 | AH6: ='법정동(2025.6월말)'!AH9-'법정동(2024.12월말)'!AH9 -> 0.0 | AI6: ='법정동(2025.6월말)'!AI9-'법정동(2024.12월말)'!AI9 -> 0.0 | AJ6: ='법정동(2025.6월말)'!AJ9-'법정동(2024.12월말)'!AJ9 -> 0.0 | AK6: ='법정동(2025.6월말)'!AK9-'법정동(2024.12월말)'!AK9 -> 0.0 | AL6: ='법정동(2025.6월말)'!AL9-'법정동(2024.12월말)'!AL9 -> 0.0 | AM6: ='법정동(2025.6월말)'!AM9-'법정동(2024.12월말)'!AM9 -> 0.0 | AN6: ='법정동(2025.6월말)'!AN9-'법정동(2024.12월말)'!AN9 -> 0.0 | AO6: ='법정동(2025.6월말)'!AO9-'법정동(2024.12월말)'!AO9 -> 0.0 | AP6: ='법정동(2025.6월말)'!AP9-'법정동(2024.12월말)'!AP9 -> 0.0 | AQ6: ='법정동(2025.6월말)'!AQ9-'법정동(2024.12월말)'!AQ9 -> 0.0 | AR6: ='법정동(2025.6월말)'!AR9-'법정동(2024.12월말)'!AR9 -> 0.0 | AS6: ='법정동(2025.6월말)'!AS9-'법정동(2024.12월말)'!AS9 -> 0.0 | AT6: ='법정동(2025.6월말)'!AT9-'법정동(2024.12월말)'!AT9 -> 0.0 | AU6: ='법정동(2025.6월말)'!AU9-'법정동(2024.12월말)'!AU9 -> 0.0 | AV6: ='법정동(2025.6월말)'!AV9-'법정동(2024.12월말)'!AV9 -> 0.0 | AW6: ='법정동(2025.6월말)'!AW9-'법정동(2024.12월말)'!AW9 -> 0.0 | AX6: ='법정동(2025.6월말)'!AX9-'법정동(2024.12월말)'!AX9 -> 0.0 | AY6: ='법정동(2025.6월말)'!AY9-'법정동(2024.12월말)'!AY9 -> 0.0 | AZ6: ='법정동(2025.6월말)'!AZ9-'법정동(2024.12월말)'!AZ9 -> 0.0 | BA6: ='법정동(2025.6월말)'!BA9-'법정동(2024.12월말)'!BA9 -> 0.0 | BB6: ='법정동(2025.6월말)'!BB9-'법정동(2024.12월말)'!BB9 -> 0.0 | BC6: ='법정동(2025.6월말)'!BC9-'법정동(2024.12월말)'!BC9 -> 0.0 | BD6: ='법정동(2025.6월말)'!BD9-'법정동(2024.12월말)'!BD9 -> 0.0 | BE6: ='법정동(2025.6월말)'!BE9-'법정동(2024.12월말)'!BE9 -> 0.0 | BF6: ='법정동(2025.6월말)'!BF9-'법정동(2024.12월말)'!BF9 -> 0.0 | BG6: ='법정동(2025.6월말)'!BG9-'법정동(2024.12월말)'!BG9 -> 0.0
A7: 관문동 | B7: ='법정동(2025.6월말)'!B10-'법정동(2024.12월말)'!B10 -> 0.0 | C7: ='법정동(2025.6월말)'!C10-'법정동(2024.12월말)'!C10 -> -19.0 | D7: ='법정동(2025.6월말)'!D10-'법정동(2024.12월말)'!D10 -> 0.0 | E7: ='법정동(2025.6월말)'!E10-'법정동(2024.12월말)'!E10 -> 0.0 | F7: ='법정동(2025.6월말)'!F10-'법정동(2024.12월말)'!F10 -> 0.0 | G7: ='법정동(2025.6월말)'!G10-'법정동(2024.12월말)'!G10 -> 0.0 | H7: ='법정동(2025.6월말)'!H10-'법정동(2024.12월말)'!H10 -> 0.0 | I7: ='법정동(2025.6월말)'!I10-'법정동(2024.12월말)'!I10 -> 0.0 | J7: ='법정동(2025.6월말)'!J10-'법정동(2024.12월말)'!J10 -> 0.0 | K7: ='법정동(2025.6월말)'!K10-'법정동(2024.12월말)'!K10 -> 0.0 | L7: ='법정동(2025.6월말)'!L10-'법정동(2024.12월말)'!L10 -> 0.0 | M7: ='법정동(2025.6월말)'!M10-'법정동(2024.12월말)'!M10 -> 0.0 | N7: ='법정동(2025.6월말)'!N10-'법정동(2024.12월말)'!N10 -> 0.0 | O7: ='법정동(2025.6월말)'!O10-'법정동(2024.12월말)'!O10 -> 0.0 | P7: ='법정동(2025.6월말)'!P10-'법정동(2024.12월말)'!P10 -> 0.0 | Q7: ='법정동(2025.6월말)'!Q10-'법정동(2024.12월말)'!Q10 -> 0.0 | R7: ='법정동(2025.6월말)'!R10-'법정동(2024.12월말)'!R10 -> 11.0 | S7: ='법정동(2025.6월말)'!S10-'법정동(2024.12월말)'!S10 -> -18.0 | T7: ='법정동(2025.6월말)'!T10-'법정동(2024.12월말)'!T10 -> 0.0 | U7: ='법정동(2025.6월말)'!U10-'법정동(2024.12월말)'!U10 -> 0.0 | V7: ='법정동(2025.6월말)'!V10-'법정동(2024.12월말)'!V10 -> 0.0 | W7: ='법정동(2025.6월말)'!W10-'법정동(2024.12월말)'!W10 -> 0.0 | X7: ='법정동(2025.6월말)'!X10-'법정동(2024.12월말)'!X10 -> 0.0 | Y7: ='법정동(2025.6월말)'!Y10-'법정동(2024.12월말)'!Y10 -> 0.0 | Z7: ='법정동(2025.6월말)'!Z10-'법정동(2024.12월말)'!Z10 -> 0.0 | AA7: ='법정동(2025.6월말)'!AA10-'법정동(2024.12월말)'!AA10 -> 0.0 | AB7: ='법정동(2025.6월말)'!AB10-'법정동(2024.12월말)'!AB10 -> 0.0 | AC7: ='법정동(2025.6월말)'!AC10-'법정동(2024.12월말)'!AC10 -> 0.0 | AD7: ='법정동(2025.6월말)'!AD10-'법정동(2024.12월말)'!AD10 -> -11.0 | AE7: ='법정동(2025.6월말)'!AE10-'법정동(2024.12월말)'!AE10 -> -1.0 | AF7: ='법정동(2025.6월말)'!AF10-'법정동(2024.12월말)'!AF10 -> 0.0 | AG7: ='법정동(2025.6월말)'!AG10-'법정동(2024.12월말)'!AG10 -> 0.0 | AH7: ='법정동(2025.6월말)'!AH10-'법정동(2024.12월말)'!AH10 -> 0.0 | AI7: ='법정동(2025.6월말)'!AI10-'법정동(2024.12월말)'!AI10 -> 0.0 | AJ7: ='법정동(2025.6월말)'!AJ10-'법정동(2024.12월말)'!AJ10 -> 0.0 | AK7: ='법정동(2025.6월말)'!AK10-'법정동(2024.12월말)'!AK10 -> 0.0 | AL7: ='법정동(2025.6월말)'!AL10-'법정동(2024.12월말)'!AL10 -> 0.0 | AM7: ='법정동(2025.6월말)'!AM10-'법정동(2024.12월말)'!AM10 -> 0.0 | AN7: ='법정동(2025.6월말)'!AN10-'법정동(2024.12월말)'!AN10 -> 0.0 | AO7: ='법정동(2025.6월말)'!AO10-'법정동(2024.12월말)'!AO10 -> 0.0 | AP7: ='법정동(2025.6월말)'!AP10-'법정동(2024.12월말)'!AP10 -> 0.0 | AQ7: ='법정동(2025.6월말)'!AQ10-'법정동(2024.12월말)'!AQ10 -> 0.0 | AR7: ='법정동(2025.6월말)'!AR10-'법정동(2024.12월말)'!AR10 -> 0.0 | AS7: ='법정동(2025.6월말)'!AS10-'법정동(2024.12월말)'!AS10 -> 0.0 | AT7: ='법정동(2025.6월말)'!AT10-'법정동(2024.12월말)'!AT10 -> 0.0 | AU7: ='법정동(2025.6월말)'!AU10-'법정동(2024.12월말)'!AU10 -> 0.0 | AV7: ='법정동(2025.6월말)'!AV10-'법정동(2024.12월말)'!AV10 -> 0.0 | AW7: ='법정동(2025.6월말)'!AW10-'법정동(2024.12월말)'!AW10 -> 0.0 | AX7: ='법정동(2025.6월말)'!AX10-'법정동(2024.12월말)'!AX10 -> 0.0 | AY7: ='법정동(2025.6월말)'!AY10-'법정동(2024.12월말)'!AY10 -> 0.0 | AZ7: ='법정동(2025.6월말)'!AZ10-'법정동(2024.12월말)'!AZ10 -> 0.0 | BA7: ='법정동(2025.6월말)'!BA10-'법정동(2024.12월말)'!BA10 -> 0.0 | BB7: ='법정동(2025.6월말)'!BB10-'법정동(2024.12월말)'!BB10 -> 0.0 | BC7: ='법정동(2025.6월말)'!BC10-'법정동(2024.12월말)'!BC10 -> 0.0 | BD7: ='법정동(2025.6월말)'!BD10-'법정동(2024.12월말)'!BD10 -> 0.0 | BE7: ='법정동(2025.6월말)'!BE10-'법정동(2024.12월말)'!BE10 -> 0.0 | BF7: ='법정동(2025.6월말)'!BF10-'법정동(2024.12월말)'!BF10 -> 0.0 | BG7: ='법정동(2025.6월말)'!BG10-'법정동(2024.12월말)'!BG10 -> 0.0
A8: 고소동 | B8: ='법정동(2025.6월말)'!B11-'법정동(2024.12월말)'!B11 -> 0.0 | C8: ='법정동(2025.6월말)'!C11-'법정동(2024.12월말)'!C11 -> 6.0 | D8: ='법정동(2025.6월말)'!D11-'법정동(2024.12월말)'!D11 -> 0.0 | E8: ='법정동(2025.6월말)'!E11-'법정동(2024.12월말)'!E11 -> 0.0 | F8: ='법정동(2025.6월말)'!F11-'법정동(2024.12월말)'!F11 -> 0.0 | G8: ='법정동(2025.6월말)'!G11-'법정동(2024.12월말)'!G11 -> 0.0 | H8: ='법정동(2025.6월말)'!H11-'법정동(2024.12월말)'!H11 -> 0.0 | I8: ='법정동(2025.6월말)'!I11-'법정동(2024.12월말)'!I11 -> 0.0 | J8: ='법정동(2025.6월말)'!J11-'법정동(2024.12월말)'!J11 -> 0.0 | K8: ='법정동(2025.6월말)'!K11-'법정동(2024.12월말)'!K11 -> 0.0 | L8: ='법정동(2025.6월말)'!L11-'법정동(2024.12월말)'!L11 -> 0.0 | M8: ='법정동(2025.6월말)'!M11-'법정동(2024.12월말)'!M11 -> 1.0 | N8: ='법정동(2025.6월말)'!N11-'법정동(2024.12월말)'!N11 -> 0.0 | O8: ='법정동(2025.6월말)'!O11-'법정동(2024.12월말)'!O11 -> 0.0 | P8: ='법정동(2025.6월말)'!P11-'법정동(2024.12월말)'!P11 -> 0.0 | Q8: ='법정동(2025.6월말)'!Q11-'법정동(2024.12월말)'!Q11 -> 0.0 | R8: ='법정동(2025.6월말)'!R11-'법정동(2024.12월말)'!R11 -> 10.0 | S8: ='법정동(2025.6월말)'!S11-'법정동(2024.12월말)'!S11 -> 5.0 | T8: ='법정동(2025.6월말)'!T11-'법정동(2024.12월말)'!T11 -> 0.0 | U8: ='법정동(2025.6월말)'!U11-'법정동(2024.12월말)'!U11 -> 0.0 | V8: ='법정동(2025.6월말)'!V11-'법정동(2024.12월말)'!V11 -> 0.0 | W8: ='법정동(2025.6월말)'!W11-'법정동(2024.12월말)'!W11 -> 0.0 | X8: ='법정동(2025.6월말)'!X11-'법정동(2024.12월말)'!X11 -> 0.0 | Y8: ='법정동(2025.6월말)'!Y11-'법정동(2024.12월말)'!Y11 -> 0.0 | Z8: ='법정동(2025.6월말)'!Z11-'법정동(2024.12월말)'!Z11 -> 0.0 | AA8: ='법정동(2025.6월말)'!AA11-'법정동(2024.12월말)'!AA11 -> 0.0 | AB8: ='법정동(2025.6월말)'!AB11-'법정동(2024.12월말)'!AB11 -> 0.0 | AC8: ='법정동(2025.6월말)'!AC11-'법정동(2024.12월말)'!AC11 -> 0.0 | AD8: ='법정동(2025.6월말)'!AD11-'법정동(2024.12월말)'!AD11 -> -10.0 | AE8: ='법정동(2025.6월말)'!AE11-'법정동(2024.12월말)'!AE11 -> 0.0 | AF8: ='법정동(2025.6월말)'!AF11-'법정동(2024.12월말)'!AF11 -> 0.0 | AG8: ='법정동(2025.6월말)'!AG11-'법정동(2024.12월말)'!AG11 -> 0.0 | AH8: ='법정동(2025.6월말)'!AH11-'법정동(2024.12월말)'!AH11 -> 0.0 | AI8: ='법정동(2025.6월말)'!AI11-'법정동(2024.12월말)'!AI11 -> 0.0 | AJ8: ='법정동(2025.6월말)'!AJ11-'법정동(2024.12월말)'!AJ11 -> 0.0 | AK8: ='법정동(2025.6월말)'!AK11-'법정동(2024.12월말)'!AK11 -> 0.0 | AL8: ='법정동(2025.6월말)'!AL11-'법정동(2024.12월말)'!AL11 -> 0.0 | AM8: ='법정동(2025.6월말)'!AM11-'법정동(2024.12월말)'!AM11 -> 0.0 | AN8: ='법정동(2025.6월말)'!AN11-'법정동(2024.12월말)'!AN11 -> 0.0 | AO8: ='법정동(2025.6월말)'!AO11-'법정동(2024.12월말)'!AO11 -> 0.0 | AP8: ='법정동(2025.6월말)'!AP11-'법정동(2024.12월말)'!AP11 -> 0.0 | AQ8: ='법정동(2025.6월말)'!AQ11-'법정동(2024.12월말)'!AQ11 -> 0.0 | AR8: ='법정동(2025.6월말)'!AR11-'법정동(2024.12월말)'!AR11 -> 0.0 | AS8: ='법정동(2025.6월말)'!AS11-'법정동(2024.12월말)'!AS11 -> 0.0 | AT8: ='법정동(2025.6월말)'!AT11-'법정동(2024.12월말)'!AT11 -> 0.0 | AU8: ='법정동(2025.6월말)'!AU11-'법정동(2024.12월말)'!AU11 -> 0.0 | AV8: ='법정동(2025.6월말)'!AV11-'법정동(2024.12월말)'!AV11 -> 0.0 | AW8: ='법정동(2025.6월말)'!AW11-'법정동(2024.12월말)'!AW11 -> 0.0 | AX8: ='법정동(2025.6월말)'!AX11-'법정동(2024.12월말)'!AX11 -> 0.0 | AY8: ='법정동(2025.6월말)'!AY11-'법정동(2024.12월말)'!AY11 -> 0.0 | AZ8: ='법정동(2025.6월말)'!AZ11-'법정동(2024.12월말)'!AZ11 -> 0.0 | BA8: ='법정동(2025.6월말)'!BA11-'법정동(2024.12월말)'!BA11 -> 0.0 | BB8: ='법정동(2025.6월말)'!BB11-'법정동(2024.12월말)'!BB11 -> 0.0 | BC8: ='법정동(2025.6월말)'!BC11-'법정동(2024.12월말)'!BC11 -> 0.0 | BD8: ='법정동(2025.6월말)'!BD11-'법정동(2024.12월말)'!BD11 -> 0.0 | BE8: ='법정동(2025.6월말)'!BE11-'법정동(2024.12월말)'!BE11 -> 0.0 | BF8: ='법정동(2025.6월말)'!BF11-'법정동(2024.12월말)'!BF11 -> 0.0 | BG8: ='법정동(2025.6월말)'!BG11-'법정동(2024.12월말)'!BG11 -> 0.0
A9: 동산동 | B9: ='법정동(2025.6월말)'!B12-'법정동(2024.12월말)'!B12 -> 0.0 | C9: ='법정동(2025.6월말)'!C12-'법정동(2024.12월말)'!C12 -> -28.0 | D9: ='법정동(2025.6월말)'!D12-'법정동(2024.12월말)'!D12 -> 0.0 | E9: ='법정동(2025.6월말)'!E12-'법정동(2024.12월말)'!E12 -> 0.0 | F9: ='법정동(2025.6월말)'!F12-'법정동(2024.12월말)'!F12 -> 0.0 | G9: ='법정동(2025.6월말)'!G12-'법정동(2024.12월말)'!G12 -> 0.0 | H9: ='법정동(2025.6월말)'!H12-'법정동(2024.12월말)'!H12 -> 0.0 | I9: ='법정동(2025.6월말)'!I12-'법정동(2024.12월말)'!I12 -> 0.0 | J9: ='법정동(2025.6월말)'!J12-'법정동(2024.12월말)'!J12 -> 0.0 | K9: ='법정동(2025.6월말)'!K12-'법정동(2024.12월말)'!K12 -> 0.0 | L9: ='법정동(2025.6월말)'!L12-'법정동(2024.12월말)'!L12 -> 0.0 | M9: ='법정동(2025.6월말)'!M12-'법정동(2024.12월말)'!M12 -> 2.0 | N9: ='법정동(2025.6월말)'!N12-'법정동(2024.12월말)'!N12 -> 0.0 | O9: ='법정동(2025.6월말)'!O12-'법정동(2024.12월말)'!O12 -> 0.0 | P9: ='법정동(2025.6월말)'!P12-'법정동(2024.12월말)'!P12 -> 0.0 | Q9: ='법정동(2025.6월말)'!Q12-'법정동(2024.12월말)'!Q12 -> 0.0 | R9: ='법정동(2025.6월말)'!R12-'법정동(2024.12월말)'!R12 -> 0.0 | S9: ='법정동(2025.6월말)'!S12-'법정동(2024.12월말)'!S12 -> -28.0 | T9: ='법정동(2025.6월말)'!T12-'법정동(2024.12월말)'!T12 -> 0.0 | U9: ='법정동(2025.6월말)'!U12-'법정동(2024.12월말)'!U12 -> 0.0 | V9: ='법정동(2025.6월말)'!V12-'법정동(2024.12월말)'!V12 -> 0.0 | W9: ='법정동(2025.6월말)'!W12-'법정동(2024.12월말)'!W12 -> 0.0 | X9: ='법정동(2025.6월말)'!X12-'법정동(2024.12월말)'!X12 -> 0.0 | Y9: ='법정동(2025.6월말)'!Y12-'법정동(2024.12월말)'!Y12 -> -2.0 | Z9: ='법정동(2025.6월말)'!Z12-'법정동(2024.12월말)'!Z12 -> 0.0 | AA9: ='법정동(2025.6월말)'!AA12-'법정동(2024.12월말)'!AA12 -> 0.0 | AB9: ='법정동(2025.6월말)'!AB12-'법정동(2024.12월말)'!AB12 -> 0.0 | AC9: ='법정동(2025.6월말)'!AC12-'법정동(2024.12월말)'!AC12 -> 0.0 | AD9: ='법정동(2025.6월말)'!AD12-'법정동(2024.12월말)'!AD12 -> 0.0 | AE9: ='법정동(2025.6월말)'!AE12-'법정동(2024.12월말)'!AE12 -> 0.0 | AF9: ='법정동(2025.6월말)'!AF12-'법정동(2024.12월말)'!AF12 -> 0.0 | AG9: ='법정동(2025.6월말)'!AG12-'법정동(2024.12월말)'!AG12 -> 0.0 | AH9: ='법정동(2025.6월말)'!AH12-'법정동(2024.12월말)'!AH12 -> 0.0 | AI9: ='법정동(2025.6월말)'!AI12-'법정동(2024.12월말)'!AI12 -> 0.0 | AJ9: ='법정동(2025.6월말)'!AJ12-'법정동(2024.12월말)'!AJ12 -> 0.0 | AK9: ='법정동(2025.6월말)'!AK12-'법정동(2024.12월말)'!AK12 -> 0.0 | AL9: ='법정동(2025.6월말)'!AL12-'법정동(2024.12월말)'!AL12 -> 0.0 | AM9: ='법정동(2025.6월말)'!AM12-'법정동(2024.12월말)'!AM12 -> 0.0 | AN9: ='법정동(2025.6월말)'!AN12-'법정동(2024.12월말)'!AN12 -> 0.0 | AO9: ='법정동(2025.6월말)'!AO12-'법정동(2024.12월말)'!AO12 -> 0.0 | AP9: ='법정동(2025.6월말)'!AP12-'법정동(2024.12월말)'!AP12 -> 0.0 | AQ9: ='법정동(2025.6월말)'!AQ12-'법정동(2024.12월말)'!AQ12 -> 0.0 | AR9: ='법정동(2025.6월말)'!AR12-'법정동(2024.12월말)'!AR12 -> 0.0 | AS9: ='법정동(2025.6월말)'!AS12-'법정동(2024.12월말)'!AS12 -> 0.0 | AT9: ='법정동(2025.6월말)'!AT12-'법정동(2024.12월말)'!AT12 -> 0.0 | AU9: ='법정동(2025.6월말)'!AU12-'법정동(2024.12월말)'!AU12 -> 0.0 | AV9: ='법정동(2025.6월말)'!AV12-'법정동(2024.12월말)'!AV12 -> 0.0 | AW9: ='법정동(2025.6월말)'!AW12-'법정동(2024.12월말)'!AW12 -> 0.0 | AX9: ='법정동(2025.6월말)'!AX12-'법정동(2024.12월말)'!AX12 -> 0.0 | AY9: ='법정동(2025.6월말)'!AY12-'법정동(2024.12월말)'!AY12 -> 0.0 | AZ9: ='법정동(2025.6월말)'!AZ12-'법정동(2024.12월말)'!AZ12 -> 0.0 | BA9: ='법정동(2025.6월말)'!BA12-'법정동(2024.12월말)'!BA12 -> 0.0 | BB9: ='법정동(2025.6월말)'!BB12-'법정동(2024.12월말)'!BB12 -> 0.0 | BC9: ='법정동(2025.6월말)'!BC12-'법정동(2024.12월말)'!BC12 -> 0.0 | BD9: ='법정동(2025.6월말)'!BD12-'법정동(2024.12월말)'!BD12 -> 0.0 | BE9: ='법정동(2025.6월말)'!BE12-'법정동(2024.12월말)'!BE12 -> 0.0 | BF9: ='법정동(2025.6월말)'!BF12-'법정동(2024.12월말)'!BF12 -> 0.0 | BG9: ='법정동(2025.6월말)'!BG12-'법정동(2024.12월말)'!BG12 -> 0.0
A10: 중앙동 | B10: ='법정동(2025.6월말)'!B13-'법정동(2024.12월말)'!B13 -> 0.0 | C10: ='법정동(2025.6월말)'!C13-'법정동(2024.12월말)'!C13 -> 0.0 | D10: ='법정동(2025.6월말)'!D13-'법정동(2024.12월말)'!D13 -> 0.0 | E10: ='법정동(2025.6월말)'!E13-'법정동(2024.12월말)'!E13 -> 0.0 | F10: ='법정동(2025.6월말)'!F13-'법정동(2024.12월말)'!F13 -> 0.0 | G10: ='법정동(2025.6월말)'!G13-'법정동(2024.12월말)'!G13 -> 0.0 | H10: ='법정동(2025.6월말)'!H13-'법정동(2024.12월말)'!H13 -> 0.0 | I10: ='법정동(2025.6월말)'!I13-'법정동(2024.12월말)'!I13 -> 0.0 | J10: ='법정동(2025.6월말)'!J13-'법정동(2024.12월말)'!J13 -> 0.0 | K10: ='법정동(2025.6월말)'!K13-'법정동(2024.12월말)'!K13 -> 0.0 | L10: ='법정동(2025.6월말)'!L13-'법정동(2024.12월말)'!L13 -> 0.0 | M10: ='법정동(2025.6월말)'!M13-'법정동(2024.12월말)'!M13 -> 0.0 | N10: ='법정동(2025.6월말)'!N13-'법정동(2024.12월말)'!N13 -> 0.0 | O10: ='법정동(2025.6월말)'!O13-'법정동(2024.12월말)'!O13 -> 0.0 | P10: ='법정동(2025.6월말)'!P13-'법정동(2024.12월말)'!P13 -> 0.0 | Q10: ='법정동(2025.6월말)'!Q13-'법정동(2024.12월말)'!Q13 -> 0.0 | R10: ='법정동(2025.6월말)'!R13-'법정동(2024.12월말)'!R13 -> 0.0 | S10: ='법정동(2025.6월말)'!S13-'법정동(2024.12월말)'!S13 -> 0.0 | T10: ='법정동(2025.6월말)'!T13-'법정동(2024.12월말)'!T13 -> 0.0 | U10: ='법정동(2025.6월말)'!U13-'법정동(2024.12월말)'!U13 -> 0.0 | V10: ='법정동(2025.6월말)'!V13-'법정동(2024.12월말)'!V13 -> 0.0 | W10: ='법정동(2025.6월말)'!W13-'법정동(2024.12월말)'!W13 -> 0.0 | X10: ='법정동(2025.6월말)'!X13-'법정동(2024.12월말)'!X13 -> 0.0 | Y10: ='법정동(2025.6월말)'!Y13-'법정동(2024.12월말)'!Y13 -> 0.0 | Z10: ='법정동(2025.6월말)'!Z13-'법정동(2024.12월말)'!Z13 -> 0.0 | AA10: ='법정동(2025.6월말)'!AA13-'법정동(2024.12월말)'!AA13 -> 0.0 | AB10: ='법정동(2025.6월말)'!AB13-'법정동(2024.12월말)'!AB13 -> 0.0 | AC10: ='법정동(2025.6월말)'!AC13-'법정동(2024.12월말)'!AC13 -> 0.0 | AD10: ='법정동(2025.6월말)'!AD13-'법정동(2024.12월말)'!AD13 -> 0.0 | AE10: ='법정동(2025.6월말)'!AE13-'법정동(2024.12월말)'!AE13 -> 0.0 | AF10: ='법정동(2025.6월말)'!AF13-'법정동(2024.12월말)'!AF13 -> 0.0 | AG10: ='법정동(2025.6월말)'!AG13-'법정동(2024.12월말)'!AG13 -> 0.0 | AH10: ='법정동(2025.6월말)'!AH13-'법정동(2024.12월말)'!AH13 -> 0.0 | AI10: ='법정동(2025.6월말)'!AI13-'법정동(2024.12월말)'!AI13 -> 0.0 | AJ10: ='법정동(2025.6월말)'!AJ13-'법정동(2024.12월말)'!AJ13 -> 0.0 | AK10: ='법정동(2025.6월말)'!AK13-'법정동(2024.12월말)'!AK13 -> 0.0 | AL10: ='법정동(2025.6월말)'!AL13-'법정동(2024.12월말)'!AL13 -> 0.0 | AM10: ='법정동(2025.6월말)'!AM13-'법정동(2024.12월말)'!AM13 -> 0.0 | AN10: ='법정동(2025.6월말)'!AN13-'법정동(2024.12월말)'!AN13 -> 0.0 | AO10: ='법정동(2025.6월말)'!AO13-'법정동(2024.12월말)'!AO13 -> 0.0 | AP10: ='법정동(2025.6월말)'!AP13-'법정동(2024.12월말)'!AP13 -> 0.0 | AQ10: ='법정동(2025.6월말)'!AQ13-'법정동(2024.12월말)'!AQ13 -> 0.0 | AR10: ='법정동(2025.6월말)'!AR13-'법정동(2024.12월말)'!AR13 -> 0.0 | AS10: ='법정동(2025.6월말)'!AS13-'법정동(2024.12월말)'!AS13 -> 0.0 | AT10: ='법정동(2025.6월말)'!AT13-'법정동(2024.12월말)'!AT13 -> 0.0 | AU10: ='법정동(2025.6월말)'!AU13-'법정동(2024.12월말)'!AU13 -> 0.0 | AV10: ='법정동(2025.6월말)'!AV13-'법정동(2024.12월말)'!AV13 -> 0.0 | AW10: ='법정동(2025.6월말)'!AW13-'법정동(2024.12월말)'!AW13 -> 0.0 | AX10: ='법정동(2025.6월말)'!AX13-'법정동(2024.12월말)'!AX13 -> 0.0 | AY10: ='법정동(2025.6월말)'!AY13-'법정동(2024.12월말)'!AY13 -> 0.0 | AZ10: ='법정동(2025.6월말)'!AZ13-'법정동(2024.12월말)'!AZ13 -> 0.0 | BA10: ='법정동(2025.6월말)'!BA13-'법정동(2024.12월말)'!BA13 -> 0.0 | BB10: ='법정동(2025.6월말)'!BB13-'법정동(2024.12월말)'!BB13 -> 0.0 | BC10: ='법정동(2025.6월말)'!BC13-'법정동(2024.12월말)'!BC13 -> 0.0 | BD10: ='법정동(2025.6월말)'!BD13-'법정동(2024.12월말)'!BD13 -> 0.0 | BE10: ='법정동(2025.6월말)'!BE13-'법정동(2024.12월말)'!BE13 -> 0.0 | BF10: ='법정동(2025.6월말)'!BF13-'법정동(2024.12월말)'!BF13 -> 0.0 | BG10: ='법정동(2025.6월말)'!BG13-'법정동(2024.12월말)'!BG13 -> 0.0
A11: 교동 | B11: ='법정동(2025.6월말)'!B14-'법정동(2024.12월말)'!B14 -> 0.0 | C11: ='법정동(2025.6월말)'!C14-'법정동(2024.12월말)'!C14 -> 0.0 | D11: ='법정동(2025.6월말)'!D14-'법정동(2024.12월말)'!D14 -> 0.0 | E11: ='법정동(2025.6월말)'!E14-'법정동(2024.12월말)'!E14 -> 0.0 | F11: ='법정동(2025.6월말)'!F14-'법정동(2024.12월말)'!F14 -> 0.0 | G11: ='법정동(2025.6월말)'!G14-'법정동(2024.12월말)'!G14 -> 0.0 | H11: ='법정동(2025.6월말)'!H14-'법정동(2024.12월말)'!H14 -> 0.0 | I11: ='법정동(2025.6월말)'!I14-'법정동(2024.12월말)'!I14 -> 0.0 | J11: ='법정동(2025.6월말)'!J14-'법정동(2024.12월말)'!J14 -> 0.0 | K11: ='법정동(2025.6월말)'!K14-'법정동(2024.12월말)'!K14 -> 0.0 | L11: ='법정동(2025.6월말)'!L14-'법정동(2024.12월말)'!L14 -> 0.0 | M11: ='법정동(2025.6월말)'!M14-'법정동(2024.12월말)'!M14 -> 0.0 | N11: ='법정동(2025.6월말)'!N14-'법정동(2024.12월말)'!N14 -> 0.0 | O11: ='법정동(2025.6월말)'!O14-'법정동(2024.12월말)'!O14 -> 0.0 | P11: ='법정동(2025.6월말)'!P14-'법정동(2024.12월말)'!P14 -> 0.0 | Q11: ='법정동(2025.6월말)'!Q14-'법정동(2024.12월말)'!Q14 -> 0.0 | R11: ='법정동(2025.6월말)'!R14-'법정동(2024.12월말)'!R14 -> 0.0 | S11: ='법정동(2025.6월말)'!S14-'법정동(2024.12월말)'!S14 -> 0.0 | T11: ='법정동(2025.6월말)'!T14-'법정동(2024.12월말)'!T14 -> 0.0 | U11: ='법정동(2025.6월말)'!U14-'법정동(2024.12월말)'!U14 -> 0.0 | V11: ='법정동(2025.6월말)'!V14-'법정동(2024.12월말)'!V14 -> 0.0 | W11: ='법정동(2025.6월말)'!W14-'법정동(2024.12월말)'!W14 -> 0.0 | X11: ='법정동(2025.6월말)'!X14-'법정동(2024.12월말)'!X14 -> 0.0 | Y11: ='법정동(2025.6월말)'!Y14-'법정동(2024.12월말)'!Y14 -> 0.0 | Z11: ='법정동(2025.6월말)'!Z14-'법정동(2024.12월말)'!Z14 -> 0.0 | AA11: ='법정동(2025.6월말)'!AA14-'법정동(2024.12월말)'!AA14 -> 0.0 | AB11: ='법정동(2025.6월말)'!AB14-'법정동(2024.12월말)'!AB14 -> 0.0 | AC11: ='법정동(2025.6월말)'!AC14-'법정동(2024.12월말)'!AC14 -> 0.0 | AD11: ='법정동(2025.6월말)'!AD14-'법정동(2024.12월말)'!AD14 -> 0.0 | AE11: ='법정동(2025.6월말)'!AE14-'법정동(2024.12월말)'!AE14 -> 0.0 | AF11: ='법정동(2025.6월말)'!AF14-'법정동(2024.12월말)'!AF14 -> 0.0 | AG11: ='법정동(2025.6월말)'!AG14-'법정동(2024.12월말)'!AG14 -> 0.0 | AH11: ='법정동(2025.6월말)'!AH14-'법정동(2024.12월말)'!AH14 -> 0.0 | AI11: ='법정동(2025.6월말)'!AI14-'법정동(2024.12월말)'!AI14 -> 0.0 | AJ11: ='법정동(2025.6월말)'!AJ14-'법정동(2024.12월말)'!AJ14 -> 0.0 | AK11: ='법정동(2025.6월말)'!AK14-'법정동(2024.12월말)'!AK14 -> 0.0 | AL11: ='법정동(2025.6월말)'!AL14-'법정동(2024.12월말)'!AL14 -> 0.0 | AM11: ='법정동(2025.6월말)'!AM14-'법정동(2024.12월말)'!AM14 -> 0.0 | AN11: ='법정동(2025.6월말)'!AN14-'법정동(2024.12월말)'!AN14 -> 0.0 | AO11: ='법정동(2025.6월말)'!AO14-'법정동(2024.12월말)'!AO14 -> 0.0 | AP11: ='법정동(2025.6월말)'!AP14-'법정동(2024.12월말)'!AP14 -> 0.0 | AQ11: ='법정동(2025.6월말)'!AQ14-'법정동(2024.12월말)'!AQ14 -> 0.0 | AR11: ='법정동(2025.6월말)'!AR14-'법정동(2024.12월말)'!AR14 -> 0.0 | AS11: ='법정동(2025.6월말)'!AS14-'법정동(2024.12월말)'!AS14 -> 0.0 | AT11: ='법정동(2025.6월말)'!AT14-'법정동(2024.12월말)'!AT14 -> 0.0 | AU11: ='법정동(2025.6월말)'!AU14-'법정동(2024.12월말)'!AU14 -> 0.0 | AV11: ='법정동(2025.6월말)'!AV14-'법정동(2024.12월말)'!AV14 -> 0.0 | AW11: ='법정동(2025.6월말)'!AW14-'법정동(2024.12월말)'!AW14 -> 0.0 | AX11: ='법정동(2025.6월말)'!AX14-'법정동(2024.12월말)'!AX14 -> 0.0 | AY11: ='법정동(2025.6월말)'!AY14-'법정동(2024.12월말)'!AY14 -> 0.0 | AZ11: ='법정동(2025.6월말)'!AZ14-'법정동(2024.12월말)'!AZ14 -> 0.0 | BA11: ='법정동(2025.6월말)'!BA14-'법정동(2024.12월말)'!BA14 -> 0.0 | BB11: ='법정동(2025.6월말)'!BB14-'법정동(2024.12월말)'!BB14 -> 0.0 | BC11: ='법정동(2025.6월말)'!BC14-'법정동(2024.12월말)'!BC14 -> 0.0 | BD11: ='법정동(2025.6월말)'!BD14-'법정동(2024.12월말)'!BD14 -> 0.0 | BE11: ='법정동(2025.6월말)'!BE14-'법정동(2024.12월말)'!BE14 -> 0.0 | BF11: ='법정동(2025.6월말)'!BF14-'법정동(2024.12월말)'!BF14 -> 0.0 | BG11: ='법정동(2025.6월말)'!BG14-'법정동(2024.12월말)'!BG14 -> 0.0
A12: 군자동 | B12: ='법정동(2025.6월말)'!B15-'법정동(2024.12월말)'!B15 -> 0.0 | C12: ='법정동(2025.6월말)'!C15-'법정동(2024.12월말)'!C15 -> -27.0 | D12: ='법정동(2025.6월말)'!D15-'법정동(2024.12월말)'!D15 -> 0.0 | E12: ='법정동(2025.6월말)'!E15-'법정동(2024.12월말)'!E15 -> 0.0 | F12: ='법정동(2025.6월말)'!F15-'법정동(2024.12월말)'!F15 -> 0.0 | G12: ='법정동(2025.6월말)'!G15-'법정동(2024.12월말)'!G15 -> 0.0 | H12: ='법정동(2025.6월말)'!H15-'법정동(2024.12월말)'!H15 -> 0.0 | I12: ='법정동(2025.6월말)'!I15-'법정동(2024.12월말)'!I15 -> 0.0 | J12: ='법정동(2025.6월말)'!J15-'법정동(2024.12월말)'!J15 -> 0.0 | K12: ='법정동(2025.6월말)'!K15-'법정동(2024.12월말)'!K15 -> 0.0 | L12: ='법정동(2025.6월말)'!L15-'법정동(2024.12월말)'!L15 -> 0.0 | M12: ='법정동(2025.6월말)'!M15-'법정동(2024.12월말)'!M15 -> 0.0 | N12: ='법정동(2025.6월말)'!N15-'법정동(2024.12월말)'!N15 -> 0.0 | O12: ='법정동(2025.6월말)'!O15-'법정동(2024.12월말)'!O15 -> 0.0 | P12: ='법정동(2025.6월말)'!P15-'법정동(2024.12월말)'!P15 -> 0.0 | Q12: ='법정동(2025.6월말)'!Q15-'법정동(2024.12월말)'!Q15 -> 0.0 | R12: ='법정동(2025.6월말)'!R15-'법정동(2024.12월말)'!R15 -> 11.0 | S12: ='법정동(2025.6월말)'!S15-'법정동(2024.12월말)'!S15 -> -26.0 | T12: ='법정동(2025.6월말)'!T15-'법정동(2024.12월말)'!T15 -> 0.0 | U12: ='법정동(2025.6월말)'!U15-'법정동(2024.12월말)'!U15 -> 0.0 | V12: ='법정동(2025.6월말)'!V15-'법정동(2024.12월말)'!V15 -> 0.0 | W12: ='법정동(2025.6월말)'!W15-'법정동(2024.12월말)'!W15 -> 0.0 | X12: ='법정동(2025.6월말)'!X15-'법정동(2024.12월말)'!X15 -> 0.0 | Y12: ='법정동(2025.6월말)'!Y15-'법정동(2024.12월말)'!Y15 -> 0.0 | Z12: ='법정동(2025.6월말)'!Z15-'법정동(2024.12월말)'!Z15 -> 0.0 | AA12: ='법정동(2025.6월말)'!AA15-'법정동(2024.12월말)'!AA15 -> 0.0 | AB12: ='법정동(2025.6월말)'!AB15-'법정동(2024.12월말)'!AB15 -> 0.0 | AC12: ='법정동(2025.6월말)'!AC15-'법정동(2024.12월말)'!AC15 -> 0.0 | AD12: ='법정동(2025.6월말)'!AD15-'법정동(2024.12월말)'!AD15 -> -11.0 | AE12: ='법정동(2025.6월말)'!AE15-'법정동(2024.12월말)'!AE15 -> -1.0 | AF12: ='법정동(2025.6월말)'!AF15-'법정동(2024.12월말)'!AF15 -> 0.0 | AG12: ='법정동(2025.6월말)'!AG15-'법정동(2024.12월말)'!AG15 -> 0.0 | AH12: ='법정동(2025.6월말)'!AH15-'법정동(2024.12월말)'!AH15 -> 0.0 | AI12: ='법정동(2025.6월말)'!AI15-'법정동(2024.12월말)'!AI15 -> 0.0 | AJ12: ='법정동(2025.6월말)'!AJ15-'법정동(2024.12월말)'!AJ15 -> 0.0 | AK12: ='법정동(2025.6월말)'!AK15-'법정동(2024.12월말)'!AK15 -> 0.0 | AL12: ='법정동(2025.6월말)'!AL15-'법정동(2024.12월말)'!AL15 -> 0.0 | AM12: ='법정동(2025.6월말)'!AM15-'법정동(2024.12월말)'!AM15 -> 0.0 | AN12: ='법정동(2025.6월말)'!AN15-'법정동(2024.12월말)'!AN15 -> 0.0 | AO12: ='법정동(2025.6월말)'!AO15-'법정동(2024.12월말)'!AO15 -> 0.0 | AP12: ='법정동(2025.6월말)'!AP15-'법정동(2024.12월말)'!AP15 -> 0.0 | AQ12: ='법정동(2025.6월말)'!AQ15-'법정동(2024.12월말)'!AQ15 -> 0.0 | AR12: ='법정동(2025.6월말)'!AR15-'법정동(2024.12월말)'!AR15 -> 0.0 | AS12: ='법정동(2025.6월말)'!AS15-'법정동(2024.12월말)'!AS15 -> 0.0 | AT12: ='법정동(2025.6월말)'!AT15-'법정동(2024.12월말)'!AT15 -> 0.0 | AU12: ='법정동(2025.6월말)'!AU15-'법정동(2024.12월말)'!AU15 -> 0.0 | AV12: ='법정동(2025.6월말)'!AV15-'법정동(2024.12월말)'!AV15 -> 0.0 | AW12: ='법정동(2025.6월말)'!AW15-'법정동(2024.12월말)'!AW15 -> 0.0 | AX12: ='법정동(2025.6월말)'!AX15-'법정동(2024.12월말)'!AX15 -> 0.0 | AY12: ='법정동(2025.6월말)'!AY15-'법정동(2024.12월말)'!AY15 -> 0.0 | AZ12: ='법정동(2025.6월말)'!AZ15-'법정동(2024.12월말)'!AZ15 -> 0.0 | BA12: ='법정동(2025.6월말)'!BA15-'법정동(2024.12월말)'!BA15 -> 0.0 | BB12: ='법정동(2025.6월말)'!BB15-'법정동(2024.12월말)'!BB15 -> 0.0 | BC12: ='법정동(2025.6월말)'!BC15-'법정동(2024.12월말)'!BC15 -> 0.0 | BD12: ='법정동(2025.6월말)'!BD15-'법정동(2024.12월말)'!BD15 -> 0.0 | BE12: ='법정동(2025.6월말)'!BE15-'법정동(2024.12월말)'!BE15 -> 0.0 | BF12: ='법정동(2025.6월말)'!BF15-'법정동(2024.12월말)'!BF15 -> 0.0 | BG12: ='법정동(2025.6월말)'!BG15-'법정동(2024.12월말)'!BG15 -> 0.0
A13: 충무동 | B13: ='법정동(2025.6월말)'!B16-'법정동(2024.12월말)'!B16 -> 0.0 | C13: ='법정동(2025.6월말)'!C16-'법정동(2024.12월말)'!C16 -> 1.0 | D13: ='법정동(2025.6월말)'!D16-'법정동(2024.12월말)'!D16 -> 0.0 | E13: ='법정동(2025.6월말)'!E16-'법정동(2024.12월말)'!E16 -> 0.0 | F13: ='법정동(2025.6월말)'!F16-'법정동(2024.12월말)'!F16 -> 0.0 | G13: ='법정동(2025.6월말)'!G16-'법정동(2024.12월말)'!G16 -> 0.0 | H13: ='법정동(2025.6월말)'!H16-'법정동(2024.12월말)'!H16 -> 0.0 | I13: ='법정동(2025.6월말)'!I16-'법정동(2024.12월말)'!I16 -> 0.0 | J13: ='법정동(2025.6월말)'!J16-'법정동(2024.12월말)'!J16 -> 0.0 | K13: ='법정동(2025.6월말)'!K16-'법정동(2024.12월말)'!K16 -> 0.0 | L13: ='법정동(2025.6월말)'!L16-'법정동(2024.12월말)'!L16 -> 0.0 | M13: ='법정동(2025.6월말)'!M16-'법정동(2024.12월말)'!M16 -> 0.0 | N13: ='법정동(2025.6월말)'!N16-'법정동(2024.12월말)'!N16 -> 0.0 | O13: ='법정동(2025.6월말)'!O16-'법정동(2024.12월말)'!O16 -> 0.0 | P13: ='법정동(2025.6월말)'!P16-'법정동(2024.12월말)'!P16 -> 0.0 | Q13: ='법정동(2025.6월말)'!Q16-'법정동(2024.12월말)'!Q16 -> 0.0 | R13: ='법정동(2025.6월말)'!R16-'법정동(2024.12월말)'!R16 -> 0.0 | S13: ='법정동(2025.6월말)'!S16-'법정동(2024.12월말)'!S16 -> 1.0 | T13: ='법정동(2025.6월말)'!T16-'법정동(2024.12월말)'!T16 -> 0.0 | U13: ='법정동(2025.6월말)'!U16-'법정동(2024.12월말)'!U16 -> 0.0 | V13: ='법정동(2025.6월말)'!V16-'법정동(2024.12월말)'!V16 -> 0.0 | W13: ='법정동(2025.6월말)'!W16-'법정동(2024.12월말)'!W16 -> 0.0 | X13: ='법정동(2025.6월말)'!X16-'법정동(2024.12월말)'!X16 -> 0.0 | Y13: ='법정동(2025.6월말)'!Y16-'법정동(2024.12월말)'!Y16 -> 0.0 | Z13: ='법정동(2025.6월말)'!Z16-'법정동(2024.12월말)'!Z16 -> 0.0 | AA13: ='법정동(2025.6월말)'!AA16-'법정동(2024.12월말)'!AA16 -> 0.0 | AB13: ='법정동(2025.6월말)'!AB16-'법정동(2024.12월말)'!AB16 -> 0.0 | AC13: ='법정동(2025.6월말)'!AC16-'법정동(2024.12월말)'!AC16 -> 0.0 | AD13: ='법정동(2025.6월말)'!AD16-'법정동(2024.12월말)'!AD16 -> 0.0 | AE13: ='법정동(2025.6월말)'!AE16-'법정동(2024.12월말)'!AE16 -> 0.0 | AF13: ='법정동(2025.6월말)'!AF16-'법정동(2024.12월말)'!AF16 -> 0.0 | AG13: ='법정동(2025.6월말)'!AG16-'법정동(2024.12월말)'!AG16 -> 0.0 | AH13: ='법정동(2025.6월말)'!AH16-'법정동(2024.12월말)'!AH16 -> 0.0 | AI13: ='법정동(2025.6월말)'!AI16-'법정동(2024.12월말)'!AI16 -> 0.0 | AJ13: ='법정동(2025.6월말)'!AJ16-'법정동(2024.12월말)'!AJ16 -> 0.0 | AK13: ='법정동(2025.6월말)'!AK16-'법정동(2024.12월말)'!AK16 -> 0.0 | AL13: ='법정동(2025.6월말)'!AL16-'법정동(2024.12월말)'!AL16 -> 0.0 | AM13: ='법정동(2025.6월말)'!AM16-'법정동(2024.12월말)'!AM16 -> 0.0 | AN13: ='법정동(2025.6월말)'!AN16-'법정동(2024.12월말)'!AN16 -> 0.0 | AO13: ='법정동(2025.6월말)'!AO16-'법정동(2024.12월말)'!AO16 -> 0.0 | AP13: ='법정동(2025.6월말)'!AP16-'법정동(2024.12월말)'!AP16 -> 0.0 | AQ13: ='법정동(2025.6월말)'!AQ16-'법정동(2024.12월말)'!AQ16 -> 0.0 | AR13: ='법정동(2025.6월말)'!AR16-'법정동(2024.12월말)'!AR16 -> 0.0 | AS13: ='법정동(2025.6월말)'!AS16-'법정동(2024.12월말)'!AS16 -> 0.0 | AT13: ='법정동(2025.6월말)'!AT16-'법정동(2024.12월말)'!AT16 -> 0.0 | AU13: ='법정동(2025.6월말)'!AU16-'법정동(2024.12월말)'!AU16 -> 0.0 | AV13: ='법정동(2025.6월말)'!AV16-'법정동(2024.12월말)'!AV16 -> 0.0 | AW13: ='법정동(2025.6월말)'!AW16-'법정동(2024.12월말)'!AW16 -> 0.0 | AX13: ='법정동(2025.6월말)'!AX16-'법정동(2024.12월말)'!AX16 -> 0.0 | AY13: ='법정동(2025.6월말)'!AY16-'법정동(2024.12월말)'!AY16 -> 0.0 | AZ13: ='법정동(2025.6월말)'!AZ16-'법정동(2024.12월말)'!AZ16 -> 0.0 | BA13: ='법정동(2025.6월말)'!BA16-'법정동(2024.12월말)'!BA16 -> 0.0 | BB13: ='법정동(2025.6월말)'!BB16-'법정동(2024.12월말)'!BB16 -> 0.0 | BC13: ='법정동(2025.6월말)'!BC16-'법정동(2024.12월말)'!BC16 -> 0.0 | BD13: ='법정동(2025.6월말)'!BD16-'법정동(2024.12월말)'!BD16 -> 0.0 | BE13: ='법정동(2025.6월말)'!BE16-'법정동(2024.12월말)'!BE16 -> 0.0 | BF13: ='법정동(2025.6월말)'!BF16-'법정동(2024.12월말)'!BF16 -> 0.0 | BG13: ='법정동(2025.6월말)'!BG16-'법정동(2024.12월말)'!BG16 -> 0.0
A14: 연등동 | B14: ='법정동(2025.6월말)'!B17-'법정동(2024.12월말)'!B17 -> 0.0 | C14: ='법정동(2025.6월말)'!C17-'법정동(2024.12월말)'!C17 -> 0.0 | D14: ='법정동(2025.6월말)'!D17-'법정동(2024.12월말)'!D17 -> 0.0 | E14: ='법정동(2025.6월말)'!E17-'법정동(2024.12월말)'!E17 -> 0.0 | F14: ='법정동(2025.6월말)'!F17-'법정동(2024.12월말)'!F17 -> 0.0 | G14: ='법정동(2025.6월말)'!G17-'법정동(2024.12월말)'!G17 -> 0.0 | H14: ='법정동(2025.6월말)'!H17-'법정동(2024.12월말)'!H17 -> 0.0 | I14: ='법정동(2025.6월말)'!I17-'법정동(2024.12월말)'!I17 -> 0.0 | J14: ='법정동(2025.6월말)'!J17-'법정동(2024.12월말)'!J17 -> 0.0 | K14: ='법정동(2025.6월말)'!K17-'법정동(2024.12월말)'!K17 -> 0.0 | L14: ='법정동(2025.6월말)'!L17-'법정동(2024.12월말)'!L17 -> 0.0 | M14: ='법정동(2025.6월말)'!M17-'법정동(2024.12월말)'!M17 -> 0.0 | N14: ='법정동(2025.6월말)'!N17-'법정동(2024.12월말)'!N17 -> 0.0 | O14: ='법정동(2025.6월말)'!O17-'법정동(2024.12월말)'!O17 -> 0.0 | P14: ='법정동(2025.6월말)'!P17-'법정동(2024.12월말)'!P17 -> 0.0 | Q14: ='법정동(2025.6월말)'!Q17-'법정동(2024.12월말)'!Q17 -> 0.0 | R14: ='법정동(2025.6월말)'!R17-'법정동(2024.12월말)'!R17 -> 0.0 | S14: ='법정동(2025.6월말)'!S17-'법정동(2024.12월말)'!S17 -> 0.0 | T14: ='법정동(2025.6월말)'!T17-'법정동(2024.12월말)'!T17 -> 0.0 | U14: ='법정동(2025.6월말)'!U17-'법정동(2024.12월말)'!U17 -> 0.0 | V14: ='법정동(2025.6월말)'!V17-'법정동(2024.12월말)'!V17 -> 0.0 | W14: ='법정동(2025.6월말)'!W17-'법정동(2024.12월말)'!W17 -> 0.0 | X14: ='법정동(2025.6월말)'!X17-'법정동(2024.12월말)'!X17 -> 0.0 | Y14: ='법정동(2025.6월말)'!Y17-'법정동(2024.12월말)'!Y17 -> 0.0 | Z14: ='법정동(2025.6월말)'!Z17-'법정동(2024.12월말)'!Z17 -> 0.0 | AA14: ='법정동(2025.6월말)'!AA17-'법정동(2024.12월말)'!AA17 -> 0.0 | AB14: ='법정동(2025.6월말)'!AB17-'법정동(2024.12월말)'!AB17 -> 0.0 | AC14: ='법정동(2025.6월말)'!AC17-'법정동(2024.12월말)'!AC17 -> 0.0 | AD14: ='법정동(2025.6월말)'!AD17-'법정동(2024.12월말)'!AD17 -> 0.0 | AE14: ='법정동(2025.6월말)'!AE17-'법정동(2024.12월말)'!AE17 -> 0.0 | AF14: ='법정동(2025.6월말)'!AF17-'법정동(2024.12월말)'!AF17 -> 0.0 | AG14: ='법정동(2025.6월말)'!AG17-'법정동(2024.12월말)'!AG17 -> 0.0 | AH14: ='법정동(2025.6월말)'!AH17-'법정동(2024.12월말)'!AH17 -> 0.0 | AI14: ='법정동(2025.6월말)'!AI17-'법정동(2024.12월말)'!AI17 -> 0.0 | AJ14: ='법정동(2025.6월말)'!AJ17-'법정동(2024.12월말)'!AJ17 -> 0.0 | AK14: ='법정동(2025.6월말)'!AK17-'법정동(2024.12월말)'!AK17 -> 0.0 | AL14: ='법정동(2025.6월말)'!AL17-'법정동(2024.12월말)'!AL17 -> 0.0 | AM14: ='법정동(2025.6월말)'!AM17-'법정동(2024.12월말)'!AM17 -> 0.0 | AN14: ='법정동(2025.6월말)'!AN17-'법정동(2024.12월말)'!AN17 -> 0.0 | AO14: ='법정동(2025.6월말)'!AO17-'법정동(2024.12월말)'!AO17 -> 0.0 | AP14: ='법정동(2025.6월말)'!AP17-'법정동(2024.12월말)'!AP17 -> 0.0 | AQ14: ='법정동(2025.6월말)'!AQ17-'법정동(2024.12월말)'!AQ17 -> 0.0 | AR14: ='법정동(2025.6월말)'!AR17-'법정동(2024.12월말)'!AR17 -> 0.0 | AS14: ='법정동(2025.6월말)'!AS17-'법정동(2024.12월말)'!AS17 -> 0.0 | AT14: ='법정동(2025.6월말)'!AT17-'법정동(2024.12월말)'!AT17 -> 0.0 | AU14: ='법정동(2025.6월말)'!AU17-'법정동(2024.12월말)'!AU17 -> 0.0 | AV14: ='법정동(2025.6월말)'!AV17-'법정동(2024.12월말)'!AV17 -> 0.0 | AW14: ='법정동(2025.6월말)'!AW17-'법정동(2024.12월말)'!AW17 -> 0.0 | AX14: ='법정동(2025.6월말)'!AX17-'법정동(2024.12월말)'!AX17 -> 0.0 | AY14: ='법정동(2025.6월말)'!AY17-'법정동(2024.12월말)'!AY17 -> 0.0 | AZ14: ='법정동(2025.6월말)'!AZ17-'법정동(2024.12월말)'!AZ17 -> 0.0 | BA14: ='법정동(2025.6월말)'!BA17-'법정동(2024.12월말)'!BA17 -> 0.0 | BB14: ='법정동(2025.6월말)'!BB17-'법정동(2024.12월말)'!BB17 -> 0.0 | BC14: ='법정동(2025.6월말)'!BC17-'법정동(2024.12월말)'!BC17 -> 0.0 | BD14: ='법정동(2025.6월말)'!BD17-'법정동(2024.12월말)'!BD17 -> 0.0 | BE14: ='법정동(2025.6월말)'!BE17-'법정동(2024.12월말)'!BE17 -> 0.0 | BF14: ='법정동(2025.6월말)'!BF17-'법정동(2024.12월말)'!BF17 -> 0.0 | BG14: ='법정동(2025.6월말)'!BG17-'법정동(2024.12월말)'!BG17 -> 0.0
A15: 광무동 | B15: ='법정동(2025.6월말)'!B18-'법정동(2024.12월말)'!B18 -> -439.7 | C15: ='법정동(2025.6월말)'!C18-'법정동(2024.12월말)'!C18 -> -127.0 | D15: ='법정동(2025.6월말)'!D18-'법정동(2024.12월말)'!D18 -> -34,384.0 | E15: ='법정동(2025.6월말)'!E18-'법정동(2024.12월말)'!E18 -> -77.0 | F15: ='법정동(2025.6월말)'!F18-'법정동(2024.12월말)'!F18 -> 0.0 | G15: ='법정동(2025.6월말)'!G18-'법정동(2024.12월말)'!G18 -> 0.0 | H15: ='법정동(2025.6월말)'!H18-'법정동(2024.12월말)'!H18 -> 0.0 | I15: ='법정동(2025.6월말)'!I18-'법정동(2024.12월말)'!I18 -> 0.0 | J15: ='법정동(2025.6월말)'!J18-'법정동(2024.12월말)'!J18 -> 0.0 | K15: ='법정동(2025.6월말)'!K18-'법정동(2024.12월말)'!K18 -> 0.0 | L15: ='법정동(2025.6월말)'!L18-'법정동(2024.12월말)'!L18 -> -3,278.0 | M15: ='법정동(2025.6월말)'!M18-'법정동(2024.12월말)'!M18 -> -7.0 | N15: ='법정동(2025.6월말)'!N18-'법정동(2024.12월말)'!N18 -> 0.0 | O15: ='법정동(2025.6월말)'!O18-'법정동(2024.12월말)'!O18 -> 0.0 | P15: ='법정동(2025.6월말)'!P18-'법정동(2024.12월말)'!P18 -> 0.0 | Q15: ='법정동(2025.6월말)'!Q18-'법정동(2024.12월말)'!Q18 -> 0.0 | R15: ='법정동(2025.6월말)'!R18-'법정동(2024.12월말)'!R18 -> 36,720.8 | S15: ='법정동(2025.6월말)'!S18-'법정동(2024.12월말)'!S18 -> -28.0 | T15: ='법정동(2025.6월말)'!T18-'법정동(2024.12월말)'!T18 -> 0.0 | U15: ='법정동(2025.6월말)'!U18-'법정동(2024.12월말)'!U18 -> 0.0 | V15: ='법정동(2025.6월말)'!V18-'법정동(2024.12월말)'!V18 -> 0.0 | W15: ='법정동(2025.6월말)'!W18-'법정동(2024.12월말)'!W18 -> 0.0 | X15: ='법정동(2025.6월말)'!X18-'법정동(2024.12월말)'!X18 -> 0.0 | Y15: ='법정동(2025.6월말)'!Y18-'법정동(2024.12월말)'!Y18 -> 0.0 | Z15: ='법정동(2025.6월말)'!Z18-'법정동(2024.12월말)'!Z18 -> 0.0 | AA15: ='법정동(2025.6월말)'!AA18-'법정동(2024.12월말)'!AA18 -> 0.0 | AB15: ='법정동(2025.6월말)'!AB18-'법정동(2024.12월말)'!AB18 -> 0.0 | AC15: ='법정동(2025.6월말)'!AC18-'법정동(2024.12월말)'!AC18 -> 0.0 | AD15: ='법정동(2025.6월말)'!AD18-'법정동(2024.12월말)'!AD18 -> 1,077.5 | AE15: ='법정동(2025.6월말)'!AE18-'법정동(2024.12월말)'!AE18 -> -13.0 | AF15: ='법정동(2025.6월말)'!AF18-'법정동(2024.12월말)'!AF18 -> 0.0 | AG15: ='법정동(2025.6월말)'!AG18-'법정동(2024.12월말)'!AG18 -> 0.0 | AH15: ='법정동(2025.6월말)'!AH18-'법정동(2024.12월말)'!AH18 -> 0.0 | AI15: ='법정동(2025.6월말)'!AI18-'법정동(2024.12월말)'!AI18 -> 0.0 | AJ15: ='법정동(2025.6월말)'!AJ18-'법정동(2024.12월말)'!AJ18 -> 0.0 | AK15: ='법정동(2025.6월말)'!AK18-'법정동(2024.12월말)'!AK18 -> 0.0 | AL15: ='법정동(2025.6월말)'!AL18-'법정동(2024.12월말)'!AL18 -> 0.0 | AM15: ='법정동(2025.6월말)'!AM18-'법정동(2024.12월말)'!AM18 -> 0.0 | AN15: ='법정동(2025.6월말)'!AN18-'법정동(2024.12월말)'!AN18 -> 0.0 | AO15: ='법정동(2025.6월말)'!AO18-'법정동(2024.12월말)'!AO18 -> 0.0 | AP15: ='법정동(2025.6월말)'!AP18-'법정동(2024.12월말)'!AP18 -> 0.0 | AQ15: ='법정동(2025.6월말)'!AQ18-'법정동(2024.12월말)'!AQ18 -> 0.0 | AR15: ='법정동(2025.6월말)'!AR18-'법정동(2024.12월말)'!AR18 -> 0.0 | AS15: ='법정동(2025.6월말)'!AS18-'법정동(2024.12월말)'!AS18 -> 0.0 | AT15: ='법정동(2025.6월말)'!AT18-'법정동(2024.12월말)'!AT18 -> 0.0 | AU15: ='법정동(2025.6월말)'!AU18-'법정동(2024.12월말)'!AU18 -> 0.0 | AV15: ='법정동(2025.6월말)'!AV18-'법정동(2024.12월말)'!AV18 -> 0.0 | AW15: ='법정동(2025.6월말)'!AW18-'법정동(2024.12월말)'!AW18 -> 0.0 | AX15: ='법정동(2025.6월말)'!AX18-'법정동(2024.12월말)'!AX18 -> 0.0 | AY15: ='법정동(2025.6월말)'!AY18-'법정동(2024.12월말)'!AY18 -> 0.0 | AZ15: ='법정동(2025.6월말)'!AZ18-'법정동(2024.12월말)'!AZ18 -> -1.0 | BA15: ='법정동(2025.6월말)'!BA18-'법정동(2024.12월말)'!BA18 -> -1.0 | BB15: ='법정동(2025.6월말)'!BB18-'법정동(2024.12월말)'!BB18 -> 0.0 | BC15: ='법정동(2025.6월말)'!BC18-'법정동(2024.12월말)'!BC18 -> 0.0 | BD15: ='법정동(2025.6월말)'!BD18-'법정동(2024.12월말)'!BD18 -> -575.0 | BE15: ='법정동(2025.6월말)'!BE18-'법정동(2024.12월말)'!BE18 -> -1.0 | BF15: ='법정동(2025.6월말)'!BF18-'법정동(2024.12월말)'!BF18 -> 0.0 | BG15: ='법정동(2025.6월말)'!BG18-'법정동(2024.12월말)'!BG18 -> 0.0
A16: 서교동 | B16: ='법정동(2025.6월말)'!B19-'법정동(2024.12월말)'!B19 -> 0.0 | C16: ='법정동(2025.6월말)'!C19-'법정동(2024.12월말)'!C19 -> 0.0 | D16: ='법정동(2025.6월말)'!D19-'법정동(2024.12월말)'!D19 -> 0.0 | E16: ='법정동(2025.6월말)'!E19-'법정동(2024.12월말)'!E19 -> 0.0 | F16: ='법정동(2025.6월말)'!F19-'법정동(2024.12월말)'!F19 -> 0.0 | G16: ='법정동(2025.6월말)'!G19-'법정동(2024.12월말)'!G19 -> 0.0 | H16: ='법정동(2025.6월말)'!H19-'법정동(2024.12월말)'!H19 -> 0.0 | I16: ='법정동(2025.6월말)'!I19-'법정동(2024.12월말)'!I19 -> 0.0 | J16: ='법정동(2025.6월말)'!J19-'법정동(2024.12월말)'!J19 -> 0.0 | K16: ='법정동(2025.6월말)'!K19-'법정동(2024.12월말)'!K19 -> 0.0 | L16: ='법정동(2025.6월말)'!L19-'법정동(2024.12월말)'!L19 -> 0.0 | M16: ='법정동(2025.6월말)'!M19-'법정동(2024.12월말)'!M19 -> 0.0 | N16: ='법정동(2025.6월말)'!N19-'법정동(2024.12월말)'!N19 -> 0.0 | O16: ='법정동(2025.6월말)'!O19-'법정동(2024.12월말)'!O19 -> 0.0 | P16: ='법정동(2025.6월말)'!P19-'법정동(2024.12월말)'!P19 -> 0.0 | Q16: ='법정동(2025.6월말)'!Q19-'법정동(2024.12월말)'!Q19 -> 0.0 | R16: ='법정동(2025.6월말)'!R19-'법정동(2024.12월말)'!R19 -> 0.0 | S16: ='법정동(2025.6월말)'!S19-'법정동(2024.12월말)'!S19 -> 0.0 | T16: ='법정동(2025.6월말)'!T19-'법정동(2024.12월말)'!T19 -> 0.0 | U16: ='법정동(2025.6월말)'!U19-'법정동(2024.12월말)'!U19 -> 0.0 | V16: ='법정동(2025.6월말)'!V19-'법정동(2024.12월말)'!V19 -> 0.0 | W16: ='법정동(2025.6월말)'!W19-'법정동(2024.12월말)'!W19 -> 0.0 | X16: ='법정동(2025.6월말)'!X19-'법정동(2024.12월말)'!X19 -> 0.0 | Y16: ='법정동(2025.6월말)'!Y19-'법정동(2024.12월말)'!Y19 -> 0.0 | Z16: ='법정동(2025.6월말)'!Z19-'법정동(2024.12월말)'!Z19 -> 0.0 | AA16: ='법정동(2025.6월말)'!AA19-'법정동(2024.12월말)'!AA19 -> 0.0 | AB16: ='법정동(2025.6월말)'!AB19-'법정동(2024.12월말)'!AB19 -> 0.0 | AC16: ='법정동(2025.6월말)'!AC19-'법정동(2024.12월말)'!AC19 -> 0.0 | AD16: ='법정동(2025.6월말)'!AD19-'법정동(2024.12월말)'!AD19 -> 0.0 | AE16: ='법정동(2025.6월말)'!AE19-'법정동(2024.12월말)'!AE19 -> 0.0 | AF16: ='법정동(2025.6월말)'!AF19-'법정동(2024.12월말)'!AF19 -> 0.0 | AG16: ='법정동(2025.6월말)'!AG19-'법정동(2024.12월말)'!AG19 -> 0.0 | AH16: ='법정동(2025.6월말)'!AH19-'법정동(2024.12월말)'!AH19 -> 0.0 | AI16: ='법정동(2025.6월말)'!AI19-'법정동(2024.12월말)'!AI19 -> 0.0 | AJ16: ='법정동(2025.6월말)'!AJ19-'법정동(2024.12월말)'!AJ19 -> 0.0 | AK16: ='법정동(2025.6월말)'!AK19-'법정동(2024.12월말)'!AK19 -> 0.0 | AL16: ='법정동(2025.6월말)'!AL19-'법정동(2024.12월말)'!AL19 -> 0.0 | AM16: ='법정동(2025.6월말)'!AM19-'법정동(2024.12월말)'!AM19 -> 0.0 | AN16: ='법정동(2025.6월말)'!AN19-'법정동(2024.12월말)'!AN19 -> 0.0 | AO16: ='법정동(2025.6월말)'!AO19-'법정동(2024.12월말)'!AO19 -> 0.0 | AP16: ='법정동(2025.6월말)'!AP19-'법정동(2024.12월말)'!AP19 -> 0.0 | AQ16: ='법정동(2025.6월말)'!AQ19-'법정동(2024.12월말)'!AQ19 -> 0.0 | AR16: ='법정동(2025.6월말)'!AR19-'법정동(2024.12월말)'!AR19 -> 0.0 | AS16: ='법정동(2025.6월말)'!AS19-'법정동(2024.12월말)'!AS19 -> 0.0 | AT16: ='법정동(2025.6월말)'!AT19-'법정동(2024.12월말)'!AT19 -> 0.0 | AU16: ='법정동(2025.6월말)'!AU19-'법정동(2024.12월말)'!AU19 -> 0.0 | AV16: ='법정동(2025.6월말)'!AV19-'법정동(2024.12월말)'!AV19 -> 0.0 | AW16: ='법정동(2025.6월말)'!AW19-'법정동(2024.12월말)'!AW19 -> 0.0 | AX16: ='법정동(2025.6월말)'!AX19-'법정동(2024.12월말)'!AX19 -> 0.0 | AY16: ='법정동(2025.6월말)'!AY19-'법정동(2024.12월말)'!AY19 -> 0.0 | AZ16: ='법정동(2025.6월말)'!AZ19-'법정동(2024.12월말)'!AZ19 -> 0.0 | BA16: ='법정동(2025.6월말)'!BA19-'법정동(2024.12월말)'!BA19 -> 0.0 | BB16: ='법정동(2025.6월말)'!BB19-'법정동(2024.12월말)'!BB19 -> 0.0 | BC16: ='법정동(2025.6월말)'!BC19-'법정동(2024.12월말)'!BC19 -> 0.0 | BD16: ='법정동(2025.6월말)'!BD19-'법정동(2024.12월말)'!BD19 -> 0.0 | BE16: ='법정동(2025.6월말)'!BE19-'법정동(2024.12월말)'!BE19 -> 0.0 | BF16: ='법정동(2025.6월말)'!BF19-'법정동(2024.12월말)'!BF19 -> 0.0 | BG16: ='법정동(2025.6월말)'!BG19-'법정동(2024.12월말)'!BG19 -> 0.0
A17: 봉강동 | B17: ='법정동(2025.6월말)'!B20-'법정동(2024.12월말)'!B20 -> 0.0 | C17: ='법정동(2025.6월말)'!C20-'법정동(2024.12월말)'!C20 -> 0.0 | D17: ='법정동(2025.6월말)'!D20-'법정동(2024.12월말)'!D20 -> 0.0 | E17: ='법정동(2025.6월말)'!E20-'법정동(2024.12월말)'!E20 -> 0.0 | F17: ='법정동(2025.6월말)'!F20-'법정동(2024.12월말)'!F20 -> 0.0 | G17: ='법정동(2025.6월말)'!G20-'법정동(2024.12월말)'!G20 -> 0.0 | H17: ='법정동(2025.6월말)'!H20-'법정동(2024.12월말)'!H20 -> 0.0 | I17: ='법정동(2025.6월말)'!I20-'법정동(2024.12월말)'!I20 -> 0.0 | J17: ='법정동(2025.6월말)'!J20-'법정동(2024.12월말)'!J20 -> 0.0 | K17: ='법정동(2025.6월말)'!K20-'법정동(2024.12월말)'!K20 -> 0.0 | L17: ='법정동(2025.6월말)'!L20-'법정동(2024.12월말)'!L20 -> 0.0 | M17: ='법정동(2025.6월말)'!M20-'법정동(2024.12월말)'!M20 -> 0.0 | N17: ='법정동(2025.6월말)'!N20-'법정동(2024.12월말)'!N20 -> 0.0 | O17: ='법정동(2025.6월말)'!O20-'법정동(2024.12월말)'!O20 -> 0.0 | P17: ='법정동(2025.6월말)'!P20-'법정동(2024.12월말)'!P20 -> 0.0 | Q17: ='법정동(2025.6월말)'!Q20-'법정동(2024.12월말)'!Q20 -> 0.0 | R17: ='법정동(2025.6월말)'!R20-'법정동(2024.12월말)'!R20 -> 0.0 | S17: ='법정동(2025.6월말)'!S20-'법정동(2024.12월말)'!S20 -> 0.0 | T17: ='법정동(2025.6월말)'!T20-'법정동(2024.12월말)'!T20 -> 0.0 | U17: ='법정동(2025.6월말)'!U20-'법정동(2024.12월말)'!U20 -> 0.0 | V17: ='법정동(2025.6월말)'!V20-'법정동(2024.12월말)'!V20 -> 0.0 | W17: ='법정동(2025.6월말)'!W20-'법정동(2024.12월말)'!W20 -> 0.0 | X17: ='법정동(2025.6월말)'!X20-'법정동(2024.12월말)'!X20 -> 0.0 | Y17: ='법정동(2025.6월말)'!Y20-'법정동(2024.12월말)'!Y20 -> 0.0 | Z17: ='법정동(2025.6월말)'!Z20-'법정동(2024.12월말)'!Z20 -> 0.0 | AA17: ='법정동(2025.6월말)'!AA20-'법정동(2024.12월말)'!AA20 -> 0.0 | AB17: ='법정동(2025.6월말)'!AB20-'법정동(2024.12월말)'!AB20 -> 0.0 | AC17: ='법정동(2025.6월말)'!AC20-'법정동(2024.12월말)'!AC20 -> 0.0 | AD17: ='법정동(2025.6월말)'!AD20-'법정동(2024.12월말)'!AD20 -> 0.0 | AE17: ='법정동(2025.6월말)'!AE20-'법정동(2024.12월말)'!AE20 -> 0.0 | AF17: ='법정동(2025.6월말)'!AF20-'법정동(2024.12월말)'!AF20 -> 0.0 | AG17: ='법정동(2025.6월말)'!AG20-'법정동(2024.12월말)'!AG20 -> 0.0 | AH17: ='법정동(2025.6월말)'!AH20-'법정동(2024.12월말)'!AH20 -> 0.0 | AI17: ='법정동(2025.6월말)'!AI20-'법정동(2024.12월말)'!AI20 -> 0.0 | AJ17: ='법정동(2025.6월말)'!AJ20-'법정동(2024.12월말)'!AJ20 -> 0.0 | AK17: ='법정동(2025.6월말)'!AK20-'법정동(2024.12월말)'!AK20 -> 0.0 | AL17: ='법정동(2025.6월말)'!AL20-'법정동(2024.12월말)'!AL20 -> 0.0 | AM17: ='법정동(2025.6월말)'!AM20-'법정동(2024.12월말)'!AM20 -> 0.0 | AN17: ='법정동(2025.6월말)'!AN20-'법정동(2024.12월말)'!AN20 -> 0.0 | AO17: ='법정동(2025.6월말)'!AO20-'법정동(2024.12월말)'!AO20 -> 0.0 | AP17: ='법정동(2025.6월말)'!AP20-'법정동(2024.12월말)'!AP20 -> 0.0 | AQ17: ='법정동(2025.6월말)'!AQ20-'법정동(2024.12월말)'!AQ20 -> 0.0 | AR17: ='법정동(2025.6월말)'!AR20-'법정동(2024.12월말)'!AR20 -> 0.0 | AS17: ='법정동(2025.6월말)'!AS20-'법정동(2024.12월말)'!AS20 -> 0.0 | AT17: ='법정동(2025.6월말)'!AT20-'법정동(2024.12월말)'!AT20 -> 0.0 | AU17: ='법정동(2025.6월말)'!AU20-'법정동(2024.12월말)'!AU20 -> 0.0 | AV17: ='법정동(2025.6월말)'!AV20-'법정동(2024.12월말)'!AV20 -> 0.0 | AW17: ='법정동(2025.6월말)'!AW20-'법정동(2024.12월말)'!AW20 -> 0.0 | AX17: ='법정동(2025.6월말)'!AX20-'법정동(2024.12월말)'!AX20 -> 0.0 | AY17: ='법정동(2025.6월말)'!AY20-'법정동(2024.12월말)'!AY20 -> 0.0 | AZ17: ='법정동(2025.6월말)'!AZ20-'법정동(2024.12월말)'!AZ20 -> 0.0 | BA17: ='법정동(2025.6월말)'!BA20-'법정동(2024.12월말)'!BA20 -> 0.0 | BB17: ='법정동(2025.6월말)'!BB20-'법정동(2024.12월말)'!BB20 -> 0.0 | BC17: ='법정동(2025.6월말)'!BC20-'법정동(2024.12월말)'!BC20 -> 0.0 | BD17: ='법정동(2025.6월말)'!BD20-'법정동(2024.12월말)'!BD20 -> 0.0 | BE17: ='법정동(2025.6월말)'!BE20-'법정동(2024.12월말)'!BE20 -> 0.0 | BF17: ='법정동(2025.6월말)'!BF20-'법정동(2024.12월말)'!BF20 -> 0.0 | BG17: ='법정동(2025.6월말)'!BG20-'법정동(2024.12월말)'!BG20 -> 0.0
A18: 봉산동 | B18: ='법정동(2025.6월말)'!B21-'법정동(2024.12월말)'!B21 -> 0.0 | C18: ='법정동(2025.6월말)'!C21-'법정동(2024.12월말)'!C21 -> 3.0 | D18: ='법정동(2025.6월말)'!D21-'법정동(2024.12월말)'!D21 -> -1,741.0 | E18: ='법정동(2025.6월말)'!E21-'법정동(2024.12월말)'!E21 -> -1.0 | F18: ='법정동(2025.6월말)'!F21-'법정동(2024.12월말)'!F21 -> 0.0 | G18: ='법정동(2025.6월말)'!G21-'법정동(2024.12월말)'!G21 -> 0.0 | H18: ='법정동(2025.6월말)'!H21-'법정동(2024.12월말)'!H21 -> 0.0 | I18: ='법정동(2025.6월말)'!I21-'법정동(2024.12월말)'!I21 -> 0.0 | J18: ='법정동(2025.6월말)'!J21-'법정동(2024.12월말)'!J21 -> 0.0 | K18: ='법정동(2025.6월말)'!K21-'법정동(2024.12월말)'!K21 -> 0.0 | L18: ='법정동(2025.6월말)'!L21-'법정동(2024.12월말)'!L21 -> 0.0 | M18: ='법정동(2025.6월말)'!M21-'법정동(2024.12월말)'!M21 -> 2.0 | N18: ='법정동(2025.6월말)'!N21-'법정동(2024.12월말)'!N21 -> 0.0 | O18: ='법정동(2025.6월말)'!O21-'법정동(2024.12월말)'!O21 -> 0.0 | P18: ='법정동(2025.6월말)'!P21-'법정동(2024.12월말)'!P21 -> 0.0 | Q18: ='법정동(2025.6월말)'!Q21-'법정동(2024.12월말)'!Q21 -> 0.0 | R18: ='법정동(2025.6월말)'!R21-'법정동(2024.12월말)'!R21 -> 1,737.0 | S18: ='법정동(2025.6월말)'!S21-'법정동(2024.12월말)'!S21 -> 1.0 | T18: ='법정동(2025.6월말)'!T21-'법정동(2024.12월말)'!T21 -> 0.0 | U18: ='법정동(2025.6월말)'!U21-'법정동(2024.12월말)'!U21 -> 0.0 | V18: ='법정동(2025.6월말)'!V21-'법정동(2024.12월말)'!V21 -> 0.0 | W18: ='법정동(2025.6월말)'!W21-'법정동(2024.12월말)'!W21 -> 0.0 | X18: ='법정동(2025.6월말)'!X21-'법정동(2024.12월말)'!X21 -> 0.0 | Y18: ='법정동(2025.6월말)'!Y21-'법정동(2024.12월말)'!Y21 -> 0.0 | Z18: ='법정동(2025.6월말)'!Z21-'법정동(2024.12월말)'!Z21 -> 0.0 | AA18: ='법정동(2025.6월말)'!AA21-'법정동(2024.12월말)'!AA21 -> 0.0 | AB18: ='법정동(2025.6월말)'!AB21-'법정동(2024.12월말)'!AB21 -> 0.0 | AC18: ='법정동(2025.6월말)'!AC21-'법정동(2024.12월말)'!AC21 -> 0.0 | AD18: ='법정동(2025.6월말)'!AD21-'법정동(2024.12월말)'!AD21 -> 4.0 | AE18: ='법정동(2025.6월말)'!AE21-'법정동(2024.12월말)'!AE21 -> 1.0 | AF18: ='법정동(2025.6월말)'!AF21-'법정동(2024.12월말)'!AF21 -> 0.0 | AG18: ='법정동(2025.6월말)'!AG21-'법정동(2024.12월말)'!AG21 -> 0.0 | AH18: ='법정동(2025.6월말)'!AH21-'법정동(2024.12월말)'!AH21 -> 0.0 | AI18: ='법정동(2025.6월말)'!AI21-'법정동(2024.12월말)'!AI21 -> 0.0 | AJ18: ='법정동(2025.6월말)'!AJ21-'법정동(2024.12월말)'!AJ21 -> 0.0 | AK18: ='법정동(2025.6월말)'!AK21-'법정동(2024.12월말)'!AK21 -> 0.0 | AL18: ='법정동(2025.6월말)'!AL21-'법정동(2024.12월말)'!AL21 -> 0.0 | AM18: ='법정동(2025.6월말)'!AM21-'법정동(2024.12월말)'!AM21 -> 0.0 | AN18: ='법정동(2025.6월말)'!AN21-'법정동(2024.12월말)'!AN21 -> 0.0 | AO18: ='법정동(2025.6월말)'!AO21-'법정동(2024.12월말)'!AO21 -> 0.0 | AP18: ='법정동(2025.6월말)'!AP21-'법정동(2024.12월말)'!AP21 -> 0.0 | AQ18: ='법정동(2025.6월말)'!AQ21-'법정동(2024.12월말)'!AQ21 -> 0.0 | AR18: ='법정동(2025.6월말)'!AR21-'법정동(2024.12월말)'!AR21 -> 0.0 | AS18: ='법정동(2025.6월말)'!AS21-'법정동(2024.12월말)'!AS21 -> 0.0 | AT18: ='법정동(2025.6월말)'!AT21-'법정동(2024.12월말)'!AT21 -> 0.0 | AU18: ='법정동(2025.6월말)'!AU21-'법정동(2024.12월말)'!AU21 -> 0.0 | AV18: ='법정동(2025.6월말)'!AV21-'법정동(2024.12월말)'!AV21 -> 0.0 | AW18: ='법정동(2025.6월말)'!AW21-'법정동(2024.12월말)'!AW21 -> 0.0 | AX18: ='법정동(2025.6월말)'!AX21-'법정동(2024.12월말)'!AX21 -> 0.0 | AY18: ='법정동(2025.6월말)'!AY21-'법정동(2024.12월말)'!AY21 -> 0.0 | AZ18: ='법정동(2025.6월말)'!AZ21-'법정동(2024.12월말)'!AZ21 -> 0.0 | BA18: ='법정동(2025.6월말)'!BA21-'법정동(2024.12월말)'!BA21 -> 0.0 | BB18: ='법정동(2025.6월말)'!BB21-'법정동(2024.12월말)'!BB21 -> 0.0 | BC18: ='법정동(2025.6월말)'!BC21-'법정동(2024.12월말)'!BC21 -> 0.0 | BD18: ='법정동(2025.6월말)'!BD21-'법정동(2024.12월말)'!BD21 -> 0.0 | BE18: ='법정동(2025.6월말)'!BE21-'법정동(2024.12월말)'!BE21 -> 0.0 | BF18: ='법정동(2025.6월말)'!BF21-'법정동(2024.12월말)'!BF21 -> 0.0 | BG18: ='법정동(2025.6월말)'!BG21-'법정동(2024.12월말)'!BG21 -> 0.0
A19: 남산동 | B19: ='법정동(2025.6월말)'!B22-'법정동(2024.12월말)'!B22 -> 0.0 | C19: ='법정동(2025.6월말)'!C22-'법정동(2024.12월말)'!C22 -> 3.0 | D19: ='법정동(2025.6월말)'!D22-'법정동(2024.12월말)'!D22 -> 0.0 | E19: ='법정동(2025.6월말)'!E22-'법정동(2024.12월말)'!E22 -> 0.0 | F19: ='법정동(2025.6월말)'!F22-'법정동(2024.12월말)'!F22 -> 0.0 | G19: ='법정동(2025.6월말)'!G22-'법정동(2024.12월말)'!G22 -> 0.0 | H19: ='법정동(2025.6월말)'!H22-'법정동(2024.12월말)'!H22 -> 0.0 | I19: ='법정동(2025.6월말)'!I22-'법정동(2024.12월말)'!I22 -> 0.0 | J19: ='법정동(2025.6월말)'!J22-'법정동(2024.12월말)'!J22 -> 0.0 | K19: ='법정동(2025.6월말)'!K22-'법정동(2024.12월말)'!K22 -> 0.0 | L19: ='법정동(2025.6월말)'!L22-'법정동(2024.12월말)'!L22 -> 0.0 | M19: ='법정동(2025.6월말)'!M22-'법정동(2024.12월말)'!M22 -> 0.0 | N19: ='법정동(2025.6월말)'!N22-'법정동(2024.12월말)'!N22 -> 0.0 | O19: ='법정동(2025.6월말)'!O22-'법정동(2024.12월말)'!O22 -> 0.0 | P19: ='법정동(2025.6월말)'!P22-'법정동(2024.12월말)'!P22 -> 0.0 | Q19: ='법정동(2025.6월말)'!Q22-'법정동(2024.12월말)'!Q22 -> 0.0 | R19: ='법정동(2025.6월말)'!R22-'법정동(2024.12월말)'!R22 -> 26.0 | S19: ='법정동(2025.6월말)'!S22-'법정동(2024.12월말)'!S22 -> 1.0 | T19: ='법정동(2025.6월말)'!T22-'법정동(2024.12월말)'!T22 -> 0.0 | U19: ='법정동(2025.6월말)'!U22-'법정동(2024.12월말)'!U22 -> 0.0 | V19: ='법정동(2025.6월말)'!V22-'법정동(2024.12월말)'!V22 -> 0.0 | W19: ='법정동(2025.6월말)'!W22-'법정동(2024.12월말)'!W22 -> 0.0 | X19: ='법정동(2025.6월말)'!X22-'법정동(2024.12월말)'!X22 -> 0.0 | Y19: ='법정동(2025.6월말)'!Y22-'법정동(2024.12월말)'!Y22 -> 0.0 | Z19: ='법정동(2025.6월말)'!Z22-'법정동(2024.12월말)'!Z22 -> 0.0 | AA19: ='법정동(2025.6월말)'!AA22-'법정동(2024.12월말)'!AA22 -> 0.0 | AB19: ='법정동(2025.6월말)'!AB22-'법정동(2024.12월말)'!AB22 -> 0.0 | AC19: ='법정동(2025.6월말)'!AC22-'법정동(2024.12월말)'!AC22 -> 0.0 | AD19: ='법정동(2025.6월말)'!AD22-'법정동(2024.12월말)'!AD22 -> -26.0 | AE19: ='법정동(2025.6월말)'!AE22-'법정동(2024.12월말)'!AE22 -> 2.0 | AF19: ='법정동(2025.6월말)'!AF22-'법정동(2024.12월말)'!AF22 -> 0.0 | AG19: ='법정동(2025.6월말)'!AG22-'법정동(2024.12월말)'!AG22 -> 0.0 | AH19: ='법정동(2025.6월말)'!AH22-'법정동(2024.12월말)'!AH22 -> 0.0 | AI19: ='법정동(2025.6월말)'!AI22-'법정동(2024.12월말)'!AI22 -> 0.0 | AJ19: ='법정동(2025.6월말)'!AJ22-'법정동(2024.12월말)'!AJ22 -> 0.0 | AK19: ='법정동(2025.6월말)'!AK22-'법정동(2024.12월말)'!AK22 -> 0.0 | AL19: ='법정동(2025.6월말)'!AL22-'법정동(2024.12월말)'!AL22 -> 0.0 | AM19: ='법정동(2025.6월말)'!AM22-'법정동(2024.12월말)'!AM22 -> 0.0 | AN19: ='법정동(2025.6월말)'!AN22-'법정동(2024.12월말)'!AN22 -> 0.0 | AO19: ='법정동(2025.6월말)'!AO22-'법정동(2024.12월말)'!AO22 -> 0.0 | AP19: ='법정동(2025.6월말)'!AP22-'법정동(2024.12월말)'!AP22 -> 0.0 | AQ19: ='법정동(2025.6월말)'!AQ22-'법정동(2024.12월말)'!AQ22 -> 0.0 | AR19: ='법정동(2025.6월말)'!AR22-'법정동(2024.12월말)'!AR22 -> 0.0 | AS19: ='법정동(2025.6월말)'!AS22-'법정동(2024.12월말)'!AS22 -> 0.0 | AT19: ='법정동(2025.6월말)'!AT22-'법정동(2024.12월말)'!AT22 -> 0.0 | AU19: ='법정동(2025.6월말)'!AU22-'법정동(2024.12월말)'!AU22 -> 0.0 | AV19: ='법정동(2025.6월말)'!AV22-'법정동(2024.12월말)'!AV22 -> 0.0 | AW19: ='법정동(2025.6월말)'!AW22-'법정동(2024.12월말)'!AW22 -> 0.0 | AX19: ='법정동(2025.6월말)'!AX22-'법정동(2024.12월말)'!AX22 -> 0.0 | AY19: ='법정동(2025.6월말)'!AY22-'법정동(2024.12월말)'!AY22 -> 0.0 | AZ19: ='법정동(2025.6월말)'!AZ22-'법정동(2024.12월말)'!AZ22 -> 0.0 | BA19: ='법정동(2025.6월말)'!BA22-'법정동(2024.12월말)'!BA22 -> 0.0 | BB19: ='법정동(2025.6월말)'!BB22-'법정동(2024.12월말)'!BB22 -> 0.0 | BC19: ='법정동(2025.6월말)'!BC22-'법정동(2024.12월말)'!BC22 -> 0.0 | BD19: ='법정동(2025.6월말)'!BD22-'법정동(2024.12월말)'!BD22 -> 0.0 | BE19: ='법정동(2025.6월말)'!BE22-'법정동(2024.12월말)'!BE22 -> 0.0 | BF19: ='법정동(2025.6월말)'!BF22-'법정동(2024.12월말)'!BF22 -> 0.0 | BG19: ='법정동(2025.6월말)'!BG22-'법정동(2024.12월말)'!BG22 -> 0.0
A20: 국동 | B20: ='법정동(2025.6월말)'!B23-'법정동(2024.12월말)'!B23 -> 34.0 | C20: ='법정동(2025.6월말)'!C23-'법정동(2024.12월말)'!C23 -> 0.0 | D20: ='법정동(2025.6월말)'!D23-'법정동(2024.12월말)'!D23 -> -4,015.0 | E20: ='법정동(2025.6월말)'!E23-'법정동(2024.12월말)'!E23 -> -5.0 | F20: ='법정동(2025.6월말)'!F23-'법정동(2024.12월말)'!F23 -> -640.0 | G20: ='법정동(2025.6월말)'!G23-'법정동(2024.12월말)'!G23 -> -2.0 | H20: ='법정동(2025.6월말)'!H23-'법정동(2024.12월말)'!H23 -> 0.0 | I20: ='법정동(2025.6월말)'!I23-'법정동(2024.12월말)'!I23 -> 0.0 | J20: ='법정동(2025.6월말)'!J23-'법정동(2024.12월말)'!J23 -> 0.0 | K20: ='법정동(2025.6월말)'!K23-'법정동(2024.12월말)'!K23 -> 0.0 | L20: ='법정동(2025.6월말)'!L23-'법정동(2024.12월말)'!L23 -> 0.0 | M20: ='법정동(2025.6월말)'!M23-'법정동(2024.12월말)'!M23 -> 0.0 | N20: ='법정동(2025.6월말)'!N23-'법정동(2024.12월말)'!N23 -> 0.0 | O20: ='법정동(2025.6월말)'!O23-'법정동(2024.12월말)'!O23 -> 0.0 | P20: ='법정동(2025.6월말)'!P23-'법정동(2024.12월말)'!P23 -> 0.0 | Q20: ='법정동(2025.6월말)'!Q23-'법정동(2024.12월말)'!Q23 -> 0.0 | R20: ='법정동(2025.6월말)'!R23-'법정동(2024.12월말)'!R23 -> 1,140.0 | S20: ='법정동(2025.6월말)'!S23-'법정동(2024.12월말)'!S23 -> 6.0 | T20: ='법정동(2025.6월말)'!T23-'법정동(2024.12월말)'!T23 -> 0.0 | U20: ='법정동(2025.6월말)'!U23-'법정동(2024.12월말)'!U23 -> 0.0 | V20: ='법정동(2025.6월말)'!V23-'법정동(2024.12월말)'!V23 -> 3,549.0 | W20: ='법정동(2025.6월말)'!W23-'법정동(2024.12월말)'!W23 -> 1.0 | X20: ='법정동(2025.6월말)'!X23-'법정동(2024.12월말)'!X23 -> 0.0 | Y20: ='법정동(2025.6월말)'!Y23-'법정동(2024.12월말)'!Y23 -> 0.0 | Z20: ='법정동(2025.6월말)'!Z23-'법정동(2024.12월말)'!Z23 -> 0.0 | AA20: ='법정동(2025.6월말)'!AA23-'법정동(2024.12월말)'!AA23 -> 0.0 | AB20: ='법정동(2025.6월말)'!AB23-'법정동(2024.12월말)'!AB23 -> 0.0 | AC20: ='법정동(2025.6월말)'!AC23-'법정동(2024.12월말)'!AC23 -> 0.0 | AD20: ='법정동(2025.6월말)'!AD23-'법정동(2024.12월말)'!AD23 -> 0.0 | AE20: ='법정동(2025.6월말)'!AE23-'법정동(2024.12월말)'!AE23 -> 0.0 | AF20: ='법정동(2025.6월말)'!AF23-'법정동(2024.12월말)'!AF23 -> 0.0 | AG20: ='법정동(2025.6월말)'!AG23-'법정동(2024.12월말)'!AG23 -> 0.0 | AH20: ='법정동(2025.6월말)'!AH23-'법정동(2024.12월말)'!AH23 -> 0.0 | AI20: ='법정동(2025.6월말)'!AI23-'법정동(2024.12월말)'!AI23 -> 0.0 | AJ20: ='법정동(2025.6월말)'!AJ23-'법정동(2024.12월말)'!AJ23 -> 0.0 | AK20: ='법정동(2025.6월말)'!AK23-'법정동(2024.12월말)'!AK23 -> 0.0 | AL20: ='법정동(2025.6월말)'!AL23-'법정동(2024.12월말)'!AL23 -> 0.0 | AM20: ='법정동(2025.6월말)'!AM23-'법정동(2024.12월말)'!AM23 -> 0.0 | AN20: ='법정동(2025.6월말)'!AN23-'법정동(2024.12월말)'!AN23 -> 0.0 | AO20: ='법정동(2025.6월말)'!AO23-'법정동(2024.12월말)'!AO23 -> 0.0 | AP20: ='법정동(2025.6월말)'!AP23-'법정동(2024.12월말)'!AP23 -> 0.0 | AQ20: ='법정동(2025.6월말)'!AQ23-'법정동(2024.12월말)'!AQ23 -> 0.0 | AR20: ='법정동(2025.6월말)'!AR23-'법정동(2024.12월말)'!AR23 -> 0.0 | AS20: ='법정동(2025.6월말)'!AS23-'법정동(2024.12월말)'!AS23 -> 0.0 | AT20: ='법정동(2025.6월말)'!AT23-'법정동(2024.12월말)'!AT23 -> 0.0 | AU20: ='법정동(2025.6월말)'!AU23-'법정동(2024.12월말)'!AU23 -> 0.0 | AV20: ='법정동(2025.6월말)'!AV23-'법정동(2024.12월말)'!AV23 -> 0.0 | AW20: ='법정동(2025.6월말)'!AW23-'법정동(2024.12월말)'!AW23 -> 0.0 | AX20: ='법정동(2025.6월말)'!AX23-'법정동(2024.12월말)'!AX23 -> 0.0 | AY20: ='법정동(2025.6월말)'!AY23-'법정동(2024.12월말)'!AY23 -> 0.0 | AZ20: ='법정동(2025.6월말)'!AZ23-'법정동(2024.12월말)'!AZ23 -> 0.0 | BA20: ='법정동(2025.6월말)'!BA23-'법정동(2024.12월말)'!BA23 -> 0.0 | BB20: ='법정동(2025.6월말)'!BB23-'법정동(2024.12월말)'!BB23 -> 0.0 | BC20: ='법정동(2025.6월말)'!BC23-'법정동(2024.12월말)'!BC23 -> 0.0 | BD20: ='법정동(2025.6월말)'!BD23-'법정동(2024.12월말)'!BD23 -> 0.0 | BE20: ='법정동(2025.6월말)'!BE23-'법정동(2024.12월말)'!BE23 -> 0.0 | BF20: ='법정동(2025.6월말)'!BF23-'법정동(2024.12월말)'!BF23 -> 0.0 | BG20: ='법정동(2025.6월말)'!BG23-'법정동(2024.12월말)'!BG23 -> 0.0
A21: 신월동 | B21: ='법정동(2025.6월말)'!B24-'법정동(2024.12월말)'!B24 -> 0.0 | C21: ='법정동(2025.6월말)'!C24-'법정동(2024.12월말)'!C24 -> 2.0 | D21: ='법정동(2025.6월말)'!D24-'법정동(2024.12월말)'!D24 -> -135.0 | E21: ='법정동(2025.6월말)'!E24-'법정동(2024.12월말)'!E24 -> 0.0 | F21: ='법정동(2025.6월말)'!F24-'법정동(2024.12월말)'!F24 -> 0.0 | G21: ='법정동(2025.6월말)'!G24-'법정동(2024.12월말)'!G24 -> 0.0 | H21: ='법정동(2025.6월말)'!H24-'법정동(2024.12월말)'!H24 -> 0.0 | I21: ='법정동(2025.6월말)'!I24-'법정동(2024.12월말)'!I24 -> 0.0 | J21: ='법정동(2025.6월말)'!J24-'법정동(2024.12월말)'!J24 -> 0.0 | K21: ='법정동(2025.6월말)'!K24-'법정동(2024.12월말)'!K24 -> 0.0 | L21: ='법정동(2025.6월말)'!L24-'법정동(2024.12월말)'!L24 -> -121.0 | M21: ='법정동(2025.6월말)'!M24-'법정동(2024.12월말)'!M24 -> -1.0 | N21: ='법정동(2025.6월말)'!N24-'법정동(2024.12월말)'!N24 -> 0.0 | O21: ='법정동(2025.6월말)'!O24-'법정동(2024.12월말)'!O24 -> 0.0 | P21: ='법정동(2025.6월말)'!P24-'법정동(2024.12월말)'!P24 -> 0.0 | Q21: ='법정동(2025.6월말)'!Q24-'법정동(2024.12월말)'!Q24 -> 0.0 | R21: ='법정동(2025.6월말)'!R24-'법정동(2024.12월말)'!R24 -> 985.0 | S21: ='법정동(2025.6월말)'!S24-'법정동(2024.12월말)'!S24 -> 2.0 | T21: ='법정동(2025.6월말)'!T24-'법정동(2024.12월말)'!T24 -> -707.0 | U21: ='법정동(2025.6월말)'!U24-'법정동(2024.12월말)'!U24 -> -1.0 | V21: ='법정동(2025.6월말)'!V24-'법정동(2024.12월말)'!V24 -> 0.0 | W21: ='법정동(2025.6월말)'!W24-'법정동(2024.12월말)'!W24 -> 0.0 | X21: ='법정동(2025.6월말)'!X24-'법정동(2024.12월말)'!X24 -> 0.0 | Y21: ='법정동(2025.6월말)'!Y24-'법정동(2024.12월말)'!Y24 -> 0.0 | Z21: ='법정동(2025.6월말)'!Z24-'법정동(2024.12월말)'!Z24 -> 0.0 | AA21: ='법정동(2025.6월말)'!AA24-'법정동(2024.12월말)'!AA24 -> 0.0 | AB21: ='법정동(2025.6월말)'!AB24-'법정동(2024.12월말)'!AB24 -> 0.0 | AC21: ='법정동(2025.6월말)'!AC24-'법정동(2024.12월말)'!AC24 -> 0.0 | AD21: ='법정동(2025.6월말)'!AD24-'법정동(2024.12월말)'!AD24 -> 256.0 | AE21: ='법정동(2025.6월말)'!AE24-'법정동(2024.12월말)'!AE24 -> 2.0 | AF21: ='법정동(2025.6월말)'!AF24-'법정동(2024.12월말)'!AF24 -> 0.0 | AG21: ='법정동(2025.6월말)'!AG24-'법정동(2024.12월말)'!AG24 -> 0.0 | AH21: ='법정동(2025.6월말)'!AH24-'법정동(2024.12월말)'!AH24 -> 0.0 | AI21: ='법정동(2025.6월말)'!AI24-'법정동(2024.12월말)'!AI24 -> 0.0 | AJ21: ='법정동(2025.6월말)'!AJ24-'법정동(2024.12월말)'!AJ24 -> 0.0 | AK21: ='법정동(2025.6월말)'!AK24-'법정동(2024.12월말)'!AK24 -> 0.0 | AL21: ='법정동(2025.6월말)'!AL24-'법정동(2024.12월말)'!AL24 -> 0.0 | AM21: ='법정동(2025.6월말)'!AM24-'법정동(2024.12월말)'!AM24 -> 0.0 | AN21: ='법정동(2025.6월말)'!AN24-'법정동(2024.12월말)'!AN24 -> 0.0 | AO21: ='법정동(2025.6월말)'!AO24-'법정동(2024.12월말)'!AO24 -> 0.0 | AP21: ='법정동(2025.6월말)'!AP24-'법정동(2024.12월말)'!AP24 -> 0.0 | AQ21: ='법정동(2025.6월말)'!AQ24-'법정동(2024.12월말)'!AQ24 -> 0.0 | AR21: ='법정동(2025.6월말)'!AR24-'법정동(2024.12월말)'!AR24 -> 0.0 | AS21: ='법정동(2025.6월말)'!AS24-'법정동(2024.12월말)'!AS24 -> 0.0 | AT21: ='법정동(2025.6월말)'!AT24-'법정동(2024.12월말)'!AT24 -> 0.0 | AU21: ='법정동(2025.6월말)'!AU24-'법정동(2024.12월말)'!AU24 -> 0.0 | AV21: ='법정동(2025.6월말)'!AV24-'법정동(2024.12월말)'!AV24 -> 0.0 | AW21: ='법정동(2025.6월말)'!AW24-'법정동(2024.12월말)'!AW24 -> 0.0 | AX21: ='법정동(2025.6월말)'!AX24-'법정동(2024.12월말)'!AX24 -> 0.0 | AY21: ='법정동(2025.6월말)'!AY24-'법정동(2024.12월말)'!AY24 -> 0.0 | AZ21: ='법정동(2025.6월말)'!AZ24-'법정동(2024.12월말)'!AZ24 -> 0.0 | BA21: ='법정동(2025.6월말)'!BA24-'법정동(2024.12월말)'!BA24 -> 0.0 | BB21: ='법정동(2025.6월말)'!BB24-'법정동(2024.12월말)'!BB24 -> 0.0 | BC21: ='법정동(2025.6월말)'!BC24-'법정동(2024.12월말)'!BC24 -> 0.0 | BD21: ='법정동(2025.6월말)'!BD24-'법정동(2024.12월말)'!BD24 -> 0.0 | BE21: ='법정동(2025.6월말)'!BE24-'법정동(2024.12월말)'!BE24 -> 0.0 | BF21: ='법정동(2025.6월말)'!BF24-'법정동(2024.12월말)'!BF24 -> -278.0 | BG21: ='법정동(2025.6월말)'!BG24-'법정동(2024.12월말)'!BG24 -> 0.0
A22: 여서동 | B22: ='법정동(2025.6월말)'!B25-'법정동(2024.12월말)'!B25 -> 48.0 | C22: ='법정동(2025.6월말)'!C25-'법정동(2024.12월말)'!C25 -> 1.0 | D22: ='법정동(2025.6월말)'!D25-'법정동(2024.12월말)'!D25 -> 0.0 | E22: ='법정동(2025.6월말)'!E25-'법정동(2024.12월말)'!E25 -> 0.0 | F22: ='법정동(2025.6월말)'!F25-'법정동(2024.12월말)'!F25 -> 0.0 | G22: ='법정동(2025.6월말)'!G25-'법정동(2024.12월말)'!G25 -> 0.0 | H22: ='법정동(2025.6월말)'!H25-'법정동(2024.12월말)'!H25 -> 0.0 | I22: ='법정동(2025.6월말)'!I25-'법정동(2024.12월말)'!I25 -> 0.0 | J22: ='법정동(2025.6월말)'!J25-'법정동(2024.12월말)'!J25 -> 0.0 | K22: ='법정동(2025.6월말)'!K25-'법정동(2024.12월말)'!K25 -> 0.0 | L22: ='법정동(2025.6월말)'!L25-'법정동(2024.12월말)'!L25 -> -509.0 | M22: ='법정동(2025.6월말)'!M25-'법정동(2024.12월말)'!M25 -> -1.0 | N22: ='법정동(2025.6월말)'!N25-'법정동(2024.12월말)'!N25 -> 0.0 | O22: ='법정동(2025.6월말)'!O25-'법정동(2024.12월말)'!O25 -> 0.0 | P22: ='법정동(2025.6월말)'!P25-'법정동(2024.12월말)'!P25 -> 0.0 | Q22: ='법정동(2025.6월말)'!Q25-'법정동(2024.12월말)'!Q25 -> 0.0 | R22: ='법정동(2025.6월말)'!R25-'법정동(2024.12월말)'!R25 -> 509.0 | S22: ='법정동(2025.6월말)'!S25-'법정동(2024.12월말)'!S25 -> 1.0 | T22: ='법정동(2025.6월말)'!T25-'법정동(2024.12월말)'!T25 -> 0.0 | U22: ='법정동(2025.6월말)'!U25-'법정동(2024.12월말)'!U25 -> 0.0 | V22: ='법정동(2025.6월말)'!V25-'법정동(2024.12월말)'!V25 -> 0.0 | W22: ='법정동(2025.6월말)'!W25-'법정동(2024.12월말)'!W25 -> 0.0 | X22: ='법정동(2025.6월말)'!X25-'법정동(2024.12월말)'!X25 -> 0.0 | Y22: ='법정동(2025.6월말)'!Y25-'법정동(2024.12월말)'!Y25 -> 0.0 | Z22: ='법정동(2025.6월말)'!Z25-'법정동(2024.12월말)'!Z25 -> 0.0 | AA22: ='법정동(2025.6월말)'!AA25-'법정동(2024.12월말)'!AA25 -> 0.0 | AB22: ='법정동(2025.6월말)'!AB25-'법정동(2024.12월말)'!AB25 -> 0.0 | AC22: ='법정동(2025.6월말)'!AC25-'법정동(2024.12월말)'!AC25 -> 0.0 | AD22: ='법정동(2025.6월말)'!AD25-'법정동(2024.12월말)'!AD25 -> 48.0 | AE22: ='법정동(2025.6월말)'!AE25-'법정동(2024.12월말)'!AE25 -> 0.0 | AF22: ='법정동(2025.6월말)'!AF25-'법정동(2024.12월말)'!AF25 -> 0.0 | AG22: ='법정동(2025.6월말)'!AG25-'법정동(2024.12월말)'!AG25 -> 0.0 | AH22: ='법정동(2025.6월말)'!AH25-'법정동(2024.12월말)'!AH25 -> 0.0 | AI22: ='법정동(2025.6월말)'!AI25-'법정동(2024.12월말)'!AI25 -> 0.0 | AJ22: ='법정동(2025.6월말)'!AJ25-'법정동(2024.12월말)'!AJ25 -> 0.0 | AK22: ='법정동(2025.6월말)'!AK25-'법정동(2024.12월말)'!AK25 -> 0.0 | AL22: ='법정동(2025.6월말)'!AL25-'법정동(2024.12월말)'!AL25 -> 0.0 | AM22: ='법정동(2025.6월말)'!AM25-'법정동(2024.12월말)'!AM25 -> 0.0 | AN22: ='법정동(2025.6월말)'!AN25-'법정동(2024.12월말)'!AN25 -> 0.0 | AO22: ='법정동(2025.6월말)'!AO25-'법정동(2024.12월말)'!AO25 -> 0.0 | AP22: ='법정동(2025.6월말)'!AP25-'법정동(2024.12월말)'!AP25 -> 0.0 | AQ22: ='법정동(2025.6월말)'!AQ25-'법정동(2024.12월말)'!AQ25 -> 0.0 | AR22: ='법정동(2025.6월말)'!AR25-'법정동(2024.12월말)'!AR25 -> 0.0 | AS22: ='법정동(2025.6월말)'!AS25-'법정동(2024.12월말)'!AS25 -> 0.0 | AT22: ='법정동(2025.6월말)'!AT25-'법정동(2024.12월말)'!AT25 -> 0.0 | AU22: ='법정동(2025.6월말)'!AU25-'법정동(2024.12월말)'!AU25 -> 1.0 | AV22: ='법정동(2025.6월말)'!AV25-'법정동(2024.12월말)'!AV25 -> 0.0 | AW22: ='법정동(2025.6월말)'!AW25-'법정동(2024.12월말)'!AW25 -> 0.0 | AX22: ='법정동(2025.6월말)'!AX25-'법정동(2024.12월말)'!AX25 -> 0.0 | AY22: ='법정동(2025.6월말)'!AY25-'법정동(2024.12월말)'!AY25 -> 0.0 | AZ22: ='법정동(2025.6월말)'!AZ25-'법정동(2024.12월말)'!AZ25 -> 0.0 | BA22: ='법정동(2025.6월말)'!BA25-'법정동(2024.12월말)'!BA25 -> 0.0 | BB22: ='법정동(2025.6월말)'!BB25-'법정동(2024.12월말)'!BB25 -> 0.0 | BC22: ='법정동(2025.6월말)'!BC25-'법정동(2024.12월말)'!BC25 -> 0.0 | BD22: ='법정동(2025.6월말)'!BD25-'법정동(2024.12월말)'!BD25 -> 0.0 | BE22: ='법정동(2025.6월말)'!BE25-'법정동(2024.12월말)'!BE25 -> 0.0 | BF22: ='법정동(2025.6월말)'!BF25-'법정동(2024.12월말)'!BF25 -> 0.0 | BG22: ='법정동(2025.6월말)'!BG25-'법정동(2024.12월말)'!BG25 -> 0.0
A23: 문수동 | B23: ='법정동(2025.6월말)'!B26-'법정동(2024.12월말)'!B26 -> 0.0 | C23: ='법정동(2025.6월말)'!C26-'법정동(2024.12월말)'!C26 -> -1.0 | D23: ='법정동(2025.6월말)'!D26-'법정동(2024.12월말)'!D26 -> 0.0 | E23: ='법정동(2025.6월말)'!E26-'법정동(2024.12월말)'!E26 -> 0.0 | F23: ='법정동(2025.6월말)'!F26-'법정동(2024.12월말)'!F26 -> 0.0 | G23: ='법정동(2025.6월말)'!G26-'법정동(2024.12월말)'!G26 -> 0.0 | H23: ='법정동(2025.6월말)'!H26-'법정동(2024.12월말)'!H26 -> 0.0 | I23: ='법정동(2025.6월말)'!I26-'법정동(2024.12월말)'!I26 -> 0.0 | J23: ='법정동(2025.6월말)'!J26-'법정동(2024.12월말)'!J26 -> 0.0 | K23: ='법정동(2025.6월말)'!K26-'법정동(2024.12월말)'!K26 -> 0.0 | L23: ='법정동(2025.6월말)'!L26-'법정동(2024.12월말)'!L26 -> 0.0 | M23: ='법정동(2025.6월말)'!M26-'법정동(2024.12월말)'!M26 -> 0.0 | N23: ='법정동(2025.6월말)'!N26-'법정동(2024.12월말)'!N26 -> 0.0 | O23: ='법정동(2025.6월말)'!O26-'법정동(2024.12월말)'!O26 -> 0.0 | P23: ='법정동(2025.6월말)'!P26-'법정동(2024.12월말)'!P26 -> 0.0 | Q23: ='법정동(2025.6월말)'!Q26-'법정동(2024.12월말)'!Q26 -> 0.0 | R23: ='법정동(2025.6월말)'!R26-'법정동(2024.12월말)'!R26 -> 0.0 | S23: ='법정동(2025.6월말)'!S26-'법정동(2024.12월말)'!S26 -> -1.0 | T23: ='법정동(2025.6월말)'!T26-'법정동(2024.12월말)'!T26 -> 0.0 | U23: ='법정동(2025.6월말)'!U26-'법정동(2024.12월말)'!U26 -> 0.0 | V23: ='법정동(2025.6월말)'!V26-'법정동(2024.12월말)'!V26 -> 0.0 | W23: ='법정동(2025.6월말)'!W26-'법정동(2024.12월말)'!W26 -> 0.0 | X23: ='법정동(2025.6월말)'!X26-'법정동(2024.12월말)'!X26 -> 0.0 | Y23: ='법정동(2025.6월말)'!Y26-'법정동(2024.12월말)'!Y26 -> 0.0 | Z23: ='법정동(2025.6월말)'!Z26-'법정동(2024.12월말)'!Z26 -> 0.0 | AA23: ='법정동(2025.6월말)'!AA26-'법정동(2024.12월말)'!AA26 -> 0.0 | AB23: ='법정동(2025.6월말)'!AB26-'법정동(2024.12월말)'!AB26 -> 0.0 | AC23: ='법정동(2025.6월말)'!AC26-'법정동(2024.12월말)'!AC26 -> 0.0 | AD23: ='법정동(2025.6월말)'!AD26-'법정동(2024.12월말)'!AD26 -> 0.0 | AE23: ='법정동(2025.6월말)'!AE26-'법정동(2024.12월말)'!AE26 -> 0.0 | AF23: ='법정동(2025.6월말)'!AF26-'법정동(2024.12월말)'!AF26 -> 0.0 | AG23: ='법정동(2025.6월말)'!AG26-'법정동(2024.12월말)'!AG26 -> 0.0 | AH23: ='법정동(2025.6월말)'!AH26-'법정동(2024.12월말)'!AH26 -> 0.0 | AI23: ='법정동(2025.6월말)'!AI26-'법정동(2024.12월말)'!AI26 -> 0.0 | AJ23: ='법정동(2025.6월말)'!AJ26-'법정동(2024.12월말)'!AJ26 -> 0.0 | AK23: ='법정동(2025.6월말)'!AK26-'법정동(2024.12월말)'!AK26 -> 0.0 | AL23: ='법정동(2025.6월말)'!AL26-'법정동(2024.12월말)'!AL26 -> 0.0 | AM23: ='법정동(2025.6월말)'!AM26-'법정동(2024.12월말)'!AM26 -> 0.0 | AN23: ='법정동(2025.6월말)'!AN26-'법정동(2024.12월말)'!AN26 -> 0.0 | AO23: ='법정동(2025.6월말)'!AO26-'법정동(2024.12월말)'!AO26 -> 0.0 | AP23: ='법정동(2025.6월말)'!AP26-'법정동(2024.12월말)'!AP26 -> 0.0 | AQ23: ='법정동(2025.6월말)'!AQ26-'법정동(2024.12월말)'!AQ26 -> 0.0 | AR23: ='법정동(2025.6월말)'!AR26-'법정동(2024.12월말)'!AR26 -> 0.0 | AS23: ='법정동(2025.6월말)'!AS26-'법정동(2024.12월말)'!AS26 -> 0.0 | AT23: ='법정동(2025.6월말)'!AT26-'법정동(2024.12월말)'!AT26 -> 0.0 | AU23: ='법정동(2025.6월말)'!AU26-'법정동(2024.12월말)'!AU26 -> 0.0 | AV23: ='법정동(2025.6월말)'!AV26-'법정동(2024.12월말)'!AV26 -> 0.0 | AW23: ='법정동(2025.6월말)'!AW26-'법정동(2024.12월말)'!AW26 -> 0.0 | AX23: ='법정동(2025.6월말)'!AX26-'법정동(2024.12월말)'!AX26 -> 0.0 | AY23: ='법정동(2025.6월말)'!AY26-'법정동(2024.12월말)'!AY26 -> 0.0 | AZ23: ='법정동(2025.6월말)'!AZ26-'법정동(2024.12월말)'!AZ26 -> 0.0 | BA23: ='법정동(2025.6월말)'!BA26-'법정동(2024.12월말)'!BA26 -> 0.0 | BB23: ='법정동(2025.6월말)'!BB26-'법정동(2024.12월말)'!BB26 -> 0.0 | BC23: ='법정동(2025.6월말)'!BC26-'법정동(2024.12월말)'!BC26 -> 0.0 | BD23: ='법정동(2025.6월말)'!BD26-'법정동(2024.12월말)'!BD26 -> 0.0 | BE23: ='법정동(2025.6월말)'!BE26-'법정동(2024.12월말)'!BE26 -> 0.0 | BF23: ='법정동(2025.6월말)'!BF26-'법정동(2024.12월말)'!BF26 -> 0.0 | BG23: ='법정동(2025.6월말)'!BG26-'법정동(2024.12월말)'!BG26 -> 0.0
A24: 오림동 | B24: ='법정동(2025.6월말)'!B27-'법정동(2024.12월말)'!B27 -> 0.0 | C24: ='법정동(2025.6월말)'!C27-'법정동(2024.12월말)'!C27 -> 0.0 | D24: ='법정동(2025.6월말)'!D27-'법정동(2024.12월말)'!D27 -> 0.0 | E24: ='법정동(2025.6월말)'!E27-'법정동(2024.12월말)'!E27 -> 0.0 | F24: ='법정동(2025.6월말)'!F27-'법정동(2024.12월말)'!F27 -> -332.0 | G24: ='법정동(2025.6월말)'!G27-'법정동(2024.12월말)'!G27 -> -1.0 | H24: ='법정동(2025.6월말)'!H27-'법정동(2024.12월말)'!H27 -> 0.0 | I24: ='법정동(2025.6월말)'!I27-'법정동(2024.12월말)'!I27 -> 0.0 | J24: ='법정동(2025.6월말)'!J27-'법정동(2024.12월말)'!J27 -> 0.0 | K24: ='법정동(2025.6월말)'!K27-'법정동(2024.12월말)'!K27 -> 0.0 | L24: ='법정동(2025.6월말)'!L27-'법정동(2024.12월말)'!L27 -> 0.0 | M24: ='법정동(2025.6월말)'!M27-'법정동(2024.12월말)'!M27 -> 0.0 | N24: ='법정동(2025.6월말)'!N27-'법정동(2024.12월말)'!N27 -> 0.0 | O24: ='법정동(2025.6월말)'!O27-'법정동(2024.12월말)'!O27 -> 0.0 | P24: ='법정동(2025.6월말)'!P27-'법정동(2024.12월말)'!P27 -> 0.0 | Q24: ='법정동(2025.6월말)'!Q27-'법정동(2024.12월말)'!Q27 -> 0.0 | R24: ='법정동(2025.6월말)'!R27-'법정동(2024.12월말)'!R27 -> 0.0 | S24: ='법정동(2025.6월말)'!S27-'법정동(2024.12월말)'!S27 -> 0.0 | T24: ='법정동(2025.6월말)'!T27-'법정동(2024.12월말)'!T27 -> 0.0 | U24: ='법정동(2025.6월말)'!U27-'법정동(2024.12월말)'!U27 -> 0.0 | V24: ='법정동(2025.6월말)'!V27-'법정동(2024.12월말)'!V27 -> 0.0 | W24: ='법정동(2025.6월말)'!W27-'법정동(2024.12월말)'!W27 -> 0.0 | X24: ='법정동(2025.6월말)'!X27-'법정동(2024.12월말)'!X27 -> 0.0 | Y24: ='법정동(2025.6월말)'!Y27-'법정동(2024.12월말)'!Y27 -> 0.0 | Z24: ='법정동(2025.6월말)'!Z27-'법정동(2024.12월말)'!Z27 -> 0.0 | AA24: ='법정동(2025.6월말)'!AA27-'법정동(2024.12월말)'!AA27 -> 0.0 | AB24: ='법정동(2025.6월말)'!AB27-'법정동(2024.12월말)'!AB27 -> 0.0 | AC24: ='법정동(2025.6월말)'!AC27-'법정동(2024.12월말)'!AC27 -> 0.0 | AD24: ='법정동(2025.6월말)'!AD27-'법정동(2024.12월말)'!AD27 -> 332.0 | AE24: ='법정동(2025.6월말)'!AE27-'법정동(2024.12월말)'!AE27 -> 1.0 | AF24: ='법정동(2025.6월말)'!AF27-'법정동(2024.12월말)'!AF27 -> 0.0 | AG24: ='법정동(2025.6월말)'!AG27-'법정동(2024.12월말)'!AG27 -> 0.0 | AH24: ='법정동(2025.6월말)'!AH27-'법정동(2024.12월말)'!AH27 -> 0.0 | AI24: ='법정동(2025.6월말)'!AI27-'법정동(2024.12월말)'!AI27 -> 0.0 | AJ24: ='법정동(2025.6월말)'!AJ27-'법정동(2024.12월말)'!AJ27 -> 0.0 | AK24: ='법정동(2025.6월말)'!AK27-'법정동(2024.12월말)'!AK27 -> 0.0 | AL24: ='법정동(2025.6월말)'!AL27-'법정동(2024.12월말)'!AL27 -> 0.0 | AM24: ='법정동(2025.6월말)'!AM27-'법정동(2024.12월말)'!AM27 -> 0.0 | AN24: ='법정동(2025.6월말)'!AN27-'법정동(2024.12월말)'!AN27 -> 0.0 | AO24: ='법정동(2025.6월말)'!AO27-'법정동(2024.12월말)'!AO27 -> 0.0 | AP24: ='법정동(2025.6월말)'!AP27-'법정동(2024.12월말)'!AP27 -> 0.0 | AQ24: ='법정동(2025.6월말)'!AQ27-'법정동(2024.12월말)'!AQ27 -> 0.0 | AR24: ='법정동(2025.6월말)'!AR27-'법정동(2024.12월말)'!AR27 -> 0.0 | AS24: ='법정동(2025.6월말)'!AS27-'법정동(2024.12월말)'!AS27 -> 0.0 | AT24: ='법정동(2025.6월말)'!AT27-'법정동(2024.12월말)'!AT27 -> 0.0 | AU24: ='법정동(2025.6월말)'!AU27-'법정동(2024.12월말)'!AU27 -> 0.0 | AV24: ='법정동(2025.6월말)'!AV27-'법정동(2024.12월말)'!AV27 -> 0.0 | AW24: ='법정동(2025.6월말)'!AW27-'법정동(2024.12월말)'!AW27 -> 0.0 | AX24: ='법정동(2025.6월말)'!AX27-'법정동(2024.12월말)'!AX27 -> 0.0 | AY24: ='법정동(2025.6월말)'!AY27-'법정동(2024.12월말)'!AY27 -> 0.0 | AZ24: ='법정동(2025.6월말)'!AZ27-'법정동(2024.12월말)'!AZ27 -> 0.0 | BA24: ='법정동(2025.6월말)'!BA27-'법정동(2024.12월말)'!BA27 -> 0.0 | BB24: ='법정동(2025.6월말)'!BB27-'법정동(2024.12월말)'!BB27 -> 0.0 | BC24: ='법정동(2025.6월말)'!BC27-'법정동(2024.12월말)'!BC27 -> 0.0 | BD24: ='법정동(2025.6월말)'!BD27-'법정동(2024.12월말)'!BD27 -> 0.0 | BE24: ='법정동(2025.6월말)'!BE27-'법정동(2024.12월말)'!BE27 -> 0.0 | BF24: ='법정동(2025.6월말)'!BF27-'법정동(2024.12월말)'!BF27 -> 0.0 | BG24: ='법정동(2025.6월말)'!BG27-'법정동(2024.12월말)'!BG27 -> 0.0
A25: 미평동 | B25: ='법정동(2025.6월말)'!B28-'법정동(2024.12월말)'!B28 -> 0.0 | C25: ='법정동(2025.6월말)'!C28-'법정동(2024.12월말)'!C28 -> 10.0 | D25: ='법정동(2025.6월말)'!D28-'법정동(2024.12월말)'!D28 -> 0.0 | E25: ='법정동(2025.6월말)'!E28-'법정동(2024.12월말)'!E28 -> 7.0 | F25: ='법정동(2025.6월말)'!F28-'법정동(2024.12월말)'!F28 -> 0.0 | G25: ='법정동(2025.6월말)'!G28-'법정동(2024.12월말)'!G28 -> 0.0 | H25: ='법정동(2025.6월말)'!H28-'법정동(2024.12월말)'!H28 -> 0.0 | I25: ='법정동(2025.6월말)'!I28-'법정동(2024.12월말)'!I28 -> 0.0 | J25: ='법정동(2025.6월말)'!J28-'법정동(2024.12월말)'!J28 -> 0.0 | K25: ='법정동(2025.6월말)'!K28-'법정동(2024.12월말)'!K28 -> 0.0 | L25: ='법정동(2025.6월말)'!L28-'법정동(2024.12월말)'!L28 -> 0.0 | M25: ='법정동(2025.6월말)'!M28-'법정동(2024.12월말)'!M28 -> 2.0 | N25: ='법정동(2025.6월말)'!N28-'법정동(2024.12월말)'!N28 -> 0.0 | O25: ='법정동(2025.6월말)'!O28-'법정동(2024.12월말)'!O28 -> 0.0 | P25: ='법정동(2025.6월말)'!P28-'법정동(2024.12월말)'!P28 -> 0.0 | Q25: ='법정동(2025.6월말)'!Q28-'법정동(2024.12월말)'!Q28 -> 0.0 | R25: ='법정동(2025.6월말)'!R28-'법정동(2024.12월말)'!R28 -> 453.0 | S25: ='법정동(2025.6월말)'!S28-'법정동(2024.12월말)'!S28 -> 1.0 | T25: ='법정동(2025.6월말)'!T28-'법정동(2024.12월말)'!T28 -> 0.0 | U25: ='법정동(2025.6월말)'!U28-'법정동(2024.12월말)'!U28 -> 0.0 | V25: ='법정동(2025.6월말)'!V28-'법정동(2024.12월말)'!V28 -> 0.0 | W25: ='법정동(2025.6월말)'!W28-'법정동(2024.12월말)'!W28 -> 0.0 | X25: ='법정동(2025.6월말)'!X28-'법정동(2024.12월말)'!X28 -> -453.0 | Y25: ='법정동(2025.6월말)'!Y28-'법정동(2024.12월말)'!Y28 -> -1.0 | Z25: ='법정동(2025.6월말)'!Z28-'법정동(2024.12월말)'!Z28 -> 0.0 | AA25: ='법정동(2025.6월말)'!AA28-'법정동(2024.12월말)'!AA28 -> 0.0 | AB25: ='법정동(2025.6월말)'!AB28-'법정동(2024.12월말)'!AB28 -> 0.0 | AC25: ='법정동(2025.6월말)'!AC28-'법정동(2024.12월말)'!AC28 -> 0.0 | AD25: ='법정동(2025.6월말)'!AD28-'법정동(2024.12월말)'!AD28 -> 0.0 | AE25: ='법정동(2025.6월말)'!AE28-'법정동(2024.12월말)'!AE28 -> 0.0 | AF25: ='법정동(2025.6월말)'!AF28-'법정동(2024.12월말)'!AF28 -> 0.0 | AG25: ='법정동(2025.6월말)'!AG28-'법정동(2024.12월말)'!AG28 -> 0.0 | AH25: ='법정동(2025.6월말)'!AH28-'법정동(2024.12월말)'!AH28 -> 0.0 | AI25: ='법정동(2025.6월말)'!AI28-'법정동(2024.12월말)'!AI28 -> 0.0 | AJ25: ='법정동(2025.6월말)'!AJ28-'법정동(2024.12월말)'!AJ28 -> 0.0 | AK25: ='법정동(2025.6월말)'!AK28-'법정동(2024.12월말)'!AK28 -> 0.0 | AL25: ='법정동(2025.6월말)'!AL28-'법정동(2024.12월말)'!AL28 -> 0.0 | AM25: ='법정동(2025.6월말)'!AM28-'법정동(2024.12월말)'!AM28 -> 0.0 | AN25: ='법정동(2025.6월말)'!AN28-'법정동(2024.12월말)'!AN28 -> 0.0 | AO25: ='법정동(2025.6월말)'!AO28-'법정동(2024.12월말)'!AO28 -> 0.0 | AP25: ='법정동(2025.6월말)'!AP28-'법정동(2024.12월말)'!AP28 -> 0.0 | AQ25: ='법정동(2025.6월말)'!AQ28-'법정동(2024.12월말)'!AQ28 -> 0.0 | AR25: ='법정동(2025.6월말)'!AR28-'법정동(2024.12월말)'!AR28 -> 0.0 | AS25: ='법정동(2025.6월말)'!AS28-'법정동(2024.12월말)'!AS28 -> 0.0 | AT25: ='법정동(2025.6월말)'!AT28-'법정동(2024.12월말)'!AT28 -> 0.0 | AU25: ='법정동(2025.6월말)'!AU28-'법정동(2024.12월말)'!AU28 -> 1.0 | AV25: ='법정동(2025.6월말)'!AV28-'법정동(2024.12월말)'!AV28 -> 0.0 | AW25: ='법정동(2025.6월말)'!AW28-'법정동(2024.12월말)'!AW28 -> 0.0 | AX25: ='법정동(2025.6월말)'!AX28-'법정동(2024.12월말)'!AX28 -> 0.0 | AY25: ='법정동(2025.6월말)'!AY28-'법정동(2024.12월말)'!AY28 -> 0.0 | AZ25: ='법정동(2025.6월말)'!AZ28-'법정동(2024.12월말)'!AZ28 -> 0.0 | BA25: ='법정동(2025.6월말)'!BA28-'법정동(2024.12월말)'!BA28 -> 0.0 | BB25: ='법정동(2025.6월말)'!BB28-'법정동(2024.12월말)'!BB28 -> 0.0 | BC25: ='법정동(2025.6월말)'!BC28-'법정동(2024.12월말)'!BC28 -> 0.0 | BD25: ='법정동(2025.6월말)'!BD28-'법정동(2024.12월말)'!BD28 -> 0.0 | BE25: ='법정동(2025.6월말)'!BE28-'법정동(2024.12월말)'!BE28 -> 0.0 | BF25: ='법정동(2025.6월말)'!BF28-'법정동(2024.12월말)'!BF28 -> 0.0 | BG25: ='법정동(2025.6월말)'!BG28-'법정동(2024.12월말)'!BG28 -> 0.0
A26: 둔덕동 | B26: ='법정동(2025.6월말)'!B29-'법정동(2024.12월말)'!B29 -> 0.0 | C26: ='법정동(2025.6월말)'!C29-'법정동(2024.12월말)'!C29 -> 7.0 | D26: ='법정동(2025.6월말)'!D29-'법정동(2024.12월말)'!D29 -> 0.0 | E26: ='법정동(2025.6월말)'!E29-'법정동(2024.12월말)'!E29 -> 0.0 | F26: ='법정동(2025.6월말)'!F29-'법정동(2024.12월말)'!F29 -> 0.0 | G26: ='법정동(2025.6월말)'!G29-'법정동(2024.12월말)'!G29 -> 5.0 | H26: ='법정동(2025.6월말)'!H29-'법정동(2024.12월말)'!H29 -> 0.0 | I26: ='법정동(2025.6월말)'!I29-'법정동(2024.12월말)'!I29 -> 0.0 | J26: ='법정동(2025.6월말)'!J29-'법정동(2024.12월말)'!J29 -> 0.0 | K26: ='법정동(2025.6월말)'!K29-'법정동(2024.12월말)'!K29 -> 0.0 | L26: ='법정동(2025.6월말)'!L29-'법정동(2024.12월말)'!L29 -> -289.0 | M26: ='법정동(2025.6월말)'!M29-'법정동(2024.12월말)'!M29 -> -1.0 | N26: ='법정동(2025.6월말)'!N29-'법정동(2024.12월말)'!N29 -> 0.0 | O26: ='법정동(2025.6월말)'!O29-'법정동(2024.12월말)'!O29 -> 0.0 | P26: ='법정동(2025.6월말)'!P29-'법정동(2024.12월말)'!P29 -> 0.0 | Q26: ='법정동(2025.6월말)'!Q29-'법정동(2024.12월말)'!Q29 -> 0.0 | R26: ='법정동(2025.6월말)'!R29-'법정동(2024.12월말)'!R29 -> 120.0 | S26: ='법정동(2025.6월말)'!S29-'법정동(2024.12월말)'!S29 -> -2.0 | T26: ='법정동(2025.6월말)'!T29-'법정동(2024.12월말)'!T29 -> 0.0 | U26: ='법정동(2025.6월말)'!U29-'법정동(2024.12월말)'!U29 -> 0.0 | V26: ='법정동(2025.6월말)'!V29-'법정동(2024.12월말)'!V29 -> 0.0 | W26: ='법정동(2025.6월말)'!W29-'법정동(2024.12월말)'!W29 -> 0.0 | X26: ='법정동(2025.6월말)'!X29-'법정동(2024.12월말)'!X29 -> 0.0 | Y26: ='법정동(2025.6월말)'!Y29-'법정동(2024.12월말)'!Y29 -> 0.0 | Z26: ='법정동(2025.6월말)'!Z29-'법정동(2024.12월말)'!Z29 -> 619.0 | AA26: ='법정동(2025.6월말)'!AA29-'법정동(2024.12월말)'!AA29 -> 0.0 | AB26: ='법정동(2025.6월말)'!AB29-'법정동(2024.12월말)'!AB29 -> 0.0 | AC26: ='법정동(2025.6월말)'!AC29-'법정동(2024.12월말)'!AC29 -> 0.0 | AD26: ='법정동(2025.6월말)'!AD29-'법정동(2024.12월말)'!AD29 -> -450.0 | AE26: ='법정동(2025.6월말)'!AE29-'법정동(2024.12월말)'!AE29 -> 5.0 | AF26: ='법정동(2025.6월말)'!AF29-'법정동(2024.12월말)'!AF29 -> 0.0 | AG26: ='법정동(2025.6월말)'!AG29-'법정동(2024.12월말)'!AG29 -> 0.0 | AH26: ='법정동(2025.6월말)'!AH29-'법정동(2024.12월말)'!AH29 -> 0.0 | AI26: ='법정동(2025.6월말)'!AI29-'법정동(2024.12월말)'!AI29 -> 0.0 | AJ26: ='법정동(2025.6월말)'!AJ29-'법정동(2024.12월말)'!AJ29 -> 0.0 | AK26: ='법정동(2025.6월말)'!AK29-'법정동(2024.12월말)'!AK29 -> 0.0 | AL26: ='법정동(2025.6월말)'!AL29-'법정동(2024.12월말)'!AL29 -> 0.0 | AM26: ='법정동(2025.6월말)'!AM29-'법정동(2024.12월말)'!AM29 -> 0.0 | AN26: ='법정동(2025.6월말)'!AN29-'법정동(2024.12월말)'!AN29 -> 0.0 | AO26: ='법정동(2025.6월말)'!AO29-'법정동(2024.12월말)'!AO29 -> 0.0 | AP26: ='법정동(2025.6월말)'!AP29-'법정동(2024.12월말)'!AP29 -> 0.0 | AQ26: ='법정동(2025.6월말)'!AQ29-'법정동(2024.12월말)'!AQ29 -> 0.0 | AR26: ='법정동(2025.6월말)'!AR29-'법정동(2024.12월말)'!AR29 -> 0.0 | AS26: ='법정동(2025.6월말)'!AS29-'법정동(2024.12월말)'!AS29 -> 0.0 | AT26: ='법정동(2025.6월말)'!AT29-'법정동(2024.12월말)'!AT29 -> 0.0 | AU26: ='법정동(2025.6월말)'!AU29-'법정동(2024.12월말)'!AU29 -> 0.0 | AV26: ='법정동(2025.6월말)'!AV29-'법정동(2024.12월말)'!AV29 -> 0.0 | AW26: ='법정동(2025.6월말)'!AW29-'법정동(2024.12월말)'!AW29 -> 0.0 | AX26: ='법정동(2025.6월말)'!AX29-'법정동(2024.12월말)'!AX29 -> 0.0 | AY26: ='법정동(2025.6월말)'!AY29-'법정동(2024.12월말)'!AY29 -> 0.0 | AZ26: ='법정동(2025.6월말)'!AZ29-'법정동(2024.12월말)'!AZ29 -> 0.0 | BA26: ='법정동(2025.6월말)'!BA29-'법정동(2024.12월말)'!BA29 -> 0.0 | BB26: ='법정동(2025.6월말)'!BB29-'법정동(2024.12월말)'!BB29 -> 0.0 | BC26: ='법정동(2025.6월말)'!BC29-'법정동(2024.12월말)'!BC29 -> 0.0 | BD26: ='법정동(2025.6월말)'!BD29-'법정동(2024.12월말)'!BD29 -> 0.0 | BE26: ='법정동(2025.6월말)'!BE29-'법정동(2024.12월말)'!BE29 -> 0.0 | BF26: ='법정동(2025.6월말)'!BF29-'법정동(2024.12월말)'!BF29 -> 0.0 | BG26: ='법정동(2025.6월말)'!BG29-'법정동(2024.12월말)'!BG29 -> 0.0
A27: 오천동 | B27: ='법정동(2025.6월말)'!B30-'법정동(2024.12월말)'!B30 -> 0.0 | C27: ='법정동(2025.6월말)'!C30-'법정동(2024.12월말)'!C30 -> 1.0 | D27: ='법정동(2025.6월말)'!D30-'법정동(2024.12월말)'!D30 -> 0.0 | E27: ='법정동(2025.6월말)'!E30-'법정동(2024.12월말)'!E30 -> 0.0 | F27: ='법정동(2025.6월말)'!F30-'법정동(2024.12월말)'!F30 -> -58.0 | G27: ='법정동(2025.6월말)'!G30-'법정동(2024.12월말)'!G30 -> -1.0 | H27: ='법정동(2025.6월말)'!H30-'법정동(2024.12월말)'!H30 -> 0.0 | I27: ='법정동(2025.6월말)'!I30-'법정동(2024.12월말)'!I30 -> 0.0 | J27: ='법정동(2025.6월말)'!J30-'법정동(2024.12월말)'!J30 -> 0.0 | K27: ='법정동(2025.6월말)'!K30-'법정동(2024.12월말)'!K30 -> 0.0 | L27: ='법정동(2025.6월말)'!L30-'법정동(2024.12월말)'!L30 -> 0.0 | M27: ='법정동(2025.6월말)'!M30-'법정동(2024.12월말)'!M30 -> 0.0 | N27: ='법정동(2025.6월말)'!N30-'법정동(2024.12월말)'!N30 -> 0.0 | O27: ='법정동(2025.6월말)'!O30-'법정동(2024.12월말)'!O30 -> 0.0 | P27: ='법정동(2025.6월말)'!P30-'법정동(2024.12월말)'!P30 -> 0.0 | Q27: ='법정동(2025.6월말)'!Q30-'법정동(2024.12월말)'!Q30 -> 0.0 | R27: ='법정동(2025.6월말)'!R30-'법정동(2024.12월말)'!R30 -> 90.0 | S27: ='법정동(2025.6월말)'!S30-'법정동(2024.12월말)'!S30 -> 2.0 | T27: ='법정동(2025.6월말)'!T30-'법정동(2024.12월말)'!T30 -> 0.0 | U27: ='법정동(2025.6월말)'!U30-'법정동(2024.12월말)'!U30 -> 0.0 | V27: ='법정동(2025.6월말)'!V30-'법정동(2024.12월말)'!V30 -> 0.0 | W27: ='법정동(2025.6월말)'!W30-'법정동(2024.12월말)'!W30 -> 0.0 | X27: ='법정동(2025.6월말)'!X30-'법정동(2024.12월말)'!X30 -> 0.0 | Y27: ='법정동(2025.6월말)'!Y30-'법정동(2024.12월말)'!Y30 -> 0.0 | Z27: ='법정동(2025.6월말)'!Z30-'법정동(2024.12월말)'!Z30 -> 0.0 | AA27: ='법정동(2025.6월말)'!AA30-'법정동(2024.12월말)'!AA30 -> 0.0 | AB27: ='법정동(2025.6월말)'!AB30-'법정동(2024.12월말)'!AB30 -> 0.0 | AC27: ='법정동(2025.6월말)'!AC30-'법정동(2024.12월말)'!AC30 -> 0.0 | AD27: ='법정동(2025.6월말)'!AD30-'법정동(2024.12월말)'!AD30 -> -32.0 | AE27: ='법정동(2025.6월말)'!AE30-'법정동(2024.12월말)'!AE30 -> 0.0 | AF27: ='법정동(2025.6월말)'!AF30-'법정동(2024.12월말)'!AF30 -> 0.0 | AG27: ='법정동(2025.6월말)'!AG30-'법정동(2024.12월말)'!AG30 -> 0.0 | AH27: ='법정동(2025.6월말)'!AH30-'법정동(2024.12월말)'!AH30 -> 0.0 | AI27: ='법정동(2025.6월말)'!AI30-'법정동(2024.12월말)'!AI30 -> 0.0 | AJ27: ='법정동(2025.6월말)'!AJ30-'법정동(2024.12월말)'!AJ30 -> 0.0 | AK27: ='법정동(2025.6월말)'!AK30-'법정동(2024.12월말)'!AK30 -> 0.0 | AL27: ='법정동(2025.6월말)'!AL30-'법정동(2024.12월말)'!AL30 -> 0.0 | AM27: ='법정동(2025.6월말)'!AM30-'법정동(2024.12월말)'!AM30 -> 0.0 | AN27: ='법정동(2025.6월말)'!AN30-'법정동(2024.12월말)'!AN30 -> 0.0 | AO27: ='법정동(2025.6월말)'!AO30-'법정동(2024.12월말)'!AO30 -> 0.0 | AP27: ='법정동(2025.6월말)'!AP30-'법정동(2024.12월말)'!AP30 -> 0.0 | AQ27: ='법정동(2025.6월말)'!AQ30-'법정동(2024.12월말)'!AQ30 -> 0.0 | AR27: ='법정동(2025.6월말)'!AR30-'법정동(2024.12월말)'!AR30 -> 0.0 | AS27: ='법정동(2025.6월말)'!AS30-'법정동(2024.12월말)'!AS30 -> 0.0 | AT27: ='법정동(2025.6월말)'!AT30-'법정동(2024.12월말)'!AT30 -> 0.0 | AU27: ='법정동(2025.6월말)'!AU30-'법정동(2024.12월말)'!AU30 -> 0.0 | AV27: ='법정동(2025.6월말)'!AV30-'법정동(2024.12월말)'!AV30 -> 0.0 | AW27: ='법정동(2025.6월말)'!AW30-'법정동(2024.12월말)'!AW30 -> 0.0 | AX27: ='법정동(2025.6월말)'!AX30-'법정동(2024.12월말)'!AX30 -> 0.0 | AY27: ='법정동(2025.6월말)'!AY30-'법정동(2024.12월말)'!AY30 -> 0.0 | AZ27: ='법정동(2025.6월말)'!AZ30-'법정동(2024.12월말)'!AZ30 -> 0.0 | BA27: ='법정동(2025.6월말)'!BA30-'법정동(2024.12월말)'!BA30 -> 0.0 | BB27: ='법정동(2025.6월말)'!BB30-'법정동(2024.12월말)'!BB30 -> 0.0 | BC27: ='법정동(2025.6월말)'!BC30-'법정동(2024.12월말)'!BC30 -> 0.0 | BD27: ='법정동(2025.6월말)'!BD30-'법정동(2024.12월말)'!BD30 -> 0.0 | BE27: ='법정동(2025.6월말)'!BE30-'법정동(2024.12월말)'!BE30 -> 0.0 | BF27: ='법정동(2025.6월말)'!BF30-'법정동(2024.12월말)'!BF30 -> 0.0 | BG27: ='법정동(2025.6월말)'!BG30-'법정동(2024.12월말)'!BG30 -> 0.0
A28: 만흥동 | B28: ='법정동(2025.6월말)'!B31-'법정동(2024.12월말)'!B31 -> 0.0 | C28: ='법정동(2025.6월말)'!C31-'법정동(2024.12월말)'!C31 -> 4.0 | D28: ='법정동(2025.6월말)'!D31-'법정동(2024.12월말)'!D31 -> -1,211.0 | E28: ='법정동(2025.6월말)'!E31-'법정동(2024.12월말)'!E31 -> -2.0 | F28: ='법정동(2025.6월말)'!F31-'법정동(2024.12월말)'!F31 -> 0.0 | G28: ='법정동(2025.6월말)'!G31-'법정동(2024.12월말)'!G31 -> 0.0 | H28: ='법정동(2025.6월말)'!H31-'법정동(2024.12월말)'!H31 -> 0.0 | I28: ='법정동(2025.6월말)'!I31-'법정동(2024.12월말)'!I31 -> 0.0 | J28: ='법정동(2025.6월말)'!J31-'법정동(2024.12월말)'!J31 -> 0.0 | K28: ='법정동(2025.6월말)'!K31-'법정동(2024.12월말)'!K31 -> 0.0 | L28: ='법정동(2025.6월말)'!L31-'법정동(2024.12월말)'!L31 -> -326.0 | M28: ='법정동(2025.6월말)'!M31-'법정동(2024.12월말)'!M31 -> -1.0 | N28: ='법정동(2025.6월말)'!N31-'법정동(2024.12월말)'!N31 -> 0.0 | O28: ='법정동(2025.6월말)'!O31-'법정동(2024.12월말)'!O31 -> 0.0 | P28: ='법정동(2025.6월말)'!P31-'법정동(2024.12월말)'!P31 -> 0.0 | Q28: ='법정동(2025.6월말)'!Q31-'법정동(2024.12월말)'!Q31 -> 0.0 | R28: ='법정동(2025.6월말)'!R31-'법정동(2024.12월말)'!R31 -> 448.0 | S28: ='법정동(2025.6월말)'!S31-'법정동(2024.12월말)'!S31 -> 5.0 | T28: ='법정동(2025.6월말)'!T31-'법정동(2024.12월말)'!T31 -> 0.0 | U28: ='법정동(2025.6월말)'!U31-'법정동(2024.12월말)'!U31 -> 0.0 | V28: ='법정동(2025.6월말)'!V31-'법정동(2024.12월말)'!V31 -> 0.0 | W28: ='법정동(2025.6월말)'!W31-'법정동(2024.12월말)'!W31 -> 0.0 | X28: ='법정동(2025.6월말)'!X31-'법정동(2024.12월말)'!X31 -> 0.0 | Y28: ='법정동(2025.6월말)'!Y31-'법정동(2024.12월말)'!Y31 -> 0.0 | Z28: ='법정동(2025.6월말)'!Z31-'법정동(2024.12월말)'!Z31 -> 0.0 | AA28: ='법정동(2025.6월말)'!AA31-'법정동(2024.12월말)'!AA31 -> 0.0 | AB28: ='법정동(2025.6월말)'!AB31-'법정동(2024.12월말)'!AB31 -> 0.0 | AC28: ='법정동(2025.6월말)'!AC31-'법정동(2024.12월말)'!AC31 -> 0.0 | AD28: ='법정동(2025.6월말)'!AD31-'법정동(2024.12월말)'!AD31 -> 1,089.0 | AE28: ='법정동(2025.6월말)'!AE31-'법정동(2024.12월말)'!AE31 -> 2.0 | AF28: ='법정동(2025.6월말)'!AF31-'법정동(2024.12월말)'!AF31 -> 0.0 | AG28: ='법정동(2025.6월말)'!AG31-'법정동(2024.12월말)'!AG31 -> 0.0 | AH28: ='법정동(2025.6월말)'!AH31-'법정동(2024.12월말)'!AH31 -> 0.0 | AI28: ='법정동(2025.6월말)'!AI31-'법정동(2024.12월말)'!AI31 -> 0.0 | AJ28: ='법정동(2025.6월말)'!AJ31-'법정동(2024.12월말)'!AJ31 -> 0.0 | AK28: ='법정동(2025.6월말)'!AK31-'법정동(2024.12월말)'!AK31 -> 0.0 | AL28: ='법정동(2025.6월말)'!AL31-'법정동(2024.12월말)'!AL31 -> 0.0 | AM28: ='법정동(2025.6월말)'!AM31-'법정동(2024.12월말)'!AM31 -> 0.0 | AN28: ='법정동(2025.6월말)'!AN31-'법정동(2024.12월말)'!AN31 -> 0.0 | AO28: ='법정동(2025.6월말)'!AO31-'법정동(2024.12월말)'!AO31 -> 0.0 | AP28: ='법정동(2025.6월말)'!AP31-'법정동(2024.12월말)'!AP31 -> 0.0 | AQ28: ='법정동(2025.6월말)'!AQ31-'법정동(2024.12월말)'!AQ31 -> 0.0 | AR28: ='법정동(2025.6월말)'!AR31-'법정동(2024.12월말)'!AR31 -> 0.0 | AS28: ='법정동(2025.6월말)'!AS31-'법정동(2024.12월말)'!AS31 -> 0.0 | AT28: ='법정동(2025.6월말)'!AT31-'법정동(2024.12월말)'!AT31 -> 0.0 | AU28: ='법정동(2025.6월말)'!AU31-'법정동(2024.12월말)'!AU31 -> 0.0 | AV28: ='법정동(2025.6월말)'!AV31-'법정동(2024.12월말)'!AV31 -> 0.0 | AW28: ='법정동(2025.6월말)'!AW31-'법정동(2024.12월말)'!AW31 -> 0.0 | AX28: ='법정동(2025.6월말)'!AX31-'법정동(2024.12월말)'!AX31 -> 0.0 | AY28: ='법정동(2025.6월말)'!AY31-'법정동(2024.12월말)'!AY31 -> 0.0 | AZ28: ='법정동(2025.6월말)'!AZ31-'법정동(2024.12월말)'!AZ31 -> 0.0 | BA28: ='법정동(2025.6월말)'!BA31-'법정동(2024.12월말)'!BA31 -> 0.0 | BB28: ='법정동(2025.6월말)'!BB31-'법정동(2024.12월말)'!BB31 -> 0.0 | BC28: ='법정동(2025.6월말)'!BC31-'법정동(2024.12월말)'!BC31 -> 0.0 | BD28: ='법정동(2025.6월말)'!BD31-'법정동(2024.12월말)'!BD31 -> 0.0 | BE28: ='법정동(2025.6월말)'!BE31-'법정동(2024.12월말)'!BE31 -> 0.0 | BF28: ='법정동(2025.6월말)'!BF31-'법정동(2024.12월말)'!BF31 -> 0.0 | BG28: ='법정동(2025.6월말)'!BG31-'법정동(2024.12월말)'!BG31 -> 0.0
A29: 덕충동 | B29: ='법정동(2025.6월말)'!B32-'법정동(2024.12월말)'!B32 -> 125,788.4 | C29: ='법정동(2025.6월말)'!C32-'법정동(2024.12월말)'!C32 -> 20.0 | D29: ='법정동(2025.6월말)'!D32-'법정동(2024.12월말)'!D32 -> -59.0 | E29: ='법정동(2025.6월말)'!E32-'법정동(2024.12월말)'!E32 -> 1.0 | F29: ='법정동(2025.6월말)'!F32-'법정동(2024.12월말)'!F32 -> -203.0 | G29: ='법정동(2025.6월말)'!G32-'법정동(2024.12월말)'!G32 -> -1.0 | H29: ='법정동(2025.6월말)'!H32-'법정동(2024.12월말)'!H32 -> 0.0 | I29: ='법정동(2025.6월말)'!I32-'법정동(2024.12월말)'!I32 -> 0.0 | J29: ='법정동(2025.6월말)'!J32-'법정동(2024.12월말)'!J32 -> 0.0 | K29: ='법정동(2025.6월말)'!K32-'법정동(2024.12월말)'!K32 -> 0.0 | L29: ='법정동(2025.6월말)'!L32-'법정동(2024.12월말)'!L32 -> -99.0 | M29: ='법정동(2025.6월말)'!M32-'법정동(2024.12월말)'!M32 -> 0.0 | N29: ='법정동(2025.6월말)'!N32-'법정동(2024.12월말)'!N32 -> 0.0 | O29: ='법정동(2025.6월말)'!O32-'법정동(2024.12월말)'!O32 -> 0.0 | P29: ='법정동(2025.6월말)'!P32-'법정동(2024.12월말)'!P32 -> 0.0 | Q29: ='법정동(2025.6월말)'!Q32-'법정동(2024.12월말)'!Q32 -> 0.0 | R29: ='법정동(2025.6월말)'!R32-'법정동(2024.12월말)'!R32 -> 40,974.7 | S29: ='법정동(2025.6월말)'!S32-'법정동(2024.12월말)'!S32 -> 4.0 | T29: ='법정동(2025.6월말)'!T32-'법정동(2024.12월말)'!T32 -> 0.0 | U29: ='법정동(2025.6월말)'!U32-'법정동(2024.12월말)'!U32 -> 0.0 | V29: ='법정동(2025.6월말)'!V32-'법정동(2024.12월말)'!V32 -> 0.0 | W29: ='법정동(2025.6월말)'!W32-'법정동(2024.12월말)'!W32 -> 0.0 | X29: ='법정동(2025.6월말)'!X32-'법정동(2024.12월말)'!X32 -> 17,051.3 | Y29: ='법정동(2025.6월말)'!Y32-'법정동(2024.12월말)'!Y32 -> 3.0 | Z29: ='법정동(2025.6월말)'!Z32-'법정동(2024.12월말)'!Z32 -> 0.0 | AA29: ='법정동(2025.6월말)'!AA32-'법정동(2024.12월말)'!AA32 -> 0.0 | AB29: ='법정동(2025.6월말)'!AB32-'법정동(2024.12월말)'!AB32 -> 168.0 | AC29: ='법정동(2025.6월말)'!AC32-'법정동(2024.12월말)'!AC32 -> 1.0 | AD29: ='법정동(2025.6월말)'!AD32-'법정동(2024.12월말)'!AD32 -> 22,845.6 | AE29: ='법정동(2025.6월말)'!AE32-'법정동(2024.12월말)'!AE32 -> 3.0 | AF29: ='법정동(2025.6월말)'!AF32-'법정동(2024.12월말)'!AF32 -> 0.0 | AG29: ='법정동(2025.6월말)'!AG32-'법정동(2024.12월말)'!AG32 -> 0.0 | AH29: ='법정동(2025.6월말)'!AH32-'법정동(2024.12월말)'!AH32 -> 0.0 | AI29: ='법정동(2025.6월말)'!AI32-'법정동(2024.12월말)'!AI32 -> 0.0 | AJ29: ='법정동(2025.6월말)'!AJ32-'법정동(2024.12월말)'!AJ32 -> 0.0 | AK29: ='법정동(2025.6월말)'!AK32-'법정동(2024.12월말)'!AK32 -> 0.0 | AL29: ='법정동(2025.6월말)'!AL32-'법정동(2024.12월말)'!AL32 -> 0.0 | AM29: ='법정동(2025.6월말)'!AM32-'법정동(2024.12월말)'!AM32 -> 0.0 | AN29: ='법정동(2025.6월말)'!AN32-'법정동(2024.12월말)'!AN32 -> 0.0 | AO29: ='법정동(2025.6월말)'!AO32-'법정동(2024.12월말)'!AO32 -> 0.0 | AP29: ='법정동(2025.6월말)'!AP32-'법정동(2024.12월말)'!AP32 -> 0.0 | AQ29: ='법정동(2025.6월말)'!AQ32-'법정동(2024.12월말)'!AQ32 -> 0.0 | AR29: ='법정동(2025.6월말)'!AR32-'법정동(2024.12월말)'!AR32 -> 0.0 | AS29: ='법정동(2025.6월말)'!AS32-'법정동(2024.12월말)'!AS32 -> 0.0 | AT29: ='법정동(2025.6월말)'!AT32-'법정동(2024.12월말)'!AT32 -> 20,996.9 | AU29: ='법정동(2025.6월말)'!AU32-'법정동(2024.12월말)'!AU32 -> 4.0 | AV29: ='법정동(2025.6월말)'!AV32-'법정동(2024.12월말)'!AV32 -> 0.0 | AW29: ='법정동(2025.6월말)'!AW32-'법정동(2024.12월말)'!AW32 -> 0.0 | AX29: ='법정동(2025.6월말)'!AX32-'법정동(2024.12월말)'!AX32 -> 0.0 | AY29: ='법정동(2025.6월말)'!AY32-'법정동(2024.12월말)'!AY32 -> 0.0 | AZ29: ='법정동(2025.6월말)'!AZ32-'법정동(2024.12월말)'!AZ32 -> 0.0 | BA29: ='법정동(2025.6월말)'!BA32-'법정동(2024.12월말)'!BA32 -> 0.0 | BB29: ='법정동(2025.6월말)'!BB32-'법정동(2024.12월말)'!BB32 -> 0.0 | BC29: ='법정동(2025.6월말)'!BC32-'법정동(2024.12월말)'!BC32 -> 0.0 | BD29: ='법정동(2025.6월말)'!BD32-'법정동(2024.12월말)'!BD32 -> 99.0 | BE29: ='법정동(2025.6월말)'!BE32-'법정동(2024.12월말)'!BE32 -> 1.0 | BF29: ='법정동(2025.6월말)'!BF32-'법정동(2024.12월말)'!BF32 -> 24,013.9 | BG29: ='법정동(2025.6월말)'!BG32-'법정동(2024.12월말)'!BG32 -> 4.0
A30: 경호동 | B30: ='법정동(2025.6월말)'!B33-'법정동(2024.12월말)'!B33 -> 0.0 | C30: ='법정동(2025.6월말)'!C33-'법정동(2024.12월말)'!C33 -> 1.0 | D30: ='법정동(2025.6월말)'!D33-'법정동(2024.12월말)'!D33 -> 0.0 | E30: ='법정동(2025.6월말)'!E33-'법정동(2024.12월말)'!E33 -> 0.0 | F30: ='법정동(2025.6월말)'!F33-'법정동(2024.12월말)'!F33 -> 0.0 | G30: ='법정동(2025.6월말)'!G33-'법정동(2024.12월말)'!G33 -> 0.0 | H30: ='법정동(2025.6월말)'!H33-'법정동(2024.12월말)'!H33 -> 0.0 | I30: ='법정동(2025.6월말)'!I33-'법정동(2024.12월말)'!I33 -> 0.0 | J30: ='법정동(2025.6월말)'!J33-'법정동(2024.12월말)'!J33 -> 0.0 | K30: ='법정동(2025.6월말)'!K33-'법정동(2024.12월말)'!K33 -> 0.0 | L30: ='법정동(2025.6월말)'!L33-'법정동(2024.12월말)'!L33 -> 0.0 | M30: ='법정동(2025.6월말)'!M33-'법정동(2024.12월말)'!M33 -> 1.0 | N30: ='법정동(2025.6월말)'!N33-'법정동(2024.12월말)'!N33 -> 0.0 | O30: ='법정동(2025.6월말)'!O33-'법정동(2024.12월말)'!O33 -> 0.0 | P30: ='법정동(2025.6월말)'!P33-'법정동(2024.12월말)'!P33 -> 0.0 | Q30: ='법정동(2025.6월말)'!Q33-'법정동(2024.12월말)'!Q33 -> 0.0 | R30: ='법정동(2025.6월말)'!R33-'법정동(2024.12월말)'!R33 -> 0.0 | S30: ='법정동(2025.6월말)'!S33-'법정동(2024.12월말)'!S33 -> 0.0 | T30: ='법정동(2025.6월말)'!T33-'법정동(2024.12월말)'!T33 -> 0.0 | U30: ='법정동(2025.6월말)'!U33-'법정동(2024.12월말)'!U33 -> 0.0 | V30: ='법정동(2025.6월말)'!V33-'법정동(2024.12월말)'!V33 -> 0.0 | W30: ='법정동(2025.6월말)'!W33-'법정동(2024.12월말)'!W33 -> 0.0 | X30: ='법정동(2025.6월말)'!X33-'법정동(2024.12월말)'!X33 -> 0.0 | Y30: ='법정동(2025.6월말)'!Y33-'법정동(2024.12월말)'!Y33 -> 0.0 | Z30: ='법정동(2025.6월말)'!Z33-'법정동(2024.12월말)'!Z33 -> 0.0 | AA30: ='법정동(2025.6월말)'!AA33-'법정동(2024.12월말)'!AA33 -> 0.0 | AB30: ='법정동(2025.6월말)'!AB33-'법정동(2024.12월말)'!AB33 -> 0.0 | AC30: ='법정동(2025.6월말)'!AC33-'법정동(2024.12월말)'!AC33 -> 0.0 | AD30: ='법정동(2025.6월말)'!AD33-'법정동(2024.12월말)'!AD33 -> 0.0 | AE30: ='법정동(2025.6월말)'!AE33-'법정동(2024.12월말)'!AE33 -> 0.0 | AF30: ='법정동(2025.6월말)'!AF33-'법정동(2024.12월말)'!AF33 -> 0.0 | AG30: ='법정동(2025.6월말)'!AG33-'법정동(2024.12월말)'!AG33 -> 0.0 | AH30: ='법정동(2025.6월말)'!AH33-'법정동(2024.12월말)'!AH33 -> 0.0 | AI30: ='법정동(2025.6월말)'!AI33-'법정동(2024.12월말)'!AI33 -> 0.0 | AJ30: ='법정동(2025.6월말)'!AJ33-'법정동(2024.12월말)'!AJ33 -> 0.0 | AK30: ='법정동(2025.6월말)'!AK33-'법정동(2024.12월말)'!AK33 -> 0.0 | AL30: ='법정동(2025.6월말)'!AL33-'법정동(2024.12월말)'!AL33 -> 0.0 | AM30: ='법정동(2025.6월말)'!AM33-'법정동(2024.12월말)'!AM33 -> 0.0 | AN30: ='법정동(2025.6월말)'!AN33-'법정동(2024.12월말)'!AN33 -> 0.0 | AO30: ='법정동(2025.6월말)'!AO33-'법정동(2024.12월말)'!AO33 -> 0.0 | AP30: ='법정동(2025.6월말)'!AP33-'법정동(2024.12월말)'!AP33 -> 0.0 | AQ30: ='법정동(2025.6월말)'!AQ33-'법정동(2024.12월말)'!AQ33 -> 0.0 | AR30: ='법정동(2025.6월말)'!AR33-'법정동(2024.12월말)'!AR33 -> 0.0 | AS30: ='법정동(2025.6월말)'!AS33-'법정동(2024.12월말)'!AS33 -> 0.0 | AT30: ='법정동(2025.6월말)'!AT33-'법정동(2024.12월말)'!AT33 -> 0.0 | AU30: ='법정동(2025.6월말)'!AU33-'법정동(2024.12월말)'!AU33 -> 0.0 | AV30: ='법정동(2025.6월말)'!AV33-'법정동(2024.12월말)'!AV33 -> 0.0 | AW30: ='법정동(2025.6월말)'!AW33-'법정동(2024.12월말)'!AW33 -> 0.0 | AX30: ='법정동(2025.6월말)'!AX33-'법정동(2024.12월말)'!AX33 -> 0.0 | AY30: ='법정동(2025.6월말)'!AY33-'법정동(2024.12월말)'!AY33 -> 0.0 | AZ30: ='법정동(2025.6월말)'!AZ33-'법정동(2024.12월말)'!AZ33 -> 0.0 | BA30: ='법정동(2025.6월말)'!BA33-'법정동(2024.12월말)'!BA33 -> 0.0 | BB30: ='법정동(2025.6월말)'!BB33-'법정동(2024.12월말)'!BB33 -> 0.0 | BC30: ='법정동(2025.6월말)'!BC33-'법정동(2024.12월말)'!BC33 -> 0.0 | BD30: ='법정동(2025.6월말)'!BD33-'법정동(2024.12월말)'!BD33 -> 0.0 | BE30: ='법정동(2025.6월말)'!BE33-'법정동(2024.12월말)'!BE33 -> 0.0 | BF30: ='법정동(2025.6월말)'!BF33-'법정동(2024.12월말)'!BF33 -> 0.0 | BG30: ='법정동(2025.6월말)'!BG33-'법정동(2024.12월말)'!BG33 -> 0.0
A31: 학동 | B31: ='법정동(2025.6월말)'!B34-'법정동(2024.12월말)'!B34 -> 0.0 | C31: ='법정동(2025.6월말)'!C34-'법정동(2024.12월말)'!C34 -> -4.0 | D31: ='법정동(2025.6월말)'!D34-'법정동(2024.12월말)'!D34 -> 0.0 | E31: ='법정동(2025.6월말)'!E34-'법정동(2024.12월말)'!E34 -> 0.0 | F31: ='법정동(2025.6월말)'!F34-'법정동(2024.12월말)'!F34 -> 0.0 | G31: ='법정동(2025.6월말)'!G34-'법정동(2024.12월말)'!G34 -> 0.0 | H31: ='법정동(2025.6월말)'!H34-'법정동(2024.12월말)'!H34 -> 0.0 | I31: ='법정동(2025.6월말)'!I34-'법정동(2024.12월말)'!I34 -> 0.0 | J31: ='법정동(2025.6월말)'!J34-'법정동(2024.12월말)'!J34 -> 0.0 | K31: ='법정동(2025.6월말)'!K34-'법정동(2024.12월말)'!K34 -> 0.0 | L31: ='법정동(2025.6월말)'!L34-'법정동(2024.12월말)'!L34 -> 0.0 | M31: ='법정동(2025.6월말)'!M34-'법정동(2024.12월말)'!M34 -> 0.0 | N31: ='법정동(2025.6월말)'!N34-'법정동(2024.12월말)'!N34 -> 0.0 | O31: ='법정동(2025.6월말)'!O34-'법정동(2024.12월말)'!O34 -> 0.0 | P31: ='법정동(2025.6월말)'!P34-'법정동(2024.12월말)'!P34 -> 0.0 | Q31: ='법정동(2025.6월말)'!Q34-'법정동(2024.12월말)'!Q34 -> 0.0 | R31: ='법정동(2025.6월말)'!R34-'법정동(2024.12월말)'!R34 -> 0.0 | S31: ='법정동(2025.6월말)'!S34-'법정동(2024.12월말)'!S34 -> -4.0 | T31: ='법정동(2025.6월말)'!T34-'법정동(2024.12월말)'!T34 -> 0.0 | U31: ='법정동(2025.6월말)'!U34-'법정동(2024.12월말)'!U34 -> 0.0 | V31: ='법정동(2025.6월말)'!V34-'법정동(2024.12월말)'!V34 -> 0.0 | W31: ='법정동(2025.6월말)'!W34-'법정동(2024.12월말)'!W34 -> 0.0 | X31: ='법정동(2025.6월말)'!X34-'법정동(2024.12월말)'!X34 -> 0.0 | Y31: ='법정동(2025.6월말)'!Y34-'법정동(2024.12월말)'!Y34 -> 0.0 | Z31: ='법정동(2025.6월말)'!Z34-'법정동(2024.12월말)'!Z34 -> 0.0 | AA31: ='법정동(2025.6월말)'!AA34-'법정동(2024.12월말)'!AA34 -> 0.0 | AB31: ='법정동(2025.6월말)'!AB34-'법정동(2024.12월말)'!AB34 -> 0.0 | AC31: ='법정동(2025.6월말)'!AC34-'법정동(2024.12월말)'!AC34 -> 0.0 | AD31: ='법정동(2025.6월말)'!AD34-'법정동(2024.12월말)'!AD34 -> 0.0 | AE31: ='법정동(2025.6월말)'!AE34-'법정동(2024.12월말)'!AE34 -> 0.0 | AF31: ='법정동(2025.6월말)'!AF34-'법정동(2024.12월말)'!AF34 -> 0.0 | AG31: ='법정동(2025.6월말)'!AG34-'법정동(2024.12월말)'!AG34 -> 0.0 | AH31: ='법정동(2025.6월말)'!AH34-'법정동(2024.12월말)'!AH34 -> 0.0 | AI31: ='법정동(2025.6월말)'!AI34-'법정동(2024.12월말)'!AI34 -> 0.0 | AJ31: ='법정동(2025.6월말)'!AJ34-'법정동(2024.12월말)'!AJ34 -> 0.0 | AK31: ='법정동(2025.6월말)'!AK34-'법정동(2024.12월말)'!AK34 -> 0.0 | AL31: ='법정동(2025.6월말)'!AL34-'법정동(2024.12월말)'!AL34 -> 0.0 | AM31: ='법정동(2025.6월말)'!AM34-'법정동(2024.12월말)'!AM34 -> 0.0 | AN31: ='법정동(2025.6월말)'!AN34-'법정동(2024.12월말)'!AN34 -> 0.0 | AO31: ='법정동(2025.6월말)'!AO34-'법정동(2024.12월말)'!AO34 -> 0.0 | AP31: ='법정동(2025.6월말)'!AP34-'법정동(2024.12월말)'!AP34 -> 0.0 | AQ31: ='법정동(2025.6월말)'!AQ34-'법정동(2024.12월말)'!AQ34 -> 0.0 | AR31: ='법정동(2025.6월말)'!AR34-'법정동(2024.12월말)'!AR34 -> 0.0 | AS31: ='법정동(2025.6월말)'!AS34-'법정동(2024.12월말)'!AS34 -> 0.0 | AT31: ='법정동(2025.6월말)'!AT34-'법정동(2024.12월말)'!AT34 -> 0.0 | AU31: ='법정동(2025.6월말)'!AU34-'법정동(2024.12월말)'!AU34 -> 0.0 | AV31: ='법정동(2025.6월말)'!AV34-'법정동(2024.12월말)'!AV34 -> 0.0 | AW31: ='법정동(2025.6월말)'!AW34-'법정동(2024.12월말)'!AW34 -> 0.0 | AX31: ='법정동(2025.6월말)'!AX34-'법정동(2024.12월말)'!AX34 -> 0.0 | AY31: ='법정동(2025.6월말)'!AY34-'법정동(2024.12월말)'!AY34 -> 0.0 | AZ31: ='법정동(2025.6월말)'!AZ34-'법정동(2024.12월말)'!AZ34 -> 0.0 | BA31: ='법정동(2025.6월말)'!BA34-'법정동(2024.12월말)'!BA34 -> 0.0 | BB31: ='법정동(2025.6월말)'!BB34-'법정동(2024.12월말)'!BB34 -> 0.0 | BC31: ='법정동(2025.6월말)'!BC34-'법정동(2024.12월말)'!BC34 -> 0.0 | BD31: ='법정동(2025.6월말)'!BD34-'법정동(2024.12월말)'!BD34 -> 0.0 | BE31: ='법정동(2025.6월말)'!BE34-'법정동(2024.12월말)'!BE34 -> 0.0 | BF31: ='법정동(2025.6월말)'!BF34-'법정동(2024.12월말)'!BF34 -> 0.0 | BG31: ='법정동(2025.6월말)'!BG34-'법정동(2024.12월말)'!BG34 -> 0.0
... 38 more rows

Sheet 법정동(2025.6월말)
A1: 여수시 지적(地籍) 통계 현황
A3: (기준일자 : 2025. 6. 30. / 단위 : 필지, ㎡) | P3: (기준일자 : 2024. 6. 30. / 단위 : 필지, ㎡)
A4: 구 분 | B4: 계 | D4: 전 | F4: 답 | H4: 과수원 | J4: 목장용지 | L4: 임야 | N4: 광천지 | P4: 염전 | R4: 대 | T4: 공장용지 | V4: 학교용지 | X4: 주차장 | Z4: 주유소용지 | AB4: 창고용지 | AD4: 도로 | AF4: 철도용지 | AH4: 제방 | AJ4: 하천 | AL4: 구거 | AN4: 유지 | AP4: 양어장 | AR4: 수도용지 | AT4: 공원 | AV4: 체육용지 | AX4: 유원지 | AZ4: 종교용지 | BB4: 사적지 | BD4: 묘지 | BF4: 잡종지
B5: 면 적 | C5: 지번수 | D5: 면 적 | E5: 지번수 | F5: 면 적 | G5: 지번수 | H5: 면 적 | I5: 지번수 | J5: 면 적 | K5: 지번수 | L5: 면 적 | M5: 지번수 | N5: 면 적 | O5: 지번수 | P5: 면 적 | Q5: 지번수 | R5: 면 적 | S5: 지번수 | T5: 면 적 | U5: 지번수 | V5: 면 적 | W5: 지번수 | X5: 면 적 | Y5: 지번수 | Z5: 면 적 | AA5: 지번수 | AB5: 면 적 | AC5: 지번수 | AD5: 면 적 | AE5: 지번수 | AF5: 면 적 | AG5: 지번수 | AH5: 면 적 | AI5: 지번수 | AJ5: 면 적 | AK5: 지번수 | AL5: 면 적 | AM5: 지번수 | AN5: 면 적 | AO5: 지번수 | AP5: 면 적 | AQ5: 지번수 | AR5: 면 적 | AS5: 지번수 | AT5: 면 적 | AU5: 지번수 | AV5: 면 적 | AW5: 지번수 | AX5: 면 적 | AY5: 지번수 | AZ5: 면 적 | BA5: 지번수 | BB5: 면 적 | BC5: 지번수 | BD5: 면 적 | BE5: 지번수 | BF5: 면 적 | BG5: 지번수
A6: 합 계 | B6: 512,464,823.80 | C6: 303,426 | D6: 62,534,176.50 | E6: 70315 | F6: 37,795,734.80 | G6: 42907 | H6: 591,813.10 | I6: 227 | J6: 1,877,586.10 | K6: 545 | L6: 298,595,849.30 | M6: 53534 | N6: 0 | O6: 0 | P6: 2,828.00 | Q6: 5 | R6: 25,686,109.40 | S6: 66908 | T6: 21,338,980.70 | U6: 1506 | V6: 2,023,369.10 | W6: 350 | X6: 623,135.30 | Y6: 614 | Z6: 894,197.00 | AA6: 259 | AB6: 407,085.30 | AC6: 530 | AD6: 24,083,637.10 | AE6: 46997 | AF6: 1,624,562.20 | AG6: 1876 | AH6: 694,635.20 | AI6: 803 | AJ6: 2,671,186.20 | AK6: 983 | AL6: 4,524,279.30 | AM6: 5246 | AN6: 2,774,575.10 | AO6: 1352 | AP6: 259,990.60 | AQ6: 181 | AR6: 607,071.40 | AS6: 407 | AT6: 3,605,653.10 | AU6: 477 | AV6: 3,559,074.30 | AW6: 82 | AX6: 436,946.30 | AY6: 40 | AZ6: 475,117.70 | BA6: 500 | BB6: 84,641.20 | BC6: 27 | BD6: 1,759,696.60 | BE6: 1857 | BF6: 12,932,892.90 | BG6: 4898
